{"text_format":"1","workbook":"xlsx","n_sheets":17,"sheets":["D.H. A","D.H.(indiv.)","1ª B","2ª C","2ª C (fase pvia)","2ª C (dtas)","2ª C (indiv.)","4ª D","1ª.(fase pvia)","2ª (fase pvia)","1ª.(dtas)","2ª (dtas)","M. H. (indiv.)","INSCRIP.","4ª D (fase pvia)","4ª D (dtas)","4ª D (indiv.)"],"not_rendered":{"charts":0,"images":4,"macros":1,"external_links":1,"defined_names":17,"comments":0,"pivot_tables":0},"unopened":[],"bounds":{"document_bytes":16777216,"sheet_cells":100000,"rows_first":2000,"rows_last":500,"rows_between":2000,"halvings":0,"cell_chars":16384,"cell_head_chars":4096},"cells_cut":0,"cells_raw":0,"read":"whole","date_system":"1900"}

{"sheet":"D.H. A","index":0,"n_rows":36,"n_cols":34,"rows_kept":36,"cut":false,"hidden":true,"merged":[[6,0,16,2],[6,18,14,19],[6,25,7,26],[6,27,7,30],[8,20,9,22],[8,25,9,26],[8,27,9,30],[10,20,11,23],[14,20,15,23],[14,25,15,26],[14,27,15,30],[4,5,4,19],[4,27,4,28],[10,25,11,26],[10,27,11,30],[12,20,13,23],[12,25,13,26],[12,27,13,30],[19,1,19,9],[19,11,19,19],[19,21,19,29],[17,0,17,1],[17,2,17,14],[17,16,17,19],[17,20,17,30],[18,0,18,30],[20,1,20,9],[20,11,20,19],[21,1,21,9],[21,11,21,19],[21,21,21,29],[22,1,22,9],[22,11,22,19],[22,21,22,29],[23,1,23,9],[23,11,23,19],[23,21,23,29],[24,1,24,9],[24,11,24,19],[24,21,24,29],[25,1,25,9],[25,11,25,19],[25,21,25,29],[26,1,26,9],[26,11,26,19],[26,21,26,29],[27,1,27,9],[27,11,27,19],[27,21,27,29],[28,1,28,9],[28,11,28,19],[28,21,28,29],[29,1,29,9],[29,11,29,19],[29,21,29,29],[30,1,30,9],[30,11,30,19],[30,21,30,29],[31,1,31,9],[31,11,31,19],[31,21,31,29],[35,13,35,17],[32,1,32,9],[32,11,32,19],[32,21,32,29],[33,1,33,9],[33,11,33,19],[33,21,33,29]]}
[]
[null,null,"Federació Catalana de Petanca"]
[null,null,"Rambla Guipúscoa, 23-25. 3er. Of. D i E - Tel. 93 268 00 48  - 08018 BARCELONA"]
[]
["                      Nom del Club",null,null,null,null,"   CLUB PETANCA PRAT  \" A \"",null,null,null,null,null,null,null,null,null,null,null,null,null,null,null,null,null,null,"Núm club:",null,null,9]
[]
["per participar en ",null,null,"Opens",null,null,null,null,null,null,null,null,null,null,null,null,null,null,"Lliga"]
[]
[null,null,null,"Campionat de Catalunya de Clubs Tripletes",null,null,null,null,null,null,null,null,null,null,null,null,null,null,null,null,"Lliga Masculina",null,null,null,null,"Divisió"]
[]
[null,null,null,"Campionat de Catalunya de Clubs Dobletes",null,null,null,null,null,null,null,null,null,null,null,null,null,null,null,null,"Lliga Femenina",null,null,null,null,"Divisió"]
[]
[null,null,null,"Campionat de Catalunya Individual",null,null,null,null,null,null,null,null,null,null,null,null,null,null,null,null,"División Honor",null,null,null,"X","Divisió",null,"D.HONOR. A"]
[]
[null,null,null,"Campionat de Catalunya Individual  (tir)"]
[]
[]
["Categoria",null,"MASCULINA",null,null,null,null,null,null,null,null,null,null,null,null,null,"Observacions",null,null,null,"        JUAN A. GARCIA CUADRADO  -   615240490"]
["COINCIDIR  LOS  GRUPOS   \" A  Y  B \""]
["(1)","CAPITÀ",null,null,null,null,null,null,null,null,"Número Llicencia","JUGADOR",null,null,null,null,null,null,null,null,"Número Llicencia","JUGADOR",null,null,null,null,null,null,null,null,"Número Llicencia"]
[null,{"$f":"IF(K21=\"\",\"\",VLOOKUP(K21,[1]DEPORTISTAS!$A:$B,2,FALSE))","v":"FRANCISCO GONZALEZ SORROCHE"},null,null,null,null,null,null,null,null,33509,{"$f":"IF(U21=\"\",\"\",VLOOKUP(U21,[1]DEPORTISTAS!$A:$B,2,FALSE))","v":""},null,null,null,null,null,null,null,null,null,{"$f":"IF(AE21=\"\",\"\",VLOOKUP(AE21,[1]DEPORTISTAS!$A:$B,2,FALSE))","v":""},{"$f":"IF(ISERROR(VLOOKUP(#REF!,#REF!,2,FALSE)),\"\",VLOOKUP(#REF!,#REF!,2,FALSE))","v":""},{"$f":"IF(ISERROR(VLOOKUP(#REF!,#REF!,2,FALSE)),\"\",VLOOKUP(#REF!,#REF!,2,FALSE))","v":""},{"$f":"IF(ISERROR(VLOOKUP(#REF!,#REF!,2,FALSE)),\"\",VLOOKUP(#REF!,#REF!,2,FALSE))","v":""},{"$f":"IF(ISERROR(VLOOKUP(#REF!,#REF!,2,FALSE)),\"\",VLOOKUP(#REF!,#REF!,2,FALSE))","v":""},{"$f":"IF(ISERROR(VLOOKUP(#REF!,#REF!,2,FALSE)),\"\",VLOOKUP(#REF!,#REF!,2,FALSE))","v":""},{"$f":"IF(ISERROR(VLOOKUP(#REF!,#REF!,2,FALSE)),\"\",VLOOKUP(#REF!,#REF!,2,FALSE))","v":""},{"$f":"IF(ISERROR(VLOOKUP(#REF!,#REF!,2,FALSE)),\"\",VLOOKUP(#REF!,#REF!,2,FALSE))","v":""},{"$f":"IF(ISERROR(VLOOKUP(#REF!,#REF!,2,FALSE)),\"\",VLOOKUP(#REF!,#REF!,2,FALSE))","v":""}]
[null,{"$f":"IF(K22=\"\",\"\",VLOOKUP(K22,[1]DEPORTISTAS!$A:$B,2,FALSE))","v":"FRANCISCO JOSE AGUILAR LOZANO"},{"$f":"IF(ISERROR(VLOOKUP(#REF!,#REF!,2,FALSE)),\"\",VLOOKUP(#REF!,#REF!,2,FALSE))","v":""},{"$f":"IF(ISERROR(VLOOKUP(#REF!,#REF!,2,FALSE)),\"\",VLOOKUP(#REF!,#REF!,2,FALSE))","v":""},{"$f":"IF(ISERROR(VLOOKUP(#REF!,#REF!,2,FALSE)),\"\",VLOOKUP(#REF!,#REF!,2,FALSE))","v":""},{"$f":"IF(ISERROR(VLOOKUP(#REF!,#REF!,2,FALSE)),\"\",VLOOKUP(#REF!,#REF!,2,FALSE))","v":""},{"$f":"IF(ISERROR(VLOOKUP(#REF!,#REF!,2,FALSE)),\"\",VLOOKUP(#REF!,#REF!,2,FALSE))","v":""},{"$f":"IF(ISERROR(VLOOKUP(#REF!,#REF!,2,FALSE)),\"\",VLOOKUP(#REF!,#REF!,2,FALSE))","v":""},{"$f":"IF(ISERROR(VLOOKUP(#REF!,#REF!,2,FALSE)),\"\",VLOOKUP(#REF!,#REF!,2,FALSE))","v":""},{"$f":"IF(ISERROR(VLOOKUP(#REF!,#REF!,2,FALSE)),\"\",VLOOKUP(#REF!,#REF!,2,FALSE))","v":""},9065,{"$f":"IF(U22=\"\",\"\",VLOOKUP(U22,[1]DEPORTISTAS!$A:$B,2,FALSE))","v":""},{"$f":"IF(ISERROR(VLOOKUP(#REF!,#REF!,2,FALSE)),\"\",VLOOKUP(#REF!,#REF!,2,FALSE))","v":""},{"$f":"IF(ISERROR(VLOOKUP(#REF!,#REF!,2,FALSE)),\"\",VLOOKUP(#REF!,#REF!,2,FALSE))","v":""},{"$f":"IF(ISERROR(VLOOKUP(#REF!,#REF!,2,FALSE)),\"\",VLOOKUP(#REF!,#REF!,2,FALSE))","v":""},{"$f":"IF(ISERROR(VLOOKUP(#REF!,#REF!,2,FALSE)),\"\",VLOOKUP(#REF!,#REF!,2,FALSE))","v":""},{"$f":"IF(ISERROR(VLOOKUP(#REF!,#REF!,2,FALSE)),\"\",VLOOKUP(#REF!,#REF!,2,FALSE))","v":""},{"$f":"IF(ISERROR(VLOOKUP(#REF!,#REF!,2,FALSE)),\"\",VLOOKUP(#REF!,#REF!,2,FALSE))","v":""},{"$f":"IF(ISERROR(VLOOKUP(#REF!,#REF!,2,FALSE)),\"\",VLOOKUP(#REF!,#REF!,2,FALSE))","v":""},{"$f":"IF(ISERROR(VLOOKUP(#REF!,#REF!,2,FALSE)),\"\",VLOOKUP(#REF!,#REF!,2,FALSE))","v":""},null,{"$f":"IF(AE22=\"\",\"\",VLOOKUP(AE22,[1]DEPORTISTAS!$A:$B,2,FALSE))","v":""},{"$f":"IF(ISERROR(VLOOKUP(#REF!,#REF!,2,FALSE)),\"\",VLOOKUP(#REF!,#REF!,2,FALSE))","v":""},{"$f":"IF(ISERROR(VLOOKUP(#REF!,#REF!,2,FALSE)),\"\",VLOOKUP(#REF!,#REF!,2,FALSE))","v":""},{"$f":"IF(ISERROR(VLOOKUP(#REF!,#REF!,2,FALSE)),\"\",VLOOKUP(#REF!,#REF!,2,FALSE))","v":""},{"$f":"IF(ISERROR(VLOOKUP(#REF!,#REF!,2,FALSE)),\"\",VLOOKUP(#REF!,#REF!,2,FALSE))","v":""},{"$f":"IF(ISERROR(VLOOKUP(#REF!,#REF!,2,FALSE)),\"\",VLOOKUP(#REF!,#REF!,2,FALSE))","v":""},{"$f":"IF(ISERROR(VLOOKUP(#REF!,#REF!,2,FALSE)),\"\",VLOOKUP(#REF!,#REF!,2,FALSE))","v":""},{"$f":"IF(ISERROR(VLOOKUP(#REF!,#REF!,2,FALSE)),\"\",VLOOKUP(#REF!,#REF!,2,FALSE))","v":""},{"$f":"IF(ISERROR(VLOOKUP(#REF!,#REF!,2,FALSE)),\"\",VLOOKUP(#REF!,#REF!,2,FALSE))","v":""},null,null,null,{"$f":"IF(ISERROR(VLOOKUP(K21,#REF!,2,FALSE)),\"\",VLOOKUP(K21,#REF!,2,FALSE))","v":""}]
[null,{"$f":"IF(K23=\"\",\"\",VLOOKUP(K23,[1]DEPORTISTAS!$A:$B,2,FALSE))","v":"PEDRO SERRETA ANTON"},{"$f":"IF(ISERROR(VLOOKUP(#REF!,#REF!,2,FALSE)),\"\",VLOOKUP(#REF!,#REF!,2,FALSE))","v":""},{"$f":"IF(ISERROR(VLOOKUP(#REF!,#REF!,2,FALSE)),\"\",VLOOKUP(#REF!,#REF!,2,FALSE))","v":""},{"$f":"IF(ISERROR(VLOOKUP(#REF!,#REF!,2,FALSE)),\"\",VLOOKUP(#REF!,#REF!,2,FALSE))","v":""},{"$f":"IF(ISERROR(VLOOKUP(#REF!,#REF!,2,FALSE)),\"\",VLOOKUP(#REF!,#REF!,2,FALSE))","v":""},{"$f":"IF(ISERROR(VLOOKUP(#REF!,#REF!,2,FALSE)),\"\",VLOOKUP(#REF!,#REF!,2,FALSE))","v":""},{"$f":"IF(ISERROR(VLOOKUP(#REF!,#REF!,2,FALSE)),\"\",VLOOKUP(#REF!,#REF!,2,FALSE))","v":""},{"$f":"IF(ISERROR(VLOOKUP(#REF!,#REF!,2,FALSE)),\"\",VLOOKUP(#REF!,#REF!,2,FALSE))","v":""},{"$f":"IF(ISERROR(VLOOKUP(#REF!,#REF!,2,FALSE)),\"\",VLOOKUP(#REF!,#REF!,2,FALSE))","v":""},28665,{"$f":"IF(U23=\"\",\"\",VLOOKUP(U23,[1]DEPORTISTAS!$A:$B,2,FALSE))","v":""},{"$f":"IF(ISERROR(VLOOKUP(#REF!,#REF!,2,FALSE)),\"\",VLOOKUP(#REF!,#REF!,2,FALSE))","v":""},{"$f":"IF(ISERROR(VLOOKUP(#REF!,#REF!,2,FALSE)),\"\",VLOOKUP(#REF!,#REF!,2,FALSE))","v":""},{"$f":"IF(ISERROR(VLOOKUP(#REF!,#REF!,2,FALSE)),\"\",VLOOKUP(#REF!,#REF!,2,FALSE))","v":""},{"$f":"IF(ISERROR(VLOOKUP(#REF!,#REF!,2,FALSE)),\"\",VLOOKUP(#REF!,#REF!,2,FALSE))","v":""},{"$f":"IF(ISERROR(VLOOKUP(#REF!,#REF!,2,FALSE)),\"\",VLOOKUP(#REF!,#REF!,2,FALSE))","v":""},{"$f":"IF(ISERROR(VLOOKUP(#REF!,#REF!,2,FALSE)),\"\",VLOOKUP(#REF!,#REF!,2,FALSE))","v":""},{"$f":"IF(ISERROR(VLOOKUP(#REF!,#REF!,2,FALSE)),\"\",VLOOKUP(#REF!,#REF!,2,FALSE))","v":""},{"$f":"IF(ISERROR(VLOOKUP(#REF!,#REF!,2,FALSE)),\"\",VLOOKUP(#REF!,#REF!,2,FALSE))","v":""},null,{"$f":"IF(AE23=\"\",\"\",VLOOKUP(AE23,[1]DEPORTISTAS!$A:$B,2,FALSE))","v":""},{"$f":"IF(ISERROR(VLOOKUP(#REF!,#REF!,2,FALSE)),\"\",VLOOKUP(#REF!,#REF!,2,FALSE))","v":""},{"$f":"IF(ISERROR(VLOOKUP(#REF!,#REF!,2,FALSE)),\"\",VLOOKUP(#REF!,#REF!,2,FALSE))","v":""},{"$f":"IF(ISERROR(VLOOKUP(#REF!,#REF!,2,FALSE)),\"\",VLOOKUP(#REF!,#REF!,2,FALSE))","v":""},{"$f":"IF(ISERROR(VLOOKUP(#REF!,#REF!,2,FALSE)),\"\",VLOOKUP(#REF!,#REF!,2,FALSE))","v":""},{"$f":"IF(ISERROR(VLOOKUP(#REF!,#REF!,2,FALSE)),\"\",VLOOKUP(#REF!,#REF!,2,FALSE))","v":""},{"$f":"IF(ISERROR(VLOOKUP(#REF!,#REF!,2,FALSE)),\"\",VLOOKUP(#REF!,#REF!,2,FALSE))","v":""},{"$f":"IF(ISERROR(VLOOKUP(#REF!,#REF!,2,FALSE)),\"\",VLOOKUP(#REF!,#REF!,2,FALSE))","v":""},{"$f":"IF(ISERROR(VLOOKUP(#REF!,#REF!,2,FALSE)),\"\",VLOOKUP(#REF!,#REF!,2,FALSE))","v":""}]
[null,{"$f":"IF(K24=\"\",\"\",VLOOKUP(K24,[1]DEPORTISTAS!$A:$B,2,FALSE))","v":"JOEL ROCA CANAL"},{"$f":"IF(ISERROR(VLOOKUP(#REF!,#REF!,2,FALSE)),\"\",VLOOKUP(#REF!,#REF!,2,FALSE))","v":""},{"$f":"IF(ISERROR(VLOOKUP(#REF!,#REF!,2,FALSE)),\"\",VLOOKUP(#REF!,#REF!,2,FALSE))","v":""},{"$f":"IF(ISERROR(VLOOKUP(#REF!,#REF!,2,FALSE)),\"\",VLOOKUP(#REF!,#REF!,2,FALSE))","v":""},{"$f":"IF(ISERROR(VLOOKUP(#REF!,#REF!,2,FALSE)),\"\",VLOOKUP(#REF!,#REF!,2,FALSE))","v":""},{"$f":"IF(ISERROR(VLOOKUP(#REF!,#REF!,2,FALSE)),\"\",VLOOKUP(#REF!,#REF!,2,FALSE))","v":""},{"$f":"IF(ISERROR(VLOOKUP(#REF!,#REF!,2,FALSE)),\"\",VLOOKUP(#REF!,#REF!,2,FALSE))","v":""},{"$f":"IF(ISERROR(VLOOKUP(#REF!,#REF!,2,FALSE)),\"\",VLOOKUP(#REF!,#REF!,2,FALSE))","v":""},{"$f":"IF(ISERROR(VLOOKUP(#REF!,#REF!,2,FALSE)),\"\",VLOOKUP(#REF!,#REF!,2,FALSE))","v":""},42526,{"$f":"IF(U24=\"\",\"\",VLOOKUP(U24,[1]DEPORTISTAS!$A:$B,2,FALSE))","v":""},{"$f":"IF(ISERROR(VLOOKUP(#REF!,#REF!,2,FALSE)),\"\",VLOOKUP(#REF!,#REF!,2,FALSE))","v":""},{"$f":"IF(ISERROR(VLOOKUP(#REF!,#REF!,2,FALSE)),\"\",VLOOKUP(#REF!,#REF!,2,FALSE))","v":""},{"$f":"IF(ISERROR(VLOOKUP(#REF!,#REF!,2,FALSE)),\"\",VLOOKUP(#REF!,#REF!,2,FALSE))","v":""},{"$f":"IF(ISERROR(VLOOKUP(#REF!,#REF!,2,FALSE)),\"\",VLOOKUP(#REF!,#REF!,2,FALSE))","v":""},{"$f":"IF(ISERROR(VLOOKUP(#REF!,#REF!,2,FALSE)),\"\",VLOOKUP(#REF!,#REF!,2,FALSE))","v":""},{"$f":"IF(ISERROR(VLOOKUP(#REF!,#REF!,2,FALSE)),\"\",VLOOKUP(#REF!,#REF!,2,FALSE))","v":""},{"$f":"IF(ISERROR(VLOOKUP(#REF!,#REF!,2,FALSE)),\"\",VLOOKUP(#REF!,#REF!,2,FALSE))","v":""},{"$f":"IF(ISERROR(VLOOKUP(#REF!,#REF!,2,FALSE)),\"\",VLOOKUP(#REF!,#REF!,2,FALSE))","v":""},null,{"$f":"IF(AE24=\"\",\"\",VLOOKUP(AE24,[1]DEPORTISTAS!$A:$B,2,FALSE))","v":""},{"$f":"IF(ISERROR(VLOOKUP(#REF!,#REF!,2,FALSE)),\"\",VLOOKUP(#REF!,#REF!,2,FALSE))","v":""},{"$f":"IF(ISERROR(VLOOKUP(#REF!,#REF!,2,FALSE)),\"\",VLOOKUP(#REF!,#REF!,2,FALSE))","v":""},{"$f":"IF(ISERROR(VLOOKUP(#REF!,#REF!,2,FALSE)),\"\",VLOOKUP(#REF!,#REF!,2,FALSE))","v":""},{"$f":"IF(ISERROR(VLOOKUP(#REF!,#REF!,2,FALSE)),\"\",VLOOKUP(#REF!,#REF!,2,FALSE))","v":""},{"$f":"IF(ISERROR(VLOOKUP(#REF!,#REF!,2,FALSE)),\"\",VLOOKUP(#REF!,#REF!,2,FALSE))","v":""},{"$f":"IF(ISERROR(VLOOKUP(#REF!,#REF!,2,FALSE)),\"\",VLOOKUP(#REF!,#REF!,2,FALSE))","v":""},{"$f":"IF(ISERROR(VLOOKUP(#REF!,#REF!,2,FALSE)),\"\",VLOOKUP(#REF!,#REF!,2,FALSE))","v":""},{"$f":"IF(ISERROR(VLOOKUP(#REF!,#REF!,2,FALSE)),\"\",VLOOKUP(#REF!,#REF!,2,FALSE))","v":""}]
[null,{"$f":"IF(K25=\"\",\"\",VLOOKUP(K25,[1]DEPORTISTAS!$A:$B,2,FALSE))","v":"JOSE CAMBRA PLA"},{"$f":"IF(ISERROR(VLOOKUP(#REF!,#REF!,2,FALSE)),\"\",VLOOKUP(#REF!,#REF!,2,FALSE))","v":""},{"$f":"IF(ISERROR(VLOOKUP(#REF!,#REF!,2,FALSE)),\"\",VLOOKUP(#REF!,#REF!,2,FALSE))","v":""},{"$f":"IF(ISERROR(VLOOKUP(#REF!,#REF!,2,FALSE)),\"\",VLOOKUP(#REF!,#REF!,2,FALSE))","v":""},{"$f":"IF(ISERROR(VLOOKUP(#REF!,#REF!,2,FALSE)),\"\",VLOOKUP(#REF!,#REF!,2,FALSE))","v":""},{"$f":"IF(ISERROR(VLOOKUP(#REF!,#REF!,2,FALSE)),\"\",VLOOKUP(#REF!,#REF!,2,FALSE))","v":""},{"$f":"IF(ISERROR(VLOOKUP(#REF!,#REF!,2,FALSE)),\"\",VLOOKUP(#REF!,#REF!,2,FALSE))","v":""},{"$f":"IF(ISERROR(VLOOKUP(#REF!,#REF!,2,FALSE)),\"\",VLOOKUP(#REF!,#REF!,2,FALSE))","v":""},{"$f":"IF(ISERROR(VLOOKUP(#REF!,#REF!,2,FALSE)),\"\",VLOOKUP(#REF!,#REF!,2,FALSE))","v":""},17354,{"$f":"IF(U25=\"\",\"\",VLOOKUP(U25,[1]DEPORTISTAS!$A:$B,2,FALSE))","v":""},{"$f":"IF(ISERROR(VLOOKUP(#REF!,#REF!,2,FALSE)),\"\",VLOOKUP(#REF!,#REF!,2,FALSE))","v":""},{"$f":"IF(ISERROR(VLOOKUP(#REF!,#REF!,2,FALSE)),\"\",VLOOKUP(#REF!,#REF!,2,FALSE))","v":""},{"$f":"IF(ISERROR(VLOOKUP(#REF!,#REF!,2,FALSE)),\"\",VLOOKUP(#REF!,#REF!,2,FALSE))","v":""},{"$f":"IF(ISERROR(VLOOKUP(#REF!,#REF!,2,FALSE)),\"\",VLOOKUP(#REF!,#REF!,2,FALSE))","v":""},{"$f":"IF(ISERROR(VLOOKUP(#REF!,#REF!,2,FALSE)),\"\",VLOOKUP(#REF!,#REF!,2,FALSE))","v":""},{"$f":"IF(ISERROR(VLOOKUP(#REF!,#REF!,2,FALSE)),\"\",VLOOKUP(#REF!,#REF!,2,FALSE))","v":""},{"$f":"IF(ISERROR(VLOOKUP(#REF!,#REF!,2,FALSE)),\"\",VLOOKUP(#REF!,#REF!,2,FALSE))","v":""},{"$f":"IF(ISERROR(VLOOKUP(#REF!,#REF!,2,FALSE)),\"\",VLOOKUP(#REF!,#REF!,2,FALSE))","v":""},null,{"$f":"IF(AE25=\"\",\"\",VLOOKUP(AE25,[1]DEPORTISTAS!$A:$B,2,FALSE))","v":""},{"$f":"IF(ISERROR(VLOOKUP(#REF!,#REF!,2,FALSE)),\"\",VLOOKUP(#REF!,#REF!,2,FALSE))","v":""},{"$f":"IF(ISERROR(VLOOKUP(#REF!,#REF!,2,FALSE)),\"\",VLOOKUP(#REF!,#REF!,2,FALSE))","v":""},{"$f":"IF(ISERROR(VLOOKUP(#REF!,#REF!,2,FALSE)),\"\",VLOOKUP(#REF!,#REF!,2,FALSE))","v":""},{"$f":"IF(ISERROR(VLOOKUP(#REF!,#REF!,2,FALSE)),\"\",VLOOKUP(#REF!,#REF!,2,FALSE))","v":""},{"$f":"IF(ISERROR(VLOOKUP(#REF!,#REF!,2,FALSE)),\"\",VLOOKUP(#REF!,#REF!,2,FALSE))","v":""},{"$f":"IF(ISERROR(VLOOKUP(#REF!,#REF!,2,FALSE)),\"\",VLOOKUP(#REF!,#REF!,2,FALSE))","v":""},{"$f":"IF(ISERROR(VLOOKUP(#REF!,#REF!,2,FALSE)),\"\",VLOOKUP(#REF!,#REF!,2,FALSE))","v":""},{"$f":"IF(ISERROR(VLOOKUP(#REF!,#REF!,2,FALSE)),\"\",VLOOKUP(#REF!,#REF!,2,FALSE))","v":""}]
[null,{"$f":"IF(K26=\"\",\"\",VLOOKUP(K26,[1]DEPORTISTAS!$A:$B,2,FALSE))","v":"SERGI RODRIGUEZ BOIXADER"},{"$f":"IF(ISERROR(VLOOKUP(#REF!,#REF!,2,FALSE)),\"\",VLOOKUP(#REF!,#REF!,2,FALSE))","v":""},{"$f":"IF(ISERROR(VLOOKUP(#REF!,#REF!,2,FALSE)),\"\",VLOOKUP(#REF!,#REF!,2,FALSE))","v":""},{"$f":"IF(ISERROR(VLOOKUP(#REF!,#REF!,2,FALSE)),\"\",VLOOKUP(#REF!,#REF!,2,FALSE))","v":""},{"$f":"IF(ISERROR(VLOOKUP(#REF!,#REF!,2,FALSE)),\"\",VLOOKUP(#REF!,#REF!,2,FALSE))","v":""},{"$f":"IF(ISERROR(VLOOKUP(#REF!,#REF!,2,FALSE)),\"\",VLOOKUP(#REF!,#REF!,2,FALSE))","v":""},{"$f":"IF(ISERROR(VLOOKUP(#REF!,#REF!,2,FALSE)),\"\",VLOOKUP(#REF!,#REF!,2,FALSE))","v":""},{"$f":"IF(ISERROR(VLOOKUP(#REF!,#REF!,2,FALSE)),\"\",VLOOKUP(#REF!,#REF!,2,FALSE))","v":""},{"$f":"IF(ISERROR(VLOOKUP(#REF!,#REF!,2,FALSE)),\"\",VLOOKUP(#REF!,#REF!,2,FALSE))","v":""},35385,{"$f":"IF(U26=\"\",\"\",VLOOKUP(U26,[1]DEPORTISTAS!$A:$B,2,FALSE))","v":""},{"$f":"IF(ISERROR(VLOOKUP(#REF!,#REF!,2,FALSE)),\"\",VLOOKUP(#REF!,#REF!,2,FALSE))","v":""},{"$f":"IF(ISERROR(VLOOKUP(#REF!,#REF!,2,FALSE)),\"\",VLOOKUP(#REF!,#REF!,2,FALSE))","v":""},{"$f":"IF(ISERROR(VLOOKUP(#REF!,#REF!,2,FALSE)),\"\",VLOOKUP(#REF!,#REF!,2,FALSE))","v":""},{"$f":"IF(ISERROR(VLOOKUP(#REF!,#REF!,2,FALSE)),\"\",VLOOKUP(#REF!,#REF!,2,FALSE))","v":""},{"$f":"IF(ISERROR(VLOOKUP(#REF!,#REF!,2,FALSE)),\"\",VLOOKUP(#REF!,#REF!,2,FALSE))","v":""},{"$f":"IF(ISERROR(VLOOKUP(#REF!,#REF!,2,FALSE)),\"\",VLOOKUP(#REF!,#REF!,2,FALSE))","v":""},{"$f":"IF(ISERROR(VLOOKUP(#REF!,#REF!,2,FALSE)),\"\",VLOOKUP(#REF!,#REF!,2,FALSE))","v":""},{"$f":"IF(ISERROR(VLOOKUP(#REF!,#REF!,2,FALSE)),\"\",VLOOKUP(#REF!,#REF!,2,FALSE))","v":""},null,{"$f":"IF(AE26=\"\",\"\",VLOOKUP(AE26,[1]DEPORTISTAS!$A:$B,2,FALSE))","v":""},{"$f":"IF(ISERROR(VLOOKUP(#REF!,#REF!,2,FALSE)),\"\",VLOOKUP(#REF!,#REF!,2,FALSE))","v":""},{"$f":"IF(ISERROR(VLOOKUP(#REF!,#REF!,2,FALSE)),\"\",VLOOKUP(#REF!,#REF!,2,FALSE))","v":""},{"$f":"IF(ISERROR(VLOOKUP(#REF!,#REF!,2,FALSE)),\"\",VLOOKUP(#REF!,#REF!,2,FALSE))","v":""},{"$f":"IF(ISERROR(VLOOKUP(#REF!,#REF!,2,FALSE)),\"\",VLOOKUP(#REF!,#REF!,2,FALSE))","v":""},{"$f":"IF(ISERROR(VLOOKUP(#REF!,#REF!,2,FALSE)),\"\",VLOOKUP(#REF!,#REF!,2,FALSE))","v":""},{"$f":"IF(ISERROR(VLOOKUP(#REF!,#REF!,2,FALSE)),\"\",VLOOKUP(#REF!,#REF!,2,FALSE))","v":""},{"$f":"IF(ISERROR(VLOOKUP(#REF!,#REF!,2,FALSE)),\"\",VLOOKUP(#REF!,#REF!,2,FALSE))","v":""},{"$f":"IF(ISERROR(VLOOKUP(#REF!,#REF!,2,FALSE)),\"\",VLOOKUP(#REF!,#REF!,2,FALSE))","v":""}]
[null,{"$f":"IF(K27=\"\",\"\",VLOOKUP(K27,[1]DEPORTISTAS!$A:$B,2,FALSE))","v":"JOSE MARIA MERCADO CAZORLA"},{"$f":"IF(ISERROR(VLOOKUP(#REF!,#REF!,2,FALSE)),\"\",VLOOKUP(#REF!,#REF!,2,FALSE))","v":""},{"$f":"IF(ISERROR(VLOOKUP(#REF!,#REF!,2,FALSE)),\"\",VLOOKUP(#REF!,#REF!,2,FALSE))","v":""},{"$f":"IF(ISERROR(VLOOKUP(#REF!,#REF!,2,FALSE)),\"\",VLOOKUP(#REF!,#REF!,2,FALSE))","v":""},{"$f":"IF(ISERROR(VLOOKUP(#REF!,#REF!,2,FALSE)),\"\",VLOOKUP(#REF!,#REF!,2,FALSE))","v":""},{"$f":"IF(ISERROR(VLOOKUP(#REF!,#REF!,2,FALSE)),\"\",VLOOKUP(#REF!,#REF!,2,FALSE))","v":""},{"$f":"IF(ISERROR(VLOOKUP(#REF!,#REF!,2,FALSE)),\"\",VLOOKUP(#REF!,#REF!,2,FALSE))","v":""},{"$f":"IF(ISERROR(VLOOKUP(#REF!,#REF!,2,FALSE)),\"\",VLOOKUP(#REF!,#REF!,2,FALSE))","v":""},{"$f":"IF(ISERROR(VLOOKUP(#REF!,#REF!,2,FALSE)),\"\",VLOOKUP(#REF!,#REF!,2,FALSE))","v":""},38625,{"$f":"IF(U27=\"\",\"\",VLOOKUP(U27,[1]DEPORTISTAS!$A:$B,2,FALSE))","v":""},{"$f":"IF(ISERROR(VLOOKUP(#REF!,#REF!,2,FALSE)),\"\",VLOOKUP(#REF!,#REF!,2,FALSE))","v":""},{"$f":"IF(ISERROR(VLOOKUP(#REF!,#REF!,2,FALSE)),\"\",VLOOKUP(#REF!,#REF!,2,FALSE))","v":""},{"$f":"IF(ISERROR(VLOOKUP(#REF!,#REF!,2,FALSE)),\"\",VLOOKUP(#REF!,#REF!,2,FALSE))","v":""},{"$f":"IF(ISERROR(VLOOKUP(#REF!,#REF!,2,FALSE)),\"\",VLOOKUP(#REF!,#REF!,2,FALSE))","v":""},{"$f":"IF(ISERROR(VLOOKUP(#REF!,#REF!,2,FALSE)),\"\",VLOOKUP(#REF!,#REF!,2,FALSE))","v":""},{"$f":"IF(ISERROR(VLOOKUP(#REF!,#REF!,2,FALSE)),\"\",VLOOKUP(#REF!,#REF!,2,FALSE))","v":""},{"$f":"IF(ISERROR(VLOOKUP(#REF!,#REF!,2,FALSE)),\"\",VLOOKUP(#REF!,#REF!,2,FALSE))","v":""},{"$f":"IF(ISERROR(VLOOKUP(#REF!,#REF!,2,FALSE)),\"\",VLOOKUP(#REF!,#REF!,2,FALSE))","v":""},null,{"$f":"IF(AE27=\"\",\"\",VLOOKUP(AE27,[1]DEPORTISTAS!$A:$B,2,FALSE))","v":""},{"$f":"IF(ISERROR(VLOOKUP(#REF!,#REF!,2,FALSE)),\"\",VLOOKUP(#REF!,#REF!,2,FALSE))","v":""},{"$f":"IF(ISERROR(VLOOKUP(#REF!,#REF!,2,FALSE)),\"\",VLOOKUP(#REF!,#REF!,2,FALSE))","v":""},{"$f":"IF(ISERROR(VLOOKUP(#REF!,#REF!,2,FALSE)),\"\",VLOOKUP(#REF!,#REF!,2,FALSE))","v":""},{"$f":"IF(ISERROR(VLOOKUP(#REF!,#REF!,2,FALSE)),\"\",VLOOKUP(#REF!,#REF!,2,FALSE))","v":""},{"$f":"IF(ISERROR(VLOOKUP(#REF!,#REF!,2,FALSE)),\"\",VLOOKUP(#REF!,#REF!,2,FALSE))","v":""},{"$f":"IF(ISERROR(VLOOKUP(#REF!,#REF!,2,FALSE)),\"\",VLOOKUP(#REF!,#REF!,2,FALSE))","v":""},{"$f":"IF(ISERROR(VLOOKUP(#REF!,#REF!,2,FALSE)),\"\",VLOOKUP(#REF!,#REF!,2,FALSE))","v":""},{"$f":"IF(ISERROR(VLOOKUP(#REF!,#REF!,2,FALSE)),\"\",VLOOKUP(#REF!,#REF!,2,FALSE))","v":""}]
[null,{"$f":"IF(K28=\"\",\"\",VLOOKUP(K28,[1]DEPORTISTAS!$A:$B,2,FALSE))","v":"JUAN ANTONIO GARCIA CUADRADO"},{"$f":"IF(ISERROR(VLOOKUP(#REF!,#REF!,2,FALSE)),\"\",VLOOKUP(#REF!,#REF!,2,FALSE))","v":""},{"$f":"IF(ISERROR(VLOOKUP(#REF!,#REF!,2,FALSE)),\"\",VLOOKUP(#REF!,#REF!,2,FALSE))","v":""},{"$f":"IF(ISERROR(VLOOKUP(#REF!,#REF!,2,FALSE)),\"\",VLOOKUP(#REF!,#REF!,2,FALSE))","v":""},{"$f":"IF(ISERROR(VLOOKUP(#REF!,#REF!,2,FALSE)),\"\",VLOOKUP(#REF!,#REF!,2,FALSE))","v":""},{"$f":"IF(ISERROR(VLOOKUP(#REF!,#REF!,2,FALSE)),\"\",VLOOKUP(#REF!,#REF!,2,FALSE))","v":""},{"$f":"IF(ISERROR(VLOOKUP(#REF!,#REF!,2,FALSE)),\"\",VLOOKUP(#REF!,#REF!,2,FALSE))","v":""},{"$f":"IF(ISERROR(VLOOKUP(#REF!,#REF!,2,FALSE)),\"\",VLOOKUP(#REF!,#REF!,2,FALSE))","v":""},{"$f":"IF(ISERROR(VLOOKUP(#REF!,#REF!,2,FALSE)),\"\",VLOOKUP(#REF!,#REF!,2,FALSE))","v":""},24681,{"$f":"IF(U28=\"\",\"\",VLOOKUP(U28,[1]DEPORTISTAS!$A:$B,2,FALSE))","v":""},{"$f":"IF(ISERROR(VLOOKUP(#REF!,#REF!,2,FALSE)),\"\",VLOOKUP(#REF!,#REF!,2,FALSE))","v":""},{"$f":"IF(ISERROR(VLOOKUP(#REF!,#REF!,2,FALSE)),\"\",VLOOKUP(#REF!,#REF!,2,FALSE))","v":""},{"$f":"IF(ISERROR(VLOOKUP(#REF!,#REF!,2,FALSE)),\"\",VLOOKUP(#REF!,#REF!,2,FALSE))","v":""},{"$f":"IF(ISERROR(VLOOKUP(#REF!,#REF!,2,FALSE)),\"\",VLOOKUP(#REF!,#REF!,2,FALSE))","v":""},{"$f":"IF(ISERROR(VLOOKUP(#REF!,#REF!,2,FALSE)),\"\",VLOOKUP(#REF!,#REF!,2,FALSE))","v":""},{"$f":"IF(ISERROR(VLOOKUP(#REF!,#REF!,2,FALSE)),\"\",VLOOKUP(#REF!,#REF!,2,FALSE))","v":""},{"$f":"IF(ISERROR(VLOOKUP(#REF!,#REF!,2,FALSE)),\"\",VLOOKUP(#REF!,#REF!,2,FALSE))","v":""},{"$f":"IF(ISERROR(VLOOKUP(#REF!,#REF!,2,FALSE)),\"\",VLOOKUP(#REF!,#REF!,2,FALSE))","v":""},null,{"$f":"IF(AE28=\"\",\"\",VLOOKUP(AE28,[1]DEPORTISTAS!$A:$B,2,FALSE))","v":""},{"$f":"IF(ISERROR(VLOOKUP(#REF!,#REF!,2,FALSE)),\"\",VLOOKUP(#REF!,#REF!,2,FALSE))","v":""},{"$f":"IF(ISERROR(VLOOKUP(#REF!,#REF!,2,FALSE)),\"\",VLOOKUP(#REF!,#REF!,2,FALSE))","v":""},{"$f":"IF(ISERROR(VLOOKUP(#REF!,#REF!,2,FALSE)),\"\",VLOOKUP(#REF!,#REF!,2,FALSE))","v":""},{"$f":"IF(ISERROR(VLOOKUP(#REF!,#REF!,2,FALSE)),\"\",VLOOKUP(#REF!,#REF!,2,FALSE))","v":""},{"$f":"IF(ISERROR(VLOOKUP(#REF!,#REF!,2,FALSE)),\"\",VLOOKUP(#REF!,#REF!,2,FALSE))","v":""},{"$f":"IF(ISERROR(VLOOKUP(#REF!,#REF!,2,FALSE)),\"\",VLOOKUP(#REF!,#REF!,2,FALSE))","v":""},{"$f":"IF(ISERROR(VLOOKUP(#REF!,#REF!,2,FALSE)),\"\",VLOOKUP(#REF!,#REF!,2,FALSE))","v":""},{"$f":"IF(ISERROR(VLOOKUP(#REF!,#REF!,2,FALSE)),\"\",VLOOKUP(#REF!,#REF!,2,FALSE))","v":""}]
[null,{"$f":"IF(K29=\"\",\"\",VLOOKUP(K29,[1]DEPORTISTAS!$A:$B,2,FALSE))","v":"RAFAEL GARCIA GONZALEZ"},{"$f":"IF(ISERROR(VLOOKUP(#REF!,#REF!,2,FALSE)),\"\",VLOOKUP(#REF!,#REF!,2,FALSE))","v":""},{"$f":"IF(ISERROR(VLOOKUP(#REF!,#REF!,2,FALSE)),\"\",VLOOKUP(#REF!,#REF!,2,FALSE))","v":""},{"$f":"IF(ISERROR(VLOOKUP(#REF!,#REF!,2,FALSE)),\"\",VLOOKUP(#REF!,#REF!,2,FALSE))","v":""},{"$f":"IF(ISERROR(VLOOKUP(#REF!,#REF!,2,FALSE)),\"\",VLOOKUP(#REF!,#REF!,2,FALSE))","v":""},{"$f":"IF(ISERROR(VLOOKUP(#REF!,#REF!,2,FALSE)),\"\",VLOOKUP(#REF!,#REF!,2,FALSE))","v":""},{"$f":"IF(ISERROR(VLOOKUP(#REF!,#REF!,2,FALSE)),\"\",VLOOKUP(#REF!,#REF!,2,FALSE))","v":""},{"$f":"IF(ISERROR(VLOOKUP(#REF!,#REF!,2,FALSE)),\"\",VLOOKUP(#REF!,#REF!,2,FALSE))","v":""},{"$f":"IF(ISERROR(VLOOKUP(#REF!,#REF!,2,FALSE)),\"\",VLOOKUP(#REF!,#REF!,2,FALSE))","v":""},48208,{"$f":"IF(U29=\"\",\"\",VLOOKUP(U29,[1]DEPORTISTAS!$A:$B,2,FALSE))","v":""},{"$f":"IF(ISERROR(VLOOKUP(#REF!,#REF!,2,FALSE)),\"\",VLOOKUP(#REF!,#REF!,2,FALSE))","v":""},{"$f":"IF(ISERROR(VLOOKUP(#REF!,#REF!,2,FALSE)),\"\",VLOOKUP(#REF!,#REF!,2,FALSE))","v":""},{"$f":"IF(ISERROR(VLOOKUP(#REF!,#REF!,2,FALSE)),\"\",VLOOKUP(#REF!,#REF!,2,FALSE))","v":""},{"$f":"IF(ISERROR(VLOOKUP(#REF!,#REF!,2,FALSE)),\"\",VLOOKUP(#REF!,#REF!,2,FALSE))","v":""},{"$f":"IF(ISERROR(VLOOKUP(#REF!,#REF!,2,FALSE)),\"\",VLOOKUP(#REF!,#REF!,2,FALSE))","v":""},{"$f":"IF(ISERROR(VLOOKUP(#REF!,#REF!,2,FALSE)),\"\",VLOOKUP(#REF!,#REF!,2,FALSE))","v":""},{"$f":"IF(ISERROR(VLOOKUP(#REF!,#REF!,2,FALSE)),\"\",VLOOKUP(#REF!,#REF!,2,FALSE))","v":""},{"$f":"IF(ISERROR(VLOOKUP(#REF!,#REF!,2,FALSE)),\"\",VLOOKUP(#REF!,#REF!,2,FALSE))","v":""},null,{"$f":"IF(AE29=\"\",\"\",VLOOKUP(AE29,[1]DEPORTISTAS!$A:$B,2,FALSE))","v":""},{"$f":"IF(ISERROR(VLOOKUP(#REF!,#REF!,2,FALSE)),\"\",VLOOKUP(#REF!,#REF!,2,FALSE))","v":""},{"$f":"IF(ISERROR(VLOOKUP(#REF!,#REF!,2,FALSE)),\"\",VLOOKUP(#REF!,#REF!,2,FALSE))","v":""},{"$f":"IF(ISERROR(VLOOKUP(#REF!,#REF!,2,FALSE)),\"\",VLOOKUP(#REF!,#REF!,2,FALSE))","v":""},{"$f":"IF(ISERROR(VLOOKUP(#REF!,#REF!,2,FALSE)),\"\",VLOOKUP(#REF!,#REF!,2,FALSE))","v":""},{"$f":"IF(ISERROR(VLOOKUP(#REF!,#REF!,2,FALSE)),\"\",VLOOKUP(#REF!,#REF!,2,FALSE))","v":""},{"$f":"IF(ISERROR(VLOOKUP(#REF!,#REF!,2,FALSE)),\"\",VLOOKUP(#REF!,#REF!,2,FALSE))","v":""},{"$f":"IF(ISERROR(VLOOKUP(#REF!,#REF!,2,FALSE)),\"\",VLOOKUP(#REF!,#REF!,2,FALSE))","v":""},{"$f":"IF(ISERROR(VLOOKUP(#REF!,#REF!,2,FALSE)),\"\",VLOOKUP(#REF!,#REF!,2,FALSE))","v":""}]
[null,{"$f":"IF(K30=\"\",\"\",VLOOKUP(K30,[1]DEPORTISTAS!$A:$B,2,FALSE))","v":"FRANCISCO JAVIER RODRIGUEZ GONZALEZ"},{"$f":"IF(ISERROR(VLOOKUP(#REF!,#REF!,2,FALSE)),\"\",VLOOKUP(#REF!,#REF!,2,FALSE))","v":""},{"$f":"IF(ISERROR(VLOOKUP(#REF!,#REF!,2,FALSE)),\"\",VLOOKUP(#REF!,#REF!,2,FALSE))","v":""},{"$f":"IF(ISERROR(VLOOKUP(#REF!,#REF!,2,FALSE)),\"\",VLOOKUP(#REF!,#REF!,2,FALSE))","v":""},{"$f":"IF(ISERROR(VLOOKUP(#REF!,#REF!,2,FALSE)),\"\",VLOOKUP(#REF!,#REF!,2,FALSE))","v":""},{"$f":"IF(ISERROR(VLOOKUP(#REF!,#REF!,2,FALSE)),\"\",VLOOKUP(#REF!,#REF!,2,FALSE))","v":""},{"$f":"IF(ISERROR(VLOOKUP(#REF!,#REF!,2,FALSE)),\"\",VLOOKUP(#REF!,#REF!,2,FALSE))","v":""},{"$f":"IF(ISERROR(VLOOKUP(#REF!,#REF!,2,FALSE)),\"\",VLOOKUP(#REF!,#REF!,2,FALSE))","v":""},{"$f":"IF(ISERROR(VLOOKUP(#REF!,#REF!,2,FALSE)),\"\",VLOOKUP(#REF!,#REF!,2,FALSE))","v":""},47788,{"$f":"IF(U30=\"\",\"\",VLOOKUP(U30,[1]DEPORTISTAS!$A:$B,2,FALSE))","v":""},{"$f":"IF(ISERROR(VLOOKUP(#REF!,#REF!,2,FALSE)),\"\",VLOOKUP(#REF!,#REF!,2,FALSE))","v":""},{"$f":"IF(ISERROR(VLOOKUP(#REF!,#REF!,2,FALSE)),\"\",VLOOKUP(#REF!,#REF!,2,FALSE))","v":""},{"$f":"IF(ISERROR(VLOOKUP(#REF!,#REF!,2,FALSE)),\"\",VLOOKUP(#REF!,#REF!,2,FALSE))","v":""},{"$f":"IF(ISERROR(VLOOKUP(#REF!,#REF!,2,FALSE)),\"\",VLOOKUP(#REF!,#REF!,2,FALSE))","v":""},{"$f":"IF(ISERROR(VLOOKUP(#REF!,#REF!,2,FALSE)),\"\",VLOOKUP(#REF!,#REF!,2,FALSE))","v":""},{"$f":"IF(ISERROR(VLOOKUP(#REF!,#REF!,2,FALSE)),\"\",VLOOKUP(#REF!,#REF!,2,FALSE))","v":""},{"$f":"IF(ISERROR(VLOOKUP(#REF!,#REF!,2,FALSE)),\"\",VLOOKUP(#REF!,#REF!,2,FALSE))","v":""},{"$f":"IF(ISERROR(VLOOKUP(#REF!,#REF!,2,FALSE)),\"\",VLOOKUP(#REF!,#REF!,2,FALSE))","v":""},null,{"$f":"IF(AE30=\"\",\"\",VLOOKUP(AE30,[1]DEPORTISTAS!$A:$B,2,FALSE))","v":""},{"$f":"IF(ISERROR(VLOOKUP(#REF!,#REF!,2,FALSE)),\"\",VLOOKUP(#REF!,#REF!,2,FALSE))","v":""},{"$f":"IF(ISERROR(VLOOKUP(#REF!,#REF!,2,FALSE)),\"\",VLOOKUP(#REF!,#REF!,2,FALSE))","v":""},{"$f":"IF(ISERROR(VLOOKUP(#REF!,#REF!,2,FALSE)),\"\",VLOOKUP(#REF!,#REF!,2,FALSE))","v":""},{"$f":"IF(ISERROR(VLOOKUP(#REF!,#REF!,2,FALSE)),\"\",VLOOKUP(#REF!,#REF!,2,FALSE))","v":""},{"$f":"IF(ISERROR(VLOOKUP(#REF!,#REF!,2,FALSE)),\"\",VLOOKUP(#REF!,#REF!,2,FALSE))","v":""},{"$f":"IF(ISERROR(VLOOKUP(#REF!,#REF!,2,FALSE)),\"\",VLOOKUP(#REF!,#REF!,2,FALSE))","v":""},{"$f":"IF(ISERROR(VLOOKUP(#REF!,#REF!,2,FALSE)),\"\",VLOOKUP(#REF!,#REF!,2,FALSE))","v":""},{"$f":"IF(ISERROR(VLOOKUP(#REF!,#REF!,2,FALSE)),\"\",VLOOKUP(#REF!,#REF!,2,FALSE))","v":""}]
[null,{"$f":"IF(K31=\"\",\"\",VLOOKUP(K31,[1]DEPORTISTAS!$A:$B,2,FALSE))","v":"LUIS PARRA SAAVEDRA"},{"$f":"IF(ISERROR(VLOOKUP(#REF!,#REF!,2,FALSE)),\"\",VLOOKUP(#REF!,#REF!,2,FALSE))","v":""},{"$f":"IF(ISERROR(VLOOKUP(#REF!,#REF!,2,FALSE)),\"\",VLOOKUP(#REF!,#REF!,2,FALSE))","v":""},{"$f":"IF(ISERROR(VLOOKUP(#REF!,#REF!,2,FALSE)),\"\",VLOOKUP(#REF!,#REF!,2,FALSE))","v":""},{"$f":"IF(ISERROR(VLOOKUP(#REF!,#REF!,2,FALSE)),\"\",VLOOKUP(#REF!,#REF!,2,FALSE))","v":""},{"$f":"IF(ISERROR(VLOOKUP(#REF!,#REF!,2,FALSE)),\"\",VLOOKUP(#REF!,#REF!,2,FALSE))","v":""},{"$f":"IF(ISERROR(VLOOKUP(#REF!,#REF!,2,FALSE)),\"\",VLOOKUP(#REF!,#REF!,2,FALSE))","v":""},{"$f":"IF(ISERROR(VLOOKUP(#REF!,#REF!,2,FALSE)),\"\",VLOOKUP(#REF!,#REF!,2,FALSE))","v":""},{"$f":"IF(ISERROR(VLOOKUP(#REF!,#REF!,2,FALSE)),\"\",VLOOKUP(#REF!,#REF!,2,FALSE))","v":""},30586,{"$f":"IF(U31=\"\",\"\",VLOOKUP(U31,[1]DEPORTISTAS!$A:$B,2,FALSE))","v":""},{"$f":"IF(ISERROR(VLOOKUP(#REF!,#REF!,2,FALSE)),\"\",VLOOKUP(#REF!,#REF!,2,FALSE))","v":""},{"$f":"IF(ISERROR(VLOOKUP(#REF!,#REF!,2,FALSE)),\"\",VLOOKUP(#REF!,#REF!,2,FALSE))","v":""},{"$f":"IF(ISERROR(VLOOKUP(#REF!,#REF!,2,FALSE)),\"\",VLOOKUP(#REF!,#REF!,2,FALSE))","v":""},{"$f":"IF(ISERROR(VLOOKUP(#REF!,#REF!,2,FALSE)),\"\",VLOOKUP(#REF!,#REF!,2,FALSE))","v":""},{"$f":"IF(ISERROR(VLOOKUP(#REF!,#REF!,2,FALSE)),\"\",VLOOKUP(#REF!,#REF!,2,FALSE))","v":""},{"$f":"IF(ISERROR(VLOOKUP(#REF!,#REF!,2,FALSE)),\"\",VLOOKUP(#REF!,#REF!,2,FALSE))","v":""},{"$f":"IF(ISERROR(VLOOKUP(#REF!,#REF!,2,FALSE)),\"\",VLOOKUP(#REF!,#REF!,2,FALSE))","v":""},{"$f":"IF(ISERROR(VLOOKUP(#REF!,#REF!,2,FALSE)),\"\",VLOOKUP(#REF!,#REF!,2,FALSE))","v":""},null,"COMODINES"]
[null,"MIGUEL CRUZ ALVAREZ",{"$f":"IF(ISERROR(VLOOKUP(#REF!,#REF!,2,FALSE)),\"\",VLOOKUP(#REF!,#REF!,2,FALSE))","v":""},{"$f":"IF(ISERROR(VLOOKUP(#REF!,#REF!,2,FALSE)),\"\",VLOOKUP(#REF!,#REF!,2,FALSE))","v":""},{"$f":"IF(ISERROR(VLOOKUP(#REF!,#REF!,2,FALSE)),\"\",VLOOKUP(#REF!,#REF!,2,FALSE))","v":""},{"$f":"IF(ISERROR(VLOOKUP(#REF!,#REF!,2,FALSE)),\"\",VLOOKUP(#REF!,#REF!,2,FALSE))","v":""},{"$f":"IF(ISERROR(VLOOKUP(#REF!,#REF!,2,FALSE)),\"\",VLOOKUP(#REF!,#REF!,2,FALSE))","v":""},{"$f":"IF(ISERROR(VLOOKUP(#REF!,#REF!,2,FALSE)),\"\",VLOOKUP(#REF!,#REF!,2,FALSE))","v":""},{"$f":"IF(ISERROR(VLOOKUP(#REF!,#REF!,2,FALSE)),\"\",VLOOKUP(#REF!,#REF!,2,FALSE))","v":""},{"$f":"IF(ISERROR(VLOOKUP(#REF!,#REF!,2,FALSE)),\"\",VLOOKUP(#REF!,#REF!,2,FALSE))","v":""},null,{"$f":"IF(U32=\"\",\"\",VLOOKUP(U32,[1]DEPORTISTAS!$A:$B,2,FALSE))","v":""},{"$f":"IF(ISERROR(VLOOKUP(#REF!,#REF!,2,FALSE)),\"\",VLOOKUP(#REF!,#REF!,2,FALSE))","v":""},{"$f":"IF(ISERROR(VLOOKUP(#REF!,#REF!,2,FALSE)),\"\",VLOOKUP(#REF!,#REF!,2,FALSE))","v":""},{"$f":"IF(ISERROR(VLOOKUP(#REF!,#REF!,2,FALSE)),\"\",VLOOKUP(#REF!,#REF!,2,FALSE))","v":""},{"$f":"IF(ISERROR(VLOOKUP(#REF!,#REF!,2,FALSE)),\"\",VLOOKUP(#REF!,#REF!,2,FALSE))","v":""},{"$f":"IF(ISERROR(VLOOKUP(#REF!,#REF!,2,FALSE)),\"\",VLOOKUP(#REF!,#REF!,2,FALSE))","v":""},{"$f":"IF(ISERROR(VLOOKUP(#REF!,#REF!,2,FALSE)),\"\",VLOOKUP(#REF!,#REF!,2,FALSE))","v":""},{"$f":"IF(ISERROR(VLOOKUP(#REF!,#REF!,2,FALSE)),\"\",VLOOKUP(#REF!,#REF!,2,FALSE))","v":""},{"$f":"IF(ISERROR(VLOOKUP(#REF!,#REF!,2,FALSE)),\"\",VLOOKUP(#REF!,#REF!,2,FALSE))","v":""},null,{"$f":"IF(AE32=\"\",\"\",VLOOKUP(AE32,[1]DEPORTISTAS!$A:$B,2,FALSE))","v":"RAUL ELIPE JIMENEZ"},{"$f":"IF(ISERROR(VLOOKUP(#REF!,#REF!,2,FALSE)),\"\",VLOOKUP(#REF!,#REF!,2,FALSE))","v":""},{"$f":"IF(ISERROR(VLOOKUP(#REF!,#REF!,2,FALSE)),\"\",VLOOKUP(#REF!,#REF!,2,FALSE))","v":""},{"$f":"IF(ISERROR(VLOOKUP(#REF!,#REF!,2,FALSE)),\"\",VLOOKUP(#REF!,#REF!,2,FALSE))","v":""},{"$f":"IF(ISERROR(VLOOKUP(#REF!,#REF!,2,FALSE)),\"\",VLOOKUP(#REF!,#REF!,2,FALSE))","v":""},{"$f":"IF(ISERROR(VLOOKUP(#REF!,#REF!,2,FALSE)),\"\",VLOOKUP(#REF!,#REF!,2,FALSE))","v":""},{"$f":"IF(ISERROR(VLOOKUP(#REF!,#REF!,2,FALSE)),\"\",VLOOKUP(#REF!,#REF!,2,FALSE))","v":""},{"$f":"IF(ISERROR(VLOOKUP(#REF!,#REF!,2,FALSE)),\"\",VLOOKUP(#REF!,#REF!,2,FALSE))","v":""},{"$f":"IF(ISERROR(VLOOKUP(#REF!,#REF!,2,FALSE)),\"\",VLOOKUP(#REF!,#REF!,2,FALSE))","v":""},19114]
[null,{"$f":"IF(K33=\"\",\"\",VLOOKUP(K33,[1]DEPORTISTAS!$A:$B,2,FALSE))","v":"OSCAR SORIO BAEZA"},{"$f":"IF(ISERROR(VLOOKUP(#REF!,#REF!,2,FALSE)),\"\",VLOOKUP(#REF!,#REF!,2,FALSE))","v":""},{"$f":"IF(ISERROR(VLOOKUP(#REF!,#REF!,2,FALSE)),\"\",VLOOKUP(#REF!,#REF!,2,FALSE))","v":""},{"$f":"IF(ISERROR(VLOOKUP(#REF!,#REF!,2,FALSE)),\"\",VLOOKUP(#REF!,#REF!,2,FALSE))","v":""},{"$f":"IF(ISERROR(VLOOKUP(#REF!,#REF!,2,FALSE)),\"\",VLOOKUP(#REF!,#REF!,2,FALSE))","v":""},{"$f":"IF(ISERROR(VLOOKUP(#REF!,#REF!,2,FALSE)),\"\",VLOOKUP(#REF!,#REF!,2,FALSE))","v":""},{"$f":"IF(ISERROR(VLOOKUP(#REF!,#REF!,2,FALSE)),\"\",VLOOKUP(#REF!,#REF!,2,FALSE))","v":""},{"$f":"IF(ISERROR(VLOOKUP(#REF!,#REF!,2,FALSE)),\"\",VLOOKUP(#REF!,#REF!,2,FALSE))","v":""},{"$f":"IF(ISERROR(VLOOKUP(#REF!,#REF!,2,FALSE)),\"\",VLOOKUP(#REF!,#REF!,2,FALSE))","v":""},12867,{"$f":"IF(U33=\"\",\"\",VLOOKUP(U33,[1]DEPORTISTAS!$A:$B,2,FALSE))","v":""},{"$f":"IF(ISERROR(VLOOKUP(#REF!,#REF!,2,FALSE)),\"\",VLOOKUP(#REF!,#REF!,2,FALSE))","v":""},{"$f":"IF(ISERROR(VLOOKUP(#REF!,#REF!,2,FALSE)),\"\",VLOOKUP(#REF!,#REF!,2,FALSE))","v":""},{"$f":"IF(ISERROR(VLOOKUP(#REF!,#REF!,2,FALSE)),\"\",VLOOKUP(#REF!,#REF!,2,FALSE))","v":""},{"$f":"IF(ISERROR(VLOOKUP(#REF!,#REF!,2,FALSE)),\"\",VLOOKUP(#REF!,#REF!,2,FALSE))","v":""},{"$f":"IF(ISERROR(VLOOKUP(#REF!,#REF!,2,FALSE)),\"\",VLOOKUP(#REF!,#REF!,2,FALSE))","v":""},{"$f":"IF(ISERROR(VLOOKUP(#REF!,#REF!,2,FALSE)),\"\",VLOOKUP(#REF!,#REF!,2,FALSE))","v":""},{"$f":"IF(ISERROR(VLOOKUP(#REF!,#REF!,2,FALSE)),\"\",VLOOKUP(#REF!,#REF!,2,FALSE))","v":""},{"$f":"IF(ISERROR(VLOOKUP(#REF!,#REF!,2,FALSE)),\"\",VLOOKUP(#REF!,#REF!,2,FALSE))","v":""},null,{"$f":"IF(AE33=\"\",\"\",VLOOKUP(AE33,[1]DEPORTISTAS!$A:$B,2,FALSE))","v":"TOMAS SANTOS CORDERO"},{"$f":"IF(ISERROR(VLOOKUP(#REF!,#REF!,2,FALSE)),\"\",VLOOKUP(#REF!,#REF!,2,FALSE))","v":""},{"$f":"IF(ISERROR(VLOOKUP(#REF!,#REF!,2,FALSE)),\"\",VLOOKUP(#REF!,#REF!,2,FALSE))","v":""},{"$f":"IF(ISERROR(VLOOKUP(#REF!,#REF!,2,FALSE)),\"\",VLOOKUP(#REF!,#REF!,2,FALSE))","v":""},{"$f":"IF(ISERROR(VLOOKUP(#REF!,#REF!,2,FALSE)),\"\",VLOOKUP(#REF!,#REF!,2,FALSE))","v":""},{"$f":"IF(ISERROR(VLOOKUP(#REF!,#REF!,2,FALSE)),\"\",VLOOKUP(#REF!,#REF!,2,FALSE))","v":""},{"$f":"IF(ISERROR(VLOOKUP(#REF!,#REF!,2,FALSE)),\"\",VLOOKUP(#REF!,#REF!,2,FALSE))","v":""},{"$f":"IF(ISERROR(VLOOKUP(#REF!,#REF!,2,FALSE)),\"\",VLOOKUP(#REF!,#REF!,2,FALSE))","v":""},{"$f":"IF(ISERROR(VLOOKUP(#REF!,#REF!,2,FALSE)),\"\",VLOOKUP(#REF!,#REF!,2,FALSE))","v":""},41207]
[null,{"$f":"IF(K34=\"\",\"\",VLOOKUP(K34,[1]DEPORTISTAS!$A:$B,2,FALSE))","v":""},{"$f":"IF(ISERROR(VLOOKUP(#REF!,#REF!,2,FALSE)),\"\",VLOOKUP(#REF!,#REF!,2,FALSE))","v":""},{"$f":"IF(ISERROR(VLOOKUP(#REF!,#REF!,2,FALSE)),\"\",VLOOKUP(#REF!,#REF!,2,FALSE))","v":""},{"$f":"IF(ISERROR(VLOOKUP(#REF!,#REF!,2,FALSE)),\"\",VLOOKUP(#REF!,#REF!,2,FALSE))","v":""},{"$f":"IF(ISERROR(VLOOKUP(#REF!,#REF!,2,FALSE)),\"\",VLOOKUP(#REF!,#REF!,2,FALSE))","v":""},{"$f":"IF(ISERROR(VLOOKUP(#REF!,#REF!,2,FALSE)),\"\",VLOOKUP(#REF!,#REF!,2,FALSE))","v":""},{"$f":"IF(ISERROR(VLOOKUP(#REF!,#REF!,2,FALSE)),\"\",VLOOKUP(#REF!,#REF!,2,FALSE))","v":""},{"$f":"IF(ISERROR(VLOOKUP(#REF!,#REF!,2,FALSE)),\"\",VLOOKUP(#REF!,#REF!,2,FALSE))","v":""},{"$f":"IF(ISERROR(VLOOKUP(#REF!,#REF!,2,FALSE)),\"\",VLOOKUP(#REF!,#REF!,2,FALSE))","v":""},null,{"$f":"IF(U34=\"\",\"\",VLOOKUP(U34,[1]DEPORTISTAS!$A:$B,2,FALSE))","v":""},{"$f":"IF(ISERROR(VLOOKUP(#REF!,#REF!,2,FALSE)),\"\",VLOOKUP(#REF!,#REF!,2,FALSE))","v":""},{"$f":"IF(ISERROR(VLOOKUP(#REF!,#REF!,2,FALSE)),\"\",VLOOKUP(#REF!,#REF!,2,FALSE))","v":""},{"$f":"IF(ISERROR(VLOOKUP(#REF!,#REF!,2,FALSE)),\"\",VLOOKUP(#REF!,#REF!,2,FALSE))","v":""},{"$f":"IF(ISERROR(VLOOKUP(#REF!,#REF!,2,FALSE)),\"\",VLOOKUP(#REF!,#REF!,2,FALSE))","v":""},{"$f":"IF(ISERROR(VLOOKUP(#REF!,#REF!,2,FALSE)),\"\",VLOOKUP(#REF!,#REF!,2,FALSE))","v":""},{"$f":"IF(ISERROR(VLOOKUP(#REF!,#REF!,2,FALSE)),\"\",VLOOKUP(#REF!,#REF!,2,FALSE))","v":""},{"$f":"IF(ISERROR(VLOOKUP(#REF!,#REF!,2,FALSE)),\"\",VLOOKUP(#REF!,#REF!,2,FALSE))","v":""},{"$f":"IF(ISERROR(VLOOKUP(#REF!,#REF!,2,FALSE)),\"\",VLOOKUP(#REF!,#REF!,2,FALSE))","v":""},null,{"$f":"IF(AE34=\"\",\"\",VLOOKUP(AE34,[1]DEPORTISTAS!$A:$B,2,FALSE))","v":"ANTONIO RODRIGUEZ MONTESINOS"},{"$f":"IF(ISERROR(VLOOKUP(#REF!,#REF!,2,FALSE)),\"\",VLOOKUP(#REF!,#REF!,2,FALSE))","v":""},{"$f":"IF(ISERROR(VLOOKUP(#REF!,#REF!,2,FALSE)),\"\",VLOOKUP(#REF!,#REF!,2,FALSE))","v":""},{"$f":"IF(ISERROR(VLOOKUP(#REF!,#REF!,2,FALSE)),\"\",VLOOKUP(#REF!,#REF!,2,FALSE))","v":""},{"$f":"IF(ISERROR(VLOOKUP(#REF!,#REF!,2,FALSE)),\"\",VLOOKUP(#REF!,#REF!,2,FALSE))","v":""},{"$f":"IF(ISERROR(VLOOKUP(#REF!,#REF!,2,FALSE)),\"\",VLOOKUP(#REF!,#REF!,2,FALSE))","v":""},{"$f":"IF(ISERROR(VLOOKUP(#REF!,#REF!,2,FALSE)),\"\",VLOOKUP(#REF!,#REF!,2,FALSE))","v":""},{"$f":"IF(ISERROR(VLOOKUP(#REF!,#REF!,2,FALSE)),\"\",VLOOKUP(#REF!,#REF!,2,FALSE))","v":""},{"$f":"IF(ISERROR(VLOOKUP(#REF!,#REF!,2,FALSE)),\"\",VLOOKUP(#REF!,#REF!,2,FALSE))","v":""},21188]
[]
["(1)","A OMPLIR PER LA FEDERACIÓ",null,null,null,null,null,null,null,null,null,null,null,"Segell",null,null,null,null,null,null,null,null,null,"El Secretari del Club"]

{"sheet":"D.H.(indiv.)","index":1,"n_rows":36,"n_cols":34,"rows_kept":36,"cut":false,"hidden":true,"merged":[[33,1,33,9],[33,11,33,19],[33,21,33,29],[35,13,35,17],[20,21,20,29],[31,1,31,9],[31,11,31,19],[31,21,31,29],[32,1,32,9],[32,11,32,19],[32,21,32,29],[29,1,29,9],[29,11,29,19],[29,21,29,29],[30,1,30,9],[30,11,30,19],[30,21,30,29],[27,1,27,9],[27,11,27,19],[27,21,27,29],[28,1,28,9],[28,11,28,19],[28,21,28,29],[25,1,25,9],[25,11,25,19],[25,21,25,29],[26,1,26,9],[26,11,26,19],[26,21,26,29],[23,1,23,9],[23,11,23,19],[23,21,23,29],[24,1,24,9],[24,11,24,19],[24,21,24,29],[22,1,22,9],[22,11,22,19],[22,21,22,29],[17,0,17,1],[17,2,17,14],[17,16,17,19],[17,20,17,30],[19,1,19,9],[19,11,19,19],[19,21,19,29],[20,1,20,9],[20,11,20,19],[21,1,21,9],[21,11,21,19],[21,21,21,29],[4,5,4,19],[4,27,4,28],[10,25,11,26],[10,27,11,30],[12,20,13,23],[12,25,13,26],[12,27,13,30],[6,0,16,2],[6,18,14,19],[6,25,7,26],[6,27,7,30],[8,20,9,22],[8,25,9,26],[8,27,9,30],[10,20,11,23],[14,20,15,23],[14,25,15,26],[14,27,15,30]]}
[]
[null,null,"Federació Catalana de Petanca"]
[null,null,"Rambla Guipúscoa, 23-25. 3er. Of. D i E - Tel. 93 268 00 48  - 08018 BARCELONA"]
[]
["                      Nom del Club",null,null,null,null,"   CLUB PETANCA PRAT  \" A \"",null,null,null,null,null,null,null,null,null,null,null,null,null,null,null,null,null,null,"Núm club:",null,null,9]
[]
["per participar en ",null,null,"Opens",null,null,null,null,null,null,null,null,null,null,null,null,null,null,"Lliga"]
[]
[null,null,null,"Campionat de Catalunya de Clubs Tripletes",null,null,null,null,null,null,null,null,null,null,null,null,null,null,null,null,"Lliga Masculina",null,null,null,null,"Divisió"]
[]
[null,null,null,"Campionat de Catalunya de Clubs Dobletes",null,null,null,null,null,null,null,null,null,null,null,null,null,null,null,null,"Lliga Femenina",null,null,null,null,"Divisió"]
[]
[null,null,null,"Campionat de Catalunya Individual",null,null,null,null,null,null,null,null,null,null,"X",null,null,null,null,null,"División Honor",null,null,null,null,"Divisió"]
[]
[null,null,null,"Campionat de Catalunya Individual  (tir)"]
[]
[]
["Categoria",null,"MASCULINA HOMOLOGADA",null,null,null,null,null,null,null,null,null,null,null,null,null,"Observacions",null,null,null,"        JUAN A. GARCIA CUADRADO  -   615240490"]
[]
["(1)","CAPITÀ",null,null,null,null,null,null,null,null,"Número Llicencia","JUGADOR",null,null,null,null,null,null,null,null,"Número Llicencia","JUGADOR",null,null,null,null,null,null,null,null,"Número Llicencia"]
[null,{"$f":"IF(K21=\"\",\"\",VLOOKUP(K21,[1]DEPORTISTAS!$A:$B,2,FALSE))","v":"HECTOR IZQUIERDO ROMERO"},null,null,null,null,null,null,null,null,1,{"$f":"IF(U21=\"\",\"\",VLOOKUP(U21,[1]DEPORTISTAS!$A:$B,2,FALSE))","v":"HECTOR IZQUIERDO ROMERO"},null,null,null,null,null,null,null,null,1,{"$f":"IF(AE21=\"\",\"\",VLOOKUP(AE21,[1]DEPORTISTAS!$A:$B,2,FALSE))","v":"HECTOR IZQUIERDO ROMERO"},null,null,null,null,null,null,null,null,1]
[null,{"$f":"IF(K22=\"\",\"\",VLOOKUP(K22,[1]DEPORTISTAS!$A:$B,2,FALSE))","v":""},{"$f":"IF(ISERROR(VLOOKUP(#REF!,#REF!,2,FALSE)),\"\",VLOOKUP(#REF!,#REF!,2,FALSE))","v":""},{"$f":"IF(ISERROR(VLOOKUP(#REF!,#REF!,2,FALSE)),\"\",VLOOKUP(#REF!,#REF!,2,FALSE))","v":""},{"$f":"IF(ISERROR(VLOOKUP(#REF!,#REF!,2,FALSE)),\"\",VLOOKUP(#REF!,#REF!,2,FALSE))","v":""},{"$f":"IF(ISERROR(VLOOKUP(#REF!,#REF!,2,FALSE)),\"\",VLOOKUP(#REF!,#REF!,2,FALSE))","v":""},{"$f":"IF(ISERROR(VLOOKUP(#REF!,#REF!,2,FALSE)),\"\",VLOOKUP(#REF!,#REF!,2,FALSE))","v":""},{"$f":"IF(ISERROR(VLOOKUP(#REF!,#REF!,2,FALSE)),\"\",VLOOKUP(#REF!,#REF!,2,FALSE))","v":""},{"$f":"IF(ISERROR(VLOOKUP(#REF!,#REF!,2,FALSE)),\"\",VLOOKUP(#REF!,#REF!,2,FALSE))","v":""},{"$f":"IF(ISERROR(VLOOKUP(#REF!,#REF!,2,FALSE)),\"\",VLOOKUP(#REF!,#REF!,2,FALSE))","v":""},null,{"$f":"IF(U22=\"\",\"\",VLOOKUP(U22,[1]DEPORTISTAS!$A:$B,2,FALSE))","v":""},{"$f":"IF(ISERROR(VLOOKUP(#REF!,#REF!,2,FALSE)),\"\",VLOOKUP(#REF!,#REF!,2,FALSE))","v":""},{"$f":"IF(ISERROR(VLOOKUP(#REF!,#REF!,2,FALSE)),\"\",VLOOKUP(#REF!,#REF!,2,FALSE))","v":""},{"$f":"IF(ISERROR(VLOOKUP(#REF!,#REF!,2,FALSE)),\"\",VLOOKUP(#REF!,#REF!,2,FALSE))","v":""},{"$f":"IF(ISERROR(VLOOKUP(#REF!,#REF!,2,FALSE)),\"\",VLOOKUP(#REF!,#REF!,2,FALSE))","v":""},{"$f":"IF(ISERROR(VLOOKUP(#REF!,#REF!,2,FALSE)),\"\",VLOOKUP(#REF!,#REF!,2,FALSE))","v":""},{"$f":"IF(ISERROR(VLOOKUP(#REF!,#REF!,2,FALSE)),\"\",VLOOKUP(#REF!,#REF!,2,FALSE))","v":""},{"$f":"IF(ISERROR(VLOOKUP(#REF!,#REF!,2,FALSE)),\"\",VLOOKUP(#REF!,#REF!,2,FALSE))","v":""},{"$f":"IF(ISERROR(VLOOKUP(#REF!,#REF!,2,FALSE)),\"\",VLOOKUP(#REF!,#REF!,2,FALSE))","v":""},null,{"$f":"IF(AE22=\"\",\"\",VLOOKUP(AE22,[1]DEPORTISTAS!$A:$B,2,FALSE))","v":""},{"$f":"IF(ISERROR(VLOOKUP(#REF!,#REF!,2,FALSE)),\"\",VLOOKUP(#REF!,#REF!,2,FALSE))","v":""},{"$f":"IF(ISERROR(VLOOKUP(#REF!,#REF!,2,FALSE)),\"\",VLOOKUP(#REF!,#REF!,2,FALSE))","v":""},{"$f":"IF(ISERROR(VLOOKUP(#REF!,#REF!,2,FALSE)),\"\",VLOOKUP(#REF!,#REF!,2,FALSE))","v":""},{"$f":"IF(ISERROR(VLOOKUP(#REF!,#REF!,2,FALSE)),\"\",VLOOKUP(#REF!,#REF!,2,FALSE))","v":""},{"$f":"IF(ISERROR(VLOOKUP(#REF!,#REF!,2,FALSE)),\"\",VLOOKUP(#REF!,#REF!,2,FALSE))","v":""},{"$f":"IF(ISERROR(VLOOKUP(#REF!,#REF!,2,FALSE)),\"\",VLOOKUP(#REF!,#REF!,2,FALSE))","v":""},{"$f":"IF(ISERROR(VLOOKUP(#REF!,#REF!,2,FALSE)),\"\",VLOOKUP(#REF!,#REF!,2,FALSE))","v":""},{"$f":"IF(ISERROR(VLOOKUP(#REF!,#REF!,2,FALSE)),\"\",VLOOKUP(#REF!,#REF!,2,FALSE))","v":""},null,null,null,{"$f":"IF(ISERROR(VLOOKUP(K21,#REF!,2,FALSE)),\"\",VLOOKUP(K21,#REF!,2,FALSE))","v":""}]
[null,{"$f":"IF(K23=\"\",\"\",VLOOKUP(K23,[1]DEPORTISTAS!$A:$B,2,FALSE))","v":""},{"$f":"IF(ISERROR(VLOOKUP(#REF!,#REF!,2,FALSE)),\"\",VLOOKUP(#REF!,#REF!,2,FALSE))","v":""},{"$f":"IF(ISERROR(VLOOKUP(#REF!,#REF!,2,FALSE)),\"\",VLOOKUP(#REF!,#REF!,2,FALSE))","v":""},{"$f":"IF(ISERROR(VLOOKUP(#REF!,#REF!,2,FALSE)),\"\",VLOOKUP(#REF!,#REF!,2,FALSE))","v":""},{"$f":"IF(ISERROR(VLOOKUP(#REF!,#REF!,2,FALSE)),\"\",VLOOKUP(#REF!,#REF!,2,FALSE))","v":""},{"$f":"IF(ISERROR(VLOOKUP(#REF!,#REF!,2,FALSE)),\"\",VLOOKUP(#REF!,#REF!,2,FALSE))","v":""},{"$f":"IF(ISERROR(VLOOKUP(#REF!,#REF!,2,FALSE)),\"\",VLOOKUP(#REF!,#REF!,2,FALSE))","v":""},{"$f":"IF(ISERROR(VLOOKUP(#REF!,#REF!,2,FALSE)),\"\",VLOOKUP(#REF!,#REF!,2,FALSE))","v":""},{"$f":"IF(ISERROR(VLOOKUP(#REF!,#REF!,2,FALSE)),\"\",VLOOKUP(#REF!,#REF!,2,FALSE))","v":""},null,{"$f":"IF(U23=\"\",\"\",VLOOKUP(U23,[1]DEPORTISTAS!$A:$B,2,FALSE))","v":""},{"$f":"IF(ISERROR(VLOOKUP(#REF!,#REF!,2,FALSE)),\"\",VLOOKUP(#REF!,#REF!,2,FALSE))","v":""},{"$f":"IF(ISERROR(VLOOKUP(#REF!,#REF!,2,FALSE)),\"\",VLOOKUP(#REF!,#REF!,2,FALSE))","v":""},{"$f":"IF(ISERROR(VLOOKUP(#REF!,#REF!,2,FALSE)),\"\",VLOOKUP(#REF!,#REF!,2,FALSE))","v":""},{"$f":"IF(ISERROR(VLOOKUP(#REF!,#REF!,2,FALSE)),\"\",VLOOKUP(#REF!,#REF!,2,FALSE))","v":""},{"$f":"IF(ISERROR(VLOOKUP(#REF!,#REF!,2,FALSE)),\"\",VLOOKUP(#REF!,#REF!,2,FALSE))","v":""},{"$f":"IF(ISERROR(VLOOKUP(#REF!,#REF!,2,FALSE)),\"\",VLOOKUP(#REF!,#REF!,2,FALSE))","v":""},{"$f":"IF(ISERROR(VLOOKUP(#REF!,#REF!,2,FALSE)),\"\",VLOOKUP(#REF!,#REF!,2,FALSE))","v":""},{"$f":"IF(ISERROR(VLOOKUP(#REF!,#REF!,2,FALSE)),\"\",VLOOKUP(#REF!,#REF!,2,FALSE))","v":""},null,{"$f":"IF(AE23=\"\",\"\",VLOOKUP(AE23,[1]DEPORTISTAS!$A:$B,2,FALSE))","v":""},{"$f":"IF(ISERROR(VLOOKUP(#REF!,#REF!,2,FALSE)),\"\",VLOOKUP(#REF!,#REF!,2,FALSE))","v":""},{"$f":"IF(ISERROR(VLOOKUP(#REF!,#REF!,2,FALSE)),\"\",VLOOKUP(#REF!,#REF!,2,FALSE))","v":""},{"$f":"IF(ISERROR(VLOOKUP(#REF!,#REF!,2,FALSE)),\"\",VLOOKUP(#REF!,#REF!,2,FALSE))","v":""},{"$f":"IF(ISERROR(VLOOKUP(#REF!,#REF!,2,FALSE)),\"\",VLOOKUP(#REF!,#REF!,2,FALSE))","v":""},{"$f":"IF(ISERROR(VLOOKUP(#REF!,#REF!,2,FALSE)),\"\",VLOOKUP(#REF!,#REF!,2,FALSE))","v":""},{"$f":"IF(ISERROR(VLOOKUP(#REF!,#REF!,2,FALSE)),\"\",VLOOKUP(#REF!,#REF!,2,FALSE))","v":""},{"$f":"IF(ISERROR(VLOOKUP(#REF!,#REF!,2,FALSE)),\"\",VLOOKUP(#REF!,#REF!,2,FALSE))","v":""},{"$f":"IF(ISERROR(VLOOKUP(#REF!,#REF!,2,FALSE)),\"\",VLOOKUP(#REF!,#REF!,2,FALSE))","v":""}]
[null,{"$f":"IF(K24=\"\",\"\",VLOOKUP(K24,[1]DEPORTISTAS!$A:$B,2,FALSE))","v":""},{"$f":"IF(ISERROR(VLOOKUP(#REF!,#REF!,2,FALSE)),\"\",VLOOKUP(#REF!,#REF!,2,FALSE))","v":""},{"$f":"IF(ISERROR(VLOOKUP(#REF!,#REF!,2,FALSE)),\"\",VLOOKUP(#REF!,#REF!,2,FALSE))","v":""},{"$f":"IF(ISERROR(VLOOKUP(#REF!,#REF!,2,FALSE)),\"\",VLOOKUP(#REF!,#REF!,2,FALSE))","v":""},{"$f":"IF(ISERROR(VLOOKUP(#REF!,#REF!,2,FALSE)),\"\",VLOOKUP(#REF!,#REF!,2,FALSE))","v":""},{"$f":"IF(ISERROR(VLOOKUP(#REF!,#REF!,2,FALSE)),\"\",VLOOKUP(#REF!,#REF!,2,FALSE))","v":""},{"$f":"IF(ISERROR(VLOOKUP(#REF!,#REF!,2,FALSE)),\"\",VLOOKUP(#REF!,#REF!,2,FALSE))","v":""},{"$f":"IF(ISERROR(VLOOKUP(#REF!,#REF!,2,FALSE)),\"\",VLOOKUP(#REF!,#REF!,2,FALSE))","v":""},{"$f":"IF(ISERROR(VLOOKUP(#REF!,#REF!,2,FALSE)),\"\",VLOOKUP(#REF!,#REF!,2,FALSE))","v":""},null,{"$f":"IF(U24=\"\",\"\",VLOOKUP(U24,[1]DEPORTISTAS!$A:$B,2,FALSE))","v":""},{"$f":"IF(ISERROR(VLOOKUP(#REF!,#REF!,2,FALSE)),\"\",VLOOKUP(#REF!,#REF!,2,FALSE))","v":""},{"$f":"IF(ISERROR(VLOOKUP(#REF!,#REF!,2,FALSE)),\"\",VLOOKUP(#REF!,#REF!,2,FALSE))","v":""},{"$f":"IF(ISERROR(VLOOKUP(#REF!,#REF!,2,FALSE)),\"\",VLOOKUP(#REF!,#REF!,2,FALSE))","v":""},{"$f":"IF(ISERROR(VLOOKUP(#REF!,#REF!,2,FALSE)),\"\",VLOOKUP(#REF!,#REF!,2,FALSE))","v":""},{"$f":"IF(ISERROR(VLOOKUP(#REF!,#REF!,2,FALSE)),\"\",VLOOKUP(#REF!,#REF!,2,FALSE))","v":""},{"$f":"IF(ISERROR(VLOOKUP(#REF!,#REF!,2,FALSE)),\"\",VLOOKUP(#REF!,#REF!,2,FALSE))","v":""},{"$f":"IF(ISERROR(VLOOKUP(#REF!,#REF!,2,FALSE)),\"\",VLOOKUP(#REF!,#REF!,2,FALSE))","v":""},{"$f":"IF(ISERROR(VLOOKUP(#REF!,#REF!,2,FALSE)),\"\",VLOOKUP(#REF!,#REF!,2,FALSE))","v":""},null,{"$f":"IF(AE24=\"\",\"\",VLOOKUP(AE24,[1]DEPORTISTAS!$A:$B,2,FALSE))","v":""},{"$f":"IF(ISERROR(VLOOKUP(#REF!,#REF!,2,FALSE)),\"\",VLOOKUP(#REF!,#REF!,2,FALSE))","v":""},{"$f":"IF(ISERROR(VLOOKUP(#REF!,#REF!,2,FALSE)),\"\",VLOOKUP(#REF!,#REF!,2,FALSE))","v":""},{"$f":"IF(ISERROR(VLOOKUP(#REF!,#REF!,2,FALSE)),\"\",VLOOKUP(#REF!,#REF!,2,FALSE))","v":""},{"$f":"IF(ISERROR(VLOOKUP(#REF!,#REF!,2,FALSE)),\"\",VLOOKUP(#REF!,#REF!,2,FALSE))","v":""},{"$f":"IF(ISERROR(VLOOKUP(#REF!,#REF!,2,FALSE)),\"\",VLOOKUP(#REF!,#REF!,2,FALSE))","v":""},{"$f":"IF(ISERROR(VLOOKUP(#REF!,#REF!,2,FALSE)),\"\",VLOOKUP(#REF!,#REF!,2,FALSE))","v":""},{"$f":"IF(ISERROR(VLOOKUP(#REF!,#REF!,2,FALSE)),\"\",VLOOKUP(#REF!,#REF!,2,FALSE))","v":""},{"$f":"IF(ISERROR(VLOOKUP(#REF!,#REF!,2,FALSE)),\"\",VLOOKUP(#REF!,#REF!,2,FALSE))","v":""}]
[null,{"$f":"IF(K25=\"\",\"\",VLOOKUP(K25,[1]DEPORTISTAS!$A:$B,2,FALSE))","v":""},{"$f":"IF(ISERROR(VLOOKUP(#REF!,#REF!,2,FALSE)),\"\",VLOOKUP(#REF!,#REF!,2,FALSE))","v":""},{"$f":"IF(ISERROR(VLOOKUP(#REF!,#REF!,2,FALSE)),\"\",VLOOKUP(#REF!,#REF!,2,FALSE))","v":""},{"$f":"IF(ISERROR(VLOOKUP(#REF!,#REF!,2,FALSE)),\"\",VLOOKUP(#REF!,#REF!,2,FALSE))","v":""},{"$f":"IF(ISERROR(VLOOKUP(#REF!,#REF!,2,FALSE)),\"\",VLOOKUP(#REF!,#REF!,2,FALSE))","v":""},{"$f":"IF(ISERROR(VLOOKUP(#REF!,#REF!,2,FALSE)),\"\",VLOOKUP(#REF!,#REF!,2,FALSE))","v":""},{"$f":"IF(ISERROR(VLOOKUP(#REF!,#REF!,2,FALSE)),\"\",VLOOKUP(#REF!,#REF!,2,FALSE))","v":""},{"$f":"IF(ISERROR(VLOOKUP(#REF!,#REF!,2,FALSE)),\"\",VLOOKUP(#REF!,#REF!,2,FALSE))","v":""},{"$f":"IF(ISERROR(VLOOKUP(#REF!,#REF!,2,FALSE)),\"\",VLOOKUP(#REF!,#REF!,2,FALSE))","v":""},null,{"$f":"IF(U25=\"\",\"\",VLOOKUP(U25,[1]DEPORTISTAS!$A:$B,2,FALSE))","v":""},{"$f":"IF(ISERROR(VLOOKUP(#REF!,#REF!,2,FALSE)),\"\",VLOOKUP(#REF!,#REF!,2,FALSE))","v":""},{"$f":"IF(ISERROR(VLOOKUP(#REF!,#REF!,2,FALSE)),\"\",VLOOKUP(#REF!,#REF!,2,FALSE))","v":""},{"$f":"IF(ISERROR(VLOOKUP(#REF!,#REF!,2,FALSE)),\"\",VLOOKUP(#REF!,#REF!,2,FALSE))","v":""},{"$f":"IF(ISERROR(VLOOKUP(#REF!,#REF!,2,FALSE)),\"\",VLOOKUP(#REF!,#REF!,2,FALSE))","v":""},{"$f":"IF(ISERROR(VLOOKUP(#REF!,#REF!,2,FALSE)),\"\",VLOOKUP(#REF!,#REF!,2,FALSE))","v":""},{"$f":"IF(ISERROR(VLOOKUP(#REF!,#REF!,2,FALSE)),\"\",VLOOKUP(#REF!,#REF!,2,FALSE))","v":""},{"$f":"IF(ISERROR(VLOOKUP(#REF!,#REF!,2,FALSE)),\"\",VLOOKUP(#REF!,#REF!,2,FALSE))","v":""},{"$f":"IF(ISERROR(VLOOKUP(#REF!,#REF!,2,FALSE)),\"\",VLOOKUP(#REF!,#REF!,2,FALSE))","v":""},null,{"$f":"IF(AE25=\"\",\"\",VLOOKUP(AE25,[1]DEPORTISTAS!$A:$B,2,FALSE))","v":""},{"$f":"IF(ISERROR(VLOOKUP(#REF!,#REF!,2,FALSE)),\"\",VLOOKUP(#REF!,#REF!,2,FALSE))","v":""},{"$f":"IF(ISERROR(VLOOKUP(#REF!,#REF!,2,FALSE)),\"\",VLOOKUP(#REF!,#REF!,2,FALSE))","v":""},{"$f":"IF(ISERROR(VLOOKUP(#REF!,#REF!,2,FALSE)),\"\",VLOOKUP(#REF!,#REF!,2,FALSE))","v":""},{"$f":"IF(ISERROR(VLOOKUP(#REF!,#REF!,2,FALSE)),\"\",VLOOKUP(#REF!,#REF!,2,FALSE))","v":""},{"$f":"IF(ISERROR(VLOOKUP(#REF!,#REF!,2,FALSE)),\"\",VLOOKUP(#REF!,#REF!,2,FALSE))","v":""},{"$f":"IF(ISERROR(VLOOKUP(#REF!,#REF!,2,FALSE)),\"\",VLOOKUP(#REF!,#REF!,2,FALSE))","v":""},{"$f":"IF(ISERROR(VLOOKUP(#REF!,#REF!,2,FALSE)),\"\",VLOOKUP(#REF!,#REF!,2,FALSE))","v":""},{"$f":"IF(ISERROR(VLOOKUP(#REF!,#REF!,2,FALSE)),\"\",VLOOKUP(#REF!,#REF!,2,FALSE))","v":""}]
[null,{"$f":"IF(K26=\"\",\"\",VLOOKUP(K26,[1]DEPORTISTAS!$A:$B,2,FALSE))","v":""},{"$f":"IF(ISERROR(VLOOKUP(#REF!,#REF!,2,FALSE)),\"\",VLOOKUP(#REF!,#REF!,2,FALSE))","v":""},{"$f":"IF(ISERROR(VLOOKUP(#REF!,#REF!,2,FALSE)),\"\",VLOOKUP(#REF!,#REF!,2,FALSE))","v":""},{"$f":"IF(ISERROR(VLOOKUP(#REF!,#REF!,2,FALSE)),\"\",VLOOKUP(#REF!,#REF!,2,FALSE))","v":""},{"$f":"IF(ISERROR(VLOOKUP(#REF!,#REF!,2,FALSE)),\"\",VLOOKUP(#REF!,#REF!,2,FALSE))","v":""},{"$f":"IF(ISERROR(VLOOKUP(#REF!,#REF!,2,FALSE)),\"\",VLOOKUP(#REF!,#REF!,2,FALSE))","v":""},{"$f":"IF(ISERROR(VLOOKUP(#REF!,#REF!,2,FALSE)),\"\",VLOOKUP(#REF!,#REF!,2,FALSE))","v":""},{"$f":"IF(ISERROR(VLOOKUP(#REF!,#REF!,2,FALSE)),\"\",VLOOKUP(#REF!,#REF!,2,FALSE))","v":""},{"$f":"IF(ISERROR(VLOOKUP(#REF!,#REF!,2,FALSE)),\"\",VLOOKUP(#REF!,#REF!,2,FALSE))","v":""},null,{"$f":"IF(U26=\"\",\"\",VLOOKUP(U26,[1]DEPORTISTAS!$A:$B,2,FALSE))","v":""},{"$f":"IF(ISERROR(VLOOKUP(#REF!,#REF!,2,FALSE)),\"\",VLOOKUP(#REF!,#REF!,2,FALSE))","v":""},{"$f":"IF(ISERROR(VLOOKUP(#REF!,#REF!,2,FALSE)),\"\",VLOOKUP(#REF!,#REF!,2,FALSE))","v":""},{"$f":"IF(ISERROR(VLOOKUP(#REF!,#REF!,2,FALSE)),\"\",VLOOKUP(#REF!,#REF!,2,FALSE))","v":""},{"$f":"IF(ISERROR(VLOOKUP(#REF!,#REF!,2,FALSE)),\"\",VLOOKUP(#REF!,#REF!,2,FALSE))","v":""},{"$f":"IF(ISERROR(VLOOKUP(#REF!,#REF!,2,FALSE)),\"\",VLOOKUP(#REF!,#REF!,2,FALSE))","v":""},{"$f":"IF(ISERROR(VLOOKUP(#REF!,#REF!,2,FALSE)),\"\",VLOOKUP(#REF!,#REF!,2,FALSE))","v":""},{"$f":"IF(ISERROR(VLOOKUP(#REF!,#REF!,2,FALSE)),\"\",VLOOKUP(#REF!,#REF!,2,FALSE))","v":""},{"$f":"IF(ISERROR(VLOOKUP(#REF!,#REF!,2,FALSE)),\"\",VLOOKUP(#REF!,#REF!,2,FALSE))","v":""},null,{"$f":"IF(AE26=\"\",\"\",VLOOKUP(AE26,[1]DEPORTISTAS!$A:$B,2,FALSE))","v":""},{"$f":"IF(ISERROR(VLOOKUP(#REF!,#REF!,2,FALSE)),\"\",VLOOKUP(#REF!,#REF!,2,FALSE))","v":""},{"$f":"IF(ISERROR(VLOOKUP(#REF!,#REF!,2,FALSE)),\"\",VLOOKUP(#REF!,#REF!,2,FALSE))","v":""},{"$f":"IF(ISERROR(VLOOKUP(#REF!,#REF!,2,FALSE)),\"\",VLOOKUP(#REF!,#REF!,2,FALSE))","v":""},{"$f":"IF(ISERROR(VLOOKUP(#REF!,#REF!,2,FALSE)),\"\",VLOOKUP(#REF!,#REF!,2,FALSE))","v":""},{"$f":"IF(ISERROR(VLOOKUP(#REF!,#REF!,2,FALSE)),\"\",VLOOKUP(#REF!,#REF!,2,FALSE))","v":""},{"$f":"IF(ISERROR(VLOOKUP(#REF!,#REF!,2,FALSE)),\"\",VLOOKUP(#REF!,#REF!,2,FALSE))","v":""},{"$f":"IF(ISERROR(VLOOKUP(#REF!,#REF!,2,FALSE)),\"\",VLOOKUP(#REF!,#REF!,2,FALSE))","v":""},{"$f":"IF(ISERROR(VLOOKUP(#REF!,#REF!,2,FALSE)),\"\",VLOOKUP(#REF!,#REF!,2,FALSE))","v":""}]
[null,{"$f":"IF(K27=\"\",\"\",VLOOKUP(K27,[1]DEPORTISTAS!$A:$B,2,FALSE))","v":""},{"$f":"IF(ISERROR(VLOOKUP(#REF!,#REF!,2,FALSE)),\"\",VLOOKUP(#REF!,#REF!,2,FALSE))","v":""},{"$f":"IF(ISERROR(VLOOKUP(#REF!,#REF!,2,FALSE)),\"\",VLOOKUP(#REF!,#REF!,2,FALSE))","v":""},{"$f":"IF(ISERROR(VLOOKUP(#REF!,#REF!,2,FALSE)),\"\",VLOOKUP(#REF!,#REF!,2,FALSE))","v":""},{"$f":"IF(ISERROR(VLOOKUP(#REF!,#REF!,2,FALSE)),\"\",VLOOKUP(#REF!,#REF!,2,FALSE))","v":""},{"$f":"IF(ISERROR(VLOOKUP(#REF!,#REF!,2,FALSE)),\"\",VLOOKUP(#REF!,#REF!,2,FALSE))","v":""},{"$f":"IF(ISERROR(VLOOKUP(#REF!,#REF!,2,FALSE)),\"\",VLOOKUP(#REF!,#REF!,2,FALSE))","v":""},{"$f":"IF(ISERROR(VLOOKUP(#REF!,#REF!,2,FALSE)),\"\",VLOOKUP(#REF!,#REF!,2,FALSE))","v":""},{"$f":"IF(ISERROR(VLOOKUP(#REF!,#REF!,2,FALSE)),\"\",VLOOKUP(#REF!,#REF!,2,FALSE))","v":""},null,{"$f":"IF(U27=\"\",\"\",VLOOKUP(U27,[1]DEPORTISTAS!$A:$B,2,FALSE))","v":""},{"$f":"IF(ISERROR(VLOOKUP(#REF!,#REF!,2,FALSE)),\"\",VLOOKUP(#REF!,#REF!,2,FALSE))","v":""},{"$f":"IF(ISERROR(VLOOKUP(#REF!,#REF!,2,FALSE)),\"\",VLOOKUP(#REF!,#REF!,2,FALSE))","v":""},{"$f":"IF(ISERROR(VLOOKUP(#REF!,#REF!,2,FALSE)),\"\",VLOOKUP(#REF!,#REF!,2,FALSE))","v":""},{"$f":"IF(ISERROR(VLOOKUP(#REF!,#REF!,2,FALSE)),\"\",VLOOKUP(#REF!,#REF!,2,FALSE))","v":""},{"$f":"IF(ISERROR(VLOOKUP(#REF!,#REF!,2,FALSE)),\"\",VLOOKUP(#REF!,#REF!,2,FALSE))","v":""},{"$f":"IF(ISERROR(VLOOKUP(#REF!,#REF!,2,FALSE)),\"\",VLOOKUP(#REF!,#REF!,2,FALSE))","v":""},{"$f":"IF(ISERROR(VLOOKUP(#REF!,#REF!,2,FALSE)),\"\",VLOOKUP(#REF!,#REF!,2,FALSE))","v":""},{"$f":"IF(ISERROR(VLOOKUP(#REF!,#REF!,2,FALSE)),\"\",VLOOKUP(#REF!,#REF!,2,FALSE))","v":""},null,{"$f":"IF(AE27=\"\",\"\",VLOOKUP(AE27,[1]DEPORTISTAS!$A:$B,2,FALSE))","v":""},{"$f":"IF(ISERROR(VLOOKUP(#REF!,#REF!,2,FALSE)),\"\",VLOOKUP(#REF!,#REF!,2,FALSE))","v":""},{"$f":"IF(ISERROR(VLOOKUP(#REF!,#REF!,2,FALSE)),\"\",VLOOKUP(#REF!,#REF!,2,FALSE))","v":""},{"$f":"IF(ISERROR(VLOOKUP(#REF!,#REF!,2,FALSE)),\"\",VLOOKUP(#REF!,#REF!,2,FALSE))","v":""},{"$f":"IF(ISERROR(VLOOKUP(#REF!,#REF!,2,FALSE)),\"\",VLOOKUP(#REF!,#REF!,2,FALSE))","v":""},{"$f":"IF(ISERROR(VLOOKUP(#REF!,#REF!,2,FALSE)),\"\",VLOOKUP(#REF!,#REF!,2,FALSE))","v":""},{"$f":"IF(ISERROR(VLOOKUP(#REF!,#REF!,2,FALSE)),\"\",VLOOKUP(#REF!,#REF!,2,FALSE))","v":""},{"$f":"IF(ISERROR(VLOOKUP(#REF!,#REF!,2,FALSE)),\"\",VLOOKUP(#REF!,#REF!,2,FALSE))","v":""},{"$f":"IF(ISERROR(VLOOKUP(#REF!,#REF!,2,FALSE)),\"\",VLOOKUP(#REF!,#REF!,2,FALSE))","v":""}]
[null,{"$f":"IF(K28=\"\",\"\",VLOOKUP(K28,[1]DEPORTISTAS!$A:$B,2,FALSE))","v":""},{"$f":"IF(ISERROR(VLOOKUP(#REF!,#REF!,2,FALSE)),\"\",VLOOKUP(#REF!,#REF!,2,FALSE))","v":""},{"$f":"IF(ISERROR(VLOOKUP(#REF!,#REF!,2,FALSE)),\"\",VLOOKUP(#REF!,#REF!,2,FALSE))","v":""},{"$f":"IF(ISERROR(VLOOKUP(#REF!,#REF!,2,FALSE)),\"\",VLOOKUP(#REF!,#REF!,2,FALSE))","v":""},{"$f":"IF(ISERROR(VLOOKUP(#REF!,#REF!,2,FALSE)),\"\",VLOOKUP(#REF!,#REF!,2,FALSE))","v":""},{"$f":"IF(ISERROR(VLOOKUP(#REF!,#REF!,2,FALSE)),\"\",VLOOKUP(#REF!,#REF!,2,FALSE))","v":""},{"$f":"IF(ISERROR(VLOOKUP(#REF!,#REF!,2,FALSE)),\"\",VLOOKUP(#REF!,#REF!,2,FALSE))","v":""},{"$f":"IF(ISERROR(VLOOKUP(#REF!,#REF!,2,FALSE)),\"\",VLOOKUP(#REF!,#REF!,2,FALSE))","v":""},{"$f":"IF(ISERROR(VLOOKUP(#REF!,#REF!,2,FALSE)),\"\",VLOOKUP(#REF!,#REF!,2,FALSE))","v":""},null,{"$f":"IF(U28=\"\",\"\",VLOOKUP(U28,[1]DEPORTISTAS!$A:$B,2,FALSE))","v":""},{"$f":"IF(ISERROR(VLOOKUP(#REF!,#REF!,2,FALSE)),\"\",VLOOKUP(#REF!,#REF!,2,FALSE))","v":""},{"$f":"IF(ISERROR(VLOOKUP(#REF!,#REF!,2,FALSE)),\"\",VLOOKUP(#REF!,#REF!,2,FALSE))","v":""},{"$f":"IF(ISERROR(VLOOKUP(#REF!,#REF!,2,FALSE)),\"\",VLOOKUP(#REF!,#REF!,2,FALSE))","v":""},{"$f":"IF(ISERROR(VLOOKUP(#REF!,#REF!,2,FALSE)),\"\",VLOOKUP(#REF!,#REF!,2,FALSE))","v":""},{"$f":"IF(ISERROR(VLOOKUP(#REF!,#REF!,2,FALSE)),\"\",VLOOKUP(#REF!,#REF!,2,FALSE))","v":""},{"$f":"IF(ISERROR(VLOOKUP(#REF!,#REF!,2,FALSE)),\"\",VLOOKUP(#REF!,#REF!,2,FALSE))","v":""},{"$f":"IF(ISERROR(VLOOKUP(#REF!,#REF!,2,FALSE)),\"\",VLOOKUP(#REF!,#REF!,2,FALSE))","v":""},{"$f":"IF(ISERROR(VLOOKUP(#REF!,#REF!,2,FALSE)),\"\",VLOOKUP(#REF!,#REF!,2,FALSE))","v":""},null,{"$f":"IF(AE28=\"\",\"\",VLOOKUP(AE28,[1]DEPORTISTAS!$A:$B,2,FALSE))","v":""},{"$f":"IF(ISERROR(VLOOKUP(#REF!,#REF!,2,FALSE)),\"\",VLOOKUP(#REF!,#REF!,2,FALSE))","v":""},{"$f":"IF(ISERROR(VLOOKUP(#REF!,#REF!,2,FALSE)),\"\",VLOOKUP(#REF!,#REF!,2,FALSE))","v":""},{"$f":"IF(ISERROR(VLOOKUP(#REF!,#REF!,2,FALSE)),\"\",VLOOKUP(#REF!,#REF!,2,FALSE))","v":""},{"$f":"IF(ISERROR(VLOOKUP(#REF!,#REF!,2,FALSE)),\"\",VLOOKUP(#REF!,#REF!,2,FALSE))","v":""},{"$f":"IF(ISERROR(VLOOKUP(#REF!,#REF!,2,FALSE)),\"\",VLOOKUP(#REF!,#REF!,2,FALSE))","v":""},{"$f":"IF(ISERROR(VLOOKUP(#REF!,#REF!,2,FALSE)),\"\",VLOOKUP(#REF!,#REF!,2,FALSE))","v":""},{"$f":"IF(ISERROR(VLOOKUP(#REF!,#REF!,2,FALSE)),\"\",VLOOKUP(#REF!,#REF!,2,FALSE))","v":""},{"$f":"IF(ISERROR(VLOOKUP(#REF!,#REF!,2,FALSE)),\"\",VLOOKUP(#REF!,#REF!,2,FALSE))","v":""}]
[null,{"$f":"IF(K29=\"\",\"\",VLOOKUP(K29,[1]DEPORTISTAS!$A:$B,2,FALSE))","v":""},{"$f":"IF(ISERROR(VLOOKUP(#REF!,#REF!,2,FALSE)),\"\",VLOOKUP(#REF!,#REF!,2,FALSE))","v":""},{"$f":"IF(ISERROR(VLOOKUP(#REF!,#REF!,2,FALSE)),\"\",VLOOKUP(#REF!,#REF!,2,FALSE))","v":""},{"$f":"IF(ISERROR(VLOOKUP(#REF!,#REF!,2,FALSE)),\"\",VLOOKUP(#REF!,#REF!,2,FALSE))","v":""},{"$f":"IF(ISERROR(VLOOKUP(#REF!,#REF!,2,FALSE)),\"\",VLOOKUP(#REF!,#REF!,2,FALSE))","v":""},{"$f":"IF(ISERROR(VLOOKUP(#REF!,#REF!,2,FALSE)),\"\",VLOOKUP(#REF!,#REF!,2,FALSE))","v":""},{"$f":"IF(ISERROR(VLOOKUP(#REF!,#REF!,2,FALSE)),\"\",VLOOKUP(#REF!,#REF!,2,FALSE))","v":""},{"$f":"IF(ISERROR(VLOOKUP(#REF!,#REF!,2,FALSE)),\"\",VLOOKUP(#REF!,#REF!,2,FALSE))","v":""},{"$f":"IF(ISERROR(VLOOKUP(#REF!,#REF!,2,FALSE)),\"\",VLOOKUP(#REF!,#REF!,2,FALSE))","v":""},null,{"$f":"IF(U29=\"\",\"\",VLOOKUP(U29,[1]DEPORTISTAS!$A:$B,2,FALSE))","v":""},{"$f":"IF(ISERROR(VLOOKUP(#REF!,#REF!,2,FALSE)),\"\",VLOOKUP(#REF!,#REF!,2,FALSE))","v":""},{"$f":"IF(ISERROR(VLOOKUP(#REF!,#REF!,2,FALSE)),\"\",VLOOKUP(#REF!,#REF!,2,FALSE))","v":""},{"$f":"IF(ISERROR(VLOOKUP(#REF!,#REF!,2,FALSE)),\"\",VLOOKUP(#REF!,#REF!,2,FALSE))","v":""},{"$f":"IF(ISERROR(VLOOKUP(#REF!,#REF!,2,FALSE)),\"\",VLOOKUP(#REF!,#REF!,2,FALSE))","v":""},{"$f":"IF(ISERROR(VLOOKUP(#REF!,#REF!,2,FALSE)),\"\",VLOOKUP(#REF!,#REF!,2,FALSE))","v":""},{"$f":"IF(ISERROR(VLOOKUP(#REF!,#REF!,2,FALSE)),\"\",VLOOKUP(#REF!,#REF!,2,FALSE))","v":""},{"$f":"IF(ISERROR(VLOOKUP(#REF!,#REF!,2,FALSE)),\"\",VLOOKUP(#REF!,#REF!,2,FALSE))","v":""},{"$f":"IF(ISERROR(VLOOKUP(#REF!,#REF!,2,FALSE)),\"\",VLOOKUP(#REF!,#REF!,2,FALSE))","v":""},null,{"$f":"IF(AE29=\"\",\"\",VLOOKUP(AE29,[1]DEPORTISTAS!$A:$B,2,FALSE))","v":""},{"$f":"IF(ISERROR(VLOOKUP(#REF!,#REF!,2,FALSE)),\"\",VLOOKUP(#REF!,#REF!,2,FALSE))","v":""},{"$f":"IF(ISERROR(VLOOKUP(#REF!,#REF!,2,FALSE)),\"\",VLOOKUP(#REF!,#REF!,2,FALSE))","v":""},{"$f":"IF(ISERROR(VLOOKUP(#REF!,#REF!,2,FALSE)),\"\",VLOOKUP(#REF!,#REF!,2,FALSE))","v":""},{"$f":"IF(ISERROR(VLOOKUP(#REF!,#REF!,2,FALSE)),\"\",VLOOKUP(#REF!,#REF!,2,FALSE))","v":""},{"$f":"IF(ISERROR(VLOOKUP(#REF!,#REF!,2,FALSE)),\"\",VLOOKUP(#REF!,#REF!,2,FALSE))","v":""},{"$f":"IF(ISERROR(VLOOKUP(#REF!,#REF!,2,FALSE)),\"\",VLOOKUP(#REF!,#REF!,2,FALSE))","v":""},{"$f":"IF(ISERROR(VLOOKUP(#REF!,#REF!,2,FALSE)),\"\",VLOOKUP(#REF!,#REF!,2,FALSE))","v":""},{"$f":"IF(ISERROR(VLOOKUP(#REF!,#REF!,2,FALSE)),\"\",VLOOKUP(#REF!,#REF!,2,FALSE))","v":""}]
[null,{"$f":"IF(K30=\"\",\"\",VLOOKUP(K30,[1]DEPORTISTAS!$A:$B,2,FALSE))","v":""},{"$f":"IF(ISERROR(VLOOKUP(#REF!,#REF!,2,FALSE)),\"\",VLOOKUP(#REF!,#REF!,2,FALSE))","v":""},{"$f":"IF(ISERROR(VLOOKUP(#REF!,#REF!,2,FALSE)),\"\",VLOOKUP(#REF!,#REF!,2,FALSE))","v":""},{"$f":"IF(ISERROR(VLOOKUP(#REF!,#REF!,2,FALSE)),\"\",VLOOKUP(#REF!,#REF!,2,FALSE))","v":""},{"$f":"IF(ISERROR(VLOOKUP(#REF!,#REF!,2,FALSE)),\"\",VLOOKUP(#REF!,#REF!,2,FALSE))","v":""},{"$f":"IF(ISERROR(VLOOKUP(#REF!,#REF!,2,FALSE)),\"\",VLOOKUP(#REF!,#REF!,2,FALSE))","v":""},{"$f":"IF(ISERROR(VLOOKUP(#REF!,#REF!,2,FALSE)),\"\",VLOOKUP(#REF!,#REF!,2,FALSE))","v":""},{"$f":"IF(ISERROR(VLOOKUP(#REF!,#REF!,2,FALSE)),\"\",VLOOKUP(#REF!,#REF!,2,FALSE))","v":""},{"$f":"IF(ISERROR(VLOOKUP(#REF!,#REF!,2,FALSE)),\"\",VLOOKUP(#REF!,#REF!,2,FALSE))","v":""},null,{"$f":"IF(U30=\"\",\"\",VLOOKUP(U30,[1]DEPORTISTAS!$A:$B,2,FALSE))","v":""},{"$f":"IF(ISERROR(VLOOKUP(#REF!,#REF!,2,FALSE)),\"\",VLOOKUP(#REF!,#REF!,2,FALSE))","v":""},{"$f":"IF(ISERROR(VLOOKUP(#REF!,#REF!,2,FALSE)),\"\",VLOOKUP(#REF!,#REF!,2,FALSE))","v":""},{"$f":"IF(ISERROR(VLOOKUP(#REF!,#REF!,2,FALSE)),\"\",VLOOKUP(#REF!,#REF!,2,FALSE))","v":""},{"$f":"IF(ISERROR(VLOOKUP(#REF!,#REF!,2,FALSE)),\"\",VLOOKUP(#REF!,#REF!,2,FALSE))","v":""},{"$f":"IF(ISERROR(VLOOKUP(#REF!,#REF!,2,FALSE)),\"\",VLOOKUP(#REF!,#REF!,2,FALSE))","v":""},{"$f":"IF(ISERROR(VLOOKUP(#REF!,#REF!,2,FALSE)),\"\",VLOOKUP(#REF!,#REF!,2,FALSE))","v":""},{"$f":"IF(ISERROR(VLOOKUP(#REF!,#REF!,2,FALSE)),\"\",VLOOKUP(#REF!,#REF!,2,FALSE))","v":""},{"$f":"IF(ISERROR(VLOOKUP(#REF!,#REF!,2,FALSE)),\"\",VLOOKUP(#REF!,#REF!,2,FALSE))","v":""},null,{"$f":"IF(AE30=\"\",\"\",VLOOKUP(AE30,[1]DEPORTISTAS!$A:$B,2,FALSE))","v":""},{"$f":"IF(ISERROR(VLOOKUP(#REF!,#REF!,2,FALSE)),\"\",VLOOKUP(#REF!,#REF!,2,FALSE))","v":""},{"$f":"IF(ISERROR(VLOOKUP(#REF!,#REF!,2,FALSE)),\"\",VLOOKUP(#REF!,#REF!,2,FALSE))","v":""},{"$f":"IF(ISERROR(VLOOKUP(#REF!,#REF!,2,FALSE)),\"\",VLOOKUP(#REF!,#REF!,2,FALSE))","v":""},{"$f":"IF(ISERROR(VLOOKUP(#REF!,#REF!,2,FALSE)),\"\",VLOOKUP(#REF!,#REF!,2,FALSE))","v":""},{"$f":"IF(ISERROR(VLOOKUP(#REF!,#REF!,2,FALSE)),\"\",VLOOKUP(#REF!,#REF!,2,FALSE))","v":""},{"$f":"IF(ISERROR(VLOOKUP(#REF!,#REF!,2,FALSE)),\"\",VLOOKUP(#REF!,#REF!,2,FALSE))","v":""},{"$f":"IF(ISERROR(VLOOKUP(#REF!,#REF!,2,FALSE)),\"\",VLOOKUP(#REF!,#REF!,2,FALSE))","v":""},{"$f":"IF(ISERROR(VLOOKUP(#REF!,#REF!,2,FALSE)),\"\",VLOOKUP(#REF!,#REF!,2,FALSE))","v":""}]
[null,{"$f":"IF(K31=\"\",\"\",VLOOKUP(K31,[1]DEPORTISTAS!$A:$B,2,FALSE))","v":""},{"$f":"IF(ISERROR(VLOOKUP(#REF!,#REF!,2,FALSE)),\"\",VLOOKUP(#REF!,#REF!,2,FALSE))","v":""},{"$f":"IF(ISERROR(VLOOKUP(#REF!,#REF!,2,FALSE)),\"\",VLOOKUP(#REF!,#REF!,2,FALSE))","v":""},{"$f":"IF(ISERROR(VLOOKUP(#REF!,#REF!,2,FALSE)),\"\",VLOOKUP(#REF!,#REF!,2,FALSE))","v":""},{"$f":"IF(ISERROR(VLOOKUP(#REF!,#REF!,2,FALSE)),\"\",VLOOKUP(#REF!,#REF!,2,FALSE))","v":""},{"$f":"IF(ISERROR(VLOOKUP(#REF!,#REF!,2,FALSE)),\"\",VLOOKUP(#REF!,#REF!,2,FALSE))","v":""},{"$f":"IF(ISERROR(VLOOKUP(#REF!,#REF!,2,FALSE)),\"\",VLOOKUP(#REF!,#REF!,2,FALSE))","v":""},{"$f":"IF(ISERROR(VLOOKUP(#REF!,#REF!,2,FALSE)),\"\",VLOOKUP(#REF!,#REF!,2,FALSE))","v":""},{"$f":"IF(ISERROR(VLOOKUP(#REF!,#REF!,2,FALSE)),\"\",VLOOKUP(#REF!,#REF!,2,FALSE))","v":""},null,{"$f":"IF(U31=\"\",\"\",VLOOKUP(U31,[1]DEPORTISTAS!$A:$B,2,FALSE))","v":""},{"$f":"IF(ISERROR(VLOOKUP(#REF!,#REF!,2,FALSE)),\"\",VLOOKUP(#REF!,#REF!,2,FALSE))","v":""},{"$f":"IF(ISERROR(VLOOKUP(#REF!,#REF!,2,FALSE)),\"\",VLOOKUP(#REF!,#REF!,2,FALSE))","v":""},{"$f":"IF(ISERROR(VLOOKUP(#REF!,#REF!,2,FALSE)),\"\",VLOOKUP(#REF!,#REF!,2,FALSE))","v":""},{"$f":"IF(ISERROR(VLOOKUP(#REF!,#REF!,2,FALSE)),\"\",VLOOKUP(#REF!,#REF!,2,FALSE))","v":""},{"$f":"IF(ISERROR(VLOOKUP(#REF!,#REF!,2,FALSE)),\"\",VLOOKUP(#REF!,#REF!,2,FALSE))","v":""},{"$f":"IF(ISERROR(VLOOKUP(#REF!,#REF!,2,FALSE)),\"\",VLOOKUP(#REF!,#REF!,2,FALSE))","v":""},{"$f":"IF(ISERROR(VLOOKUP(#REF!,#REF!,2,FALSE)),\"\",VLOOKUP(#REF!,#REF!,2,FALSE))","v":""},{"$f":"IF(ISERROR(VLOOKUP(#REF!,#REF!,2,FALSE)),\"\",VLOOKUP(#REF!,#REF!,2,FALSE))","v":""},null,{"$f":"IF(AE31=\"\",\"\",VLOOKUP(AE31,[1]DEPORTISTAS!$A:$B,2,FALSE))","v":""},{"$f":"IF(ISERROR(VLOOKUP(#REF!,#REF!,2,FALSE)),\"\",VLOOKUP(#REF!,#REF!,2,FALSE))","v":""},{"$f":"IF(ISERROR(VLOOKUP(#REF!,#REF!,2,FALSE)),\"\",VLOOKUP(#REF!,#REF!,2,FALSE))","v":""},{"$f":"IF(ISERROR(VLOOKUP(#REF!,#REF!,2,FALSE)),\"\",VLOOKUP(#REF!,#REF!,2,FALSE))","v":""},{"$f":"IF(ISERROR(VLOOKUP(#REF!,#REF!,2,FALSE)),\"\",VLOOKUP(#REF!,#REF!,2,FALSE))","v":""},{"$f":"IF(ISERROR(VLOOKUP(#REF!,#REF!,2,FALSE)),\"\",VLOOKUP(#REF!,#REF!,2,FALSE))","v":""},{"$f":"IF(ISERROR(VLOOKUP(#REF!,#REF!,2,FALSE)),\"\",VLOOKUP(#REF!,#REF!,2,FALSE))","v":""},{"$f":"IF(ISERROR(VLOOKUP(#REF!,#REF!,2,FALSE)),\"\",VLOOKUP(#REF!,#REF!,2,FALSE))","v":""},{"$f":"IF(ISERROR(VLOOKUP(#REF!,#REF!,2,FALSE)),\"\",VLOOKUP(#REF!,#REF!,2,FALSE))","v":""}]
[null,{"$f":"IF(K32=\"\",\"\",VLOOKUP(K32,[1]DEPORTISTAS!$A:$B,2,FALSE))","v":""},{"$f":"IF(ISERROR(VLOOKUP(#REF!,#REF!,2,FALSE)),\"\",VLOOKUP(#REF!,#REF!,2,FALSE))","v":""},{"$f":"IF(ISERROR(VLOOKUP(#REF!,#REF!,2,FALSE)),\"\",VLOOKUP(#REF!,#REF!,2,FALSE))","v":""},{"$f":"IF(ISERROR(VLOOKUP(#REF!,#REF!,2,FALSE)),\"\",VLOOKUP(#REF!,#REF!,2,FALSE))","v":""},{"$f":"IF(ISERROR(VLOOKUP(#REF!,#REF!,2,FALSE)),\"\",VLOOKUP(#REF!,#REF!,2,FALSE))","v":""},{"$f":"IF(ISERROR(VLOOKUP(#REF!,#REF!,2,FALSE)),\"\",VLOOKUP(#REF!,#REF!,2,FALSE))","v":""},{"$f":"IF(ISERROR(VLOOKUP(#REF!,#REF!,2,FALSE)),\"\",VLOOKUP(#REF!,#REF!,2,FALSE))","v":""},{"$f":"IF(ISERROR(VLOOKUP(#REF!,#REF!,2,FALSE)),\"\",VLOOKUP(#REF!,#REF!,2,FALSE))","v":""},{"$f":"IF(ISERROR(VLOOKUP(#REF!,#REF!,2,FALSE)),\"\",VLOOKUP(#REF!,#REF!,2,FALSE))","v":""},null,{"$f":"IF(U32=\"\",\"\",VLOOKUP(U32,[1]DEPORTISTAS!$A:$B,2,FALSE))","v":""},{"$f":"IF(ISERROR(VLOOKUP(#REF!,#REF!,2,FALSE)),\"\",VLOOKUP(#REF!,#REF!,2,FALSE))","v":""},{"$f":"IF(ISERROR(VLOOKUP(#REF!,#REF!,2,FALSE)),\"\",VLOOKUP(#REF!,#REF!,2,FALSE))","v":""},{"$f":"IF(ISERROR(VLOOKUP(#REF!,#REF!,2,FALSE)),\"\",VLOOKUP(#REF!,#REF!,2,FALSE))","v":""},{"$f":"IF(ISERROR(VLOOKUP(#REF!,#REF!,2,FALSE)),\"\",VLOOKUP(#REF!,#REF!,2,FALSE))","v":""},{"$f":"IF(ISERROR(VLOOKUP(#REF!,#REF!,2,FALSE)),\"\",VLOOKUP(#REF!,#REF!,2,FALSE))","v":""},{"$f":"IF(ISERROR(VLOOKUP(#REF!,#REF!,2,FALSE)),\"\",VLOOKUP(#REF!,#REF!,2,FALSE))","v":""},{"$f":"IF(ISERROR(VLOOKUP(#REF!,#REF!,2,FALSE)),\"\",VLOOKUP(#REF!,#REF!,2,FALSE))","v":""},{"$f":"IF(ISERROR(VLOOKUP(#REF!,#REF!,2,FALSE)),\"\",VLOOKUP(#REF!,#REF!,2,FALSE))","v":""},null,{"$f":"IF(AE32=\"\",\"\",VLOOKUP(AE32,[1]DEPORTISTAS!$A:$B,2,FALSE))","v":""},{"$f":"IF(ISERROR(VLOOKUP(#REF!,#REF!,2,FALSE)),\"\",VLOOKUP(#REF!,#REF!,2,FALSE))","v":""},{"$f":"IF(ISERROR(VLOOKUP(#REF!,#REF!,2,FALSE)),\"\",VLOOKUP(#REF!,#REF!,2,FALSE))","v":""},{"$f":"IF(ISERROR(VLOOKUP(#REF!,#REF!,2,FALSE)),\"\",VLOOKUP(#REF!,#REF!,2,FALSE))","v":""},{"$f":"IF(ISERROR(VLOOKUP(#REF!,#REF!,2,FALSE)),\"\",VLOOKUP(#REF!,#REF!,2,FALSE))","v":""},{"$f":"IF(ISERROR(VLOOKUP(#REF!,#REF!,2,FALSE)),\"\",VLOOKUP(#REF!,#REF!,2,FALSE))","v":""},{"$f":"IF(ISERROR(VLOOKUP(#REF!,#REF!,2,FALSE)),\"\",VLOOKUP(#REF!,#REF!,2,FALSE))","v":""},{"$f":"IF(ISERROR(VLOOKUP(#REF!,#REF!,2,FALSE)),\"\",VLOOKUP(#REF!,#REF!,2,FALSE))","v":""},{"$f":"IF(ISERROR(VLOOKUP(#REF!,#REF!,2,FALSE)),\"\",VLOOKUP(#REF!,#REF!,2,FALSE))","v":""}]
[null,{"$f":"IF(K33=\"\",\"\",VLOOKUP(K33,[1]DEPORTISTAS!$A:$B,2,FALSE))","v":""},{"$f":"IF(ISERROR(VLOOKUP(#REF!,#REF!,2,FALSE)),\"\",VLOOKUP(#REF!,#REF!,2,FALSE))","v":""},{"$f":"IF(ISERROR(VLOOKUP(#REF!,#REF!,2,FALSE)),\"\",VLOOKUP(#REF!,#REF!,2,FALSE))","v":""},{"$f":"IF(ISERROR(VLOOKUP(#REF!,#REF!,2,FALSE)),\"\",VLOOKUP(#REF!,#REF!,2,FALSE))","v":""},{"$f":"IF(ISERROR(VLOOKUP(#REF!,#REF!,2,FALSE)),\"\",VLOOKUP(#REF!,#REF!,2,FALSE))","v":""},{"$f":"IF(ISERROR(VLOOKUP(#REF!,#REF!,2,FALSE)),\"\",VLOOKUP(#REF!,#REF!,2,FALSE))","v":""},{"$f":"IF(ISERROR(VLOOKUP(#REF!,#REF!,2,FALSE)),\"\",VLOOKUP(#REF!,#REF!,2,FALSE))","v":""},{"$f":"IF(ISERROR(VLOOKUP(#REF!,#REF!,2,FALSE)),\"\",VLOOKUP(#REF!,#REF!,2,FALSE))","v":""},{"$f":"IF(ISERROR(VLOOKUP(#REF!,#REF!,2,FALSE)),\"\",VLOOKUP(#REF!,#REF!,2,FALSE))","v":""},null,{"$f":"IF(U33=\"\",\"\",VLOOKUP(U33,[1]DEPORTISTAS!$A:$B,2,FALSE))","v":""},{"$f":"IF(ISERROR(VLOOKUP(#REF!,#REF!,2,FALSE)),\"\",VLOOKUP(#REF!,#REF!,2,FALSE))","v":""},{"$f":"IF(ISERROR(VLOOKUP(#REF!,#REF!,2,FALSE)),\"\",VLOOKUP(#REF!,#REF!,2,FALSE))","v":""},{"$f":"IF(ISERROR(VLOOKUP(#REF!,#REF!,2,FALSE)),\"\",VLOOKUP(#REF!,#REF!,2,FALSE))","v":""},{"$f":"IF(ISERROR(VLOOKUP(#REF!,#REF!,2,FALSE)),\"\",VLOOKUP(#REF!,#REF!,2,FALSE))","v":""},{"$f":"IF(ISERROR(VLOOKUP(#REF!,#REF!,2,FALSE)),\"\",VLOOKUP(#REF!,#REF!,2,FALSE))","v":""},{"$f":"IF(ISERROR(VLOOKUP(#REF!,#REF!,2,FALSE)),\"\",VLOOKUP(#REF!,#REF!,2,FALSE))","v":""},{"$f":"IF(ISERROR(VLOOKUP(#REF!,#REF!,2,FALSE)),\"\",VLOOKUP(#REF!,#REF!,2,FALSE))","v":""},{"$f":"IF(ISERROR(VLOOKUP(#REF!,#REF!,2,FALSE)),\"\",VLOOKUP(#REF!,#REF!,2,FALSE))","v":""},null,{"$f":"IF(AE33=\"\",\"\",VLOOKUP(AE33,[1]DEPORTISTAS!$A:$B,2,FALSE))","v":""},{"$f":"IF(ISERROR(VLOOKUP(#REF!,#REF!,2,FALSE)),\"\",VLOOKUP(#REF!,#REF!,2,FALSE))","v":""},{"$f":"IF(ISERROR(VLOOKUP(#REF!,#REF!,2,FALSE)),\"\",VLOOKUP(#REF!,#REF!,2,FALSE))","v":""},{"$f":"IF(ISERROR(VLOOKUP(#REF!,#REF!,2,FALSE)),\"\",VLOOKUP(#REF!,#REF!,2,FALSE))","v":""},{"$f":"IF(ISERROR(VLOOKUP(#REF!,#REF!,2,FALSE)),\"\",VLOOKUP(#REF!,#REF!,2,FALSE))","v":""},{"$f":"IF(ISERROR(VLOOKUP(#REF!,#REF!,2,FALSE)),\"\",VLOOKUP(#REF!,#REF!,2,FALSE))","v":""},{"$f":"IF(ISERROR(VLOOKUP(#REF!,#REF!,2,FALSE)),\"\",VLOOKUP(#REF!,#REF!,2,FALSE))","v":""},{"$f":"IF(ISERROR(VLOOKUP(#REF!,#REF!,2,FALSE)),\"\",VLOOKUP(#REF!,#REF!,2,FALSE))","v":""},{"$f":"IF(ISERROR(VLOOKUP(#REF!,#REF!,2,FALSE)),\"\",VLOOKUP(#REF!,#REF!,2,FALSE))","v":""}]
[null,{"$f":"IF(K34=\"\",\"\",VLOOKUP(K34,[1]DEPORTISTAS!$A:$B,2,FALSE))","v":""},{"$f":"IF(ISERROR(VLOOKUP(#REF!,#REF!,2,FALSE)),\"\",VLOOKUP(#REF!,#REF!,2,FALSE))","v":""},{"$f":"IF(ISERROR(VLOOKUP(#REF!,#REF!,2,FALSE)),\"\",VLOOKUP(#REF!,#REF!,2,FALSE))","v":""},{"$f":"IF(ISERROR(VLOOKUP(#REF!,#REF!,2,FALSE)),\"\",VLOOKUP(#REF!,#REF!,2,FALSE))","v":""},{"$f":"IF(ISERROR(VLOOKUP(#REF!,#REF!,2,FALSE)),\"\",VLOOKUP(#REF!,#REF!,2,FALSE))","v":""},{"$f":"IF(ISERROR(VLOOKUP(#REF!,#REF!,2,FALSE)),\"\",VLOOKUP(#REF!,#REF!,2,FALSE))","v":""},{"$f":"IF(ISERROR(VLOOKUP(#REF!,#REF!,2,FALSE)),\"\",VLOOKUP(#REF!,#REF!,2,FALSE))","v":""},{"$f":"IF(ISERROR(VLOOKUP(#REF!,#REF!,2,FALSE)),\"\",VLOOKUP(#REF!,#REF!,2,FALSE))","v":""},{"$f":"IF(ISERROR(VLOOKUP(#REF!,#REF!,2,FALSE)),\"\",VLOOKUP(#REF!,#REF!,2,FALSE))","v":""},null,{"$f":"IF(U34=\"\",\"\",VLOOKUP(U34,[1]DEPORTISTAS!$A:$B,2,FALSE))","v":""},{"$f":"IF(ISERROR(VLOOKUP(#REF!,#REF!,2,FALSE)),\"\",VLOOKUP(#REF!,#REF!,2,FALSE))","v":""},{"$f":"IF(ISERROR(VLOOKUP(#REF!,#REF!,2,FALSE)),\"\",VLOOKUP(#REF!,#REF!,2,FALSE))","v":""},{"$f":"IF(ISERROR(VLOOKUP(#REF!,#REF!,2,FALSE)),\"\",VLOOKUP(#REF!,#REF!,2,FALSE))","v":""},{"$f":"IF(ISERROR(VLOOKUP(#REF!,#REF!,2,FALSE)),\"\",VLOOKUP(#REF!,#REF!,2,FALSE))","v":""},{"$f":"IF(ISERROR(VLOOKUP(#REF!,#REF!,2,FALSE)),\"\",VLOOKUP(#REF!,#REF!,2,FALSE))","v":""},{"$f":"IF(ISERROR(VLOOKUP(#REF!,#REF!,2,FALSE)),\"\",VLOOKUP(#REF!,#REF!,2,FALSE))","v":""},{"$f":"IF(ISERROR(VLOOKUP(#REF!,#REF!,2,FALSE)),\"\",VLOOKUP(#REF!,#REF!,2,FALSE))","v":""},{"$f":"IF(ISERROR(VLOOKUP(#REF!,#REF!,2,FALSE)),\"\",VLOOKUP(#REF!,#REF!,2,FALSE))","v":""},null,{"$f":"IF(AE34=\"\",\"\",VLOOKUP(AE34,[1]DEPORTISTAS!$A:$B,2,FALSE))","v":""},{"$f":"IF(ISERROR(VLOOKUP(#REF!,#REF!,2,FALSE)),\"\",VLOOKUP(#REF!,#REF!,2,FALSE))","v":""},{"$f":"IF(ISERROR(VLOOKUP(#REF!,#REF!,2,FALSE)),\"\",VLOOKUP(#REF!,#REF!,2,FALSE))","v":""},{"$f":"IF(ISERROR(VLOOKUP(#REF!,#REF!,2,FALSE)),\"\",VLOOKUP(#REF!,#REF!,2,FALSE))","v":""},{"$f":"IF(ISERROR(VLOOKUP(#REF!,#REF!,2,FALSE)),\"\",VLOOKUP(#REF!,#REF!,2,FALSE))","v":""},{"$f":"IF(ISERROR(VLOOKUP(#REF!,#REF!,2,FALSE)),\"\",VLOOKUP(#REF!,#REF!,2,FALSE))","v":""},{"$f":"IF(ISERROR(VLOOKUP(#REF!,#REF!,2,FALSE)),\"\",VLOOKUP(#REF!,#REF!,2,FALSE))","v":""},{"$f":"IF(ISERROR(VLOOKUP(#REF!,#REF!,2,FALSE)),\"\",VLOOKUP(#REF!,#REF!,2,FALSE))","v":""},{"$f":"IF(ISERROR(VLOOKUP(#REF!,#REF!,2,FALSE)),\"\",VLOOKUP(#REF!,#REF!,2,FALSE))","v":""}]
[]
["(1)","A OMPLIR PER LA FEDERACIÓ",null,null,null,null,null,null,null,null,null,null,null,"Segell",null,null,null,null,null,null,null,null,null,"El Secretari del Club"]

{"sheet":"1ª B","index":2,"n_rows":36,"n_cols":34,"rows_kept":36,"cut":false,"hidden":true,"merged":[[6,0,16,2],[6,18,14,19],[6,25,7,26],[6,27,7,30],[8,20,9,22],[8,25,9,26],[8,27,9,30],[10,20,11,23],[14,20,15,23],[14,25,15,26],[14,27,15,30],[4,5,4,19],[4,27,4,28],[10,25,11,26],[10,27,11,30],[12,20,13,23],[12,25,13,26],[12,27,13,30],[19,1,19,9],[19,11,19,19],[19,21,19,29],[17,0,17,1],[17,2,17,14],[17,16,17,19],[17,20,17,30],[18,0,18,30],[20,1,20,9],[20,11,20,19],[20,21,20,29],[21,1,21,9],[21,11,21,19],[21,21,21,29],[22,1,22,9],[22,11,22,19],[22,21,22,29],[23,1,23,9],[23,11,23,19],[23,21,23,29],[24,1,24,9],[24,11,24,19],[24,21,24,29],[25,1,25,9],[25,11,25,19],[25,21,25,29],[26,1,26,9],[26,11,26,19],[26,21,26,29],[27,1,27,9],[27,11,27,19],[27,21,27,29],[28,1,28,9],[28,11,28,19],[28,21,28,29],[29,1,29,9],[29,11,29,19],[29,21,29,29],[30,1,30,9],[30,11,30,19],[30,21,30,29],[31,1,31,9],[31,11,31,19],[31,21,31,29],[35,13,35,17],[32,1,32,9],[32,11,32,19],[32,21,32,29],[33,1,33,9],[33,11,33,19],[33,21,33,29]]}
[]
[null,null,"Federació Catalana de Petanca"]
[null,null,"Rambla Guipúscoa, 23-25. 3er. Of. D i E - Tel. 93 268 00 48  - 08018 BARCELONA"]
[]
["                      Nom del Club",null,null,null,null,"   CLUB PETANCA PRAT  \" B \"",null,null,null,null,null,null,null,null,null,null,null,null,null,null,null,null,null,null,"Núm club:",null,null,9]
[]
["per participar en ",null,null,"Opens",null,null,null,null,null,null,null,null,null,null,null,null,null,null,"Lliga"]
[]
[null,null,null,"Campionat de Catalunya de Clubs Tripletes",null,null,null,null,null,null,null,null,null,null,null,null,null,null,null,null,"Lliga Masculina",null,null,null,"X","Divisió",null,"1ª B"]
[]
[null,null,null,"Campionat de Catalunya de Clubs Dobletes",null,null,null,null,null,null,null,null,null,null,null,null,null,null,null,null,"Lliga Femenina",null,null,null,null,"Divisió"]
[]
[null,null,null,"Campionat de Catalunya Individual",null,null,null,null,null,null,null,null,null,null,null,null,null,null,null,null,"División Honor",null,null,null,null,"Divisió"]
[]
[null,null,null,"Campionat de Catalunya Individual  (tir)"]
[]
[]
["Categoria",null,"MASCULINA",null,null,null,null,null,null,null,null,null,null,null,null,null,"Observacions",null,null,null,"        JUAN A. GARCIA CUADRADO  -   615240490"]
["COINCIDIR  LOS  GRUPOS   \" B  Y  A \""]
["(1)","CAPITÀ",null,null,null,null,null,null,null,null,"Número Llicencia","JUGADOR",null,null,null,null,null,null,null,null,"Número Llicencia","JUGADOR",null,null,null,null,null,null,null,null,"Número Llicencia"]
[null,{"$f":"IF(K21=\"\",\"\",VLOOKUP(K21,[1]DEPORTISTAS!$A:$B,2,FALSE))","v":"ALBERTO ROBLES ESPEJO"},null,null,null,null,null,null,null,null,22241,{"$f":"IF(U21=\"\",\"\",VLOOKUP(U21,[1]DEPORTISTAS!$A:$B,2,FALSE))","v":"JOSE LUIS ARANDA ARANDA"},null,null,null,null,null,null,null,null,44888,{"$f":"IF(AE21=\"\",\"\",VLOOKUP(AE21,[1]DEPORTISTAS!$A:$B,2,FALSE))","v":""}]
[null,{"$f":"IF(K22=\"\",\"\",VLOOKUP(K22,[1]DEPORTISTAS!$A:$B,2,FALSE))","v":"TOMAS SANTOS CORDERO"},null,null,null,null,null,null,null,null,41207,{"$f":"IF(U22=\"\",\"\",VLOOKUP(U22,[1]DEPORTISTAS!$A:$B,2,FALSE))","v":"DAVID RODRIGUEZ MONTESINOS"},null,null,null,null,null,null,null,null,28714,{"$f":"IF(AE22=\"\",\"\",VLOOKUP(AE22,[1]DEPORTISTAS!$A:$B,2,FALSE))","v":""},null,null,null,null,null,null,null,null,null,null,null,{"$f":"IF(ISERROR(VLOOKUP(K21,#REF!,2,FALSE)),\"\",VLOOKUP(K21,#REF!,2,FALSE))","v":""}]
[null,{"$f":"IF(K23=\"\",\"\",VLOOKUP(K23,[1]DEPORTISTAS!$A:$B,2,FALSE))","v":"ANTONIO RODRIGUEZ MONTESINOS"},null,null,null,null,null,null,null,null,21188,{"$f":"IF(U23=\"\",\"\",VLOOKUP(U23,[1]DEPORTISTAS!$A:$B,2,FALSE))","v":"DAVID JIMENEZ LOPEZ"},null,null,null,null,null,null,null,null,31995,{"$f":"IF(AE23=\"\",\"\",VLOOKUP(AE23,[1]DEPORTISTAS!$A:$B,2,FALSE))","v":""}]
[null,{"$f":"IF(K24=\"\",\"\",VLOOKUP(K24,[1]DEPORTISTAS!$A:$B,2,FALSE))","v":"ROSENDO BAYONA GUTIERREZ"},null,null,null,null,null,null,null,null,22530,{"$f":"IF(U24=\"\",\"\",VLOOKUP(U24,[1]DEPORTISTAS!$A:$B,2,FALSE))","v":""},null,null,null,null,null,null,null,null,null,{"$f":"IF(AE24=\"\",\"\",VLOOKUP(AE24,[1]DEPORTISTAS!$A:$B,2,FALSE))","v":""}]
[null,{"$f":"IF(K25=\"\",\"\",VLOOKUP(K25,[1]DEPORTISTAS!$A:$B,2,FALSE))","v":"JUAN FRANCISCO AGUILAR MARTIN"},null,null,null,null,null,null,null,null,7944,{"$f":"IF(U25=\"\",\"\",VLOOKUP(U25,[1]DEPORTISTAS!$A:$B,2,FALSE))","v":""},null,null,null,null,null,null,null,null,null,{"$f":"IF(AE25=\"\",\"\",VLOOKUP(AE25,[1]DEPORTISTAS!$A:$B,2,FALSE))","v":""}]
[null,{"$f":"IF(K26=\"\",\"\",VLOOKUP(K26,[1]DEPORTISTAS!$A:$B,2,FALSE))","v":"JAIME LINARES GIMENEZ"},null,null,null,null,null,null,null,null,39041,{"$f":"IF(U26=\"\",\"\",VLOOKUP(U26,[1]DEPORTISTAS!$A:$B,2,FALSE))","v":""},null,null,null,null,null,null,null,null,null,{"$f":"IF(AE26=\"\",\"\",VLOOKUP(AE26,[1]DEPORTISTAS!$A:$B,2,FALSE))","v":""}]
[null,{"$f":"IF(K27=\"\",\"\",VLOOKUP(K27,[1]DEPORTISTAS!$A:$B,2,FALSE))","v":"MARC BERRUEZO GARCIA"},null,null,null,null,null,null,null,null,35298,{"$f":"IF(U27=\"\",\"\",VLOOKUP(U27,[1]DEPORTISTAS!$A:$B,2,FALSE))","v":""},null,null,null,null,null,null,null,null,null,{"$f":"IF(AE27=\"\",\"\",VLOOKUP(AE27,[1]DEPORTISTAS!$A:$B,2,FALSE))","v":""}]
[null,{"$f":"IF(K28=\"\",\"\",VLOOKUP(K28,[1]DEPORTISTAS!$A:$B,2,FALSE))","v":"ANTONIO BARENYS MIRANDA"},null,null,null,null,null,null,null,null,58,{"$f":"IF(U28=\"\",\"\",VLOOKUP(U28,[1]DEPORTISTAS!$A:$B,2,FALSE))","v":""},null,null,null,null,null,null,null,null,null,{"$f":"IF(AE28=\"\",\"\",VLOOKUP(AE28,[1]DEPORTISTAS!$A:$B,2,FALSE))","v":""}]
[null,{"$f":"IF(K29=\"\",\"\",VLOOKUP(K29,[1]DEPORTISTAS!$A:$B,2,FALSE))","v":"JUAN TRUJILLO ZAMORA"},null,null,null,null,null,null,null,null,6413,{"$f":"IF(U29=\"\",\"\",VLOOKUP(U29,[1]DEPORTISTAS!$A:$B,2,FALSE))","v":""},null,null,null,null,null,null,null,null,null,{"$f":"IF(AE29=\"\",\"\",VLOOKUP(AE29,[1]DEPORTISTAS!$A:$B,2,FALSE))","v":""}]
[null,{"$f":"IF(K30=\"\",\"\",VLOOKUP(K30,[1]DEPORTISTAS!$A:$B,2,FALSE))","v":"ALBERTO BRIEGAS RUIZ"},null,null,null,null,null,null,null,null,33419,{"$f":"IF(U30=\"\",\"\",VLOOKUP(U30,[1]DEPORTISTAS!$A:$B,2,FALSE))","v":""},null,null,null,null,null,null,null,null,null,{"$f":"IF(AE30=\"\",\"\",VLOOKUP(AE30,[1]DEPORTISTAS!$A:$B,2,FALSE))","v":""}]
[null,{"$f":"IF(K31=\"\",\"\",VLOOKUP(K31,[1]DEPORTISTAS!$A:$B,2,FALSE))","v":"FELIX ROMERO VICENTE"},null,null,null,null,null,null,null,null,28673,{"$f":"IF(U31=\"\",\"\",VLOOKUP(U31,[1]DEPORTISTAS!$A:$B,2,FALSE))","v":""},null,null,null,null,null,null,null,null,null,"COMODINES"]
[null,{"$f":"IF(K32=\"\",\"\",VLOOKUP(K32,[1]DEPORTISTAS!$A:$B,2,FALSE))","v":"JUAN MARMOL RIVAS"},null,null,null,null,null,null,null,null,12719,{"$f":"IF(U32=\"\",\"\",VLOOKUP(U32,[1]DEPORTISTAS!$A:$B,2,FALSE))","v":""},null,null,null,null,null,null,null,null,null,{"$f":"IF(AE32=\"\",\"\",VLOOKUP(AE32,[1]DEPORTISTAS!$A:$B,2,FALSE))","v":"RAUL ELIPE JIMENEZ"},{"$f":"IF(ISERROR(VLOOKUP(#REF!,#REF!,2,FALSE)),\"\",VLOOKUP(#REF!,#REF!,2,FALSE))","v":""},{"$f":"IF(ISERROR(VLOOKUP(#REF!,#REF!,2,FALSE)),\"\",VLOOKUP(#REF!,#REF!,2,FALSE))","v":""},{"$f":"IF(ISERROR(VLOOKUP(#REF!,#REF!,2,FALSE)),\"\",VLOOKUP(#REF!,#REF!,2,FALSE))","v":""},{"$f":"IF(ISERROR(VLOOKUP(#REF!,#REF!,2,FALSE)),\"\",VLOOKUP(#REF!,#REF!,2,FALSE))","v":""},{"$f":"IF(ISERROR(VLOOKUP(#REF!,#REF!,2,FALSE)),\"\",VLOOKUP(#REF!,#REF!,2,FALSE))","v":""},{"$f":"IF(ISERROR(VLOOKUP(#REF!,#REF!,2,FALSE)),\"\",VLOOKUP(#REF!,#REF!,2,FALSE))","v":""},{"$f":"IF(ISERROR(VLOOKUP(#REF!,#REF!,2,FALSE)),\"\",VLOOKUP(#REF!,#REF!,2,FALSE))","v":""},{"$f":"IF(ISERROR(VLOOKUP(#REF!,#REF!,2,FALSE)),\"\",VLOOKUP(#REF!,#REF!,2,FALSE))","v":""},19114]
[null,{"$f":"IF(K33=\"\",\"\",VLOOKUP(K33,[1]DEPORTISTAS!$A:$B,2,FALSE))","v":"MANUEL ROMAN PARDO"},null,null,null,null,null,null,null,null,28098,{"$f":"IF(U33=\"\",\"\",VLOOKUP(U33,[1]DEPORTISTAS!$A:$B,2,FALSE))","v":""},null,null,null,null,null,null,null,null,null,{"$f":"IF(AE33=\"\",\"\",VLOOKUP(AE33,[1]DEPORTISTAS!$A:$B,2,FALSE))","v":"TOMAS SANTOS CORDERO"},{"$f":"IF(ISERROR(VLOOKUP(#REF!,#REF!,2,FALSE)),\"\",VLOOKUP(#REF!,#REF!,2,FALSE))","v":""},{"$f":"IF(ISERROR(VLOOKUP(#REF!,#REF!,2,FALSE)),\"\",VLOOKUP(#REF!,#REF!,2,FALSE))","v":""},{"$f":"IF(ISERROR(VLOOKUP(#REF!,#REF!,2,FALSE)),\"\",VLOOKUP(#REF!,#REF!,2,FALSE))","v":""},{"$f":"IF(ISERROR(VLOOKUP(#REF!,#REF!,2,FALSE)),\"\",VLOOKUP(#REF!,#REF!,2,FALSE))","v":""},{"$f":"IF(ISERROR(VLOOKUP(#REF!,#REF!,2,FALSE)),\"\",VLOOKUP(#REF!,#REF!,2,FALSE))","v":""},{"$f":"IF(ISERROR(VLOOKUP(#REF!,#REF!,2,FALSE)),\"\",VLOOKUP(#REF!,#REF!,2,FALSE))","v":""},{"$f":"IF(ISERROR(VLOOKUP(#REF!,#REF!,2,FALSE)),\"\",VLOOKUP(#REF!,#REF!,2,FALSE))","v":""},{"$f":"IF(ISERROR(VLOOKUP(#REF!,#REF!,2,FALSE)),\"\",VLOOKUP(#REF!,#REF!,2,FALSE))","v":""},41207]
[null,{"$f":"IF(K34=\"\",\"\",VLOOKUP(K34,[1]DEPORTISTAS!$A:$B,2,FALSE))","v":"RAUL ELIPE JIMENEZ"},null,null,null,null,null,null,null,null,19114,{"$f":"IF(U34=\"\",\"\",VLOOKUP(U34,[1]DEPORTISTAS!$A:$B,2,FALSE))","v":""},null,null,null,null,null,null,null,null,null,{"$f":"IF(AE34=\"\",\"\",VLOOKUP(AE34,[1]DEPORTISTAS!$A:$B,2,FALSE))","v":"ANTONIO RODRIGUEZ MONTESINOS"},{"$f":"IF(ISERROR(VLOOKUP(#REF!,#REF!,2,FALSE)),\"\",VLOOKUP(#REF!,#REF!,2,FALSE))","v":""},{"$f":"IF(ISERROR(VLOOKUP(#REF!,#REF!,2,FALSE)),\"\",VLOOKUP(#REF!,#REF!,2,FALSE))","v":""},{"$f":"IF(ISERROR(VLOOKUP(#REF!,#REF!,2,FALSE)),\"\",VLOOKUP(#REF!,#REF!,2,FALSE))","v":""},{"$f":"IF(ISERROR(VLOOKUP(#REF!,#REF!,2,FALSE)),\"\",VLOOKUP(#REF!,#REF!,2,FALSE))","v":""},{"$f":"IF(ISERROR(VLOOKUP(#REF!,#REF!,2,FALSE)),\"\",VLOOKUP(#REF!,#REF!,2,FALSE))","v":""},{"$f":"IF(ISERROR(VLOOKUP(#REF!,#REF!,2,FALSE)),\"\",VLOOKUP(#REF!,#REF!,2,FALSE))","v":""},{"$f":"IF(ISERROR(VLOOKUP(#REF!,#REF!,2,FALSE)),\"\",VLOOKUP(#REF!,#REF!,2,FALSE))","v":""},{"$f":"IF(ISERROR(VLOOKUP(#REF!,#REF!,2,FALSE)),\"\",VLOOKUP(#REF!,#REF!,2,FALSE))","v":""},21188]
[]
["(1)","A OMPLIR PER LA FEDERACIÓ",null,null,null,null,null,null,null,null,null,null,null,"Segell",null,null,null,null,null,null,null,null,null,"El Secretari del Club"]

{"sheet":"2ª C","index":3,"n_rows":36,"n_cols":34,"rows_kept":36,"cut":false,"hidden":true,"merged":[[6,0,16,2],[6,18,14,19],[6,25,7,26],[6,27,7,30],[8,20,9,22],[8,25,9,26],[8,27,9,30],[10,20,11,23],[14,20,15,23],[14,25,15,26],[14,27,15,30],[4,5,4,19],[4,27,4,28],[10,25,11,26],[10,27,11,30],[12,20,13,23],[12,25,13,26],[12,27,13,30],[19,1,19,9],[19,11,19,19],[19,21,19,29],[17,0,17,1],[17,2,17,14],[17,16,17,19],[17,20,17,30],[18,0,18,30],[20,1,20,9],[20,11,20,19],[20,21,20,29],[21,1,21,9],[21,11,21,19],[21,21,21,29],[22,1,22,9],[22,11,22,19],[22,21,22,29],[23,1,23,9],[23,11,23,19],[23,21,23,29],[24,1,24,9],[24,11,24,19],[24,21,24,29],[25,1,25,9],[25,11,25,19],[25,21,25,29],[26,1,26,9],[26,11,26,19],[26,21,26,29],[27,1,27,9],[27,11,27,19],[27,21,27,29],[28,1,28,9],[28,11,28,19],[28,21,28,29],[29,1,29,9],[29,11,29,19],[29,21,29,29],[30,1,30,9],[30,11,30,19],[30,21,30,29],[31,1,31,9],[31,11,31,19],[31,21,31,29],[35,13,35,17],[32,1,32,9],[32,11,32,19],[32,21,32,29],[33,1,33,9],[33,11,33,19],[33,21,33,29]]}
[]
[null,null,"Federació Catalana de Petanca"]
[null,null,"Rambla Guipúscoa, 23-25. 3er. Of. D i E - Tel. 93 268 00 48  - 08018 BARCELONA"]
[]
["                      Nom del Club",null,null,null,null,"   CLUB PETANCA PRAT  \" C \"",null,null,null,null,null,null,null,null,null,null,null,null,null,null,null,null,null,null,"Núm club:",null,null,9]
[]
["per participar en ",null,null,"Opens",null,null,null,null,null,null,null,null,null,null,null,null,null,null,"Lliga"]
[]
[null,null,null,"Campionat de Catalunya de Clubs Tripletes",null,null,null,null,null,null,null,null,null,null,null,null,null,null,null,null,"Lliga Masculina",null,null,null,"X","Divisió",null,"2ª C"]
[]
[null,null,null,"Campionat de Catalunya de Clubs Dobletes",null,null,null,null,null,null,null,null,null,null,null,null,null,null,null,null,"Lliga Femenina",null,null,null,null,"Divisió"]
[]
[null,null,null,"Campionat de Catalunya Individual",null,null,null,null,null,null,null,null,null,null,null,null,null,null,null,null,"División Honor",null,null,null,null,"Divisió"]
[]
[null,null,null,"Campionat de Catalunya Individual  (tir)"]
[]
[]
["Categoria",null,"MASCULINA",null,null,null,null,null,null,null,null,null,null,null,null,null,"Observacions",null,null,null,"        JUAN A. GARCIA CUADRADO  -   615240490"]
["COINCIDIR  LOS  GRUPOS   \" C  Y  D \""]
["(1)","CAPITÀ",null,null,null,null,null,null,null,null,"Número Llicencia","JUGADOR",null,null,null,null,null,null,null,null,"Número Llicencia","JUGADOR",null,null,null,null,null,null,null,null,"Número Llicencia"]
[null,{"$f":"IF(K21=\"\",\"\",VLOOKUP(K21,[1]DEPORTISTAS!$A:$B,2,FALSE))","v":"GIOVANNI LOPEZ TRUEBA"},null,null,null,null,null,null,null,null,46244,{"$f":"IF(U21=\"\",\"\",VLOOKUP(U21,[1]DEPORTISTAS!$A:$B,2,FALSE))","v":"JESUS LOPEZ OVIEDO"},null,null,null,null,null,null,null,null,18884,{"$f":"IF(AE21=\"\",\"\",VLOOKUP(AE21,[1]DEPORTISTAS!$A:$B,2,FALSE))","v":""}]
[null,{"$f":"IF(K22=\"\",\"\",VLOOKUP(K22,[1]DEPORTISTAS!$A:$B,2,FALSE))","v":"JUAN CARLOS REVUELTA DE LA TORRE"},null,null,null,null,null,null,null,null,32123,{"$f":"IF(U22=\"\",\"\",VLOOKUP(U22,[1]DEPORTISTAS!$A:$B,2,FALSE))","v":"JOSE LUIS ROBLES ESPEJO"},null,null,null,null,null,null,null,null,11739,{"$f":"IF(AE22=\"\",\"\",VLOOKUP(AE22,[1]DEPORTISTAS!$A:$B,2,FALSE))","v":""},null,null,null,null,null,null,null,null,null,null,null,{"$f":"IF(ISERROR(VLOOKUP(K21,#REF!,2,FALSE)),\"\",VLOOKUP(K21,#REF!,2,FALSE))","v":""}]
[null,{"$f":"IF(K23=\"\",\"\",VLOOKUP(K23,[1]DEPORTISTAS!$A:$B,2,FALSE))","v":"MIGUEL ANGEL BUENO CARPINTERO"},null,null,null,null,null,null,null,null,7951,{"$f":"IF(U23=\"\",\"\",VLOOKUP(U23,[1]DEPORTISTAS!$A:$B,2,FALSE))","v":"TOMAS SANTOS RODRIGUEZ"},null,null,null,null,null,null,null,null,41206,{"$f":"IF(AE23=\"\",\"\",VLOOKUP(AE23,[1]DEPORTISTAS!$A:$B,2,FALSE))","v":""}]
[null,{"$f":"IF(K24=\"\",\"\",VLOOKUP(K24,[1]DEPORTISTAS!$A:$B,2,FALSE))","v":"GUILLERMO MARTINEZ HERNANDEZ"},null,null,null,null,null,null,null,null,33618,{"$f":"IF(U24=\"\",\"\",VLOOKUP(U24,[1]DEPORTISTAS!$A:$B,2,FALSE))","v":""},null,null,null,null,null,null,null,null,null,{"$f":"IF(AE24=\"\",\"\",VLOOKUP(AE24,[1]DEPORTISTAS!$A:$B,2,FALSE))","v":""}]
[null,{"$f":"IF(K25=\"\",\"\",VLOOKUP(K25,[1]DEPORTISTAS!$A:$B,2,FALSE))","v":"FRANCISCO JAVIER VILCHES LLEIXAS"},null,null,null,null,null,null,null,null,28998,{"$f":"IF(U25=\"\",\"\",VLOOKUP(U25,[1]DEPORTISTAS!$A:$B,2,FALSE))","v":""},null,null,null,null,null,null,null,null,null,{"$f":"IF(AE25=\"\",\"\",VLOOKUP(AE25,[1]DEPORTISTAS!$A:$B,2,FALSE))","v":""}]
[null,{"$f":"IF(K26=\"\",\"\",VLOOKUP(K26,[1]DEPORTISTAS!$A:$B,2,FALSE))","v":"IVAN MARTINEZ FERRER"},null,null,null,null,null,null,null,null,38018,{"$f":"IF(U26=\"\",\"\",VLOOKUP(U26,[1]DEPORTISTAS!$A:$B,2,FALSE))","v":""},null,null,null,null,null,null,null,null,null,{"$f":"IF(AE26=\"\",\"\",VLOOKUP(AE26,[1]DEPORTISTAS!$A:$B,2,FALSE))","v":""}]
[null,{"$f":"IF(K27=\"\",\"\",VLOOKUP(K27,[1]DEPORTISTAS!$A:$B,2,FALSE))","v":"ERIC SORIA MARTINEZ"},null,null,null,null,null,null,null,null,36947,{"$f":"IF(U27=\"\",\"\",VLOOKUP(U27,[1]DEPORTISTAS!$A:$B,2,FALSE))","v":""},null,null,null,null,null,null,null,null,null,{"$f":"IF(AE27=\"\",\"\",VLOOKUP(AE27,[1]DEPORTISTAS!$A:$B,2,FALSE))","v":""}]
[null,{"$f":"IF(K28=\"\",\"\",VLOOKUP(K28,[1]DEPORTISTAS!$A:$B,2,FALSE))","v":"IVAN EGEA FUENTES"},null,null,null,null,null,null,null,null,45269,{"$f":"IF(U28=\"\",\"\",VLOOKUP(U28,[1]DEPORTISTAS!$A:$B,2,FALSE))","v":""},null,null,null,null,null,null,null,null,null,{"$f":"IF(AE28=\"\",\"\",VLOOKUP(AE28,[1]DEPORTISTAS!$A:$B,2,FALSE))","v":""}]
[null,{"$f":"IF(K29=\"\",\"\",VLOOKUP(K29,[1]DEPORTISTAS!$A:$B,2,FALSE))","v":"CARLOS REVUELTA MILLAN"},null,null,null,null,null,null,null,null,42569,{"$f":"IF(U29=\"\",\"\",VLOOKUP(U29,[1]DEPORTISTAS!$A:$B,2,FALSE))","v":""},null,null,null,null,null,null,null,null,null,{"$f":"IF(AE29=\"\",\"\",VLOOKUP(AE29,[1]DEPORTISTAS!$A:$B,2,FALSE))","v":""}]
[null,{"$f":"IF(K30=\"\",\"\",VLOOKUP(K30,[1]DEPORTISTAS!$A:$B,2,FALSE))","v":"MANUEL JESUS MARTIN MARTIN"},null,null,null,null,null,null,null,null,32477,{"$f":"IF(U30=\"\",\"\",VLOOKUP(U30,[1]DEPORTISTAS!$A:$B,2,FALSE))","v":""},null,null,null,null,null,null,null,null,null,{"$f":"IF(AE30=\"\",\"\",VLOOKUP(AE30,[1]DEPORTISTAS!$A:$B,2,FALSE))","v":""}]
[null,{"$f":"IF(K31=\"\",\"\",VLOOKUP(K31,[1]DEPORTISTAS!$A:$B,2,FALSE))","v":"FRANCISCO GUILL SANDOVAL"},null,null,null,null,null,null,null,null,42516,{"$f":"IF(U31=\"\",\"\",VLOOKUP(U31,[1]DEPORTISTAS!$A:$B,2,FALSE))","v":""},null,null,null,null,null,null,null,null,null,"COMODINES"]
[null,{"$f":"IF(K32=\"\",\"\",VLOOKUP(K32,[1]DEPORTISTAS!$A:$B,2,FALSE))","v":"DANIEL VILCHES SERRANO"},null,null,null,null,null,null,null,null,44236,{"$f":"IF(U32=\"\",\"\",VLOOKUP(U32,[1]DEPORTISTAS!$A:$B,2,FALSE))","v":""},null,null,null,null,null,null,null,null,null,{"$f":"IF(AE32=\"\",\"\",VLOOKUP(AE32,[1]DEPORTISTAS!$A:$B,2,FALSE))","v":"OSCAR GOMEZ CABEZON"},null,null,null,null,null,null,null,null,3250]
[null,{"$f":"IF(K33=\"\",\"\",VLOOKUP(K33,[1]DEPORTISTAS!$A:$B,2,FALSE))","v":"CRISTIAN ORELLANA BERNAL"},null,null,null,null,null,null,null,null,45168,{"$f":"IF(U33=\"\",\"\",VLOOKUP(U33,[1]DEPORTISTAS!$A:$B,2,FALSE))","v":""},null,null,null,null,null,null,null,null,null,{"$f":"IF(AE33=\"\",\"\",VLOOKUP(AE33,[1]DEPORTISTAS!$A:$B,2,FALSE))","v":"MANUEL PEREZ CORTES"},null,null,null,null,null,null,null,null,13483]
[null,{"$f":"IF(K34=\"\",\"\",VLOOKUP(K34,[1]DEPORTISTAS!$A:$B,2,FALSE))","v":"DANIEL ROBLES BAENA"},null,null,null,null,null,null,null,null,32117,{"$f":"IF(U34=\"\",\"\",VLOOKUP(U34,[1]DEPORTISTAS!$A:$B,2,FALSE))","v":""},null,null,null,null,null,null,null,null,null,{"$f":"IF(AE34=\"\",\"\",VLOOKUP(AE34,[1]DEPORTISTAS!$A:$B,2,FALSE))","v":"JUAN FEMENIAS BOSCH"},null,null,null,null,null,null,null,null,11599]
[]
["(1)","A OMPLIR PER LA FEDERACIÓ",null,null,null,null,null,null,null,null,null,null,null,"Segell",null,null,null,null,null,null,null,null,null,"El Secretari del Club"]

{"sheet":"2ª C (fase pvia)","index":4,"n_rows":36,"n_cols":34,"rows_kept":36,"cut":false,"hidden":true,"merged":[[35,13,35,17],[32,1,32,9],[32,11,32,19],[32,21,32,29],[33,1,33,9],[33,11,33,19],[33,21,33,29],[30,1,30,9],[30,11,30,19],[30,21,30,29],[31,1,31,9],[31,11,31,19],[31,21,31,29],[28,1,28,9],[28,11,28,19],[28,21,28,29],[29,1,29,9],[29,11,29,19],[29,21,29,29],[26,1,26,9],[26,11,26,19],[26,21,26,29],[27,1,27,9],[27,11,27,19],[27,21,27,29],[24,1,24,9],[24,11,24,19],[24,21,24,29],[25,1,25,9],[25,11,25,19],[25,21,25,29],[22,1,22,9],[22,11,22,19],[22,21,22,29],[23,1,23,9],[23,11,23,19],[23,21,23,29],[20,1,20,9],[20,11,20,19],[20,21,20,29],[21,1,21,9],[21,11,21,19],[21,21,21,29],[17,0,17,1],[17,2,17,14],[17,16,17,19],[17,20,17,30],[19,1,19,9],[19,11,19,19],[19,21,19,29],[4,5,4,19],[4,27,4,28],[10,25,11,26],[10,27,11,30],[12,20,13,23],[12,25,13,26],[12,27,13,30],[6,0,16,2],[6,18,14,19],[6,25,7,26],[6,27,7,30],[8,20,9,22],[8,25,9,26],[8,27,9,30],[10,20,11,23],[14,20,15,23],[14,25,15,26],[14,27,15,30]]}
[]
[null,null,"Federació Catalana de Petanca"]
[null,null,"Rambla Guipúscoa, 23-25. 3er. Of. D i E - Tel. 93 268 00 48  - 08018 BARCELONA"]
[]
["                      Nom del Club",null,null,null,null,"   CLUB PETANCA PRAT  \" C \"",null,null,null,null,null,null,null,null,null,null,null,null,null,null,null,null,null,null,"Núm club:",null,null,9]
[]
["per participar en ",null,null,"Opens",null,null,null,null,null,null,null,null,null,null,null,null,null,null,"Lliga"]
[]
[null,null,null,"Campionat de Catalunya de Clubs Tripletes",null,null,null,null,null,null,null,null,null,null,"X",null,null,null,null,null,"Lliga Masculina",null,null,null,null,"Divisió"]
[]
[null,null,null,"Campionat de Catalunya de Clubs Dobletes",null,null,null,null,null,null,null,null,null,null,null,null,null,null,null,null,"Lliga Femenina",null,null,null,null,"Divisió"]
[]
[null,null,null,"Campionat de Catalunya Individual",null,null,null,null,null,null,null,null,null,null,null,null,null,null,null,null,"División Honor",null,null,null,null,"Divisió"]
[]
[null,null,null,"Campionat de Catalunya Individual  (tir)"]
[]
[]
["Categoria",null,"SEGUNDA MASCULINA",null,null,null,null,null,null,null,null,null,null,null,null,null,"Observacions",null,null,null,"        JUAN A. GARCIA CUADRADO  -   615240490"]
[]
["(1)","CAPITÀ",null,null,null,null,null,null,null,null,"Número Llicencia","JUGADOR",null,null,null,null,null,null,null,null,"Número Llicencia","JUGADOR",null,null,null,null,null,null,null,null,"Número Llicencia"]
[null,{"$f":"IF(K21=\"\",\"\",VLOOKUP(K21,[1]DEPORTISTAS!$A:$B,2,FALSE))","v":""},null,null,null,null,null,null,null,null,null,{"$f":"IF(U21=\"\",\"\",VLOOKUP(U21,[1]DEPORTISTAS!$A:$B,2,FALSE))","v":""},null,null,null,null,null,null,null,null,null,{"$f":"IF(AE21=\"\",\"\",VLOOKUP(AE21,[1]DEPORTISTAS!$A:$B,2,FALSE))","v":""}]
[null,{"$f":"IF(K22=\"\",\"\",VLOOKUP(K22,[1]DEPORTISTAS!$A:$B,2,FALSE))","v":""},null,null,null,null,null,null,null,null,null,{"$f":"IF(U22=\"\",\"\",VLOOKUP(U22,[1]DEPORTISTAS!$A:$B,2,FALSE))","v":""},null,null,null,null,null,null,null,null,null,{"$f":"IF(AE22=\"\",\"\",VLOOKUP(AE22,[1]DEPORTISTAS!$A:$B,2,FALSE))","v":""},null,null,null,null,null,null,null,null,null,null,null,{"$f":"IF(ISERROR(VLOOKUP(K21,#REF!,2,FALSE)),\"\",VLOOKUP(K21,#REF!,2,FALSE))","v":""}]
[null,{"$f":"IF(K23=\"\",\"\",VLOOKUP(K23,[1]DEPORTISTAS!$A:$B,2,FALSE))","v":""},null,null,null,null,null,null,null,null,null,{"$f":"IF(U23=\"\",\"\",VLOOKUP(U23,[1]DEPORTISTAS!$A:$B,2,FALSE))","v":""},null,null,null,null,null,null,null,null,null,{"$f":"IF(AE23=\"\",\"\",VLOOKUP(AE23,[1]DEPORTISTAS!$A:$B,2,FALSE))","v":""}]
[null,{"$f":"IF(K24=\"\",\"\",VLOOKUP(K24,[1]DEPORTISTAS!$A:$B,2,FALSE))","v":""},null,null,null,null,null,null,null,null,null,{"$f":"IF(U24=\"\",\"\",VLOOKUP(U24,[1]DEPORTISTAS!$A:$B,2,FALSE))","v":""},null,null,null,null,null,null,null,null,null,{"$f":"IF(AE24=\"\",\"\",VLOOKUP(AE24,[1]DEPORTISTAS!$A:$B,2,FALSE))","v":""}]
[null,{"$f":"IF(K25=\"\",\"\",VLOOKUP(K25,[1]DEPORTISTAS!$A:$B,2,FALSE))","v":""},null,null,null,null,null,null,null,null,null,{"$f":"IF(U25=\"\",\"\",VLOOKUP(U25,[1]DEPORTISTAS!$A:$B,2,FALSE))","v":""},null,null,null,null,null,null,null,null,null,{"$f":"IF(AE25=\"\",\"\",VLOOKUP(AE25,[1]DEPORTISTAS!$A:$B,2,FALSE))","v":""}]
[null,{"$f":"IF(K26=\"\",\"\",VLOOKUP(K26,[1]DEPORTISTAS!$A:$B,2,FALSE))","v":""},null,null,null,null,null,null,null,null,null,{"$f":"IF(U26=\"\",\"\",VLOOKUP(U26,[1]DEPORTISTAS!$A:$B,2,FALSE))","v":""},null,null,null,null,null,null,null,null,null,{"$f":"IF(AE26=\"\",\"\",VLOOKUP(AE26,[1]DEPORTISTAS!$A:$B,2,FALSE))","v":""}]
[null,{"$f":"IF(K27=\"\",\"\",VLOOKUP(K27,[1]DEPORTISTAS!$A:$B,2,FALSE))","v":""},null,null,null,null,null,null,null,null,null,{"$f":"IF(U27=\"\",\"\",VLOOKUP(U27,[1]DEPORTISTAS!$A:$B,2,FALSE))","v":""},null,null,null,null,null,null,null,null,null,{"$f":"IF(AE27=\"\",\"\",VLOOKUP(AE27,[1]DEPORTISTAS!$A:$B,2,FALSE))","v":""}]
[null,{"$f":"IF(K28=\"\",\"\",VLOOKUP(K28,[1]DEPORTISTAS!$A:$B,2,FALSE))","v":""},null,null,null,null,null,null,null,null,null,{"$f":"IF(U28=\"\",\"\",VLOOKUP(U28,[1]DEPORTISTAS!$A:$B,2,FALSE))","v":""},null,null,null,null,null,null,null,null,null,{"$f":"IF(AE28=\"\",\"\",VLOOKUP(AE28,[1]DEPORTISTAS!$A:$B,2,FALSE))","v":""}]
[null,{"$f":"IF(K29=\"\",\"\",VLOOKUP(K29,[1]DEPORTISTAS!$A:$B,2,FALSE))","v":""},null,null,null,null,null,null,null,null,null,{"$f":"IF(U29=\"\",\"\",VLOOKUP(U29,[1]DEPORTISTAS!$A:$B,2,FALSE))","v":""},null,null,null,null,null,null,null,null,null,{"$f":"IF(AE29=\"\",\"\",VLOOKUP(AE29,[1]DEPORTISTAS!$A:$B,2,FALSE))","v":""}]
[null,{"$f":"IF(K30=\"\",\"\",VLOOKUP(K30,[1]DEPORTISTAS!$A:$B,2,FALSE))","v":""},null,null,null,null,null,null,null,null,null,{"$f":"IF(U30=\"\",\"\",VLOOKUP(U30,[1]DEPORTISTAS!$A:$B,2,FALSE))","v":""},null,null,null,null,null,null,null,null,null,{"$f":"IF(AE30=\"\",\"\",VLOOKUP(AE30,[1]DEPORTISTAS!$A:$B,2,FALSE))","v":""}]
[null,{"$f":"IF(K31=\"\",\"\",VLOOKUP(K31,[1]DEPORTISTAS!$A:$B,2,FALSE))","v":""},null,null,null,null,null,null,null,null,null,{"$f":"IF(U31=\"\",\"\",VLOOKUP(U31,[1]DEPORTISTAS!$A:$B,2,FALSE))","v":""},null,null,null,null,null,null,null,null,null,{"$f":"IF(AE31=\"\",\"\",VLOOKUP(AE31,[1]DEPORTISTAS!$A:$B,2,FALSE))","v":""}]
[null,{"$f":"IF(K32=\"\",\"\",VLOOKUP(K32,[1]DEPORTISTAS!$A:$B,2,FALSE))","v":""},null,null,null,null,null,null,null,null,null,{"$f":"IF(U32=\"\",\"\",VLOOKUP(U32,[1]DEPORTISTAS!$A:$B,2,FALSE))","v":""},null,null,null,null,null,null,null,null,null,{"$f":"IF(AE32=\"\",\"\",VLOOKUP(AE32,[1]DEPORTISTAS!$A:$B,2,FALSE))","v":""}]
[null,{"$f":"IF(K33=\"\",\"\",VLOOKUP(K33,[1]DEPORTISTAS!$A:$B,2,FALSE))","v":""},null,null,null,null,null,null,null,null,null,{"$f":"IF(U33=\"\",\"\",VLOOKUP(U33,[1]DEPORTISTAS!$A:$B,2,FALSE))","v":""},null,null,null,null,null,null,null,null,null,{"$f":"IF(AE33=\"\",\"\",VLOOKUP(AE33,[1]DEPORTISTAS!$A:$B,2,FALSE))","v":""}]
[null,{"$f":"IF(K34=\"\",\"\",VLOOKUP(K34,[1]DEPORTISTAS!$A:$B,2,FALSE))","v":""},null,null,null,null,null,null,null,null,null,{"$f":"IF(U34=\"\",\"\",VLOOKUP(U34,[1]DEPORTISTAS!$A:$B,2,FALSE))","v":""},null,null,null,null,null,null,null,null,null,{"$f":"IF(AE34=\"\",\"\",VLOOKUP(AE34,[1]DEPORTISTAS!$A:$B,2,FALSE))","v":""}]
[]
["(1)","A OMPLIR PER LA FEDERACIÓ",null,null,null,null,null,null,null,null,null,null,null,"Segell",null,null,null,null,null,null,null,null,null,"El Secretari del Club"]

{"sheet":"2ª C (dtas)","index":5,"n_rows":36,"n_cols":34,"rows_kept":36,"cut":false,"hidden":true,"merged":[[35,13,35,17],[32,1,32,9],[32,11,32,19],[32,21,32,29],[33,1,33,9],[33,11,33,19],[33,21,33,29],[30,1,30,9],[30,11,30,19],[30,21,30,29],[31,1,31,9],[31,11,31,19],[31,21,31,29],[28,1,28,9],[28,11,28,19],[28,21,28,29],[29,1,29,9],[29,11,29,19],[29,21,29,29],[26,1,26,9],[26,11,26,19],[26,21,26,29],[27,1,27,9],[27,11,27,19],[27,21,27,29],[24,1,24,9],[24,11,24,19],[24,21,24,29],[25,1,25,9],[25,11,25,19],[25,21,25,29],[22,1,22,9],[22,11,22,19],[22,21,22,29],[23,1,23,9],[23,11,23,19],[23,21,23,29],[20,1,20,9],[20,11,20,19],[20,21,20,29],[21,1,21,9],[21,11,21,19],[21,21,21,29],[17,0,17,1],[17,2,17,14],[17,16,17,19],[17,20,17,30],[19,1,19,9],[19,11,19,19],[19,21,19,29],[4,5,4,19],[4,27,4,28],[10,25,11,26],[10,27,11,30],[12,20,13,23],[12,25,13,26],[12,27,13,30],[6,0,16,2],[6,18,14,19],[6,25,7,26],[6,27,7,30],[8,20,9,22],[8,25,9,26],[8,27,9,30],[10,20,11,23],[14,20,15,23],[14,25,15,26],[14,27,15,30]]}
[]
[null,null,"Federació Catalana de Petanca"]
[null,null,"Rambla Guipúscoa, 23-25. 3er. Of. D i E - Tel. 93 268 00 48  - 08018 BARCELONA"]
[]
["                      Nom del Club",null,null,null,null,"   CLUB PETANCA PRAT  \" C \"",null,null,null,null,null,null,null,null,null,null,null,null,null,null,null,null,null,null,"Núm club:",null,null,9]
[]
["per participar en ",null,null,"Opens",null,null,null,null,null,null,null,null,null,null,null,null,null,null,"Lliga"]
[]
[null,null,null,"Campionat de Catalunya de Clubs Tripletes",null,null,null,null,null,null,null,null,null,null,null,null,null,null,null,null,"Lliga Masculina",null,null,null,null,"Divisió"]
[]
[null,null,null,"Campionat de Catalunya de Clubs Dobletes",null,null,null,null,null,null,null,null,null,null,"X",null,null,null,null,null,"Lliga Femenina",null,null,null,null,"Divisió"]
[]
[null,null,null,"Campionat de Catalunya Individual",null,null,null,null,null,null,null,null,null,null,null,null,null,null,null,null,"División Honor",null,null,null,null,"Divisió"]
[]
[null,null,null,"Campionat de Catalunya Individual  (tir)"]
[]
[]
["Categoria",null,"SEGUNDA MASCULINA",null,null,null,null,null,null,null,null,null,null,null,null,null,"Observacions",null,null,null,"        JUAN A. GARCIA CUADRADO  -   615240490"]
[]
["(1)","CAPITÀ",null,null,null,null,null,null,null,null,"Número Llicencia","JUGADOR",null,null,null,null,null,null,null,null,"Número Llicencia","JUGADOR",null,null,null,null,null,null,null,null,"Número Llicencia"]
[null,{"$f":"IF(K21=\"\",\"\",VLOOKUP(K21,[1]DEPORTISTAS!$A:$B,2,FALSE))","v":""},null,null,null,null,null,null,null,null,null,{"$f":"IF(U21=\"\",\"\",VLOOKUP(U21,[1]DEPORTISTAS!$A:$B,2,FALSE))","v":""},null,null,null,null,null,null,null,null,null,{"$f":"IF(AE21=\"\",\"\",VLOOKUP(AE21,[1]DEPORTISTAS!$A:$B,2,FALSE))","v":""}]
[null,{"$f":"IF(K22=\"\",\"\",VLOOKUP(K22,[1]DEPORTISTAS!$A:$B,2,FALSE))","v":""},null,null,null,null,null,null,null,null,null,{"$f":"IF(U22=\"\",\"\",VLOOKUP(U22,[1]DEPORTISTAS!$A:$B,2,FALSE))","v":""},null,null,null,null,null,null,null,null,null,{"$f":"IF(AE22=\"\",\"\",VLOOKUP(AE22,[1]DEPORTISTAS!$A:$B,2,FALSE))","v":""},null,null,null,null,null,null,null,null,null,null,null,{"$f":"IF(ISERROR(VLOOKUP(K21,#REF!,2,FALSE)),\"\",VLOOKUP(K21,#REF!,2,FALSE))","v":""}]
[null,{"$f":"IF(K23=\"\",\"\",VLOOKUP(K23,[1]DEPORTISTAS!$A:$B,2,FALSE))","v":""},null,null,null,null,null,null,null,null,null,{"$f":"IF(U23=\"\",\"\",VLOOKUP(U23,[1]DEPORTISTAS!$A:$B,2,FALSE))","v":""},null,null,null,null,null,null,null,null,null,{"$f":"IF(AE23=\"\",\"\",VLOOKUP(AE23,[1]DEPORTISTAS!$A:$B,2,FALSE))","v":""}]
[null,{"$f":"IF(K24=\"\",\"\",VLOOKUP(K24,[1]DEPORTISTAS!$A:$B,2,FALSE))","v":""},null,null,null,null,null,null,null,null,null,{"$f":"IF(U24=\"\",\"\",VLOOKUP(U24,[1]DEPORTISTAS!$A:$B,2,FALSE))","v":""},null,null,null,null,null,null,null,null,null,{"$f":"IF(AE24=\"\",\"\",VLOOKUP(AE24,[1]DEPORTISTAS!$A:$B,2,FALSE))","v":""}]
[null,{"$f":"IF(K25=\"\",\"\",VLOOKUP(K25,[1]DEPORTISTAS!$A:$B,2,FALSE))","v":""},null,null,null,null,null,null,null,null,null,{"$f":"IF(U25=\"\",\"\",VLOOKUP(U25,[1]DEPORTISTAS!$A:$B,2,FALSE))","v":""},null,null,null,null,null,null,null,null,null,{"$f":"IF(AE25=\"\",\"\",VLOOKUP(AE25,[1]DEPORTISTAS!$A:$B,2,FALSE))","v":""}]
[null,{"$f":"IF(K26=\"\",\"\",VLOOKUP(K26,[1]DEPORTISTAS!$A:$B,2,FALSE))","v":""},null,null,null,null,null,null,null,null,null,{"$f":"IF(U26=\"\",\"\",VLOOKUP(U26,[1]DEPORTISTAS!$A:$B,2,FALSE))","v":""},null,null,null,null,null,null,null,null,null,{"$f":"IF(AE26=\"\",\"\",VLOOKUP(AE26,[1]DEPORTISTAS!$A:$B,2,FALSE))","v":""}]
[null,{"$f":"IF(K27=\"\",\"\",VLOOKUP(K27,[1]DEPORTISTAS!$A:$B,2,FALSE))","v":""},null,null,null,null,null,null,null,null,null,{"$f":"IF(U27=\"\",\"\",VLOOKUP(U27,[1]DEPORTISTAS!$A:$B,2,FALSE))","v":""},null,null,null,null,null,null,null,null,null,{"$f":"IF(AE27=\"\",\"\",VLOOKUP(AE27,[1]DEPORTISTAS!$A:$B,2,FALSE))","v":""}]
[null,{"$f":"IF(K28=\"\",\"\",VLOOKUP(K28,[1]DEPORTISTAS!$A:$B,2,FALSE))","v":""},null,null,null,null,null,null,null,null,null,{"$f":"IF(U28=\"\",\"\",VLOOKUP(U28,[1]DEPORTISTAS!$A:$B,2,FALSE))","v":""},null,null,null,null,null,null,null,null,null,{"$f":"IF(AE28=\"\",\"\",VLOOKUP(AE28,[1]DEPORTISTAS!$A:$B,2,FALSE))","v":""}]
[null,{"$f":"IF(K29=\"\",\"\",VLOOKUP(K29,[1]DEPORTISTAS!$A:$B,2,FALSE))","v":""},null,null,null,null,null,null,null,null,null,{"$f":"IF(U29=\"\",\"\",VLOOKUP(U29,[1]DEPORTISTAS!$A:$B,2,FALSE))","v":""},null,null,null,null,null,null,null,null,null,{"$f":"IF(AE29=\"\",\"\",VLOOKUP(AE29,[1]DEPORTISTAS!$A:$B,2,FALSE))","v":""}]
[null,{"$f":"IF(K30=\"\",\"\",VLOOKUP(K30,[1]DEPORTISTAS!$A:$B,2,FALSE))","v":""},null,null,null,null,null,null,null,null,null,{"$f":"IF(U30=\"\",\"\",VLOOKUP(U30,[1]DEPORTISTAS!$A:$B,2,FALSE))","v":""},null,null,null,null,null,null,null,null,null,{"$f":"IF(AE30=\"\",\"\",VLOOKUP(AE30,[1]DEPORTISTAS!$A:$B,2,FALSE))","v":""}]
[null,{"$f":"IF(K31=\"\",\"\",VLOOKUP(K31,[1]DEPORTISTAS!$A:$B,2,FALSE))","v":""},null,null,null,null,null,null,null,null,null,{"$f":"IF(U31=\"\",\"\",VLOOKUP(U31,[1]DEPORTISTAS!$A:$B,2,FALSE))","v":""},null,null,null,null,null,null,null,null,null,{"$f":"IF(AE31=\"\",\"\",VLOOKUP(AE31,[1]DEPORTISTAS!$A:$B,2,FALSE))","v":""}]
[null,{"$f":"IF(K32=\"\",\"\",VLOOKUP(K32,[1]DEPORTISTAS!$A:$B,2,FALSE))","v":""},null,null,null,null,null,null,null,null,null,{"$f":"IF(U32=\"\",\"\",VLOOKUP(U32,[1]DEPORTISTAS!$A:$B,2,FALSE))","v":""},null,null,null,null,null,null,null,null,null,{"$f":"IF(AE32=\"\",\"\",VLOOKUP(AE32,[1]DEPORTISTAS!$A:$B,2,FALSE))","v":""}]
[null,{"$f":"IF(K33=\"\",\"\",VLOOKUP(K33,[1]DEPORTISTAS!$A:$B,2,FALSE))","v":""},null,null,null,null,null,null,null,null,null,{"$f":"IF(U33=\"\",\"\",VLOOKUP(U33,[1]DEPORTISTAS!$A:$B,2,FALSE))","v":""},null,null,null,null,null,null,null,null,null,{"$f":"IF(AE33=\"\",\"\",VLOOKUP(AE33,[1]DEPORTISTAS!$A:$B,2,FALSE))","v":""}]
[null,{"$f":"IF(K34=\"\",\"\",VLOOKUP(K34,[1]DEPORTISTAS!$A:$B,2,FALSE))","v":""},null,null,null,null,null,null,null,null,null,{"$f":"IF(U34=\"\",\"\",VLOOKUP(U34,[1]DEPORTISTAS!$A:$B,2,FALSE))","v":""},null,null,null,null,null,null,null,null,null,{"$f":"IF(AE34=\"\",\"\",VLOOKUP(AE34,[1]DEPORTISTAS!$A:$B,2,FALSE))","v":""}]
[]
["(1)","A OMPLIR PER LA FEDERACIÓ",null,null,null,null,null,null,null,null,null,null,null,"Segell",null,null,null,null,null,null,null,null,null,"El Secretari del Club"]

{"sheet":"2ª C (indiv.)","index":6,"n_rows":36,"n_cols":34,"rows_kept":36,"cut":false,"hidden":true,"merged":[[35,13,35,17],[32,1,32,9],[32,11,32,19],[32,21,32,29],[33,1,33,9],[33,11,33,19],[33,21,33,29],[30,1,30,9],[30,11,30,19],[30,21,30,29],[31,1,31,9],[31,11,31,19],[31,21,31,29],[28,1,28,9],[28,11,28,19],[28,21,28,29],[29,1,29,9],[29,11,29,19],[29,21,29,29],[26,1,26,9],[26,11,26,19],[26,21,26,29],[27,1,27,9],[27,11,27,19],[27,21,27,29],[24,1,24,9],[24,11,24,19],[24,21,24,29],[25,1,25,9],[25,11,25,19],[25,21,25,29],[22,1,22,9],[22,11,22,19],[22,21,22,29],[23,1,23,9],[23,11,23,19],[23,21,23,29],[20,1,20,9],[20,11,20,19],[20,21,20,29],[21,1,21,9],[21,11,21,19],[21,21,21,29],[17,0,17,1],[17,2,17,14],[17,16,17,19],[17,20,17,30],[19,1,19,9],[19,11,19,19],[19,21,19,29],[4,5,4,19],[4,27,4,28],[10,25,11,26],[10,27,11,30],[12,20,13,23],[12,25,13,26],[12,27,13,30],[6,0,16,2],[6,18,14,19],[6,25,7,26],[6,27,7,30],[8,20,9,22],[8,25,9,26],[8,27,9,30],[10,20,11,23],[14,20,15,23],[14,25,15,26],[14,27,15,30]]}
[]
[null,null,"Federació Catalana de Petanca"]
[null,null,"Rambla Guipúscoa, 23-25. 3er. Of. D i E - Tel. 93 268 00 48  - 08018 BARCELONA"]
[]
["                      Nom del Club",null,null,null,null,"   CLUB PETANCA PRAT  \" C \"",null,null,null,null,null,null,null,null,null,null,null,null,null,null,null,null,null,null,"Núm club:",null,null,9]
[]
["per participar en ",null,null,"Opens",null,null,null,null,null,null,null,null,null,null,null,null,null,null,"Lliga"]
[]
[null,null,null,"Campionat de Catalunya de Clubs Tripletes",null,null,null,null,null,null,null,null,null,null,null,null,null,null,null,null,"Lliga Masculina",null,null,null,null,"Divisió"]
[]
[null,null,null,"Campionat de Catalunya de Clubs Dobletes",null,null,null,null,null,null,null,null,null,null,null,null,null,null,null,null,"Lliga Femenina",null,null,null,null,"Divisió"]
[]
[null,null,null,"Campionat de Catalunya Individual",null,null,null,null,null,null,null,null,null,null,"X",null,null,null,null,null,"División Honor",null,null,null,null,"Divisió"]
[]
[null,null,null,"Campionat de Catalunya Individual  (tir)"]
[]
[]
["Categoria",null,"MASCULINA HOMOLOGADA",null,null,null,null,null,null,null,null,null,null,null,null,null,"Observacions",null,null,null,"        JUAN A. GARCIA CUADRADO  -   615240490"]
[]
["(1)","CAPITÀ",null,null,null,null,null,null,null,null,"Número Llicencia","JUGADOR",null,null,null,null,null,null,null,null,"Número Llicencia","JUGADOR",null,null,null,null,null,null,null,null,"Número Llicencia"]
[null,{"$f":"IF(K21=\"\",\"\",VLOOKUP(K21,[1]DEPORTISTAS!$A:$B,2,FALSE))","v":""},null,null,null,null,null,null,null,null,null,{"$f":"IF(U21=\"\",\"\",VLOOKUP(U21,[1]DEPORTISTAS!$A:$B,2,FALSE))","v":""},null,null,null,null,null,null,null,null,null,{"$f":"IF(AE21=\"\",\"\",VLOOKUP(AE21,[1]DEPORTISTAS!$A:$B,2,FALSE))","v":""}]
[null,{"$f":"IF(K22=\"\",\"\",VLOOKUP(K22,[1]DEPORTISTAS!$A:$B,2,FALSE))","v":""},null,null,null,null,null,null,null,null,null,{"$f":"IF(U22=\"\",\"\",VLOOKUP(U22,[1]DEPORTISTAS!$A:$B,2,FALSE))","v":""},null,null,null,null,null,null,null,null,null,{"$f":"IF(AE22=\"\",\"\",VLOOKUP(AE22,[1]DEPORTISTAS!$A:$B,2,FALSE))","v":""},null,null,null,null,null,null,null,null,null,null,null,{"$f":"IF(ISERROR(VLOOKUP(K21,#REF!,2,FALSE)),\"\",VLOOKUP(K21,#REF!,2,FALSE))","v":""}]
[null,{"$f":"IF(K23=\"\",\"\",VLOOKUP(K23,[1]DEPORTISTAS!$A:$B,2,FALSE))","v":""},null,null,null,null,null,null,null,null,null,{"$f":"IF(U23=\"\",\"\",VLOOKUP(U23,[1]DEPORTISTAS!$A:$B,2,FALSE))","v":""},null,null,null,null,null,null,null,null,null,{"$f":"IF(AE23=\"\",\"\",VLOOKUP(AE23,[1]DEPORTISTAS!$A:$B,2,FALSE))","v":""}]
[null,{"$f":"IF(K24=\"\",\"\",VLOOKUP(K24,[1]DEPORTISTAS!$A:$B,2,FALSE))","v":""},null,null,null,null,null,null,null,null,null,{"$f":"IF(U24=\"\",\"\",VLOOKUP(U24,[1]DEPORTISTAS!$A:$B,2,FALSE))","v":""},null,null,null,null,null,null,null,null,null,{"$f":"IF(AE24=\"\",\"\",VLOOKUP(AE24,[1]DEPORTISTAS!$A:$B,2,FALSE))","v":""}]
[null,{"$f":"IF(K25=\"\",\"\",VLOOKUP(K25,[1]DEPORTISTAS!$A:$B,2,FALSE))","v":""},null,null,null,null,null,null,null,null,null,{"$f":"IF(U25=\"\",\"\",VLOOKUP(U25,[1]DEPORTISTAS!$A:$B,2,FALSE))","v":""},null,null,null,null,null,null,null,null,null,{"$f":"IF(AE25=\"\",\"\",VLOOKUP(AE25,[1]DEPORTISTAS!$A:$B,2,FALSE))","v":""}]
[null,{"$f":"IF(K26=\"\",\"\",VLOOKUP(K26,[1]DEPORTISTAS!$A:$B,2,FALSE))","v":""},null,null,null,null,null,null,null,null,null,{"$f":"IF(U26=\"\",\"\",VLOOKUP(U26,[1]DEPORTISTAS!$A:$B,2,FALSE))","v":""},null,null,null,null,null,null,null,null,null,{"$f":"IF(AE26=\"\",\"\",VLOOKUP(AE26,[1]DEPORTISTAS!$A:$B,2,FALSE))","v":""}]
[null,{"$f":"IF(K27=\"\",\"\",VLOOKUP(K27,[1]DEPORTISTAS!$A:$B,2,FALSE))","v":""},null,null,null,null,null,null,null,null,null,{"$f":"IF(U27=\"\",\"\",VLOOKUP(U27,[1]DEPORTISTAS!$A:$B,2,FALSE))","v":""},null,null,null,null,null,null,null,null,null,{"$f":"IF(AE27=\"\",\"\",VLOOKUP(AE27,[1]DEPORTISTAS!$A:$B,2,FALSE))","v":""}]
[null,{"$f":"IF(K28=\"\",\"\",VLOOKUP(K28,[1]DEPORTISTAS!$A:$B,2,FALSE))","v":""},null,null,null,null,null,null,null,null,null,{"$f":"IF(U28=\"\",\"\",VLOOKUP(U28,[1]DEPORTISTAS!$A:$B,2,FALSE))","v":""},null,null,null,null,null,null,null,null,null,{"$f":"IF(AE28=\"\",\"\",VLOOKUP(AE28,[1]DEPORTISTAS!$A:$B,2,FALSE))","v":""}]
[null,{"$f":"IF(K29=\"\",\"\",VLOOKUP(K29,[1]DEPORTISTAS!$A:$B,2,FALSE))","v":""},null,null,null,null,null,null,null,null,null,{"$f":"IF(U29=\"\",\"\",VLOOKUP(U29,[1]DEPORTISTAS!$A:$B,2,FALSE))","v":""},null,null,null,null,null,null,null,null,null,{"$f":"IF(AE29=\"\",\"\",VLOOKUP(AE29,[1]DEPORTISTAS!$A:$B,2,FALSE))","v":""}]
[null,{"$f":"IF(K30=\"\",\"\",VLOOKUP(K30,[1]DEPORTISTAS!$A:$B,2,FALSE))","v":""},null,null,null,null,null,null,null,null,null,{"$f":"IF(U30=\"\",\"\",VLOOKUP(U30,[1]DEPORTISTAS!$A:$B,2,FALSE))","v":""},null,null,null,null,null,null,null,null,null,{"$f":"IF(AE30=\"\",\"\",VLOOKUP(AE30,[1]DEPORTISTAS!$A:$B,2,FALSE))","v":""}]
[null,{"$f":"IF(K31=\"\",\"\",VLOOKUP(K31,[1]DEPORTISTAS!$A:$B,2,FALSE))","v":""},null,null,null,null,null,null,null,null,null,{"$f":"IF(U31=\"\",\"\",VLOOKUP(U31,[1]DEPORTISTAS!$A:$B,2,FALSE))","v":""},null,null,null,null,null,null,null,null,null,{"$f":"IF(AE31=\"\",\"\",VLOOKUP(AE31,[1]DEPORTISTAS!$A:$B,2,FALSE))","v":""}]
[null,{"$f":"IF(K32=\"\",\"\",VLOOKUP(K32,[1]DEPORTISTAS!$A:$B,2,FALSE))","v":""},null,null,null,null,null,null,null,null,null,{"$f":"IF(U32=\"\",\"\",VLOOKUP(U32,[1]DEPORTISTAS!$A:$B,2,FALSE))","v":""},null,null,null,null,null,null,null,null,null,{"$f":"IF(AE32=\"\",\"\",VLOOKUP(AE32,[1]DEPORTISTAS!$A:$B,2,FALSE))","v":""}]
[null,{"$f":"IF(K33=\"\",\"\",VLOOKUP(K33,[1]DEPORTISTAS!$A:$B,2,FALSE))","v":""},null,null,null,null,null,null,null,null,null,{"$f":"IF(U33=\"\",\"\",VLOOKUP(U33,[1]DEPORTISTAS!$A:$B,2,FALSE))","v":""},null,null,null,null,null,null,null,null,null,{"$f":"IF(AE33=\"\",\"\",VLOOKUP(AE33,[1]DEPORTISTAS!$A:$B,2,FALSE))","v":""}]
[null,{"$f":"IF(K34=\"\",\"\",VLOOKUP(K34,[1]DEPORTISTAS!$A:$B,2,FALSE))","v":""},null,null,null,null,null,null,null,null,null,{"$f":"IF(U34=\"\",\"\",VLOOKUP(U34,[1]DEPORTISTAS!$A:$B,2,FALSE))","v":""},null,null,null,null,null,null,null,null,null,{"$f":"IF(AE34=\"\",\"\",VLOOKUP(AE34,[1]DEPORTISTAS!$A:$B,2,FALSE))","v":""}]
[]
["(1)","A OMPLIR PER LA FEDERACIÓ",null,null,null,null,null,null,null,null,null,null,null,"Segell",null,null,null,null,null,null,null,null,null,"El Secretari del Club"]

{"sheet":"4ª D","index":7,"n_rows":36,"n_cols":31,"rows_kept":36,"cut":false,"hidden":true,"merged":[[6,0,16,2],[6,18,14,19],[6,25,7,26],[6,27,7,30],[8,20,9,22],[8,25,9,26],[8,27,9,30],[10,20,11,23],[14,20,15,23],[14,25,15,26],[14,27,15,30],[4,5,4,19],[4,27,4,28],[10,25,11,26],[10,27,11,30],[12,20,13,23],[12,25,13,26],[12,27,13,30],[19,1,19,9],[19,11,19,19],[19,21,19,29],[17,20,17,30],[17,16,17,19],[17,0,17,1],[17,2,17,14],[18,1,18,30],[20,1,20,9],[20,11,20,19],[20,21,20,29],[21,1,21,9],[21,11,21,19],[21,21,21,29],[22,1,22,9],[22,11,22,19],[22,21,22,29],[23,1,23,9],[23,11,23,19],[23,21,23,29],[24,1,24,9],[24,11,24,19],[24,21,24,29],[25,1,25,9],[25,11,25,19],[25,21,25,29],[28,21,28,29],[29,1,29,9],[29,11,29,19],[29,21,29,29],[26,1,26,9],[26,11,26,19],[26,21,26,29],[27,1,27,9],[27,11,27,19],[27,21,27,29],[22,44,22,52],[35,13,35,17],[32,1,32,9],[32,11,32,19],[32,21,32,29],[33,1,33,9],[33,11,33,19],[33,21,33,29],[30,1,30,9],[30,11,30,19],[30,21,30,29],[31,1,31,9],[31,11,31,19],[31,21,31,29],[28,1,28,9],[28,11,28,19]]}
[]
[null,null,"Federació Catalana de Petanca"]
[null,null,"Rambla Guipúscoa, 23-25. 3er. Of. D i E - Tel. 93 268 00 48  - 08018 BARCELONA"]
[]
["                      Nom del Club",null,null,null,null,"   CLUB PETANCA PRAT  \" D \"",null,null,null,null,null,null,null,null,null,null,null,null,null,null,null,null,null,null,"Núm club:",null,null,9]
[]
["per participar en ",null,null,"Opens",null,null,null,null,null,null,null,null,null,null,null,null,null,null,"Lliga"]
[]
[null,null,null,"Campionat de Catalunya de Clubs Tripletes",null,null,null,null,null,null,null,null,null,null,null,null,null,null,null,null,"Lliga Masculina",null,null,null,"X","Divisió",null,"4ª D"]
[]
[null,null,null,"Campionat de Catalunya de Clubs Dobletes",null,null,null,null,null,null,null,null,null,null,null,null,null,null,null,null,"Lliga Femenina",null,null,null,null,"Divisió"]
[]
[null,null,null,"Campionat de Catalunya Individual",null,null,null,null,null,null,null,null,null,null,null,null,null,null,null,null,"División Honor",null,null,null,null,"Divisió"]
[]
[null,null,null,"Campionat de Catalunya Individual  (tir)"]
[]
[]
["Categoria",null,"MASCULINA",null,null,null,null,null,null,null,null,null,null,null,null,null,"Observacions",null,null,null,"        JUAN A. GARCIA CUADRADO  -   615240490"]
[null,"COINCIDIR  LOS  GRUPOS   \" D  Y  C \""]
["(1)","CAPITÀ",null,null,null,null,null,null,null,null,"Número Llicencia","JUGADOR",null,null,null,null,null,null,null,null,"Número Llicencia","JUGADOR",null,null,null,null,null,null,null,null,"Número Llicencia"]
[null,{"$f":"IF(K21=\"\",\"\",VLOOKUP(K21,[1]DEPORTISTAS!$A:$B,2,FALSE))","v":"ISIDRO SORIA SANDOVAL"},null,null,null,null,null,null,null,null,4099,{"$f":"IF(U21=\"\",\"\",VLOOKUP(U21,[1]DEPORTISTAS!$A:$B,2,FALSE))","v":"OSCAR GOMEZ CABEZON"},null,null,null,null,null,null,null,null,3250,{"$f":"IF(AE21=\"\",\"\",VLOOKUP(AE21,[1]DEPORTISTAS!$A:$B,2,FALSE))","v":""}]
[null,{"$f":"IF(K22=\"\",\"\",VLOOKUP(K22,[1]DEPORTISTAS!$A:$B,2,FALSE))","v":"CANDIDO ROBLES MARTIN"},null,null,null,null,null,null,null,null,31146,{"$f":"IF(U22=\"\",\"\",VLOOKUP(U22,[1]DEPORTISTAS!$A:$B,2,FALSE))","v":"JUAN JOSE DURAN BONILLA"},null,null,null,null,null,null,null,null,40014,{"$f":"IF(AE22=\"\",\"\",VLOOKUP(AE22,[1]DEPORTISTAS!$A:$B,2,FALSE))","v":""}]
[null,{"$f":"IF(K23=\"\",\"\",VLOOKUP(K23,[1]DEPORTISTAS!$A:$B,2,FALSE))","v":"MANUEL PEREZ CORTES"},null,null,null,null,null,null,null,null,13483,{"$f":"IF(U23=\"\",\"\",VLOOKUP(U23,[1]DEPORTISTAS!$A:$B,2,FALSE))","v":"JOSE ROMERO MOLINA"},null,null,null,null,null,null,null,null,13435,{"$f":"IF(AE23=\"\",\"\",VLOOKUP(AE23,[1]DEPORTISTAS!$A:$B,2,FALSE))","v":""}]
[null,{"$f":"IF(K24=\"\",\"\",VLOOKUP(K24,[1]DEPORTISTAS!$A:$B,2,FALSE))","v":"PAULO PEREZ MARTIN"},null,null,null,null,null,null,null,null,984,{"$f":"IF(U24=\"\",\"\",VLOOKUP(U24,[1]DEPORTISTAS!$A:$B,2,FALSE))","v":"AUGUSTO RASERO SANCHEZ"},null,null,null,null,null,null,null,null,974,{"$f":"IF(AE24=\"\",\"\",VLOOKUP(AE24,[1]DEPORTISTAS!$A:$B,2,FALSE))","v":""}]
[null,{"$f":"IF(K25=\"\",\"\",VLOOKUP(K25,[1]DEPORTISTAS!$A:$B,2,FALSE))","v":"JOSE ANTONIO MARTIN ALONSO"},null,null,null,null,null,null,null,null,14461,{"$f":"IF(U25=\"\",\"\",VLOOKUP(U25,[1]DEPORTISTAS!$A:$B,2,FALSE))","v":"ANTONIO VILCHEZ ESPIGARES"},null,null,null,null,null,null,null,null,28999,{"$f":"IF(AE25=\"\",\"\",VLOOKUP(AE25,[1]DEPORTISTAS!$A:$B,2,FALSE))","v":""}]
[null,{"$f":"IF(K26=\"\",\"\",VLOOKUP(K26,[1]DEPORTISTAS!$A:$B,2,FALSE))","v":"MANUEL DIAZ GARROCHO"},null,null,null,null,null,null,null,null,38855,{"$f":"IF(U26=\"\",\"\",VLOOKUP(U26,[1]DEPORTISTAS!$A:$B,2,FALSE))","v":"ALFONSO SANCHEZ DEL CORRAL"},null,null,null,null,null,null,null,null,18611,{"$f":"IF(AE26=\"\",\"\",VLOOKUP(AE26,[1]DEPORTISTAS!$A:$B,2,FALSE))","v":""}]
[null,{"$f":"IF(K27=\"\",\"\",VLOOKUP(K27,[1]DEPORTISTAS!$A:$B,2,FALSE))","v":"JUAN FEMENIAS BOSCH"},null,null,null,null,null,null,null,null,11599,{"$f":"IF(U27=\"\",\"\",VLOOKUP(U27,[1]DEPORTISTAS!$A:$B,2,FALSE))","v":""},null,null,null,null,null,null,null,null,null,{"$f":"IF(AE27=\"\",\"\",VLOOKUP(AE27,[1]DEPORTISTAS!$A:$B,2,FALSE))","v":""}]
[null,{"$f":"IF(K28=\"\",\"\",VLOOKUP(K28,[1]DEPORTISTAS!$A:$B,2,FALSE))","v":"RAMON SALVADO NUÑEZ"},null,null,null,null,null,null,null,null,8677,{"$f":"IF(U28=\"\",\"\",VLOOKUP(U28,[1]DEPORTISTAS!$A:$B,2,FALSE))","v":""},null,null,null,null,null,null,null,null,null,{"$f":"IF(AE28=\"\",\"\",VLOOKUP(AE28,[1]DEPORTISTAS!$A:$B,2,FALSE))","v":""}]
[null,{"$f":"IF(K29=\"\",\"\",VLOOKUP(K29,[1]DEPORTISTAS!$A:$B,2,FALSE))","v":"ALFONSO CANO FUENTES"},null,null,null,null,null,null,null,null,9452,{"$f":"IF(U29=\"\",\"\",VLOOKUP(U29,[1]DEPORTISTAS!$A:$B,2,FALSE))","v":""},null,null,null,null,null,null,null,null,null,{"$f":"IF(AE29=\"\",\"\",VLOOKUP(AE29,[1]DEPORTISTAS!$A:$B,2,FALSE))","v":""}]
[null,{"$f":"IF(K30=\"\",\"\",VLOOKUP(K30,[1]DEPORTISTAS!$A:$B,2,FALSE))","v":"ANTONIO ALVAREZ GERUNDE"},null,null,null,null,null,null,null,null,28570,{"$f":"IF(U30=\"\",\"\",VLOOKUP(U30,[1]DEPORTISTAS!$A:$B,2,FALSE))","v":""},null,null,null,null,null,null,null,null,null,{"$f":"IF(AE30=\"\",\"\",VLOOKUP(AE30,[1]DEPORTISTAS!$A:$B,2,FALSE))","v":""}]
[null,{"$f":"IF(K31=\"\",\"\",VLOOKUP(K31,[1]DEPORTISTAS!$A:$B,2,FALSE))","v":"JUAN JOSE ESPONA MARTINEZ"},null,null,null,null,null,null,null,null,22834,{"$f":"IF(U31=\"\",\"\",VLOOKUP(U31,[1]DEPORTISTAS!$A:$B,2,FALSE))","v":""},null,null,null,null,null,null,null,null,null,"COMODINES"]
[null,{"$f":"IF(K32=\"\",\"\",VLOOKUP(K32,[1]DEPORTISTAS!$A:$B,2,FALSE))","v":"ENRIQUE GOMEZ DANCAUSA"},null,null,null,null,null,null,null,null,32366,{"$f":"IF(U32=\"\",\"\",VLOOKUP(U32,[1]DEPORTISTAS!$A:$B,2,FALSE))","v":""},null,null,null,null,null,null,null,null,null,{"$f":"IF(AE32=\"\",\"\",VLOOKUP(AE32,[1]DEPORTISTAS!$A:$B,2,FALSE))","v":"OSCAR GOMEZ CABEZON"},null,null,null,null,null,null,null,null,3250]
[null,{"$f":"IF(K33=\"\",\"\",VLOOKUP(K33,[1]DEPORTISTAS!$A:$B,2,FALSE))","v":"JUAN GARCIA GRANERO"},null,null,null,null,null,null,null,null,27281,null,null,null,null,null,null,null,null,null,null,{"$f":"IF(AE33=\"\",\"\",VLOOKUP(AE33,[1]DEPORTISTAS!$A:$B,2,FALSE))","v":"MANUEL PEREZ CORTES"},null,null,null,null,null,null,null,null,13483]
[null,{"$f":"IF(K34=\"\",\"\",VLOOKUP(K34,[1]DEPORTISTAS!$A:$B,2,FALSE))","v":"MANUEL NAVARRO RUEDAS"},null,null,null,null,null,null,null,null,8667,{"$f":"IF(U34=\"\",\"\",VLOOKUP(U34,[1]DEPORTISTAS!$A:$B,2,FALSE))","v":""},null,null,null,null,null,null,null,null,null,{"$f":"IF(AE34=\"\",\"\",VLOOKUP(AE34,[1]DEPORTISTAS!$A:$B,2,FALSE))","v":"JUAN FEMENIAS BOSCH"},null,null,null,null,null,null,null,null,11599]
[]
["(1)","A OMPLIR PER LA FEDERACIÓ",null,null,null,null,null,null,null,null,null,null,null,"Segell",null,null,null,null,null,null,null,null,null,"El Secretari del Club"]

{"sheet":"1ª.(fase pvia)","index":8,"n_rows":36,"n_cols":34,"rows_kept":36,"cut":false,"hidden":true,"merged":[[33,1,33,9],[33,11,33,19],[33,21,33,29],[35,13,35,17],[20,21,20,29],[31,1,31,9],[31,11,31,19],[31,21,31,29],[32,1,32,9],[32,11,32,19],[32,21,32,29],[29,1,29,9],[29,11,29,19],[29,21,29,29],[30,1,30,9],[30,11,30,19],[30,21,30,29],[27,1,27,9],[27,11,27,19],[27,21,27,29],[28,1,28,9],[28,11,28,19],[28,21,28,29],[25,1,25,9],[25,11,25,19],[25,21,25,29],[26,1,26,9],[26,11,26,19],[26,21,26,29],[23,1,23,9],[23,11,23,19],[23,21,23,29],[24,1,24,9],[24,11,24,19],[24,21,24,29],[22,1,22,9],[22,11,22,19],[22,21,22,29],[17,0,17,1],[17,2,17,14],[17,16,17,19],[17,20,17,30],[19,1,19,9],[19,11,19,19],[19,21,19,29],[20,1,20,9],[20,11,20,19],[21,1,21,9],[21,11,21,19],[21,21,21,29],[4,5,4,19],[4,27,4,28],[10,25,11,26],[10,27,11,30],[12,20,13,23],[12,25,13,26],[12,27,13,30],[6,0,16,2],[6,18,14,19],[6,25,7,26],[6,27,7,30],[8,20,9,22],[8,25,9,26],[8,27,9,30],[10,20,11,23],[14,20,15,23],[14,25,15,26],[14,27,15,30]]}
[]
[null,null,"Federació Catalana de Petanca"]
[null,null,"Rambla Guipúscoa, 23-25. 3er. Of. D i E - Tel. 93 268 00 48  - 08018 BARCELONA"]
[]
["                      Nom del Club",null,null,null,null,"   CLUB PETANCA PRAT  ",null,null,null,null,null,null,null,null,null,null,null,null,null,null,null,null,null,null,"Núm club:",null,null,9]
[]
["per participar en ",null,null,"Opens",null,null,null,null,null,null,null,null,null,null,null,null,null,null,"Lliga"]
[]
[null,null,null,"Campionat de Catalunya de Clubs Tripletes",null,null,null,null,null,null,null,null,null,null,"X",null,null,null,null,null,"Lliga Masculina",null,null,null,null,"Divisió"]
[]
[null,null,null,"Campionat de Catalunya de Clubs Dobletes",null,null,null,null,null,null,null,null,null,null,null,null,null,null,null,null,"Lliga Femenina",null,null,null,null,"Divisió"]
[]
[null,null,null,"Campionat de Catalunya Individual",null,null,null,null,null,null,null,null,null,null,null,null,null,null,null,null,"División Honor",null,null,null,null,"Divisió"]
[]
[null,null,null,"Campionat de Catalunya Individual  (tir)"]
[]
[]
["Categoria",null,"PRIMERA MASCULINA",null,null,null,null,null,null,null,null,null,null,null,null,null,"Observacions",null,null,null,"        JUAN A. GARCIA CUADRADO  -   615240490"]
[]
["(1)","CAPITÀ",null,null,null,null,null,null,null,null,"Número Llicencia","JUGADOR",null,null,null,null,null,null,null,null,"Número Llicencia","JUGADOR",null,null,null,null,null,null,null,null,"Número Llicencia"]
[null,{"$f":"IF(K21=\"\",\"\",VLOOKUP(K21,[1]DEPORTISTAS!$A:$B,2,FALSE))","v":""},null,null,null,null,null,null,null,null,null,{"$f":"IF(U21=\"\",\"\",VLOOKUP(U21,[1]DEPORTISTAS!$A:$B,2,FALSE))","v":""},null,null,null,null,null,null,null,null,null,{"$f":"IF(AE21=\"\",\"\",VLOOKUP(AE21,[1]DEPORTISTAS!$A:$B,2,FALSE))","v":""}]
[null,{"$f":"IF(K22=\"\",\"\",VLOOKUP(K22,[1]DEPORTISTAS!$A:$B,2,FALSE))","v":""},{"$f":"IF(ISERROR(VLOOKUP(#REF!,#REF!,2,FALSE)),\"\",VLOOKUP(#REF!,#REF!,2,FALSE))","v":""},{"$f":"IF(ISERROR(VLOOKUP(#REF!,#REF!,2,FALSE)),\"\",VLOOKUP(#REF!,#REF!,2,FALSE))","v":""},{"$f":"IF(ISERROR(VLOOKUP(#REF!,#REF!,2,FALSE)),\"\",VLOOKUP(#REF!,#REF!,2,FALSE))","v":""},{"$f":"IF(ISERROR(VLOOKUP(#REF!,#REF!,2,FALSE)),\"\",VLOOKUP(#REF!,#REF!,2,FALSE))","v":""},{"$f":"IF(ISERROR(VLOOKUP(#REF!,#REF!,2,FALSE)),\"\",VLOOKUP(#REF!,#REF!,2,FALSE))","v":""},{"$f":"IF(ISERROR(VLOOKUP(#REF!,#REF!,2,FALSE)),\"\",VLOOKUP(#REF!,#REF!,2,FALSE))","v":""},{"$f":"IF(ISERROR(VLOOKUP(#REF!,#REF!,2,FALSE)),\"\",VLOOKUP(#REF!,#REF!,2,FALSE))","v":""},{"$f":"IF(ISERROR(VLOOKUP(#REF!,#REF!,2,FALSE)),\"\",VLOOKUP(#REF!,#REF!,2,FALSE))","v":""},null,{"$f":"IF(U22=\"\",\"\",VLOOKUP(U22,[1]DEPORTISTAS!$A:$B,2,FALSE))","v":""},{"$f":"IF(ISERROR(VLOOKUP(#REF!,#REF!,2,FALSE)),\"\",VLOOKUP(#REF!,#REF!,2,FALSE))","v":""},{"$f":"IF(ISERROR(VLOOKUP(#REF!,#REF!,2,FALSE)),\"\",VLOOKUP(#REF!,#REF!,2,FALSE))","v":""},{"$f":"IF(ISERROR(VLOOKUP(#REF!,#REF!,2,FALSE)),\"\",VLOOKUP(#REF!,#REF!,2,FALSE))","v":""},{"$f":"IF(ISERROR(VLOOKUP(#REF!,#REF!,2,FALSE)),\"\",VLOOKUP(#REF!,#REF!,2,FALSE))","v":""},{"$f":"IF(ISERROR(VLOOKUP(#REF!,#REF!,2,FALSE)),\"\",VLOOKUP(#REF!,#REF!,2,FALSE))","v":""},{"$f":"IF(ISERROR(VLOOKUP(#REF!,#REF!,2,FALSE)),\"\",VLOOKUP(#REF!,#REF!,2,FALSE))","v":""},{"$f":"IF(ISERROR(VLOOKUP(#REF!,#REF!,2,FALSE)),\"\",VLOOKUP(#REF!,#REF!,2,FALSE))","v":""},{"$f":"IF(ISERROR(VLOOKUP(#REF!,#REF!,2,FALSE)),\"\",VLOOKUP(#REF!,#REF!,2,FALSE))","v":""},null,{"$f":"IF(AE22=\"\",\"\",VLOOKUP(AE22,[1]DEPORTISTAS!$A:$B,2,FALSE))","v":""},{"$f":"IF(ISERROR(VLOOKUP(#REF!,#REF!,2,FALSE)),\"\",VLOOKUP(#REF!,#REF!,2,FALSE))","v":""},{"$f":"IF(ISERROR(VLOOKUP(#REF!,#REF!,2,FALSE)),\"\",VLOOKUP(#REF!,#REF!,2,FALSE))","v":""},{"$f":"IF(ISERROR(VLOOKUP(#REF!,#REF!,2,FALSE)),\"\",VLOOKUP(#REF!,#REF!,2,FALSE))","v":""},{"$f":"IF(ISERROR(VLOOKUP(#REF!,#REF!,2,FALSE)),\"\",VLOOKUP(#REF!,#REF!,2,FALSE))","v":""},{"$f":"IF(ISERROR(VLOOKUP(#REF!,#REF!,2,FALSE)),\"\",VLOOKUP(#REF!,#REF!,2,FALSE))","v":""},{"$f":"IF(ISERROR(VLOOKUP(#REF!,#REF!,2,FALSE)),\"\",VLOOKUP(#REF!,#REF!,2,FALSE))","v":""},{"$f":"IF(ISERROR(VLOOKUP(#REF!,#REF!,2,FALSE)),\"\",VLOOKUP(#REF!,#REF!,2,FALSE))","v":""},{"$f":"IF(ISERROR(VLOOKUP(#REF!,#REF!,2,FALSE)),\"\",VLOOKUP(#REF!,#REF!,2,FALSE))","v":""},null,null,null,{"$f":"IF(ISERROR(VLOOKUP(K21,#REF!,2,FALSE)),\"\",VLOOKUP(K21,#REF!,2,FALSE))","v":""}]
[null,{"$f":"IF(K23=\"\",\"\",VLOOKUP(K23,[1]DEPORTISTAS!$A:$B,2,FALSE))","v":""},{"$f":"IF(ISERROR(VLOOKUP(#REF!,#REF!,2,FALSE)),\"\",VLOOKUP(#REF!,#REF!,2,FALSE))","v":""},{"$f":"IF(ISERROR(VLOOKUP(#REF!,#REF!,2,FALSE)),\"\",VLOOKUP(#REF!,#REF!,2,FALSE))","v":""},{"$f":"IF(ISERROR(VLOOKUP(#REF!,#REF!,2,FALSE)),\"\",VLOOKUP(#REF!,#REF!,2,FALSE))","v":""},{"$f":"IF(ISERROR(VLOOKUP(#REF!,#REF!,2,FALSE)),\"\",VLOOKUP(#REF!,#REF!,2,FALSE))","v":""},{"$f":"IF(ISERROR(VLOOKUP(#REF!,#REF!,2,FALSE)),\"\",VLOOKUP(#REF!,#REF!,2,FALSE))","v":""},{"$f":"IF(ISERROR(VLOOKUP(#REF!,#REF!,2,FALSE)),\"\",VLOOKUP(#REF!,#REF!,2,FALSE))","v":""},{"$f":"IF(ISERROR(VLOOKUP(#REF!,#REF!,2,FALSE)),\"\",VLOOKUP(#REF!,#REF!,2,FALSE))","v":""},{"$f":"IF(ISERROR(VLOOKUP(#REF!,#REF!,2,FALSE)),\"\",VLOOKUP(#REF!,#REF!,2,FALSE))","v":""},null,{"$f":"IF(U23=\"\",\"\",VLOOKUP(U23,[1]DEPORTISTAS!$A:$B,2,FALSE))","v":""},{"$f":"IF(ISERROR(VLOOKUP(#REF!,#REF!,2,FALSE)),\"\",VLOOKUP(#REF!,#REF!,2,FALSE))","v":""},{"$f":"IF(ISERROR(VLOOKUP(#REF!,#REF!,2,FALSE)),\"\",VLOOKUP(#REF!,#REF!,2,FALSE))","v":""},{"$f":"IF(ISERROR(VLOOKUP(#REF!,#REF!,2,FALSE)),\"\",VLOOKUP(#REF!,#REF!,2,FALSE))","v":""},{"$f":"IF(ISERROR(VLOOKUP(#REF!,#REF!,2,FALSE)),\"\",VLOOKUP(#REF!,#REF!,2,FALSE))","v":""},{"$f":"IF(ISERROR(VLOOKUP(#REF!,#REF!,2,FALSE)),\"\",VLOOKUP(#REF!,#REF!,2,FALSE))","v":""},{"$f":"IF(ISERROR(VLOOKUP(#REF!,#REF!,2,FALSE)),\"\",VLOOKUP(#REF!,#REF!,2,FALSE))","v":""},{"$f":"IF(ISERROR(VLOOKUP(#REF!,#REF!,2,FALSE)),\"\",VLOOKUP(#REF!,#REF!,2,FALSE))","v":""},{"$f":"IF(ISERROR(VLOOKUP(#REF!,#REF!,2,FALSE)),\"\",VLOOKUP(#REF!,#REF!,2,FALSE))","v":""},null,{"$f":"IF(AE23=\"\",\"\",VLOOKUP(AE23,[1]DEPORTISTAS!$A:$B,2,FALSE))","v":""},{"$f":"IF(ISERROR(VLOOKUP(#REF!,#REF!,2,FALSE)),\"\",VLOOKUP(#REF!,#REF!,2,FALSE))","v":""},{"$f":"IF(ISERROR(VLOOKUP(#REF!,#REF!,2,FALSE)),\"\",VLOOKUP(#REF!,#REF!,2,FALSE))","v":""},{"$f":"IF(ISERROR(VLOOKUP(#REF!,#REF!,2,FALSE)),\"\",VLOOKUP(#REF!,#REF!,2,FALSE))","v":""},{"$f":"IF(ISERROR(VLOOKUP(#REF!,#REF!,2,FALSE)),\"\",VLOOKUP(#REF!,#REF!,2,FALSE))","v":""},{"$f":"IF(ISERROR(VLOOKUP(#REF!,#REF!,2,FALSE)),\"\",VLOOKUP(#REF!,#REF!,2,FALSE))","v":""},{"$f":"IF(ISERROR(VLOOKUP(#REF!,#REF!,2,FALSE)),\"\",VLOOKUP(#REF!,#REF!,2,FALSE))","v":""},{"$f":"IF(ISERROR(VLOOKUP(#REF!,#REF!,2,FALSE)),\"\",VLOOKUP(#REF!,#REF!,2,FALSE))","v":""},{"$f":"IF(ISERROR(VLOOKUP(#REF!,#REF!,2,FALSE)),\"\",VLOOKUP(#REF!,#REF!,2,FALSE))","v":""}]
[null,{"$f":"IF(K24=\"\",\"\",VLOOKUP(K24,[1]DEPORTISTAS!$A:$B,2,FALSE))","v":""},{"$f":"IF(ISERROR(VLOOKUP(#REF!,#REF!,2,FALSE)),\"\",VLOOKUP(#REF!,#REF!,2,FALSE))","v":""},{"$f":"IF(ISERROR(VLOOKUP(#REF!,#REF!,2,FALSE)),\"\",VLOOKUP(#REF!,#REF!,2,FALSE))","v":""},{"$f":"IF(ISERROR(VLOOKUP(#REF!,#REF!,2,FALSE)),\"\",VLOOKUP(#REF!,#REF!,2,FALSE))","v":""},{"$f":"IF(ISERROR(VLOOKUP(#REF!,#REF!,2,FALSE)),\"\",VLOOKUP(#REF!,#REF!,2,FALSE))","v":""},{"$f":"IF(ISERROR(VLOOKUP(#REF!,#REF!,2,FALSE)),\"\",VLOOKUP(#REF!,#REF!,2,FALSE))","v":""},{"$f":"IF(ISERROR(VLOOKUP(#REF!,#REF!,2,FALSE)),\"\",VLOOKUP(#REF!,#REF!,2,FALSE))","v":""},{"$f":"IF(ISERROR(VLOOKUP(#REF!,#REF!,2,FALSE)),\"\",VLOOKUP(#REF!,#REF!,2,FALSE))","v":""},{"$f":"IF(ISERROR(VLOOKUP(#REF!,#REF!,2,FALSE)),\"\",VLOOKUP(#REF!,#REF!,2,FALSE))","v":""},null,{"$f":"IF(U24=\"\",\"\",VLOOKUP(U24,[1]DEPORTISTAS!$A:$B,2,FALSE))","v":""},{"$f":"IF(ISERROR(VLOOKUP(#REF!,#REF!,2,FALSE)),\"\",VLOOKUP(#REF!,#REF!,2,FALSE))","v":""},{"$f":"IF(ISERROR(VLOOKUP(#REF!,#REF!,2,FALSE)),\"\",VLOOKUP(#REF!,#REF!,2,FALSE))","v":""},{"$f":"IF(ISERROR(VLOOKUP(#REF!,#REF!,2,FALSE)),\"\",VLOOKUP(#REF!,#REF!,2,FALSE))","v":""},{"$f":"IF(ISERROR(VLOOKUP(#REF!,#REF!,2,FALSE)),\"\",VLOOKUP(#REF!,#REF!,2,FALSE))","v":""},{"$f":"IF(ISERROR(VLOOKUP(#REF!,#REF!,2,FALSE)),\"\",VLOOKUP(#REF!,#REF!,2,FALSE))","v":""},{"$f":"IF(ISERROR(VLOOKUP(#REF!,#REF!,2,FALSE)),\"\",VLOOKUP(#REF!,#REF!,2,FALSE))","v":""},{"$f":"IF(ISERROR(VLOOKUP(#REF!,#REF!,2,FALSE)),\"\",VLOOKUP(#REF!,#REF!,2,FALSE))","v":""},{"$f":"IF(ISERROR(VLOOKUP(#REF!,#REF!,2,FALSE)),\"\",VLOOKUP(#REF!,#REF!,2,FALSE))","v":""},null,{"$f":"IF(AE24=\"\",\"\",VLOOKUP(AE24,[1]DEPORTISTAS!$A:$B,2,FALSE))","v":""},{"$f":"IF(ISERROR(VLOOKUP(#REF!,#REF!,2,FALSE)),\"\",VLOOKUP(#REF!,#REF!,2,FALSE))","v":""},{"$f":"IF(ISERROR(VLOOKUP(#REF!,#REF!,2,FALSE)),\"\",VLOOKUP(#REF!,#REF!,2,FALSE))","v":""},{"$f":"IF(ISERROR(VLOOKUP(#REF!,#REF!,2,FALSE)),\"\",VLOOKUP(#REF!,#REF!,2,FALSE))","v":""},{"$f":"IF(ISERROR(VLOOKUP(#REF!,#REF!,2,FALSE)),\"\",VLOOKUP(#REF!,#REF!,2,FALSE))","v":""},{"$f":"IF(ISERROR(VLOOKUP(#REF!,#REF!,2,FALSE)),\"\",VLOOKUP(#REF!,#REF!,2,FALSE))","v":""},{"$f":"IF(ISERROR(VLOOKUP(#REF!,#REF!,2,FALSE)),\"\",VLOOKUP(#REF!,#REF!,2,FALSE))","v":""},{"$f":"IF(ISERROR(VLOOKUP(#REF!,#REF!,2,FALSE)),\"\",VLOOKUP(#REF!,#REF!,2,FALSE))","v":""},{"$f":"IF(ISERROR(VLOOKUP(#REF!,#REF!,2,FALSE)),\"\",VLOOKUP(#REF!,#REF!,2,FALSE))","v":""}]
[null,{"$f":"IF(K25=\"\",\"\",VLOOKUP(K25,[1]DEPORTISTAS!$A:$B,2,FALSE))","v":""},{"$f":"IF(ISERROR(VLOOKUP(#REF!,#REF!,2,FALSE)),\"\",VLOOKUP(#REF!,#REF!,2,FALSE))","v":""},{"$f":"IF(ISERROR(VLOOKUP(#REF!,#REF!,2,FALSE)),\"\",VLOOKUP(#REF!,#REF!,2,FALSE))","v":""},{"$f":"IF(ISERROR(VLOOKUP(#REF!,#REF!,2,FALSE)),\"\",VLOOKUP(#REF!,#REF!,2,FALSE))","v":""},{"$f":"IF(ISERROR(VLOOKUP(#REF!,#REF!,2,FALSE)),\"\",VLOOKUP(#REF!,#REF!,2,FALSE))","v":""},{"$f":"IF(ISERROR(VLOOKUP(#REF!,#REF!,2,FALSE)),\"\",VLOOKUP(#REF!,#REF!,2,FALSE))","v":""},{"$f":"IF(ISERROR(VLOOKUP(#REF!,#REF!,2,FALSE)),\"\",VLOOKUP(#REF!,#REF!,2,FALSE))","v":""},{"$f":"IF(ISERROR(VLOOKUP(#REF!,#REF!,2,FALSE)),\"\",VLOOKUP(#REF!,#REF!,2,FALSE))","v":""},{"$f":"IF(ISERROR(VLOOKUP(#REF!,#REF!,2,FALSE)),\"\",VLOOKUP(#REF!,#REF!,2,FALSE))","v":""},null,{"$f":"IF(U25=\"\",\"\",VLOOKUP(U25,[1]DEPORTISTAS!$A:$B,2,FALSE))","v":""},{"$f":"IF(ISERROR(VLOOKUP(#REF!,#REF!,2,FALSE)),\"\",VLOOKUP(#REF!,#REF!,2,FALSE))","v":""},{"$f":"IF(ISERROR(VLOOKUP(#REF!,#REF!,2,FALSE)),\"\",VLOOKUP(#REF!,#REF!,2,FALSE))","v":""},{"$f":"IF(ISERROR(VLOOKUP(#REF!,#REF!,2,FALSE)),\"\",VLOOKUP(#REF!,#REF!,2,FALSE))","v":""},{"$f":"IF(ISERROR(VLOOKUP(#REF!,#REF!,2,FALSE)),\"\",VLOOKUP(#REF!,#REF!,2,FALSE))","v":""},{"$f":"IF(ISERROR(VLOOKUP(#REF!,#REF!,2,FALSE)),\"\",VLOOKUP(#REF!,#REF!,2,FALSE))","v":""},{"$f":"IF(ISERROR(VLOOKUP(#REF!,#REF!,2,FALSE)),\"\",VLOOKUP(#REF!,#REF!,2,FALSE))","v":""},{"$f":"IF(ISERROR(VLOOKUP(#REF!,#REF!,2,FALSE)),\"\",VLOOKUP(#REF!,#REF!,2,FALSE))","v":""},{"$f":"IF(ISERROR(VLOOKUP(#REF!,#REF!,2,FALSE)),\"\",VLOOKUP(#REF!,#REF!,2,FALSE))","v":""},null,{"$f":"IF(AE25=\"\",\"\",VLOOKUP(AE25,[1]DEPORTISTAS!$A:$B,2,FALSE))","v":""},{"$f":"IF(ISERROR(VLOOKUP(#REF!,#REF!,2,FALSE)),\"\",VLOOKUP(#REF!,#REF!,2,FALSE))","v":""},{"$f":"IF(ISERROR(VLOOKUP(#REF!,#REF!,2,FALSE)),\"\",VLOOKUP(#REF!,#REF!,2,FALSE))","v":""},{"$f":"IF(ISERROR(VLOOKUP(#REF!,#REF!,2,FALSE)),\"\",VLOOKUP(#REF!,#REF!,2,FALSE))","v":""},{"$f":"IF(ISERROR(VLOOKUP(#REF!,#REF!,2,FALSE)),\"\",VLOOKUP(#REF!,#REF!,2,FALSE))","v":""},{"$f":"IF(ISERROR(VLOOKUP(#REF!,#REF!,2,FALSE)),\"\",VLOOKUP(#REF!,#REF!,2,FALSE))","v":""},{"$f":"IF(ISERROR(VLOOKUP(#REF!,#REF!,2,FALSE)),\"\",VLOOKUP(#REF!,#REF!,2,FALSE))","v":""},{"$f":"IF(ISERROR(VLOOKUP(#REF!,#REF!,2,FALSE)),\"\",VLOOKUP(#REF!,#REF!,2,FALSE))","v":""},{"$f":"IF(ISERROR(VLOOKUP(#REF!,#REF!,2,FALSE)),\"\",VLOOKUP(#REF!,#REF!,2,FALSE))","v":""}]
[null,{"$f":"IF(K26=\"\",\"\",VLOOKUP(K26,[1]DEPORTISTAS!$A:$B,2,FALSE))","v":""},{"$f":"IF(ISERROR(VLOOKUP(#REF!,#REF!,2,FALSE)),\"\",VLOOKUP(#REF!,#REF!,2,FALSE))","v":""},{"$f":"IF(ISERROR(VLOOKUP(#REF!,#REF!,2,FALSE)),\"\",VLOOKUP(#REF!,#REF!,2,FALSE))","v":""},{"$f":"IF(ISERROR(VLOOKUP(#REF!,#REF!,2,FALSE)),\"\",VLOOKUP(#REF!,#REF!,2,FALSE))","v":""},{"$f":"IF(ISERROR(VLOOKUP(#REF!,#REF!,2,FALSE)),\"\",VLOOKUP(#REF!,#REF!,2,FALSE))","v":""},{"$f":"IF(ISERROR(VLOOKUP(#REF!,#REF!,2,FALSE)),\"\",VLOOKUP(#REF!,#REF!,2,FALSE))","v":""},{"$f":"IF(ISERROR(VLOOKUP(#REF!,#REF!,2,FALSE)),\"\",VLOOKUP(#REF!,#REF!,2,FALSE))","v":""},{"$f":"IF(ISERROR(VLOOKUP(#REF!,#REF!,2,FALSE)),\"\",VLOOKUP(#REF!,#REF!,2,FALSE))","v":""},{"$f":"IF(ISERROR(VLOOKUP(#REF!,#REF!,2,FALSE)),\"\",VLOOKUP(#REF!,#REF!,2,FALSE))","v":""},null,{"$f":"IF(U26=\"\",\"\",VLOOKUP(U26,[1]DEPORTISTAS!$A:$B,2,FALSE))","v":""},{"$f":"IF(ISERROR(VLOOKUP(#REF!,#REF!,2,FALSE)),\"\",VLOOKUP(#REF!,#REF!,2,FALSE))","v":""},{"$f":"IF(ISERROR(VLOOKUP(#REF!,#REF!,2,FALSE)),\"\",VLOOKUP(#REF!,#REF!,2,FALSE))","v":""},{"$f":"IF(ISERROR(VLOOKUP(#REF!,#REF!,2,FALSE)),\"\",VLOOKUP(#REF!,#REF!,2,FALSE))","v":""},{"$f":"IF(ISERROR(VLOOKUP(#REF!,#REF!,2,FALSE)),\"\",VLOOKUP(#REF!,#REF!,2,FALSE))","v":""},{"$f":"IF(ISERROR(VLOOKUP(#REF!,#REF!,2,FALSE)),\"\",VLOOKUP(#REF!,#REF!,2,FALSE))","v":""},{"$f":"IF(ISERROR(VLOOKUP(#REF!,#REF!,2,FALSE)),\"\",VLOOKUP(#REF!,#REF!,2,FALSE))","v":""},{"$f":"IF(ISERROR(VLOOKUP(#REF!,#REF!,2,FALSE)),\"\",VLOOKUP(#REF!,#REF!,2,FALSE))","v":""},{"$f":"IF(ISERROR(VLOOKUP(#REF!,#REF!,2,FALSE)),\"\",VLOOKUP(#REF!,#REF!,2,FALSE))","v":""},null,{"$f":"IF(AE26=\"\",\"\",VLOOKUP(AE26,[1]DEPORTISTAS!$A:$B,2,FALSE))","v":""},{"$f":"IF(ISERROR(VLOOKUP(#REF!,#REF!,2,FALSE)),\"\",VLOOKUP(#REF!,#REF!,2,FALSE))","v":""},{"$f":"IF(ISERROR(VLOOKUP(#REF!,#REF!,2,FALSE)),\"\",VLOOKUP(#REF!,#REF!,2,FALSE))","v":""},{"$f":"IF(ISERROR(VLOOKUP(#REF!,#REF!,2,FALSE)),\"\",VLOOKUP(#REF!,#REF!,2,FALSE))","v":""},{"$f":"IF(ISERROR(VLOOKUP(#REF!,#REF!,2,FALSE)),\"\",VLOOKUP(#REF!,#REF!,2,FALSE))","v":""},{"$f":"IF(ISERROR(VLOOKUP(#REF!,#REF!,2,FALSE)),\"\",VLOOKUP(#REF!,#REF!,2,FALSE))","v":""},{"$f":"IF(ISERROR(VLOOKUP(#REF!,#REF!,2,FALSE)),\"\",VLOOKUP(#REF!,#REF!,2,FALSE))","v":""},{"$f":"IF(ISERROR(VLOOKUP(#REF!,#REF!,2,FALSE)),\"\",VLOOKUP(#REF!,#REF!,2,FALSE))","v":""},{"$f":"IF(ISERROR(VLOOKUP(#REF!,#REF!,2,FALSE)),\"\",VLOOKUP(#REF!,#REF!,2,FALSE))","v":""}]
[null,{"$f":"IF(K27=\"\",\"\",VLOOKUP(K27,[1]DEPORTISTAS!$A:$B,2,FALSE))","v":""},{"$f":"IF(ISERROR(VLOOKUP(#REF!,#REF!,2,FALSE)),\"\",VLOOKUP(#REF!,#REF!,2,FALSE))","v":""},{"$f":"IF(ISERROR(VLOOKUP(#REF!,#REF!,2,FALSE)),\"\",VLOOKUP(#REF!,#REF!,2,FALSE))","v":""},{"$f":"IF(ISERROR(VLOOKUP(#REF!,#REF!,2,FALSE)),\"\",VLOOKUP(#REF!,#REF!,2,FALSE))","v":""},{"$f":"IF(ISERROR(VLOOKUP(#REF!,#REF!,2,FALSE)),\"\",VLOOKUP(#REF!,#REF!,2,FALSE))","v":""},{"$f":"IF(ISERROR(VLOOKUP(#REF!,#REF!,2,FALSE)),\"\",VLOOKUP(#REF!,#REF!,2,FALSE))","v":""},{"$f":"IF(ISERROR(VLOOKUP(#REF!,#REF!,2,FALSE)),\"\",VLOOKUP(#REF!,#REF!,2,FALSE))","v":""},{"$f":"IF(ISERROR(VLOOKUP(#REF!,#REF!,2,FALSE)),\"\",VLOOKUP(#REF!,#REF!,2,FALSE))","v":""},{"$f":"IF(ISERROR(VLOOKUP(#REF!,#REF!,2,FALSE)),\"\",VLOOKUP(#REF!,#REF!,2,FALSE))","v":""},null,{"$f":"IF(U27=\"\",\"\",VLOOKUP(U27,[1]DEPORTISTAS!$A:$B,2,FALSE))","v":""},{"$f":"IF(ISERROR(VLOOKUP(#REF!,#REF!,2,FALSE)),\"\",VLOOKUP(#REF!,#REF!,2,FALSE))","v":""},{"$f":"IF(ISERROR(VLOOKUP(#REF!,#REF!,2,FALSE)),\"\",VLOOKUP(#REF!,#REF!,2,FALSE))","v":""},{"$f":"IF(ISERROR(VLOOKUP(#REF!,#REF!,2,FALSE)),\"\",VLOOKUP(#REF!,#REF!,2,FALSE))","v":""},{"$f":"IF(ISERROR(VLOOKUP(#REF!,#REF!,2,FALSE)),\"\",VLOOKUP(#REF!,#REF!,2,FALSE))","v":""},{"$f":"IF(ISERROR(VLOOKUP(#REF!,#REF!,2,FALSE)),\"\",VLOOKUP(#REF!,#REF!,2,FALSE))","v":""},{"$f":"IF(ISERROR(VLOOKUP(#REF!,#REF!,2,FALSE)),\"\",VLOOKUP(#REF!,#REF!,2,FALSE))","v":""},{"$f":"IF(ISERROR(VLOOKUP(#REF!,#REF!,2,FALSE)),\"\",VLOOKUP(#REF!,#REF!,2,FALSE))","v":""},{"$f":"IF(ISERROR(VLOOKUP(#REF!,#REF!,2,FALSE)),\"\",VLOOKUP(#REF!,#REF!,2,FALSE))","v":""},null,{"$f":"IF(AE27=\"\",\"\",VLOOKUP(AE27,[1]DEPORTISTAS!$A:$B,2,FALSE))","v":""},{"$f":"IF(ISERROR(VLOOKUP(#REF!,#REF!,2,FALSE)),\"\",VLOOKUP(#REF!,#REF!,2,FALSE))","v":""},{"$f":"IF(ISERROR(VLOOKUP(#REF!,#REF!,2,FALSE)),\"\",VLOOKUP(#REF!,#REF!,2,FALSE))","v":""},{"$f":"IF(ISERROR(VLOOKUP(#REF!,#REF!,2,FALSE)),\"\",VLOOKUP(#REF!,#REF!,2,FALSE))","v":""},{"$f":"IF(ISERROR(VLOOKUP(#REF!,#REF!,2,FALSE)),\"\",VLOOKUP(#REF!,#REF!,2,FALSE))","v":""},{"$f":"IF(ISERROR(VLOOKUP(#REF!,#REF!,2,FALSE)),\"\",VLOOKUP(#REF!,#REF!,2,FALSE))","v":""},{"$f":"IF(ISERROR(VLOOKUP(#REF!,#REF!,2,FALSE)),\"\",VLOOKUP(#REF!,#REF!,2,FALSE))","v":""},{"$f":"IF(ISERROR(VLOOKUP(#REF!,#REF!,2,FALSE)),\"\",VLOOKUP(#REF!,#REF!,2,FALSE))","v":""},{"$f":"IF(ISERROR(VLOOKUP(#REF!,#REF!,2,FALSE)),\"\",VLOOKUP(#REF!,#REF!,2,FALSE))","v":""}]
[null,{"$f":"IF(K28=\"\",\"\",VLOOKUP(K28,[1]DEPORTISTAS!$A:$B,2,FALSE))","v":""},{"$f":"IF(ISERROR(VLOOKUP(#REF!,#REF!,2,FALSE)),\"\",VLOOKUP(#REF!,#REF!,2,FALSE))","v":""},{"$f":"IF(ISERROR(VLOOKUP(#REF!,#REF!,2,FALSE)),\"\",VLOOKUP(#REF!,#REF!,2,FALSE))","v":""},{"$f":"IF(ISERROR(VLOOKUP(#REF!,#REF!,2,FALSE)),\"\",VLOOKUP(#REF!,#REF!,2,FALSE))","v":""},{"$f":"IF(ISERROR(VLOOKUP(#REF!,#REF!,2,FALSE)),\"\",VLOOKUP(#REF!,#REF!,2,FALSE))","v":""},{"$f":"IF(ISERROR(VLOOKUP(#REF!,#REF!,2,FALSE)),\"\",VLOOKUP(#REF!,#REF!,2,FALSE))","v":""},{"$f":"IF(ISERROR(VLOOKUP(#REF!,#REF!,2,FALSE)),\"\",VLOOKUP(#REF!,#REF!,2,FALSE))","v":""},{"$f":"IF(ISERROR(VLOOKUP(#REF!,#REF!,2,FALSE)),\"\",VLOOKUP(#REF!,#REF!,2,FALSE))","v":""},{"$f":"IF(ISERROR(VLOOKUP(#REF!,#REF!,2,FALSE)),\"\",VLOOKUP(#REF!,#REF!,2,FALSE))","v":""},null,{"$f":"IF(U28=\"\",\"\",VLOOKUP(U28,[1]DEPORTISTAS!$A:$B,2,FALSE))","v":""},{"$f":"IF(ISERROR(VLOOKUP(#REF!,#REF!,2,FALSE)),\"\",VLOOKUP(#REF!,#REF!,2,FALSE))","v":""},{"$f":"IF(ISERROR(VLOOKUP(#REF!,#REF!,2,FALSE)),\"\",VLOOKUP(#REF!,#REF!,2,FALSE))","v":""},{"$f":"IF(ISERROR(VLOOKUP(#REF!,#REF!,2,FALSE)),\"\",VLOOKUP(#REF!,#REF!,2,FALSE))","v":""},{"$f":"IF(ISERROR(VLOOKUP(#REF!,#REF!,2,FALSE)),\"\",VLOOKUP(#REF!,#REF!,2,FALSE))","v":""},{"$f":"IF(ISERROR(VLOOKUP(#REF!,#REF!,2,FALSE)),\"\",VLOOKUP(#REF!,#REF!,2,FALSE))","v":""},{"$f":"IF(ISERROR(VLOOKUP(#REF!,#REF!,2,FALSE)),\"\",VLOOKUP(#REF!,#REF!,2,FALSE))","v":""},{"$f":"IF(ISERROR(VLOOKUP(#REF!,#REF!,2,FALSE)),\"\",VLOOKUP(#REF!,#REF!,2,FALSE))","v":""},{"$f":"IF(ISERROR(VLOOKUP(#REF!,#REF!,2,FALSE)),\"\",VLOOKUP(#REF!,#REF!,2,FALSE))","v":""},null,{"$f":"IF(AE28=\"\",\"\",VLOOKUP(AE28,[1]DEPORTISTAS!$A:$B,2,FALSE))","v":""},{"$f":"IF(ISERROR(VLOOKUP(#REF!,#REF!,2,FALSE)),\"\",VLOOKUP(#REF!,#REF!,2,FALSE))","v":""},{"$f":"IF(ISERROR(VLOOKUP(#REF!,#REF!,2,FALSE)),\"\",VLOOKUP(#REF!,#REF!,2,FALSE))","v":""},{"$f":"IF(ISERROR(VLOOKUP(#REF!,#REF!,2,FALSE)),\"\",VLOOKUP(#REF!,#REF!,2,FALSE))","v":""},{"$f":"IF(ISERROR(VLOOKUP(#REF!,#REF!,2,FALSE)),\"\",VLOOKUP(#REF!,#REF!,2,FALSE))","v":""},{"$f":"IF(ISERROR(VLOOKUP(#REF!,#REF!,2,FALSE)),\"\",VLOOKUP(#REF!,#REF!,2,FALSE))","v":""},{"$f":"IF(ISERROR(VLOOKUP(#REF!,#REF!,2,FALSE)),\"\",VLOOKUP(#REF!,#REF!,2,FALSE))","v":""},{"$f":"IF(ISERROR(VLOOKUP(#REF!,#REF!,2,FALSE)),\"\",VLOOKUP(#REF!,#REF!,2,FALSE))","v":""},{"$f":"IF(ISERROR(VLOOKUP(#REF!,#REF!,2,FALSE)),\"\",VLOOKUP(#REF!,#REF!,2,FALSE))","v":""}]
[null,{"$f":"IF(K29=\"\",\"\",VLOOKUP(K29,[1]DEPORTISTAS!$A:$B,2,FALSE))","v":""},{"$f":"IF(ISERROR(VLOOKUP(#REF!,#REF!,2,FALSE)),\"\",VLOOKUP(#REF!,#REF!,2,FALSE))","v":""},{"$f":"IF(ISERROR(VLOOKUP(#REF!,#REF!,2,FALSE)),\"\",VLOOKUP(#REF!,#REF!,2,FALSE))","v":""},{"$f":"IF(ISERROR(VLOOKUP(#REF!,#REF!,2,FALSE)),\"\",VLOOKUP(#REF!,#REF!,2,FALSE))","v":""},{"$f":"IF(ISERROR(VLOOKUP(#REF!,#REF!,2,FALSE)),\"\",VLOOKUP(#REF!,#REF!,2,FALSE))","v":""},{"$f":"IF(ISERROR(VLOOKUP(#REF!,#REF!,2,FALSE)),\"\",VLOOKUP(#REF!,#REF!,2,FALSE))","v":""},{"$f":"IF(ISERROR(VLOOKUP(#REF!,#REF!,2,FALSE)),\"\",VLOOKUP(#REF!,#REF!,2,FALSE))","v":""},{"$f":"IF(ISERROR(VLOOKUP(#REF!,#REF!,2,FALSE)),\"\",VLOOKUP(#REF!,#REF!,2,FALSE))","v":""},{"$f":"IF(ISERROR(VLOOKUP(#REF!,#REF!,2,FALSE)),\"\",VLOOKUP(#REF!,#REF!,2,FALSE))","v":""},null,{"$f":"IF(U29=\"\",\"\",VLOOKUP(U29,[1]DEPORTISTAS!$A:$B,2,FALSE))","v":""},{"$f":"IF(ISERROR(VLOOKUP(#REF!,#REF!,2,FALSE)),\"\",VLOOKUP(#REF!,#REF!,2,FALSE))","v":""},{"$f":"IF(ISERROR(VLOOKUP(#REF!,#REF!,2,FALSE)),\"\",VLOOKUP(#REF!,#REF!,2,FALSE))","v":""},{"$f":"IF(ISERROR(VLOOKUP(#REF!,#REF!,2,FALSE)),\"\",VLOOKUP(#REF!,#REF!,2,FALSE))","v":""},{"$f":"IF(ISERROR(VLOOKUP(#REF!,#REF!,2,FALSE)),\"\",VLOOKUP(#REF!,#REF!,2,FALSE))","v":""},{"$f":"IF(ISERROR(VLOOKUP(#REF!,#REF!,2,FALSE)),\"\",VLOOKUP(#REF!,#REF!,2,FALSE))","v":""},{"$f":"IF(ISERROR(VLOOKUP(#REF!,#REF!,2,FALSE)),\"\",VLOOKUP(#REF!,#REF!,2,FALSE))","v":""},{"$f":"IF(ISERROR(VLOOKUP(#REF!,#REF!,2,FALSE)),\"\",VLOOKUP(#REF!,#REF!,2,FALSE))","v":""},{"$f":"IF(ISERROR(VLOOKUP(#REF!,#REF!,2,FALSE)),\"\",VLOOKUP(#REF!,#REF!,2,FALSE))","v":""},null,{"$f":"IF(AE29=\"\",\"\",VLOOKUP(AE29,[1]DEPORTISTAS!$A:$B,2,FALSE))","v":""},{"$f":"IF(ISERROR(VLOOKUP(#REF!,#REF!,2,FALSE)),\"\",VLOOKUP(#REF!,#REF!,2,FALSE))","v":""},{"$f":"IF(ISERROR(VLOOKUP(#REF!,#REF!,2,FALSE)),\"\",VLOOKUP(#REF!,#REF!,2,FALSE))","v":""},{"$f":"IF(ISERROR(VLOOKUP(#REF!,#REF!,2,FALSE)),\"\",VLOOKUP(#REF!,#REF!,2,FALSE))","v":""},{"$f":"IF(ISERROR(VLOOKUP(#REF!,#REF!,2,FALSE)),\"\",VLOOKUP(#REF!,#REF!,2,FALSE))","v":""},{"$f":"IF(ISERROR(VLOOKUP(#REF!,#REF!,2,FALSE)),\"\",VLOOKUP(#REF!,#REF!,2,FALSE))","v":""},{"$f":"IF(ISERROR(VLOOKUP(#REF!,#REF!,2,FALSE)),\"\",VLOOKUP(#REF!,#REF!,2,FALSE))","v":""},{"$f":"IF(ISERROR(VLOOKUP(#REF!,#REF!,2,FALSE)),\"\",VLOOKUP(#REF!,#REF!,2,FALSE))","v":""},{"$f":"IF(ISERROR(VLOOKUP(#REF!,#REF!,2,FALSE)),\"\",VLOOKUP(#REF!,#REF!,2,FALSE))","v":""}]
[null,{"$f":"IF(K30=\"\",\"\",VLOOKUP(K30,[1]DEPORTISTAS!$A:$B,2,FALSE))","v":""},{"$f":"IF(ISERROR(VLOOKUP(#REF!,#REF!,2,FALSE)),\"\",VLOOKUP(#REF!,#REF!,2,FALSE))","v":""},{"$f":"IF(ISERROR(VLOOKUP(#REF!,#REF!,2,FALSE)),\"\",VLOOKUP(#REF!,#REF!,2,FALSE))","v":""},{"$f":"IF(ISERROR(VLOOKUP(#REF!,#REF!,2,FALSE)),\"\",VLOOKUP(#REF!,#REF!,2,FALSE))","v":""},{"$f":"IF(ISERROR(VLOOKUP(#REF!,#REF!,2,FALSE)),\"\",VLOOKUP(#REF!,#REF!,2,FALSE))","v":""},{"$f":"IF(ISERROR(VLOOKUP(#REF!,#REF!,2,FALSE)),\"\",VLOOKUP(#REF!,#REF!,2,FALSE))","v":""},{"$f":"IF(ISERROR(VLOOKUP(#REF!,#REF!,2,FALSE)),\"\",VLOOKUP(#REF!,#REF!,2,FALSE))","v":""},{"$f":"IF(ISERROR(VLOOKUP(#REF!,#REF!,2,FALSE)),\"\",VLOOKUP(#REF!,#REF!,2,FALSE))","v":""},{"$f":"IF(ISERROR(VLOOKUP(#REF!,#REF!,2,FALSE)),\"\",VLOOKUP(#REF!,#REF!,2,FALSE))","v":""},null,{"$f":"IF(U30=\"\",\"\",VLOOKUP(U30,[1]DEPORTISTAS!$A:$B,2,FALSE))","v":""},{"$f":"IF(ISERROR(VLOOKUP(#REF!,#REF!,2,FALSE)),\"\",VLOOKUP(#REF!,#REF!,2,FALSE))","v":""},{"$f":"IF(ISERROR(VLOOKUP(#REF!,#REF!,2,FALSE)),\"\",VLOOKUP(#REF!,#REF!,2,FALSE))","v":""},{"$f":"IF(ISERROR(VLOOKUP(#REF!,#REF!,2,FALSE)),\"\",VLOOKUP(#REF!,#REF!,2,FALSE))","v":""},{"$f":"IF(ISERROR(VLOOKUP(#REF!,#REF!,2,FALSE)),\"\",VLOOKUP(#REF!,#REF!,2,FALSE))","v":""},{"$f":"IF(ISERROR(VLOOKUP(#REF!,#REF!,2,FALSE)),\"\",VLOOKUP(#REF!,#REF!,2,FALSE))","v":""},{"$f":"IF(ISERROR(VLOOKUP(#REF!,#REF!,2,FALSE)),\"\",VLOOKUP(#REF!,#REF!,2,FALSE))","v":""},{"$f":"IF(ISERROR(VLOOKUP(#REF!,#REF!,2,FALSE)),\"\",VLOOKUP(#REF!,#REF!,2,FALSE))","v":""},{"$f":"IF(ISERROR(VLOOKUP(#REF!,#REF!,2,FALSE)),\"\",VLOOKUP(#REF!,#REF!,2,FALSE))","v":""},null,{"$f":"IF(AE30=\"\",\"\",VLOOKUP(AE30,[1]DEPORTISTAS!$A:$B,2,FALSE))","v":""},{"$f":"IF(ISERROR(VLOOKUP(#REF!,#REF!,2,FALSE)),\"\",VLOOKUP(#REF!,#REF!,2,FALSE))","v":""},{"$f":"IF(ISERROR(VLOOKUP(#REF!,#REF!,2,FALSE)),\"\",VLOOKUP(#REF!,#REF!,2,FALSE))","v":""},{"$f":"IF(ISERROR(VLOOKUP(#REF!,#REF!,2,FALSE)),\"\",VLOOKUP(#REF!,#REF!,2,FALSE))","v":""},{"$f":"IF(ISERROR(VLOOKUP(#REF!,#REF!,2,FALSE)),\"\",VLOOKUP(#REF!,#REF!,2,FALSE))","v":""},{"$f":"IF(ISERROR(VLOOKUP(#REF!,#REF!,2,FALSE)),\"\",VLOOKUP(#REF!,#REF!,2,FALSE))","v":""},{"$f":"IF(ISERROR(VLOOKUP(#REF!,#REF!,2,FALSE)),\"\",VLOOKUP(#REF!,#REF!,2,FALSE))","v":""},{"$f":"IF(ISERROR(VLOOKUP(#REF!,#REF!,2,FALSE)),\"\",VLOOKUP(#REF!,#REF!,2,FALSE))","v":""},{"$f":"IF(ISERROR(VLOOKUP(#REF!,#REF!,2,FALSE)),\"\",VLOOKUP(#REF!,#REF!,2,FALSE))","v":""}]
[null,{"$f":"IF(K31=\"\",\"\",VLOOKUP(K31,[1]DEPORTISTAS!$A:$B,2,FALSE))","v":""},{"$f":"IF(ISERROR(VLOOKUP(#REF!,#REF!,2,FALSE)),\"\",VLOOKUP(#REF!,#REF!,2,FALSE))","v":""},{"$f":"IF(ISERROR(VLOOKUP(#REF!,#REF!,2,FALSE)),\"\",VLOOKUP(#REF!,#REF!,2,FALSE))","v":""},{"$f":"IF(ISERROR(VLOOKUP(#REF!,#REF!,2,FALSE)),\"\",VLOOKUP(#REF!,#REF!,2,FALSE))","v":""},{"$f":"IF(ISERROR(VLOOKUP(#REF!,#REF!,2,FALSE)),\"\",VLOOKUP(#REF!,#REF!,2,FALSE))","v":""},{"$f":"IF(ISERROR(VLOOKUP(#REF!,#REF!,2,FALSE)),\"\",VLOOKUP(#REF!,#REF!,2,FALSE))","v":""},{"$f":"IF(ISERROR(VLOOKUP(#REF!,#REF!,2,FALSE)),\"\",VLOOKUP(#REF!,#REF!,2,FALSE))","v":""},{"$f":"IF(ISERROR(VLOOKUP(#REF!,#REF!,2,FALSE)),\"\",VLOOKUP(#REF!,#REF!,2,FALSE))","v":""},{"$f":"IF(ISERROR(VLOOKUP(#REF!,#REF!,2,FALSE)),\"\",VLOOKUP(#REF!,#REF!,2,FALSE))","v":""},null,{"$f":"IF(U31=\"\",\"\",VLOOKUP(U31,[1]DEPORTISTAS!$A:$B,2,FALSE))","v":""},{"$f":"IF(ISERROR(VLOOKUP(#REF!,#REF!,2,FALSE)),\"\",VLOOKUP(#REF!,#REF!,2,FALSE))","v":""},{"$f":"IF(ISERROR(VLOOKUP(#REF!,#REF!,2,FALSE)),\"\",VLOOKUP(#REF!,#REF!,2,FALSE))","v":""},{"$f":"IF(ISERROR(VLOOKUP(#REF!,#REF!,2,FALSE)),\"\",VLOOKUP(#REF!,#REF!,2,FALSE))","v":""},{"$f":"IF(ISERROR(VLOOKUP(#REF!,#REF!,2,FALSE)),\"\",VLOOKUP(#REF!,#REF!,2,FALSE))","v":""},{"$f":"IF(ISERROR(VLOOKUP(#REF!,#REF!,2,FALSE)),\"\",VLOOKUP(#REF!,#REF!,2,FALSE))","v":""},{"$f":"IF(ISERROR(VLOOKUP(#REF!,#REF!,2,FALSE)),\"\",VLOOKUP(#REF!,#REF!,2,FALSE))","v":""},{"$f":"IF(ISERROR(VLOOKUP(#REF!,#REF!,2,FALSE)),\"\",VLOOKUP(#REF!,#REF!,2,FALSE))","v":""},{"$f":"IF(ISERROR(VLOOKUP(#REF!,#REF!,2,FALSE)),\"\",VLOOKUP(#REF!,#REF!,2,FALSE))","v":""},null,{"$f":"IF(AE31=\"\",\"\",VLOOKUP(AE31,[1]DEPORTISTAS!$A:$B,2,FALSE))","v":""},{"$f":"IF(ISERROR(VLOOKUP(#REF!,#REF!,2,FALSE)),\"\",VLOOKUP(#REF!,#REF!,2,FALSE))","v":""},{"$f":"IF(ISERROR(VLOOKUP(#REF!,#REF!,2,FALSE)),\"\",VLOOKUP(#REF!,#REF!,2,FALSE))","v":""},{"$f":"IF(ISERROR(VLOOKUP(#REF!,#REF!,2,FALSE)),\"\",VLOOKUP(#REF!,#REF!,2,FALSE))","v":""},{"$f":"IF(ISERROR(VLOOKUP(#REF!,#REF!,2,FALSE)),\"\",VLOOKUP(#REF!,#REF!,2,FALSE))","v":""},{"$f":"IF(ISERROR(VLOOKUP(#REF!,#REF!,2,FALSE)),\"\",VLOOKUP(#REF!,#REF!,2,FALSE))","v":""},{"$f":"IF(ISERROR(VLOOKUP(#REF!,#REF!,2,FALSE)),\"\",VLOOKUP(#REF!,#REF!,2,FALSE))","v":""},{"$f":"IF(ISERROR(VLOOKUP(#REF!,#REF!,2,FALSE)),\"\",VLOOKUP(#REF!,#REF!,2,FALSE))","v":""},{"$f":"IF(ISERROR(VLOOKUP(#REF!,#REF!,2,FALSE)),\"\",VLOOKUP(#REF!,#REF!,2,FALSE))","v":""}]
[null,{"$f":"IF(K32=\"\",\"\",VLOOKUP(K32,[1]DEPORTISTAS!$A:$B,2,FALSE))","v":""},{"$f":"IF(ISERROR(VLOOKUP(#REF!,#REF!,2,FALSE)),\"\",VLOOKUP(#REF!,#REF!,2,FALSE))","v":""},{"$f":"IF(ISERROR(VLOOKUP(#REF!,#REF!,2,FALSE)),\"\",VLOOKUP(#REF!,#REF!,2,FALSE))","v":""},{"$f":"IF(ISERROR(VLOOKUP(#REF!,#REF!,2,FALSE)),\"\",VLOOKUP(#REF!,#REF!,2,FALSE))","v":""},{"$f":"IF(ISERROR(VLOOKUP(#REF!,#REF!,2,FALSE)),\"\",VLOOKUP(#REF!,#REF!,2,FALSE))","v":""},{"$f":"IF(ISERROR(VLOOKUP(#REF!,#REF!,2,FALSE)),\"\",VLOOKUP(#REF!,#REF!,2,FALSE))","v":""},{"$f":"IF(ISERROR(VLOOKUP(#REF!,#REF!,2,FALSE)),\"\",VLOOKUP(#REF!,#REF!,2,FALSE))","v":""},{"$f":"IF(ISERROR(VLOOKUP(#REF!,#REF!,2,FALSE)),\"\",VLOOKUP(#REF!,#REF!,2,FALSE))","v":""},{"$f":"IF(ISERROR(VLOOKUP(#REF!,#REF!,2,FALSE)),\"\",VLOOKUP(#REF!,#REF!,2,FALSE))","v":""},null,{"$f":"IF(U32=\"\",\"\",VLOOKUP(U32,[1]DEPORTISTAS!$A:$B,2,FALSE))","v":""},{"$f":"IF(ISERROR(VLOOKUP(#REF!,#REF!,2,FALSE)),\"\",VLOOKUP(#REF!,#REF!,2,FALSE))","v":""},{"$f":"IF(ISERROR(VLOOKUP(#REF!,#REF!,2,FALSE)),\"\",VLOOKUP(#REF!,#REF!,2,FALSE))","v":""},{"$f":"IF(ISERROR(VLOOKUP(#REF!,#REF!,2,FALSE)),\"\",VLOOKUP(#REF!,#REF!,2,FALSE))","v":""},{"$f":"IF(ISERROR(VLOOKUP(#REF!,#REF!,2,FALSE)),\"\",VLOOKUP(#REF!,#REF!,2,FALSE))","v":""},{"$f":"IF(ISERROR(VLOOKUP(#REF!,#REF!,2,FALSE)),\"\",VLOOKUP(#REF!,#REF!,2,FALSE))","v":""},{"$f":"IF(ISERROR(VLOOKUP(#REF!,#REF!,2,FALSE)),\"\",VLOOKUP(#REF!,#REF!,2,FALSE))","v":""},{"$f":"IF(ISERROR(VLOOKUP(#REF!,#REF!,2,FALSE)),\"\",VLOOKUP(#REF!,#REF!,2,FALSE))","v":""},{"$f":"IF(ISERROR(VLOOKUP(#REF!,#REF!,2,FALSE)),\"\",VLOOKUP(#REF!,#REF!,2,FALSE))","v":""},null,{"$f":"IF(AE32=\"\",\"\",VLOOKUP(AE32,[1]DEPORTISTAS!$A:$B,2,FALSE))","v":""},{"$f":"IF(ISERROR(VLOOKUP(#REF!,#REF!,2,FALSE)),\"\",VLOOKUP(#REF!,#REF!,2,FALSE))","v":""},{"$f":"IF(ISERROR(VLOOKUP(#REF!,#REF!,2,FALSE)),\"\",VLOOKUP(#REF!,#REF!,2,FALSE))","v":""},{"$f":"IF(ISERROR(VLOOKUP(#REF!,#REF!,2,FALSE)),\"\",VLOOKUP(#REF!,#REF!,2,FALSE))","v":""},{"$f":"IF(ISERROR(VLOOKUP(#REF!,#REF!,2,FALSE)),\"\",VLOOKUP(#REF!,#REF!,2,FALSE))","v":""},{"$f":"IF(ISERROR(VLOOKUP(#REF!,#REF!,2,FALSE)),\"\",VLOOKUP(#REF!,#REF!,2,FALSE))","v":""},{"$f":"IF(ISERROR(VLOOKUP(#REF!,#REF!,2,FALSE)),\"\",VLOOKUP(#REF!,#REF!,2,FALSE))","v":""},{"$f":"IF(ISERROR(VLOOKUP(#REF!,#REF!,2,FALSE)),\"\",VLOOKUP(#REF!,#REF!,2,FALSE))","v":""},{"$f":"IF(ISERROR(VLOOKUP(#REF!,#REF!,2,FALSE)),\"\",VLOOKUP(#REF!,#REF!,2,FALSE))","v":""}]
[null,{"$f":"IF(K33=\"\",\"\",VLOOKUP(K33,[1]DEPORTISTAS!$A:$B,2,FALSE))","v":""},{"$f":"IF(ISERROR(VLOOKUP(#REF!,#REF!,2,FALSE)),\"\",VLOOKUP(#REF!,#REF!,2,FALSE))","v":""},{"$f":"IF(ISERROR(VLOOKUP(#REF!,#REF!,2,FALSE)),\"\",VLOOKUP(#REF!,#REF!,2,FALSE))","v":""},{"$f":"IF(ISERROR(VLOOKUP(#REF!,#REF!,2,FALSE)),\"\",VLOOKUP(#REF!,#REF!,2,FALSE))","v":""},{"$f":"IF(ISERROR(VLOOKUP(#REF!,#REF!,2,FALSE)),\"\",VLOOKUP(#REF!,#REF!,2,FALSE))","v":""},{"$f":"IF(ISERROR(VLOOKUP(#REF!,#REF!,2,FALSE)),\"\",VLOOKUP(#REF!,#REF!,2,FALSE))","v":""},{"$f":"IF(ISERROR(VLOOKUP(#REF!,#REF!,2,FALSE)),\"\",VLOOKUP(#REF!,#REF!,2,FALSE))","v":""},{"$f":"IF(ISERROR(VLOOKUP(#REF!,#REF!,2,FALSE)),\"\",VLOOKUP(#REF!,#REF!,2,FALSE))","v":""},{"$f":"IF(ISERROR(VLOOKUP(#REF!,#REF!,2,FALSE)),\"\",VLOOKUP(#REF!,#REF!,2,FALSE))","v":""},null,{"$f":"IF(U33=\"\",\"\",VLOOKUP(U33,[1]DEPORTISTAS!$A:$B,2,FALSE))","v":""},{"$f":"IF(ISERROR(VLOOKUP(#REF!,#REF!,2,FALSE)),\"\",VLOOKUP(#REF!,#REF!,2,FALSE))","v":""},{"$f":"IF(ISERROR(VLOOKUP(#REF!,#REF!,2,FALSE)),\"\",VLOOKUP(#REF!,#REF!,2,FALSE))","v":""},{"$f":"IF(ISERROR(VLOOKUP(#REF!,#REF!,2,FALSE)),\"\",VLOOKUP(#REF!,#REF!,2,FALSE))","v":""},{"$f":"IF(ISERROR(VLOOKUP(#REF!,#REF!,2,FALSE)),\"\",VLOOKUP(#REF!,#REF!,2,FALSE))","v":""},{"$f":"IF(ISERROR(VLOOKUP(#REF!,#REF!,2,FALSE)),\"\",VLOOKUP(#REF!,#REF!,2,FALSE))","v":""},{"$f":"IF(ISERROR(VLOOKUP(#REF!,#REF!,2,FALSE)),\"\",VLOOKUP(#REF!,#REF!,2,FALSE))","v":""},{"$f":"IF(ISERROR(VLOOKUP(#REF!,#REF!,2,FALSE)),\"\",VLOOKUP(#REF!,#REF!,2,FALSE))","v":""},{"$f":"IF(ISERROR(VLOOKUP(#REF!,#REF!,2,FALSE)),\"\",VLOOKUP(#REF!,#REF!,2,FALSE))","v":""},null,{"$f":"IF(AE33=\"\",\"\",VLOOKUP(AE33,[1]DEPORTISTAS!$A:$B,2,FALSE))","v":""},{"$f":"IF(ISERROR(VLOOKUP(#REF!,#REF!,2,FALSE)),\"\",VLOOKUP(#REF!,#REF!,2,FALSE))","v":""},{"$f":"IF(ISERROR(VLOOKUP(#REF!,#REF!,2,FALSE)),\"\",VLOOKUP(#REF!,#REF!,2,FALSE))","v":""},{"$f":"IF(ISERROR(VLOOKUP(#REF!,#REF!,2,FALSE)),\"\",VLOOKUP(#REF!,#REF!,2,FALSE))","v":""},{"$f":"IF(ISERROR(VLOOKUP(#REF!,#REF!,2,FALSE)),\"\",VLOOKUP(#REF!,#REF!,2,FALSE))","v":""},{"$f":"IF(ISERROR(VLOOKUP(#REF!,#REF!,2,FALSE)),\"\",VLOOKUP(#REF!,#REF!,2,FALSE))","v":""},{"$f":"IF(ISERROR(VLOOKUP(#REF!,#REF!,2,FALSE)),\"\",VLOOKUP(#REF!,#REF!,2,FALSE))","v":""},{"$f":"IF(ISERROR(VLOOKUP(#REF!,#REF!,2,FALSE)),\"\",VLOOKUP(#REF!,#REF!,2,FALSE))","v":""},{"$f":"IF(ISERROR(VLOOKUP(#REF!,#REF!,2,FALSE)),\"\",VLOOKUP(#REF!,#REF!,2,FALSE))","v":""}]
[null,{"$f":"IF(K34=\"\",\"\",VLOOKUP(K34,[1]DEPORTISTAS!$A:$B,2,FALSE))","v":""},{"$f":"IF(ISERROR(VLOOKUP(#REF!,#REF!,2,FALSE)),\"\",VLOOKUP(#REF!,#REF!,2,FALSE))","v":""},{"$f":"IF(ISERROR(VLOOKUP(#REF!,#REF!,2,FALSE)),\"\",VLOOKUP(#REF!,#REF!,2,FALSE))","v":""},{"$f":"IF(ISERROR(VLOOKUP(#REF!,#REF!,2,FALSE)),\"\",VLOOKUP(#REF!,#REF!,2,FALSE))","v":""},{"$f":"IF(ISERROR(VLOOKUP(#REF!,#REF!,2,FALSE)),\"\",VLOOKUP(#REF!,#REF!,2,FALSE))","v":""},{"$f":"IF(ISERROR(VLOOKUP(#REF!,#REF!,2,FALSE)),\"\",VLOOKUP(#REF!,#REF!,2,FALSE))","v":""},{"$f":"IF(ISERROR(VLOOKUP(#REF!,#REF!,2,FALSE)),\"\",VLOOKUP(#REF!,#REF!,2,FALSE))","v":""},{"$f":"IF(ISERROR(VLOOKUP(#REF!,#REF!,2,FALSE)),\"\",VLOOKUP(#REF!,#REF!,2,FALSE))","v":""},{"$f":"IF(ISERROR(VLOOKUP(#REF!,#REF!,2,FALSE)),\"\",VLOOKUP(#REF!,#REF!,2,FALSE))","v":""},null,{"$f":"IF(U34=\"\",\"\",VLOOKUP(U34,[1]DEPORTISTAS!$A:$B,2,FALSE))","v":""},{"$f":"IF(ISERROR(VLOOKUP(#REF!,#REF!,2,FALSE)),\"\",VLOOKUP(#REF!,#REF!,2,FALSE))","v":""},{"$f":"IF(ISERROR(VLOOKUP(#REF!,#REF!,2,FALSE)),\"\",VLOOKUP(#REF!,#REF!,2,FALSE))","v":""},{"$f":"IF(ISERROR(VLOOKUP(#REF!,#REF!,2,FALSE)),\"\",VLOOKUP(#REF!,#REF!,2,FALSE))","v":""},{"$f":"IF(ISERROR(VLOOKUP(#REF!,#REF!,2,FALSE)),\"\",VLOOKUP(#REF!,#REF!,2,FALSE))","v":""},{"$f":"IF(ISERROR(VLOOKUP(#REF!,#REF!,2,FALSE)),\"\",VLOOKUP(#REF!,#REF!,2,FALSE))","v":""},{"$f":"IF(ISERROR(VLOOKUP(#REF!,#REF!,2,FALSE)),\"\",VLOOKUP(#REF!,#REF!,2,FALSE))","v":""},{"$f":"IF(ISERROR(VLOOKUP(#REF!,#REF!,2,FALSE)),\"\",VLOOKUP(#REF!,#REF!,2,FALSE))","v":""},{"$f":"IF(ISERROR(VLOOKUP(#REF!,#REF!,2,FALSE)),\"\",VLOOKUP(#REF!,#REF!,2,FALSE))","v":""},null,{"$f":"IF(AE34=\"\",\"\",VLOOKUP(AE34,[1]DEPORTISTAS!$A:$B,2,FALSE))","v":""},{"$f":"IF(ISERROR(VLOOKUP(#REF!,#REF!,2,FALSE)),\"\",VLOOKUP(#REF!,#REF!,2,FALSE))","v":""},{"$f":"IF(ISERROR(VLOOKUP(#REF!,#REF!,2,FALSE)),\"\",VLOOKUP(#REF!,#REF!,2,FALSE))","v":""},{"$f":"IF(ISERROR(VLOOKUP(#REF!,#REF!,2,FALSE)),\"\",VLOOKUP(#REF!,#REF!,2,FALSE))","v":""},{"$f":"IF(ISERROR(VLOOKUP(#REF!,#REF!,2,FALSE)),\"\",VLOOKUP(#REF!,#REF!,2,FALSE))","v":""},{"$f":"IF(ISERROR(VLOOKUP(#REF!,#REF!,2,FALSE)),\"\",VLOOKUP(#REF!,#REF!,2,FALSE))","v":""},{"$f":"IF(ISERROR(VLOOKUP(#REF!,#REF!,2,FALSE)),\"\",VLOOKUP(#REF!,#REF!,2,FALSE))","v":""},{"$f":"IF(ISERROR(VLOOKUP(#REF!,#REF!,2,FALSE)),\"\",VLOOKUP(#REF!,#REF!,2,FALSE))","v":""},{"$f":"IF(ISERROR(VLOOKUP(#REF!,#REF!,2,FALSE)),\"\",VLOOKUP(#REF!,#REF!,2,FALSE))","v":""}]
[]
["(1)","A OMPLIR PER LA FEDERACIÓ",null,null,null,null,null,null,null,null,null,null,null,"Segell",null,null,null,null,null,null,null,null,null,"El Secretari del Club"]

{"sheet":"2ª (fase pvia)","index":9,"n_rows":36,"n_cols":34,"rows_kept":36,"cut":false,"hidden":true,"merged":[[35,13,35,17],[32,1,32,9],[32,11,32,19],[32,21,32,29],[33,1,33,9],[33,11,33,19],[33,21,33,29],[30,1,30,9],[30,11,30,19],[30,21,30,29],[31,1,31,9],[31,11,31,19],[31,21,31,29],[28,1,28,9],[28,11,28,19],[28,21,28,29],[29,1,29,9],[29,11,29,19],[29,21,29,29],[26,1,26,9],[26,11,26,19],[26,21,26,29],[27,1,27,9],[27,11,27,19],[27,21,27,29],[24,1,24,9],[24,11,24,19],[24,21,24,29],[25,1,25,9],[25,11,25,19],[25,21,25,29],[22,1,22,9],[22,11,22,19],[22,21,22,29],[23,1,23,9],[23,11,23,19],[23,21,23,29],[20,1,20,9],[20,11,20,19],[20,21,20,29],[21,1,21,9],[21,11,21,19],[21,21,21,29],[17,0,17,1],[17,2,17,14],[17,16,17,19],[17,20,17,30],[19,1,19,9],[19,11,19,19],[19,21,19,29],[4,5,4,19],[4,27,4,28],[10,25,11,26],[10,27,11,30],[12,20,13,23],[12,25,13,26],[12,27,13,30],[6,0,16,2],[6,18,14,19],[6,25,7,26],[6,27,7,30],[8,20,9,22],[8,25,9,26],[8,27,9,30],[10,20,11,23],[14,20,15,23],[14,25,15,26],[14,27,15,30]]}
[]
[null,null,"Federació Catalana de Petanca"]
[null,null,"Rambla Guipúscoa, 23-25. 3er. Of. D i E - Tel. 93 268 00 48  - 08018 BARCELONA"]
[]
["                      Nom del Club",null,null,null,null,"   CLUB PETANCA PRAT ",null,null,null,null,null,null,null,null,null,null,null,null,null,null,null,null,null,null,"Núm club:",null,null,9]
[]
["per participar en ",null,null,"Opens",null,null,null,null,null,null,null,null,null,null,null,null,null,null,"Lliga"]
[]
[null,null,null,"Campionat de Catalunya de Clubs Tripletes",null,null,null,null,null,null,null,null,null,null,"X",null,null,null,null,null,"Lliga Masculina",null,null,null,null,"Divisió"]
[]
[null,null,null,"Campionat de Catalunya de Clubs Dobletes",null,null,null,null,null,null,null,null,null,null,null,null,null,null,null,null,"Lliga Femenina",null,null,null,null,"Divisió"]
[]
[null,null,null,"Campionat de Catalunya Individual",null,null,null,null,null,null,null,null,null,null,null,null,null,null,null,null,"División Honor",null,null,null,null,"Divisió"]
[]
[null,null,null,"Campionat de Catalunya Individual  (tir)"]
[]
[]
["Categoria",null,"SEGUNDA MASCULINA",null,null,null,null,null,null,null,null,null,null,null,null,null,"Observacions",null,null,null,"        JUAN A. GARCIA CUADRADO  -   615240490"]
[]
["(1)","CAPITÀ",null,null,null,null,null,null,null,null,"Número Llicencia","JUGADOR",null,null,null,null,null,null,null,null,"Número Llicencia","JUGADOR",null,null,null,null,null,null,null,null,"Número Llicencia"]
[null,{"$f":"IF(K21=\"\",\"\",VLOOKUP(K21,[1]DEPORTISTAS!$A:$B,2,FALSE))","v":""},null,null,null,null,null,null,null,null,null,{"$f":"IF(U21=\"\",\"\",VLOOKUP(U21,[1]DEPORTISTAS!$A:$B,2,FALSE))","v":""},null,null,null,null,null,null,null,null,null,{"$f":"IF(AE21=\"\",\"\",VLOOKUP(AE21,[1]DEPORTISTAS!$A:$B,2,FALSE))","v":""}]
[null,{"$f":"IF(K22=\"\",\"\",VLOOKUP(K22,[1]DEPORTISTAS!$A:$B,2,FALSE))","v":""},null,null,null,null,null,null,null,null,null,{"$f":"IF(U22=\"\",\"\",VLOOKUP(U22,[1]DEPORTISTAS!$A:$B,2,FALSE))","v":""},null,null,null,null,null,null,null,null,null,{"$f":"IF(AE22=\"\",\"\",VLOOKUP(AE22,[1]DEPORTISTAS!$A:$B,2,FALSE))","v":""},null,null,null,null,null,null,null,null,null,null,null,{"$f":"IF(ISERROR(VLOOKUP(K21,#REF!,2,FALSE)),\"\",VLOOKUP(K21,#REF!,2,FALSE))","v":""}]
[null,{"$f":"IF(K23=\"\",\"\",VLOOKUP(K23,[1]DEPORTISTAS!$A:$B,2,FALSE))","v":""},null,null,null,null,null,null,null,null,null,{"$f":"IF(U23=\"\",\"\",VLOOKUP(U23,[1]DEPORTISTAS!$A:$B,2,FALSE))","v":""},null,null,null,null,null,null,null,null,null,{"$f":"IF(AE23=\"\",\"\",VLOOKUP(AE23,[1]DEPORTISTAS!$A:$B,2,FALSE))","v":""}]
[null,{"$f":"IF(K24=\"\",\"\",VLOOKUP(K24,[1]DEPORTISTAS!$A:$B,2,FALSE))","v":""},null,null,null,null,null,null,null,null,null,{"$f":"IF(U24=\"\",\"\",VLOOKUP(U24,[1]DEPORTISTAS!$A:$B,2,FALSE))","v":""},null,null,null,null,null,null,null,null,null,{"$f":"IF(AE24=\"\",\"\",VLOOKUP(AE24,[1]DEPORTISTAS!$A:$B,2,FALSE))","v":""}]
[null,{"$f":"IF(K25=\"\",\"\",VLOOKUP(K25,[1]DEPORTISTAS!$A:$B,2,FALSE))","v":""},null,null,null,null,null,null,null,null,null,{"$f":"IF(U25=\"\",\"\",VLOOKUP(U25,[1]DEPORTISTAS!$A:$B,2,FALSE))","v":""},null,null,null,null,null,null,null,null,null,{"$f":"IF(AE25=\"\",\"\",VLOOKUP(AE25,[1]DEPORTISTAS!$A:$B,2,FALSE))","v":""}]
[null,{"$f":"IF(K26=\"\",\"\",VLOOKUP(K26,[1]DEPORTISTAS!$A:$B,2,FALSE))","v":""},null,null,null,null,null,null,null,null,null,{"$f":"IF(U26=\"\",\"\",VLOOKUP(U26,[1]DEPORTISTAS!$A:$B,2,FALSE))","v":""},null,null,null,null,null,null,null,null,null,{"$f":"IF(AE26=\"\",\"\",VLOOKUP(AE26,[1]DEPORTISTAS!$A:$B,2,FALSE))","v":""}]
[null,{"$f":"IF(K27=\"\",\"\",VLOOKUP(K27,[1]DEPORTISTAS!$A:$B,2,FALSE))","v":""},null,null,null,null,null,null,null,null,null,{"$f":"IF(U27=\"\",\"\",VLOOKUP(U27,[1]DEPORTISTAS!$A:$B,2,FALSE))","v":""},null,null,null,null,null,null,null,null,null,{"$f":"IF(AE27=\"\",\"\",VLOOKUP(AE27,[1]DEPORTISTAS!$A:$B,2,FALSE))","v":""}]
[null,{"$f":"IF(K28=\"\",\"\",VLOOKUP(K28,[1]DEPORTISTAS!$A:$B,2,FALSE))","v":""},null,null,null,null,null,null,null,null,null,{"$f":"IF(U28=\"\",\"\",VLOOKUP(U28,[1]DEPORTISTAS!$A:$B,2,FALSE))","v":""},null,null,null,null,null,null,null,null,null,{"$f":"IF(AE28=\"\",\"\",VLOOKUP(AE28,[1]DEPORTISTAS!$A:$B,2,FALSE))","v":""}]
[null,{"$f":"IF(K29=\"\",\"\",VLOOKUP(K29,[1]DEPORTISTAS!$A:$B,2,FALSE))","v":""},null,null,null,null,null,null,null,null,null,{"$f":"IF(U29=\"\",\"\",VLOOKUP(U29,[1]DEPORTISTAS!$A:$B,2,FALSE))","v":""},null,null,null,null,null,null,null,null,null,{"$f":"IF(AE29=\"\",\"\",VLOOKUP(AE29,[1]DEPORTISTAS!$A:$B,2,FALSE))","v":""}]
[null,{"$f":"IF(K30=\"\",\"\",VLOOKUP(K30,[1]DEPORTISTAS!$A:$B,2,FALSE))","v":""},null,null,null,null,null,null,null,null,null,{"$f":"IF(U30=\"\",\"\",VLOOKUP(U30,[1]DEPORTISTAS!$A:$B,2,FALSE))","v":""},null,null,null,null,null,null,null,null,null,{"$f":"IF(AE30=\"\",\"\",VLOOKUP(AE30,[1]DEPORTISTAS!$A:$B,2,FALSE))","v":""}]
[null,{"$f":"IF(K31=\"\",\"\",VLOOKUP(K31,[1]DEPORTISTAS!$A:$B,2,FALSE))","v":""},null,null,null,null,null,null,null,null,null,{"$f":"IF(U31=\"\",\"\",VLOOKUP(U31,[1]DEPORTISTAS!$A:$B,2,FALSE))","v":""},null,null,null,null,null,null,null,null,null,{"$f":"IF(AE31=\"\",\"\",VLOOKUP(AE31,[1]DEPORTISTAS!$A:$B,2,FALSE))","v":""}]
[null,{"$f":"IF(K32=\"\",\"\",VLOOKUP(K32,[1]DEPORTISTAS!$A:$B,2,FALSE))","v":""},null,null,null,null,null,null,null,null,null,{"$f":"IF(U32=\"\",\"\",VLOOKUP(U32,[1]DEPORTISTAS!$A:$B,2,FALSE))","v":""},null,null,null,null,null,null,null,null,null,{"$f":"IF(AE32=\"\",\"\",VLOOKUP(AE32,[1]DEPORTISTAS!$A:$B,2,FALSE))","v":""}]
[null,{"$f":"IF(K33=\"\",\"\",VLOOKUP(K33,[1]DEPORTISTAS!$A:$B,2,FALSE))","v":""},null,null,null,null,null,null,null,null,null,{"$f":"IF(U33=\"\",\"\",VLOOKUP(U33,[1]DEPORTISTAS!$A:$B,2,FALSE))","v":""},null,null,null,null,null,null,null,null,null,{"$f":"IF(AE33=\"\",\"\",VLOOKUP(AE33,[1]DEPORTISTAS!$A:$B,2,FALSE))","v":""}]
[null,{"$f":"IF(K34=\"\",\"\",VLOOKUP(K34,[1]DEPORTISTAS!$A:$B,2,FALSE))","v":""},null,null,null,null,null,null,null,null,null,{"$f":"IF(U34=\"\",\"\",VLOOKUP(U34,[1]DEPORTISTAS!$A:$B,2,FALSE))","v":""},null,null,null,null,null,null,null,null,null,{"$f":"IF(AE34=\"\",\"\",VLOOKUP(AE34,[1]DEPORTISTAS!$A:$B,2,FALSE))","v":""}]
[]
["(1)","A OMPLIR PER LA FEDERACIÓ",null,null,null,null,null,null,null,null,null,null,null,"Segell",null,null,null,null,null,null,null,null,null,"El Secretari del Club"]

{"sheet":"1ª.(dtas)","index":10,"n_rows":36,"n_cols":34,"rows_kept":36,"cut":false,"hidden":true,"merged":[[33,1,33,9],[33,11,33,19],[33,21,33,29],[35,13,35,17],[20,21,20,29],[31,1,31,9],[31,11,31,19],[31,21,31,29],[32,1,32,9],[32,11,32,19],[32,21,32,29],[29,1,29,9],[29,11,29,19],[29,21,29,29],[30,1,30,9],[30,11,30,19],[30,21,30,29],[27,1,27,9],[27,11,27,19],[27,21,27,29],[28,1,28,9],[28,11,28,19],[28,21,28,29],[25,1,25,9],[25,11,25,19],[25,21,25,29],[26,1,26,9],[26,11,26,19],[26,21,26,29],[23,1,23,9],[23,11,23,19],[23,21,23,29],[24,1,24,9],[24,11,24,19],[24,21,24,29],[22,1,22,9],[22,11,22,19],[22,21,22,29],[17,0,17,1],[17,2,17,14],[17,16,17,19],[17,20,17,30],[19,1,19,9],[19,11,19,19],[19,21,19,29],[20,1,20,9],[20,11,20,19],[21,1,21,9],[21,11,21,19],[21,21,21,29],[4,5,4,19],[4,27,4,28],[10,25,11,26],[10,27,11,30],[12,20,13,23],[12,25,13,26],[12,27,13,30],[6,0,16,2],[6,18,14,19],[6,25,7,26],[6,27,7,30],[8,20,9,22],[8,25,9,26],[8,27,9,30],[10,20,11,23],[14,20,15,23],[14,25,15,26],[14,27,15,30]]}
[]
[null,null,"Federació Catalana de Petanca"]
[null,null,"Rambla Guipúscoa, 23-25. 3er. Of. D i E - Tel. 93 268 00 48  - 08018 BARCELONA"]
[]
["                      Nom del Club",null,null,null,null,"   CLUB PETANCA PRAT ",null,null,null,null,null,null,null,null,null,null,null,null,null,null,null,null,null,null,"Núm club:",null,null,9]
[]
["per participar en ",null,null,"Opens",null,null,null,null,null,null,null,null,null,null,null,null,null,null,"Lliga"]
[]
[null,null,null,"Campionat de Catalunya de Clubs Tripletes",null,null,null,null,null,null,null,null,null,null,null,null,null,null,null,null,"Lliga Masculina",null,null,null,null,"Divisió"]
[]
[null,null,null,"Campionat de Catalunya de Clubs Dobletes",null,null,null,null,null,null,null,null,null,null,"X",null,null,null,null,null,"Lliga Femenina",null,null,null,null,"Divisió"]
[]
[null,null,null,"Campionat de Catalunya Individual",null,null,null,null,null,null,null,null,null,null,null,null,null,null,null,null,"División Honor",null,null,null,null,"Divisió"]
[]
[null,null,null,"Campionat de Catalunya Individual  (tir)"]
[]
[]
["Categoria",null,"PRIMERA MASCULINA",null,null,null,null,null,null,null,null,null,null,null,null,null,"Observacions",null,null,null,"        JUAN A. GARCIA CUADRADO  -   615240490"]
[]
["(1)","CAPITÀ",null,null,null,null,null,null,null,null,"Número Llicencia","JUGADOR",null,null,null,null,null,null,null,null,"Número Llicencia","JUGADOR",null,null,null,null,null,null,null,null,"Número Llicencia"]
[null,{"$f":"IF(K21=\"\",\"\",VLOOKUP(K21,[1]DEPORTISTAS!$A:$B,2,FALSE))","v":""},null,null,null,null,null,null,null,null,null,{"$f":"IF(U21=\"\",\"\",VLOOKUP(U21,[1]DEPORTISTAS!$A:$B,2,FALSE))","v":""},null,null,null,null,null,null,null,null,null,{"$f":"IF(AE21=\"\",\"\",VLOOKUP(AE21,[1]DEPORTISTAS!$A:$B,2,FALSE))","v":""}]
[null,{"$f":"IF(K22=\"\",\"\",VLOOKUP(K22,[1]DEPORTISTAS!$A:$B,2,FALSE))","v":""},{"$f":"IF(ISERROR(VLOOKUP(#REF!,#REF!,2,FALSE)),\"\",VLOOKUP(#REF!,#REF!,2,FALSE))","v":""},{"$f":"IF(ISERROR(VLOOKUP(#REF!,#REF!,2,FALSE)),\"\",VLOOKUP(#REF!,#REF!,2,FALSE))","v":""},{"$f":"IF(ISERROR(VLOOKUP(#REF!,#REF!,2,FALSE)),\"\",VLOOKUP(#REF!,#REF!,2,FALSE))","v":""},{"$f":"IF(ISERROR(VLOOKUP(#REF!,#REF!,2,FALSE)),\"\",VLOOKUP(#REF!,#REF!,2,FALSE))","v":""},{"$f":"IF(ISERROR(VLOOKUP(#REF!,#REF!,2,FALSE)),\"\",VLOOKUP(#REF!,#REF!,2,FALSE))","v":""},{"$f":"IF(ISERROR(VLOOKUP(#REF!,#REF!,2,FALSE)),\"\",VLOOKUP(#REF!,#REF!,2,FALSE))","v":""},{"$f":"IF(ISERROR(VLOOKUP(#REF!,#REF!,2,FALSE)),\"\",VLOOKUP(#REF!,#REF!,2,FALSE))","v":""},{"$f":"IF(ISERROR(VLOOKUP(#REF!,#REF!,2,FALSE)),\"\",VLOOKUP(#REF!,#REF!,2,FALSE))","v":""},null,{"$f":"IF(U22=\"\",\"\",VLOOKUP(U22,[1]DEPORTISTAS!$A:$B,2,FALSE))","v":""},{"$f":"IF(ISERROR(VLOOKUP(#REF!,#REF!,2,FALSE)),\"\",VLOOKUP(#REF!,#REF!,2,FALSE))","v":""},{"$f":"IF(ISERROR(VLOOKUP(#REF!,#REF!,2,FALSE)),\"\",VLOOKUP(#REF!,#REF!,2,FALSE))","v":""},{"$f":"IF(ISERROR(VLOOKUP(#REF!,#REF!,2,FALSE)),\"\",VLOOKUP(#REF!,#REF!,2,FALSE))","v":""},{"$f":"IF(ISERROR(VLOOKUP(#REF!,#REF!,2,FALSE)),\"\",VLOOKUP(#REF!,#REF!,2,FALSE))","v":""},{"$f":"IF(ISERROR(VLOOKUP(#REF!,#REF!,2,FALSE)),\"\",VLOOKUP(#REF!,#REF!,2,FALSE))","v":""},{"$f":"IF(ISERROR(VLOOKUP(#REF!,#REF!,2,FALSE)),\"\",VLOOKUP(#REF!,#REF!,2,FALSE))","v":""},{"$f":"IF(ISERROR(VLOOKUP(#REF!,#REF!,2,FALSE)),\"\",VLOOKUP(#REF!,#REF!,2,FALSE))","v":""},{"$f":"IF(ISERROR(VLOOKUP(#REF!,#REF!,2,FALSE)),\"\",VLOOKUP(#REF!,#REF!,2,FALSE))","v":""},null,{"$f":"IF(AE22=\"\",\"\",VLOOKUP(AE22,[1]DEPORTISTAS!$A:$B,2,FALSE))","v":""},{"$f":"IF(ISERROR(VLOOKUP(#REF!,#REF!,2,FALSE)),\"\",VLOOKUP(#REF!,#REF!,2,FALSE))","v":""},{"$f":"IF(ISERROR(VLOOKUP(#REF!,#REF!,2,FALSE)),\"\",VLOOKUP(#REF!,#REF!,2,FALSE))","v":""},{"$f":"IF(ISERROR(VLOOKUP(#REF!,#REF!,2,FALSE)),\"\",VLOOKUP(#REF!,#REF!,2,FALSE))","v":""},{"$f":"IF(ISERROR(VLOOKUP(#REF!,#REF!,2,FALSE)),\"\",VLOOKUP(#REF!,#REF!,2,FALSE))","v":""},{"$f":"IF(ISERROR(VLOOKUP(#REF!,#REF!,2,FALSE)),\"\",VLOOKUP(#REF!,#REF!,2,FALSE))","v":""},{"$f":"IF(ISERROR(VLOOKUP(#REF!,#REF!,2,FALSE)),\"\",VLOOKUP(#REF!,#REF!,2,FALSE))","v":""},{"$f":"IF(ISERROR(VLOOKUP(#REF!,#REF!,2,FALSE)),\"\",VLOOKUP(#REF!,#REF!,2,FALSE))","v":""},{"$f":"IF(ISERROR(VLOOKUP(#REF!,#REF!,2,FALSE)),\"\",VLOOKUP(#REF!,#REF!,2,FALSE))","v":""},null,null,null,{"$f":"IF(ISERROR(VLOOKUP(K21,#REF!,2,FALSE)),\"\",VLOOKUP(K21,#REF!,2,FALSE))","v":""}]
[null,{"$f":"IF(K23=\"\",\"\",VLOOKUP(K23,[1]DEPORTISTAS!$A:$B,2,FALSE))","v":""},{"$f":"IF(ISERROR(VLOOKUP(#REF!,#REF!,2,FALSE)),\"\",VLOOKUP(#REF!,#REF!,2,FALSE))","v":""},{"$f":"IF(ISERROR(VLOOKUP(#REF!,#REF!,2,FALSE)),\"\",VLOOKUP(#REF!,#REF!,2,FALSE))","v":""},{"$f":"IF(ISERROR(VLOOKUP(#REF!,#REF!,2,FALSE)),\"\",VLOOKUP(#REF!,#REF!,2,FALSE))","v":""},{"$f":"IF(ISERROR(VLOOKUP(#REF!,#REF!,2,FALSE)),\"\",VLOOKUP(#REF!,#REF!,2,FALSE))","v":""},{"$f":"IF(ISERROR(VLOOKUP(#REF!,#REF!,2,FALSE)),\"\",VLOOKUP(#REF!,#REF!,2,FALSE))","v":""},{"$f":"IF(ISERROR(VLOOKUP(#REF!,#REF!,2,FALSE)),\"\",VLOOKUP(#REF!,#REF!,2,FALSE))","v":""},{"$f":"IF(ISERROR(VLOOKUP(#REF!,#REF!,2,FALSE)),\"\",VLOOKUP(#REF!,#REF!,2,FALSE))","v":""},{"$f":"IF(ISERROR(VLOOKUP(#REF!,#REF!,2,FALSE)),\"\",VLOOKUP(#REF!,#REF!,2,FALSE))","v":""},null,{"$f":"IF(U23=\"\",\"\",VLOOKUP(U23,[1]DEPORTISTAS!$A:$B,2,FALSE))","v":""},{"$f":"IF(ISERROR(VLOOKUP(#REF!,#REF!,2,FALSE)),\"\",VLOOKUP(#REF!,#REF!,2,FALSE))","v":""},{"$f":"IF(ISERROR(VLOOKUP(#REF!,#REF!,2,FALSE)),\"\",VLOOKUP(#REF!,#REF!,2,FALSE))","v":""},{"$f":"IF(ISERROR(VLOOKUP(#REF!,#REF!,2,FALSE)),\"\",VLOOKUP(#REF!,#REF!,2,FALSE))","v":""},{"$f":"IF(ISERROR(VLOOKUP(#REF!,#REF!,2,FALSE)),\"\",VLOOKUP(#REF!,#REF!,2,FALSE))","v":""},{"$f":"IF(ISERROR(VLOOKUP(#REF!,#REF!,2,FALSE)),\"\",VLOOKUP(#REF!,#REF!,2,FALSE))","v":""},{"$f":"IF(ISERROR(VLOOKUP(#REF!,#REF!,2,FALSE)),\"\",VLOOKUP(#REF!,#REF!,2,FALSE))","v":""},{"$f":"IF(ISERROR(VLOOKUP(#REF!,#REF!,2,FALSE)),\"\",VLOOKUP(#REF!,#REF!,2,FALSE))","v":""},{"$f":"IF(ISERROR(VLOOKUP(#REF!,#REF!,2,FALSE)),\"\",VLOOKUP(#REF!,#REF!,2,FALSE))","v":""},null,{"$f":"IF(AE23=\"\",\"\",VLOOKUP(AE23,[1]DEPORTISTAS!$A:$B,2,FALSE))","v":""},{"$f":"IF(ISERROR(VLOOKUP(#REF!,#REF!,2,FALSE)),\"\",VLOOKUP(#REF!,#REF!,2,FALSE))","v":""},{"$f":"IF(ISERROR(VLOOKUP(#REF!,#REF!,2,FALSE)),\"\",VLOOKUP(#REF!,#REF!,2,FALSE))","v":""},{"$f":"IF(ISERROR(VLOOKUP(#REF!,#REF!,2,FALSE)),\"\",VLOOKUP(#REF!,#REF!,2,FALSE))","v":""},{"$f":"IF(ISERROR(VLOOKUP(#REF!,#REF!,2,FALSE)),\"\",VLOOKUP(#REF!,#REF!,2,FALSE))","v":""},{"$f":"IF(ISERROR(VLOOKUP(#REF!,#REF!,2,FALSE)),\"\",VLOOKUP(#REF!,#REF!,2,FALSE))","v":""},{"$f":"IF(ISERROR(VLOOKUP(#REF!,#REF!,2,FALSE)),\"\",VLOOKUP(#REF!,#REF!,2,FALSE))","v":""},{"$f":"IF(ISERROR(VLOOKUP(#REF!,#REF!,2,FALSE)),\"\",VLOOKUP(#REF!,#REF!,2,FALSE))","v":""},{"$f":"IF(ISERROR(VLOOKUP(#REF!,#REF!,2,FALSE)),\"\",VLOOKUP(#REF!,#REF!,2,FALSE))","v":""}]
[null,{"$f":"IF(K24=\"\",\"\",VLOOKUP(K24,[1]DEPORTISTAS!$A:$B,2,FALSE))","v":""},{"$f":"IF(ISERROR(VLOOKUP(#REF!,#REF!,2,FALSE)),\"\",VLOOKUP(#REF!,#REF!,2,FALSE))","v":""},{"$f":"IF(ISERROR(VLOOKUP(#REF!,#REF!,2,FALSE)),\"\",VLOOKUP(#REF!,#REF!,2,FALSE))","v":""},{"$f":"IF(ISERROR(VLOOKUP(#REF!,#REF!,2,FALSE)),\"\",VLOOKUP(#REF!,#REF!,2,FALSE))","v":""},{"$f":"IF(ISERROR(VLOOKUP(#REF!,#REF!,2,FALSE)),\"\",VLOOKUP(#REF!,#REF!,2,FALSE))","v":""},{"$f":"IF(ISERROR(VLOOKUP(#REF!,#REF!,2,FALSE)),\"\",VLOOKUP(#REF!,#REF!,2,FALSE))","v":""},{"$f":"IF(ISERROR(VLOOKUP(#REF!,#REF!,2,FALSE)),\"\",VLOOKUP(#REF!,#REF!,2,FALSE))","v":""},{"$f":"IF(ISERROR(VLOOKUP(#REF!,#REF!,2,FALSE)),\"\",VLOOKUP(#REF!,#REF!,2,FALSE))","v":""},{"$f":"IF(ISERROR(VLOOKUP(#REF!,#REF!,2,FALSE)),\"\",VLOOKUP(#REF!,#REF!,2,FALSE))","v":""},null,{"$f":"IF(U24=\"\",\"\",VLOOKUP(U24,[1]DEPORTISTAS!$A:$B,2,FALSE))","v":""},{"$f":"IF(ISERROR(VLOOKUP(#REF!,#REF!,2,FALSE)),\"\",VLOOKUP(#REF!,#REF!,2,FALSE))","v":""},{"$f":"IF(ISERROR(VLOOKUP(#REF!,#REF!,2,FALSE)),\"\",VLOOKUP(#REF!,#REF!,2,FALSE))","v":""},{"$f":"IF(ISERROR(VLOOKUP(#REF!,#REF!,2,FALSE)),\"\",VLOOKUP(#REF!,#REF!,2,FALSE))","v":""},{"$f":"IF(ISERROR(VLOOKUP(#REF!,#REF!,2,FALSE)),\"\",VLOOKUP(#REF!,#REF!,2,FALSE))","v":""},{"$f":"IF(ISERROR(VLOOKUP(#REF!,#REF!,2,FALSE)),\"\",VLOOKUP(#REF!,#REF!,2,FALSE))","v":""},{"$f":"IF(ISERROR(VLOOKUP(#REF!,#REF!,2,FALSE)),\"\",VLOOKUP(#REF!,#REF!,2,FALSE))","v":""},{"$f":"IF(ISERROR(VLOOKUP(#REF!,#REF!,2,FALSE)),\"\",VLOOKUP(#REF!,#REF!,2,FALSE))","v":""},{"$f":"IF(ISERROR(VLOOKUP(#REF!,#REF!,2,FALSE)),\"\",VLOOKUP(#REF!,#REF!,2,FALSE))","v":""},null,{"$f":"IF(AE24=\"\",\"\",VLOOKUP(AE24,[1]DEPORTISTAS!$A:$B,2,FALSE))","v":""},{"$f":"IF(ISERROR(VLOOKUP(#REF!,#REF!,2,FALSE)),\"\",VLOOKUP(#REF!,#REF!,2,FALSE))","v":""},{"$f":"IF(ISERROR(VLOOKUP(#REF!,#REF!,2,FALSE)),\"\",VLOOKUP(#REF!,#REF!,2,FALSE))","v":""},{"$f":"IF(ISERROR(VLOOKUP(#REF!,#REF!,2,FALSE)),\"\",VLOOKUP(#REF!,#REF!,2,FALSE))","v":""},{"$f":"IF(ISERROR(VLOOKUP(#REF!,#REF!,2,FALSE)),\"\",VLOOKUP(#REF!,#REF!,2,FALSE))","v":""},{"$f":"IF(ISERROR(VLOOKUP(#REF!,#REF!,2,FALSE)),\"\",VLOOKUP(#REF!,#REF!,2,FALSE))","v":""},{"$f":"IF(ISERROR(VLOOKUP(#REF!,#REF!,2,FALSE)),\"\",VLOOKUP(#REF!,#REF!,2,FALSE))","v":""},{"$f":"IF(ISERROR(VLOOKUP(#REF!,#REF!,2,FALSE)),\"\",VLOOKUP(#REF!,#REF!,2,FALSE))","v":""},{"$f":"IF(ISERROR(VLOOKUP(#REF!,#REF!,2,FALSE)),\"\",VLOOKUP(#REF!,#REF!,2,FALSE))","v":""}]
[null,{"$f":"IF(K25=\"\",\"\",VLOOKUP(K25,[1]DEPORTISTAS!$A:$B,2,FALSE))","v":""},{"$f":"IF(ISERROR(VLOOKUP(#REF!,#REF!,2,FALSE)),\"\",VLOOKUP(#REF!,#REF!,2,FALSE))","v":""},{"$f":"IF(ISERROR(VLOOKUP(#REF!,#REF!,2,FALSE)),\"\",VLOOKUP(#REF!,#REF!,2,FALSE))","v":""},{"$f":"IF(ISERROR(VLOOKUP(#REF!,#REF!,2,FALSE)),\"\",VLOOKUP(#REF!,#REF!,2,FALSE))","v":""},{"$f":"IF(ISERROR(VLOOKUP(#REF!,#REF!,2,FALSE)),\"\",VLOOKUP(#REF!,#REF!,2,FALSE))","v":""},{"$f":"IF(ISERROR(VLOOKUP(#REF!,#REF!,2,FALSE)),\"\",VLOOKUP(#REF!,#REF!,2,FALSE))","v":""},{"$f":"IF(ISERROR(VLOOKUP(#REF!,#REF!,2,FALSE)),\"\",VLOOKUP(#REF!,#REF!,2,FALSE))","v":""},{"$f":"IF(ISERROR(VLOOKUP(#REF!,#REF!,2,FALSE)),\"\",VLOOKUP(#REF!,#REF!,2,FALSE))","v":""},{"$f":"IF(ISERROR(VLOOKUP(#REF!,#REF!,2,FALSE)),\"\",VLOOKUP(#REF!,#REF!,2,FALSE))","v":""},null,{"$f":"IF(U25=\"\",\"\",VLOOKUP(U25,[1]DEPORTISTAS!$A:$B,2,FALSE))","v":""},{"$f":"IF(ISERROR(VLOOKUP(#REF!,#REF!,2,FALSE)),\"\",VLOOKUP(#REF!,#REF!,2,FALSE))","v":""},{"$f":"IF(ISERROR(VLOOKUP(#REF!,#REF!,2,FALSE)),\"\",VLOOKUP(#REF!,#REF!,2,FALSE))","v":""},{"$f":"IF(ISERROR(VLOOKUP(#REF!,#REF!,2,FALSE)),\"\",VLOOKUP(#REF!,#REF!,2,FALSE))","v":""},{"$f":"IF(ISERROR(VLOOKUP(#REF!,#REF!,2,FALSE)),\"\",VLOOKUP(#REF!,#REF!,2,FALSE))","v":""},{"$f":"IF(ISERROR(VLOOKUP(#REF!,#REF!,2,FALSE)),\"\",VLOOKUP(#REF!,#REF!,2,FALSE))","v":""},{"$f":"IF(ISERROR(VLOOKUP(#REF!,#REF!,2,FALSE)),\"\",VLOOKUP(#REF!,#REF!,2,FALSE))","v":""},{"$f":"IF(ISERROR(VLOOKUP(#REF!,#REF!,2,FALSE)),\"\",VLOOKUP(#REF!,#REF!,2,FALSE))","v":""},{"$f":"IF(ISERROR(VLOOKUP(#REF!,#REF!,2,FALSE)),\"\",VLOOKUP(#REF!,#REF!,2,FALSE))","v":""},null,{"$f":"IF(AE25=\"\",\"\",VLOOKUP(AE25,[1]DEPORTISTAS!$A:$B,2,FALSE))","v":""},{"$f":"IF(ISERROR(VLOOKUP(#REF!,#REF!,2,FALSE)),\"\",VLOOKUP(#REF!,#REF!,2,FALSE))","v":""},{"$f":"IF(ISERROR(VLOOKUP(#REF!,#REF!,2,FALSE)),\"\",VLOOKUP(#REF!,#REF!,2,FALSE))","v":""},{"$f":"IF(ISERROR(VLOOKUP(#REF!,#REF!,2,FALSE)),\"\",VLOOKUP(#REF!,#REF!,2,FALSE))","v":""},{"$f":"IF(ISERROR(VLOOKUP(#REF!,#REF!,2,FALSE)),\"\",VLOOKUP(#REF!,#REF!,2,FALSE))","v":""},{"$f":"IF(ISERROR(VLOOKUP(#REF!,#REF!,2,FALSE)),\"\",VLOOKUP(#REF!,#REF!,2,FALSE))","v":""},{"$f":"IF(ISERROR(VLOOKUP(#REF!,#REF!,2,FALSE)),\"\",VLOOKUP(#REF!,#REF!,2,FALSE))","v":""},{"$f":"IF(ISERROR(VLOOKUP(#REF!,#REF!,2,FALSE)),\"\",VLOOKUP(#REF!,#REF!,2,FALSE))","v":""},{"$f":"IF(ISERROR(VLOOKUP(#REF!,#REF!,2,FALSE)),\"\",VLOOKUP(#REF!,#REF!,2,FALSE))","v":""}]
[null,{"$f":"IF(K26=\"\",\"\",VLOOKUP(K26,[1]DEPORTISTAS!$A:$B,2,FALSE))","v":""},{"$f":"IF(ISERROR(VLOOKUP(#REF!,#REF!,2,FALSE)),\"\",VLOOKUP(#REF!,#REF!,2,FALSE))","v":""},{"$f":"IF(ISERROR(VLOOKUP(#REF!,#REF!,2,FALSE)),\"\",VLOOKUP(#REF!,#REF!,2,FALSE))","v":""},{"$f":"IF(ISERROR(VLOOKUP(#REF!,#REF!,2,FALSE)),\"\",VLOOKUP(#REF!,#REF!,2,FALSE))","v":""},{"$f":"IF(ISERROR(VLOOKUP(#REF!,#REF!,2,FALSE)),\"\",VLOOKUP(#REF!,#REF!,2,FALSE))","v":""},{"$f":"IF(ISERROR(VLOOKUP(#REF!,#REF!,2,FALSE)),\"\",VLOOKUP(#REF!,#REF!,2,FALSE))","v":""},{"$f":"IF(ISERROR(VLOOKUP(#REF!,#REF!,2,FALSE)),\"\",VLOOKUP(#REF!,#REF!,2,FALSE))","v":""},{"$f":"IF(ISERROR(VLOOKUP(#REF!,#REF!,2,FALSE)),\"\",VLOOKUP(#REF!,#REF!,2,FALSE))","v":""},{"$f":"IF(ISERROR(VLOOKUP(#REF!,#REF!,2,FALSE)),\"\",VLOOKUP(#REF!,#REF!,2,FALSE))","v":""},null,{"$f":"IF(U26=\"\",\"\",VLOOKUP(U26,[1]DEPORTISTAS!$A:$B,2,FALSE))","v":""},{"$f":"IF(ISERROR(VLOOKUP(#REF!,#REF!,2,FALSE)),\"\",VLOOKUP(#REF!,#REF!,2,FALSE))","v":""},{"$f":"IF(ISERROR(VLOOKUP(#REF!,#REF!,2,FALSE)),\"\",VLOOKUP(#REF!,#REF!,2,FALSE))","v":""},{"$f":"IF(ISERROR(VLOOKUP(#REF!,#REF!,2,FALSE)),\"\",VLOOKUP(#REF!,#REF!,2,FALSE))","v":""},{"$f":"IF(ISERROR(VLOOKUP(#REF!,#REF!,2,FALSE)),\"\",VLOOKUP(#REF!,#REF!,2,FALSE))","v":""},{"$f":"IF(ISERROR(VLOOKUP(#REF!,#REF!,2,FALSE)),\"\",VLOOKUP(#REF!,#REF!,2,FALSE))","v":""},{"$f":"IF(ISERROR(VLOOKUP(#REF!,#REF!,2,FALSE)),\"\",VLOOKUP(#REF!,#REF!,2,FALSE))","v":""},{"$f":"IF(ISERROR(VLOOKUP(#REF!,#REF!,2,FALSE)),\"\",VLOOKUP(#REF!,#REF!,2,FALSE))","v":""},{"$f":"IF(ISERROR(VLOOKUP(#REF!,#REF!,2,FALSE)),\"\",VLOOKUP(#REF!,#REF!,2,FALSE))","v":""},null,{"$f":"IF(AE26=\"\",\"\",VLOOKUP(AE26,[1]DEPORTISTAS!$A:$B,2,FALSE))","v":""},{"$f":"IF(ISERROR(VLOOKUP(#REF!,#REF!,2,FALSE)),\"\",VLOOKUP(#REF!,#REF!,2,FALSE))","v":""},{"$f":"IF(ISERROR(VLOOKUP(#REF!,#REF!,2,FALSE)),\"\",VLOOKUP(#REF!,#REF!,2,FALSE))","v":""},{"$f":"IF(ISERROR(VLOOKUP(#REF!,#REF!,2,FALSE)),\"\",VLOOKUP(#REF!,#REF!,2,FALSE))","v":""},{"$f":"IF(ISERROR(VLOOKUP(#REF!,#REF!,2,FALSE)),\"\",VLOOKUP(#REF!,#REF!,2,FALSE))","v":""},{"$f":"IF(ISERROR(VLOOKUP(#REF!,#REF!,2,FALSE)),\"\",VLOOKUP(#REF!,#REF!,2,FALSE))","v":""},{"$f":"IF(ISERROR(VLOOKUP(#REF!,#REF!,2,FALSE)),\"\",VLOOKUP(#REF!,#REF!,2,FALSE))","v":""},{"$f":"IF(ISERROR(VLOOKUP(#REF!,#REF!,2,FALSE)),\"\",VLOOKUP(#REF!,#REF!,2,FALSE))","v":""},{"$f":"IF(ISERROR(VLOOKUP(#REF!,#REF!,2,FALSE)),\"\",VLOOKUP(#REF!,#REF!,2,FALSE))","v":""}]
[null,{"$f":"IF(K27=\"\",\"\",VLOOKUP(K27,[1]DEPORTISTAS!$A:$B,2,FALSE))","v":""},{"$f":"IF(ISERROR(VLOOKUP(#REF!,#REF!,2,FALSE)),\"\",VLOOKUP(#REF!,#REF!,2,FALSE))","v":""},{"$f":"IF(ISERROR(VLOOKUP(#REF!,#REF!,2,FALSE)),\"\",VLOOKUP(#REF!,#REF!,2,FALSE))","v":""},{"$f":"IF(ISERROR(VLOOKUP(#REF!,#REF!,2,FALSE)),\"\",VLOOKUP(#REF!,#REF!,2,FALSE))","v":""},{"$f":"IF(ISERROR(VLOOKUP(#REF!,#REF!,2,FALSE)),\"\",VLOOKUP(#REF!,#REF!,2,FALSE))","v":""},{"$f":"IF(ISERROR(VLOOKUP(#REF!,#REF!,2,FALSE)),\"\",VLOOKUP(#REF!,#REF!,2,FALSE))","v":""},{"$f":"IF(ISERROR(VLOOKUP(#REF!,#REF!,2,FALSE)),\"\",VLOOKUP(#REF!,#REF!,2,FALSE))","v":""},{"$f":"IF(ISERROR(VLOOKUP(#REF!,#REF!,2,FALSE)),\"\",VLOOKUP(#REF!,#REF!,2,FALSE))","v":""},{"$f":"IF(ISERROR(VLOOKUP(#REF!,#REF!,2,FALSE)),\"\",VLOOKUP(#REF!,#REF!,2,FALSE))","v":""},null,{"$f":"IF(U27=\"\",\"\",VLOOKUP(U27,[1]DEPORTISTAS!$A:$B,2,FALSE))","v":""},{"$f":"IF(ISERROR(VLOOKUP(#REF!,#REF!,2,FALSE)),\"\",VLOOKUP(#REF!,#REF!,2,FALSE))","v":""},{"$f":"IF(ISERROR(VLOOKUP(#REF!,#REF!,2,FALSE)),\"\",VLOOKUP(#REF!,#REF!,2,FALSE))","v":""},{"$f":"IF(ISERROR(VLOOKUP(#REF!,#REF!,2,FALSE)),\"\",VLOOKUP(#REF!,#REF!,2,FALSE))","v":""},{"$f":"IF(ISERROR(VLOOKUP(#REF!,#REF!,2,FALSE)),\"\",VLOOKUP(#REF!,#REF!,2,FALSE))","v":""},{"$f":"IF(ISERROR(VLOOKUP(#REF!,#REF!,2,FALSE)),\"\",VLOOKUP(#REF!,#REF!,2,FALSE))","v":""},{"$f":"IF(ISERROR(VLOOKUP(#REF!,#REF!,2,FALSE)),\"\",VLOOKUP(#REF!,#REF!,2,FALSE))","v":""},{"$f":"IF(ISERROR(VLOOKUP(#REF!,#REF!,2,FALSE)),\"\",VLOOKUP(#REF!,#REF!,2,FALSE))","v":""},{"$f":"IF(ISERROR(VLOOKUP(#REF!,#REF!,2,FALSE)),\"\",VLOOKUP(#REF!,#REF!,2,FALSE))","v":""},null,{"$f":"IF(AE27=\"\",\"\",VLOOKUP(AE27,[1]DEPORTISTAS!$A:$B,2,FALSE))","v":""},{"$f":"IF(ISERROR(VLOOKUP(#REF!,#REF!,2,FALSE)),\"\",VLOOKUP(#REF!,#REF!,2,FALSE))","v":""},{"$f":"IF(ISERROR(VLOOKUP(#REF!,#REF!,2,FALSE)),\"\",VLOOKUP(#REF!,#REF!,2,FALSE))","v":""},{"$f":"IF(ISERROR(VLOOKUP(#REF!,#REF!,2,FALSE)),\"\",VLOOKUP(#REF!,#REF!,2,FALSE))","v":""},{"$f":"IF(ISERROR(VLOOKUP(#REF!,#REF!,2,FALSE)),\"\",VLOOKUP(#REF!,#REF!,2,FALSE))","v":""},{"$f":"IF(ISERROR(VLOOKUP(#REF!,#REF!,2,FALSE)),\"\",VLOOKUP(#REF!,#REF!,2,FALSE))","v":""},{"$f":"IF(ISERROR(VLOOKUP(#REF!,#REF!,2,FALSE)),\"\",VLOOKUP(#REF!,#REF!,2,FALSE))","v":""},{"$f":"IF(ISERROR(VLOOKUP(#REF!,#REF!,2,FALSE)),\"\",VLOOKUP(#REF!,#REF!,2,FALSE))","v":""},{"$f":"IF(ISERROR(VLOOKUP(#REF!,#REF!,2,FALSE)),\"\",VLOOKUP(#REF!,#REF!,2,FALSE))","v":""}]
[null,{"$f":"IF(K28=\"\",\"\",VLOOKUP(K28,[1]DEPORTISTAS!$A:$B,2,FALSE))","v":""},{"$f":"IF(ISERROR(VLOOKUP(#REF!,#REF!,2,FALSE)),\"\",VLOOKUP(#REF!,#REF!,2,FALSE))","v":""},{"$f":"IF(ISERROR(VLOOKUP(#REF!,#REF!,2,FALSE)),\"\",VLOOKUP(#REF!,#REF!,2,FALSE))","v":""},{"$f":"IF(ISERROR(VLOOKUP(#REF!,#REF!,2,FALSE)),\"\",VLOOKUP(#REF!,#REF!,2,FALSE))","v":""},{"$f":"IF(ISERROR(VLOOKUP(#REF!,#REF!,2,FALSE)),\"\",VLOOKUP(#REF!,#REF!,2,FALSE))","v":""},{"$f":"IF(ISERROR(VLOOKUP(#REF!,#REF!,2,FALSE)),\"\",VLOOKUP(#REF!,#REF!,2,FALSE))","v":""},{"$f":"IF(ISERROR(VLOOKUP(#REF!,#REF!,2,FALSE)),\"\",VLOOKUP(#REF!,#REF!,2,FALSE))","v":""},{"$f":"IF(ISERROR(VLOOKUP(#REF!,#REF!,2,FALSE)),\"\",VLOOKUP(#REF!,#REF!,2,FALSE))","v":""},{"$f":"IF(ISERROR(VLOOKUP(#REF!,#REF!,2,FALSE)),\"\",VLOOKUP(#REF!,#REF!,2,FALSE))","v":""},null,{"$f":"IF(U28=\"\",\"\",VLOOKUP(U28,[1]DEPORTISTAS!$A:$B,2,FALSE))","v":""},{"$f":"IF(ISERROR(VLOOKUP(#REF!,#REF!,2,FALSE)),\"\",VLOOKUP(#REF!,#REF!,2,FALSE))","v":""},{"$f":"IF(ISERROR(VLOOKUP(#REF!,#REF!,2,FALSE)),\"\",VLOOKUP(#REF!,#REF!,2,FALSE))","v":""},{"$f":"IF(ISERROR(VLOOKUP(#REF!,#REF!,2,FALSE)),\"\",VLOOKUP(#REF!,#REF!,2,FALSE))","v":""},{"$f":"IF(ISERROR(VLOOKUP(#REF!,#REF!,2,FALSE)),\"\",VLOOKUP(#REF!,#REF!,2,FALSE))","v":""},{"$f":"IF(ISERROR(VLOOKUP(#REF!,#REF!,2,FALSE)),\"\",VLOOKUP(#REF!,#REF!,2,FALSE))","v":""},{"$f":"IF(ISERROR(VLOOKUP(#REF!,#REF!,2,FALSE)),\"\",VLOOKUP(#REF!,#REF!,2,FALSE))","v":""},{"$f":"IF(ISERROR(VLOOKUP(#REF!,#REF!,2,FALSE)),\"\",VLOOKUP(#REF!,#REF!,2,FALSE))","v":""},{"$f":"IF(ISERROR(VLOOKUP(#REF!,#REF!,2,FALSE)),\"\",VLOOKUP(#REF!,#REF!,2,FALSE))","v":""},null,{"$f":"IF(AE28=\"\",\"\",VLOOKUP(AE28,[1]DEPORTISTAS!$A:$B,2,FALSE))","v":""},{"$f":"IF(ISERROR(VLOOKUP(#REF!,#REF!,2,FALSE)),\"\",VLOOKUP(#REF!,#REF!,2,FALSE))","v":""},{"$f":"IF(ISERROR(VLOOKUP(#REF!,#REF!,2,FALSE)),\"\",VLOOKUP(#REF!,#REF!,2,FALSE))","v":""},{"$f":"IF(ISERROR(VLOOKUP(#REF!,#REF!,2,FALSE)),\"\",VLOOKUP(#REF!,#REF!,2,FALSE))","v":""},{"$f":"IF(ISERROR(VLOOKUP(#REF!,#REF!,2,FALSE)),\"\",VLOOKUP(#REF!,#REF!,2,FALSE))","v":""},{"$f":"IF(ISERROR(VLOOKUP(#REF!,#REF!,2,FALSE)),\"\",VLOOKUP(#REF!,#REF!,2,FALSE))","v":""},{"$f":"IF(ISERROR(VLOOKUP(#REF!,#REF!,2,FALSE)),\"\",VLOOKUP(#REF!,#REF!,2,FALSE))","v":""},{"$f":"IF(ISERROR(VLOOKUP(#REF!,#REF!,2,FALSE)),\"\",VLOOKUP(#REF!,#REF!,2,FALSE))","v":""},{"$f":"IF(ISERROR(VLOOKUP(#REF!,#REF!,2,FALSE)),\"\",VLOOKUP(#REF!,#REF!,2,FALSE))","v":""}]
[null,{"$f":"IF(K29=\"\",\"\",VLOOKUP(K29,[1]DEPORTISTAS!$A:$B,2,FALSE))","v":""},{"$f":"IF(ISERROR(VLOOKUP(#REF!,#REF!,2,FALSE)),\"\",VLOOKUP(#REF!,#REF!,2,FALSE))","v":""},{"$f":"IF(ISERROR(VLOOKUP(#REF!,#REF!,2,FALSE)),\"\",VLOOKUP(#REF!,#REF!,2,FALSE))","v":""},{"$f":"IF(ISERROR(VLOOKUP(#REF!,#REF!,2,FALSE)),\"\",VLOOKUP(#REF!,#REF!,2,FALSE))","v":""},{"$f":"IF(ISERROR(VLOOKUP(#REF!,#REF!,2,FALSE)),\"\",VLOOKUP(#REF!,#REF!,2,FALSE))","v":""},{"$f":"IF(ISERROR(VLOOKUP(#REF!,#REF!,2,FALSE)),\"\",VLOOKUP(#REF!,#REF!,2,FALSE))","v":""},{"$f":"IF(ISERROR(VLOOKUP(#REF!,#REF!,2,FALSE)),\"\",VLOOKUP(#REF!,#REF!,2,FALSE))","v":""},{"$f":"IF(ISERROR(VLOOKUP(#REF!,#REF!,2,FALSE)),\"\",VLOOKUP(#REF!,#REF!,2,FALSE))","v":""},{"$f":"IF(ISERROR(VLOOKUP(#REF!,#REF!,2,FALSE)),\"\",VLOOKUP(#REF!,#REF!,2,FALSE))","v":""},null,{"$f":"IF(U29=\"\",\"\",VLOOKUP(U29,[1]DEPORTISTAS!$A:$B,2,FALSE))","v":""},{"$f":"IF(ISERROR(VLOOKUP(#REF!,#REF!,2,FALSE)),\"\",VLOOKUP(#REF!,#REF!,2,FALSE))","v":""},{"$f":"IF(ISERROR(VLOOKUP(#REF!,#REF!,2,FALSE)),\"\",VLOOKUP(#REF!,#REF!,2,FALSE))","v":""},{"$f":"IF(ISERROR(VLOOKUP(#REF!,#REF!,2,FALSE)),\"\",VLOOKUP(#REF!,#REF!,2,FALSE))","v":""},{"$f":"IF(ISERROR(VLOOKUP(#REF!,#REF!,2,FALSE)),\"\",VLOOKUP(#REF!,#REF!,2,FALSE))","v":""},{"$f":"IF(ISERROR(VLOOKUP(#REF!,#REF!,2,FALSE)),\"\",VLOOKUP(#REF!,#REF!,2,FALSE))","v":""},{"$f":"IF(ISERROR(VLOOKUP(#REF!,#REF!,2,FALSE)),\"\",VLOOKUP(#REF!,#REF!,2,FALSE))","v":""},{"$f":"IF(ISERROR(VLOOKUP(#REF!,#REF!,2,FALSE)),\"\",VLOOKUP(#REF!,#REF!,2,FALSE))","v":""},{"$f":"IF(ISERROR(VLOOKUP(#REF!,#REF!,2,FALSE)),\"\",VLOOKUP(#REF!,#REF!,2,FALSE))","v":""},null,{"$f":"IF(AE29=\"\",\"\",VLOOKUP(AE29,[1]DEPORTISTAS!$A:$B,2,FALSE))","v":""},{"$f":"IF(ISERROR(VLOOKUP(#REF!,#REF!,2,FALSE)),\"\",VLOOKUP(#REF!,#REF!,2,FALSE))","v":""},{"$f":"IF(ISERROR(VLOOKUP(#REF!,#REF!,2,FALSE)),\"\",VLOOKUP(#REF!,#REF!,2,FALSE))","v":""},{"$f":"IF(ISERROR(VLOOKUP(#REF!,#REF!,2,FALSE)),\"\",VLOOKUP(#REF!,#REF!,2,FALSE))","v":""},{"$f":"IF(ISERROR(VLOOKUP(#REF!,#REF!,2,FALSE)),\"\",VLOOKUP(#REF!,#REF!,2,FALSE))","v":""},{"$f":"IF(ISERROR(VLOOKUP(#REF!,#REF!,2,FALSE)),\"\",VLOOKUP(#REF!,#REF!,2,FALSE))","v":""},{"$f":"IF(ISERROR(VLOOKUP(#REF!,#REF!,2,FALSE)),\"\",VLOOKUP(#REF!,#REF!,2,FALSE))","v":""},{"$f":"IF(ISERROR(VLOOKUP(#REF!,#REF!,2,FALSE)),\"\",VLOOKUP(#REF!,#REF!,2,FALSE))","v":""},{"$f":"IF(ISERROR(VLOOKUP(#REF!,#REF!,2,FALSE)),\"\",VLOOKUP(#REF!,#REF!,2,FALSE))","v":""}]
[null,{"$f":"IF(K30=\"\",\"\",VLOOKUP(K30,[1]DEPORTISTAS!$A:$B,2,FALSE))","v":""},{"$f":"IF(ISERROR(VLOOKUP(#REF!,#REF!,2,FALSE)),\"\",VLOOKUP(#REF!,#REF!,2,FALSE))","v":""},{"$f":"IF(ISERROR(VLOOKUP(#REF!,#REF!,2,FALSE)),\"\",VLOOKUP(#REF!,#REF!,2,FALSE))","v":""},{"$f":"IF(ISERROR(VLOOKUP(#REF!,#REF!,2,FALSE)),\"\",VLOOKUP(#REF!,#REF!,2,FALSE))","v":""},{"$f":"IF(ISERROR(VLOOKUP(#REF!,#REF!,2,FALSE)),\"\",VLOOKUP(#REF!,#REF!,2,FALSE))","v":""},{"$f":"IF(ISERROR(VLOOKUP(#REF!,#REF!,2,FALSE)),\"\",VLOOKUP(#REF!,#REF!,2,FALSE))","v":""},{"$f":"IF(ISERROR(VLOOKUP(#REF!,#REF!,2,FALSE)),\"\",VLOOKUP(#REF!,#REF!,2,FALSE))","v":""},{"$f":"IF(ISERROR(VLOOKUP(#REF!,#REF!,2,FALSE)),\"\",VLOOKUP(#REF!,#REF!,2,FALSE))","v":""},{"$f":"IF(ISERROR(VLOOKUP(#REF!,#REF!,2,FALSE)),\"\",VLOOKUP(#REF!,#REF!,2,FALSE))","v":""},null,{"$f":"IF(U30=\"\",\"\",VLOOKUP(U30,[1]DEPORTISTAS!$A:$B,2,FALSE))","v":""},{"$f":"IF(ISERROR(VLOOKUP(#REF!,#REF!,2,FALSE)),\"\",VLOOKUP(#REF!,#REF!,2,FALSE))","v":""},{"$f":"IF(ISERROR(VLOOKUP(#REF!,#REF!,2,FALSE)),\"\",VLOOKUP(#REF!,#REF!,2,FALSE))","v":""},{"$f":"IF(ISERROR(VLOOKUP(#REF!,#REF!,2,FALSE)),\"\",VLOOKUP(#REF!,#REF!,2,FALSE))","v":""},{"$f":"IF(ISERROR(VLOOKUP(#REF!,#REF!,2,FALSE)),\"\",VLOOKUP(#REF!,#REF!,2,FALSE))","v":""},{"$f":"IF(ISERROR(VLOOKUP(#REF!,#REF!,2,FALSE)),\"\",VLOOKUP(#REF!,#REF!,2,FALSE))","v":""},{"$f":"IF(ISERROR(VLOOKUP(#REF!,#REF!,2,FALSE)),\"\",VLOOKUP(#REF!,#REF!,2,FALSE))","v":""},{"$f":"IF(ISERROR(VLOOKUP(#REF!,#REF!,2,FALSE)),\"\",VLOOKUP(#REF!,#REF!,2,FALSE))","v":""},{"$f":"IF(ISERROR(VLOOKUP(#REF!,#REF!,2,FALSE)),\"\",VLOOKUP(#REF!,#REF!,2,FALSE))","v":""},null,{"$f":"IF(AE30=\"\",\"\",VLOOKUP(AE30,[1]DEPORTISTAS!$A:$B,2,FALSE))","v":""},{"$f":"IF(ISERROR(VLOOKUP(#REF!,#REF!,2,FALSE)),\"\",VLOOKUP(#REF!,#REF!,2,FALSE))","v":""},{"$f":"IF(ISERROR(VLOOKUP(#REF!,#REF!,2,FALSE)),\"\",VLOOKUP(#REF!,#REF!,2,FALSE))","v":""},{"$f":"IF(ISERROR(VLOOKUP(#REF!,#REF!,2,FALSE)),\"\",VLOOKUP(#REF!,#REF!,2,FALSE))","v":""},{"$f":"IF(ISERROR(VLOOKUP(#REF!,#REF!,2,FALSE)),\"\",VLOOKUP(#REF!,#REF!,2,FALSE))","v":""},{"$f":"IF(ISERROR(VLOOKUP(#REF!,#REF!,2,FALSE)),\"\",VLOOKUP(#REF!,#REF!,2,FALSE))","v":""},{"$f":"IF(ISERROR(VLOOKUP(#REF!,#REF!,2,FALSE)),\"\",VLOOKUP(#REF!,#REF!,2,FALSE))","v":""},{"$f":"IF(ISERROR(VLOOKUP(#REF!,#REF!,2,FALSE)),\"\",VLOOKUP(#REF!,#REF!,2,FALSE))","v":""},{"$f":"IF(ISERROR(VLOOKUP(#REF!,#REF!,2,FALSE)),\"\",VLOOKUP(#REF!,#REF!,2,FALSE))","v":""}]
[null,{"$f":"IF(K31=\"\",\"\",VLOOKUP(K31,[1]DEPORTISTAS!$A:$B,2,FALSE))","v":""},{"$f":"IF(ISERROR(VLOOKUP(#REF!,#REF!,2,FALSE)),\"\",VLOOKUP(#REF!,#REF!,2,FALSE))","v":""},{"$f":"IF(ISERROR(VLOOKUP(#REF!,#REF!,2,FALSE)),\"\",VLOOKUP(#REF!,#REF!,2,FALSE))","v":""},{"$f":"IF(ISERROR(VLOOKUP(#REF!,#REF!,2,FALSE)),\"\",VLOOKUP(#REF!,#REF!,2,FALSE))","v":""},{"$f":"IF(ISERROR(VLOOKUP(#REF!,#REF!,2,FALSE)),\"\",VLOOKUP(#REF!,#REF!,2,FALSE))","v":""},{"$f":"IF(ISERROR(VLOOKUP(#REF!,#REF!,2,FALSE)),\"\",VLOOKUP(#REF!,#REF!,2,FALSE))","v":""},{"$f":"IF(ISERROR(VLOOKUP(#REF!,#REF!,2,FALSE)),\"\",VLOOKUP(#REF!,#REF!,2,FALSE))","v":""},{"$f":"IF(ISERROR(VLOOKUP(#REF!,#REF!,2,FALSE)),\"\",VLOOKUP(#REF!,#REF!,2,FALSE))","v":""},{"$f":"IF(ISERROR(VLOOKUP(#REF!,#REF!,2,FALSE)),\"\",VLOOKUP(#REF!,#REF!,2,FALSE))","v":""},null,{"$f":"IF(U31=\"\",\"\",VLOOKUP(U31,[1]DEPORTISTAS!$A:$B,2,FALSE))","v":""},{"$f":"IF(ISERROR(VLOOKUP(#REF!,#REF!,2,FALSE)),\"\",VLOOKUP(#REF!,#REF!,2,FALSE))","v":""},{"$f":"IF(ISERROR(VLOOKUP(#REF!,#REF!,2,FALSE)),\"\",VLOOKUP(#REF!,#REF!,2,FALSE))","v":""},{"$f":"IF(ISERROR(VLOOKUP(#REF!,#REF!,2,FALSE)),\"\",VLOOKUP(#REF!,#REF!,2,FALSE))","v":""},{"$f":"IF(ISERROR(VLOOKUP(#REF!,#REF!,2,FALSE)),\"\",VLOOKUP(#REF!,#REF!,2,FALSE))","v":""},{"$f":"IF(ISERROR(VLOOKUP(#REF!,#REF!,2,FALSE)),\"\",VLOOKUP(#REF!,#REF!,2,FALSE))","v":""},{"$f":"IF(ISERROR(VLOOKUP(#REF!,#REF!,2,FALSE)),\"\",VLOOKUP(#REF!,#REF!,2,FALSE))","v":""},{"$f":"IF(ISERROR(VLOOKUP(#REF!,#REF!,2,FALSE)),\"\",VLOOKUP(#REF!,#REF!,2,FALSE))","v":""},{"$f":"IF(ISERROR(VLOOKUP(#REF!,#REF!,2,FALSE)),\"\",VLOOKUP(#REF!,#REF!,2,FALSE))","v":""},null,{"$f":"IF(AE31=\"\",\"\",VLOOKUP(AE31,[1]DEPORTISTAS!$A:$B,2,FALSE))","v":""},{"$f":"IF(ISERROR(VLOOKUP(#REF!,#REF!,2,FALSE)),\"\",VLOOKUP(#REF!,#REF!,2,FALSE))","v":""},{"$f":"IF(ISERROR(VLOOKUP(#REF!,#REF!,2,FALSE)),\"\",VLOOKUP(#REF!,#REF!,2,FALSE))","v":""},{"$f":"IF(ISERROR(VLOOKUP(#REF!,#REF!,2,FALSE)),\"\",VLOOKUP(#REF!,#REF!,2,FALSE))","v":""},{"$f":"IF(ISERROR(VLOOKUP(#REF!,#REF!,2,FALSE)),\"\",VLOOKUP(#REF!,#REF!,2,FALSE))","v":""},{"$f":"IF(ISERROR(VLOOKUP(#REF!,#REF!,2,FALSE)),\"\",VLOOKUP(#REF!,#REF!,2,FALSE))","v":""},{"$f":"IF(ISERROR(VLOOKUP(#REF!,#REF!,2,FALSE)),\"\",VLOOKUP(#REF!,#REF!,2,FALSE))","v":""},{"$f":"IF(ISERROR(VLOOKUP(#REF!,#REF!,2,FALSE)),\"\",VLOOKUP(#REF!,#REF!,2,FALSE))","v":""},{"$f":"IF(ISERROR(VLOOKUP(#REF!,#REF!,2,FALSE)),\"\",VLOOKUP(#REF!,#REF!,2,FALSE))","v":""}]
[null,{"$f":"IF(K32=\"\",\"\",VLOOKUP(K32,[1]DEPORTISTAS!$A:$B,2,FALSE))","v":""},{"$f":"IF(ISERROR(VLOOKUP(#REF!,#REF!,2,FALSE)),\"\",VLOOKUP(#REF!,#REF!,2,FALSE))","v":""},{"$f":"IF(ISERROR(VLOOKUP(#REF!,#REF!,2,FALSE)),\"\",VLOOKUP(#REF!,#REF!,2,FALSE))","v":""},{"$f":"IF(ISERROR(VLOOKUP(#REF!,#REF!,2,FALSE)),\"\",VLOOKUP(#REF!,#REF!,2,FALSE))","v":""},{"$f":"IF(ISERROR(VLOOKUP(#REF!,#REF!,2,FALSE)),\"\",VLOOKUP(#REF!,#REF!,2,FALSE))","v":""},{"$f":"IF(ISERROR(VLOOKUP(#REF!,#REF!,2,FALSE)),\"\",VLOOKUP(#REF!,#REF!,2,FALSE))","v":""},{"$f":"IF(ISERROR(VLOOKUP(#REF!,#REF!,2,FALSE)),\"\",VLOOKUP(#REF!,#REF!,2,FALSE))","v":""},{"$f":"IF(ISERROR(VLOOKUP(#REF!,#REF!,2,FALSE)),\"\",VLOOKUP(#REF!,#REF!,2,FALSE))","v":""},{"$f":"IF(ISERROR(VLOOKUP(#REF!,#REF!,2,FALSE)),\"\",VLOOKUP(#REF!,#REF!,2,FALSE))","v":""},null,{"$f":"IF(U32=\"\",\"\",VLOOKUP(U32,[1]DEPORTISTAS!$A:$B,2,FALSE))","v":""},{"$f":"IF(ISERROR(VLOOKUP(#REF!,#REF!,2,FALSE)),\"\",VLOOKUP(#REF!,#REF!,2,FALSE))","v":""},{"$f":"IF(ISERROR(VLOOKUP(#REF!,#REF!,2,FALSE)),\"\",VLOOKUP(#REF!,#REF!,2,FALSE))","v":""},{"$f":"IF(ISERROR(VLOOKUP(#REF!,#REF!,2,FALSE)),\"\",VLOOKUP(#REF!,#REF!,2,FALSE))","v":""},{"$f":"IF(ISERROR(VLOOKUP(#REF!,#REF!,2,FALSE)),\"\",VLOOKUP(#REF!,#REF!,2,FALSE))","v":""},{"$f":"IF(ISERROR(VLOOKUP(#REF!,#REF!,2,FALSE)),\"\",VLOOKUP(#REF!,#REF!,2,FALSE))","v":""},{"$f":"IF(ISERROR(VLOOKUP(#REF!,#REF!,2,FALSE)),\"\",VLOOKUP(#REF!,#REF!,2,FALSE))","v":""},{"$f":"IF(ISERROR(VLOOKUP(#REF!,#REF!,2,FALSE)),\"\",VLOOKUP(#REF!,#REF!,2,FALSE))","v":""},{"$f":"IF(ISERROR(VLOOKUP(#REF!,#REF!,2,FALSE)),\"\",VLOOKUP(#REF!,#REF!,2,FALSE))","v":""},null,{"$f":"IF(AE32=\"\",\"\",VLOOKUP(AE32,[1]DEPORTISTAS!$A:$B,2,FALSE))","v":""},{"$f":"IF(ISERROR(VLOOKUP(#REF!,#REF!,2,FALSE)),\"\",VLOOKUP(#REF!,#REF!,2,FALSE))","v":""},{"$f":"IF(ISERROR(VLOOKUP(#REF!,#REF!,2,FALSE)),\"\",VLOOKUP(#REF!,#REF!,2,FALSE))","v":""},{"$f":"IF(ISERROR(VLOOKUP(#REF!,#REF!,2,FALSE)),\"\",VLOOKUP(#REF!,#REF!,2,FALSE))","v":""},{"$f":"IF(ISERROR(VLOOKUP(#REF!,#REF!,2,FALSE)),\"\",VLOOKUP(#REF!,#REF!,2,FALSE))","v":""},{"$f":"IF(ISERROR(VLOOKUP(#REF!,#REF!,2,FALSE)),\"\",VLOOKUP(#REF!,#REF!,2,FALSE))","v":""},{"$f":"IF(ISERROR(VLOOKUP(#REF!,#REF!,2,FALSE)),\"\",VLOOKUP(#REF!,#REF!,2,FALSE))","v":""},{"$f":"IF(ISERROR(VLOOKUP(#REF!,#REF!,2,FALSE)),\"\",VLOOKUP(#REF!,#REF!,2,FALSE))","v":""},{"$f":"IF(ISERROR(VLOOKUP(#REF!,#REF!,2,FALSE)),\"\",VLOOKUP(#REF!,#REF!,2,FALSE))","v":""}]
[null,{"$f":"IF(K33=\"\",\"\",VLOOKUP(K33,[1]DEPORTISTAS!$A:$B,2,FALSE))","v":""},{"$f":"IF(ISERROR(VLOOKUP(#REF!,#REF!,2,FALSE)),\"\",VLOOKUP(#REF!,#REF!,2,FALSE))","v":""},{"$f":"IF(ISERROR(VLOOKUP(#REF!,#REF!,2,FALSE)),\"\",VLOOKUP(#REF!,#REF!,2,FALSE))","v":""},{"$f":"IF(ISERROR(VLOOKUP(#REF!,#REF!,2,FALSE)),\"\",VLOOKUP(#REF!,#REF!,2,FALSE))","v":""},{"$f":"IF(ISERROR(VLOOKUP(#REF!,#REF!,2,FALSE)),\"\",VLOOKUP(#REF!,#REF!,2,FALSE))","v":""},{"$f":"IF(ISERROR(VLOOKUP(#REF!,#REF!,2,FALSE)),\"\",VLOOKUP(#REF!,#REF!,2,FALSE))","v":""},{"$f":"IF(ISERROR(VLOOKUP(#REF!,#REF!,2,FALSE)),\"\",VLOOKUP(#REF!,#REF!,2,FALSE))","v":""},{"$f":"IF(ISERROR(VLOOKUP(#REF!,#REF!,2,FALSE)),\"\",VLOOKUP(#REF!,#REF!,2,FALSE))","v":""},{"$f":"IF(ISERROR(VLOOKUP(#REF!,#REF!,2,FALSE)),\"\",VLOOKUP(#REF!,#REF!,2,FALSE))","v":""},null,{"$f":"IF(U33=\"\",\"\",VLOOKUP(U33,[1]DEPORTISTAS!$A:$B,2,FALSE))","v":""},{"$f":"IF(ISERROR(VLOOKUP(#REF!,#REF!,2,FALSE)),\"\",VLOOKUP(#REF!,#REF!,2,FALSE))","v":""},{"$f":"IF(ISERROR(VLOOKUP(#REF!,#REF!,2,FALSE)),\"\",VLOOKUP(#REF!,#REF!,2,FALSE))","v":""},{"$f":"IF(ISERROR(VLOOKUP(#REF!,#REF!,2,FALSE)),\"\",VLOOKUP(#REF!,#REF!,2,FALSE))","v":""},{"$f":"IF(ISERROR(VLOOKUP(#REF!,#REF!,2,FALSE)),\"\",VLOOKUP(#REF!,#REF!,2,FALSE))","v":""},{"$f":"IF(ISERROR(VLOOKUP(#REF!,#REF!,2,FALSE)),\"\",VLOOKUP(#REF!,#REF!,2,FALSE))","v":""},{"$f":"IF(ISERROR(VLOOKUP(#REF!,#REF!,2,FALSE)),\"\",VLOOKUP(#REF!,#REF!,2,FALSE))","v":""},{"$f":"IF(ISERROR(VLOOKUP(#REF!,#REF!,2,FALSE)),\"\",VLOOKUP(#REF!,#REF!,2,FALSE))","v":""},{"$f":"IF(ISERROR(VLOOKUP(#REF!,#REF!,2,FALSE)),\"\",VLOOKUP(#REF!,#REF!,2,FALSE))","v":""},null,{"$f":"IF(AE33=\"\",\"\",VLOOKUP(AE33,[1]DEPORTISTAS!$A:$B,2,FALSE))","v":""},{"$f":"IF(ISERROR(VLOOKUP(#REF!,#REF!,2,FALSE)),\"\",VLOOKUP(#REF!,#REF!,2,FALSE))","v":""},{"$f":"IF(ISERROR(VLOOKUP(#REF!,#REF!,2,FALSE)),\"\",VLOOKUP(#REF!,#REF!,2,FALSE))","v":""},{"$f":"IF(ISERROR(VLOOKUP(#REF!,#REF!,2,FALSE)),\"\",VLOOKUP(#REF!,#REF!,2,FALSE))","v":""},{"$f":"IF(ISERROR(VLOOKUP(#REF!,#REF!,2,FALSE)),\"\",VLOOKUP(#REF!,#REF!,2,FALSE))","v":""},{"$f":"IF(ISERROR(VLOOKUP(#REF!,#REF!,2,FALSE)),\"\",VLOOKUP(#REF!,#REF!,2,FALSE))","v":""},{"$f":"IF(ISERROR(VLOOKUP(#REF!,#REF!,2,FALSE)),\"\",VLOOKUP(#REF!,#REF!,2,FALSE))","v":""},{"$f":"IF(ISERROR(VLOOKUP(#REF!,#REF!,2,FALSE)),\"\",VLOOKUP(#REF!,#REF!,2,FALSE))","v":""},{"$f":"IF(ISERROR(VLOOKUP(#REF!,#REF!,2,FALSE)),\"\",VLOOKUP(#REF!,#REF!,2,FALSE))","v":""}]
[null,{"$f":"IF(K34=\"\",\"\",VLOOKUP(K34,[1]DEPORTISTAS!$A:$B,2,FALSE))","v":""},{"$f":"IF(ISERROR(VLOOKUP(#REF!,#REF!,2,FALSE)),\"\",VLOOKUP(#REF!,#REF!,2,FALSE))","v":""},{"$f":"IF(ISERROR(VLOOKUP(#REF!,#REF!,2,FALSE)),\"\",VLOOKUP(#REF!,#REF!,2,FALSE))","v":""},{"$f":"IF(ISERROR(VLOOKUP(#REF!,#REF!,2,FALSE)),\"\",VLOOKUP(#REF!,#REF!,2,FALSE))","v":""},{"$f":"IF(ISERROR(VLOOKUP(#REF!,#REF!,2,FALSE)),\"\",VLOOKUP(#REF!,#REF!,2,FALSE))","v":""},{"$f":"IF(ISERROR(VLOOKUP(#REF!,#REF!,2,FALSE)),\"\",VLOOKUP(#REF!,#REF!,2,FALSE))","v":""},{"$f":"IF(ISERROR(VLOOKUP(#REF!,#REF!,2,FALSE)),\"\",VLOOKUP(#REF!,#REF!,2,FALSE))","v":""},{"$f":"IF(ISERROR(VLOOKUP(#REF!,#REF!,2,FALSE)),\"\",VLOOKUP(#REF!,#REF!,2,FALSE))","v":""},{"$f":"IF(ISERROR(VLOOKUP(#REF!,#REF!,2,FALSE)),\"\",VLOOKUP(#REF!,#REF!,2,FALSE))","v":""},null,{"$f":"IF(U34=\"\",\"\",VLOOKUP(U34,[1]DEPORTISTAS!$A:$B,2,FALSE))","v":""},{"$f":"IF(ISERROR(VLOOKUP(#REF!,#REF!,2,FALSE)),\"\",VLOOKUP(#REF!,#REF!,2,FALSE))","v":""},{"$f":"IF(ISERROR(VLOOKUP(#REF!,#REF!,2,FALSE)),\"\",VLOOKUP(#REF!,#REF!,2,FALSE))","v":""},{"$f":"IF(ISERROR(VLOOKUP(#REF!,#REF!,2,FALSE)),\"\",VLOOKUP(#REF!,#REF!,2,FALSE))","v":""},{"$f":"IF(ISERROR(VLOOKUP(#REF!,#REF!,2,FALSE)),\"\",VLOOKUP(#REF!,#REF!,2,FALSE))","v":""},{"$f":"IF(ISERROR(VLOOKUP(#REF!,#REF!,2,FALSE)),\"\",VLOOKUP(#REF!,#REF!,2,FALSE))","v":""},{"$f":"IF(ISERROR(VLOOKUP(#REF!,#REF!,2,FALSE)),\"\",VLOOKUP(#REF!,#REF!,2,FALSE))","v":""},{"$f":"IF(ISERROR(VLOOKUP(#REF!,#REF!,2,FALSE)),\"\",VLOOKUP(#REF!,#REF!,2,FALSE))","v":""},{"$f":"IF(ISERROR(VLOOKUP(#REF!,#REF!,2,FALSE)),\"\",VLOOKUP(#REF!,#REF!,2,FALSE))","v":""},null,{"$f":"IF(AE34=\"\",\"\",VLOOKUP(AE34,[1]DEPORTISTAS!$A:$B,2,FALSE))","v":""},{"$f":"IF(ISERROR(VLOOKUP(#REF!,#REF!,2,FALSE)),\"\",VLOOKUP(#REF!,#REF!,2,FALSE))","v":""},{"$f":"IF(ISERROR(VLOOKUP(#REF!,#REF!,2,FALSE)),\"\",VLOOKUP(#REF!,#REF!,2,FALSE))","v":""},{"$f":"IF(ISERROR(VLOOKUP(#REF!,#REF!,2,FALSE)),\"\",VLOOKUP(#REF!,#REF!,2,FALSE))","v":""},{"$f":"IF(ISERROR(VLOOKUP(#REF!,#REF!,2,FALSE)),\"\",VLOOKUP(#REF!,#REF!,2,FALSE))","v":""},{"$f":"IF(ISERROR(VLOOKUP(#REF!,#REF!,2,FALSE)),\"\",VLOOKUP(#REF!,#REF!,2,FALSE))","v":""},{"$f":"IF(ISERROR(VLOOKUP(#REF!,#REF!,2,FALSE)),\"\",VLOOKUP(#REF!,#REF!,2,FALSE))","v":""},{"$f":"IF(ISERROR(VLOOKUP(#REF!,#REF!,2,FALSE)),\"\",VLOOKUP(#REF!,#REF!,2,FALSE))","v":""},{"$f":"IF(ISERROR(VLOOKUP(#REF!,#REF!,2,FALSE)),\"\",VLOOKUP(#REF!,#REF!,2,FALSE))","v":""}]
[]
["(1)","A OMPLIR PER LA FEDERACIÓ",null,null,null,null,null,null,null,null,null,null,null,"Segell",null,null,null,null,null,null,null,null,null,"El Secretari del Club"]

{"sheet":"2ª (dtas)","index":11,"n_rows":36,"n_cols":34,"rows_kept":36,"cut":false,"hidden":true,"merged":[[35,13,35,17],[32,1,32,9],[32,11,32,19],[32,21,32,29],[33,1,33,9],[33,11,33,19],[33,21,33,29],[30,1,30,9],[30,11,30,19],[30,21,30,29],[31,1,31,9],[31,11,31,19],[31,21,31,29],[28,1,28,9],[28,11,28,19],[28,21,28,29],[29,1,29,9],[29,11,29,19],[29,21,29,29],[26,1,26,9],[26,11,26,19],[26,21,26,29],[27,1,27,9],[27,11,27,19],[27,21,27,29],[24,1,24,9],[24,11,24,19],[24,21,24,29],[25,1,25,9],[25,11,25,19],[25,21,25,29],[22,1,22,9],[22,11,22,19],[22,21,22,29],[23,1,23,9],[23,11,23,19],[23,21,23,29],[20,1,20,9],[20,11,20,19],[20,21,20,29],[21,1,21,9],[21,11,21,19],[21,21,21,29],[17,0,17,1],[17,2,17,14],[17,16,17,19],[17,20,17,30],[19,1,19,9],[19,11,19,19],[19,21,19,29],[4,5,4,19],[4,27,4,28],[10,25,11,26],[10,27,11,30],[12,20,13,23],[12,25,13,26],[12,27,13,30],[6,0,16,2],[6,18,14,19],[6,25,7,26],[6,27,7,30],[8,20,9,22],[8,25,9,26],[8,27,9,30],[10,20,11,23],[14,20,15,23],[14,25,15,26],[14,27,15,30]]}
[]
[null,null,"Federació Catalana de Petanca"]
[null,null,"Rambla Guipúscoa, 23-25. 3er. Of. D i E - Tel. 93 268 00 48  - 08018 BARCELONA"]
[]
["                      Nom del Club",null,null,null,null,"   CLUB PETANCA PRAT ",null,null,null,null,null,null,null,null,null,null,null,null,null,null,null,null,null,null,"Núm club:",null,null,9]
[]
["per participar en ",null,null,"Opens",null,null,null,null,null,null,null,null,null,null,null,null,null,null,"Lliga"]
[]
[null,null,null,"Campionat de Catalunya de Clubs Tripletes",null,null,null,null,null,null,null,null,null,null,null,null,null,null,null,null,"Lliga Masculina",null,null,null,null,"Divisió"]
[]
[null,null,null,"Campionat de Catalunya de Clubs Dobletes",null,null,null,null,null,null,null,null,null,null,"X",null,null,null,null,null,"Lliga Femenina",null,null,null,null,"Divisió"]
[]
[null,null,null,"Campionat de Catalunya Individual",null,null,null,null,null,null,null,null,null,null,null,null,null,null,null,null,"División Honor",null,null,null,null,"Divisió"]
[]
[null,null,null,"Campionat de Catalunya Individual  (tir)"]
[]
[]
["Categoria",null,"SEGUNDA MASCULINA",null,null,null,null,null,null,null,null,null,null,null,null,null,"Observacions",null,null,null,"        JUAN A. GARCIA CUADRADO  -   615240490"]
[]
["(1)","CAPITÀ",null,null,null,null,null,null,null,null,"Número Llicencia","JUGADOR",null,null,null,null,null,null,null,null,"Número Llicencia","JUGADOR",null,null,null,null,null,null,null,null,"Número Llicencia"]
[null,{"$f":"IF(K21=\"\",\"\",VLOOKUP(K21,[1]DEPORTISTAS!$A:$B,2,FALSE))","v":""},null,null,null,null,null,null,null,null,null,{"$f":"IF(U21=\"\",\"\",VLOOKUP(U21,[1]DEPORTISTAS!$A:$B,2,FALSE))","v":""},null,null,null,null,null,null,null,null,null,{"$f":"IF(AE21=\"\",\"\",VLOOKUP(AE21,[1]DEPORTISTAS!$A:$B,2,FALSE))","v":""}]
[null,{"$f":"IF(K22=\"\",\"\",VLOOKUP(K22,[1]DEPORTISTAS!$A:$B,2,FALSE))","v":""},null,null,null,null,null,null,null,null,null,{"$f":"IF(U22=\"\",\"\",VLOOKUP(U22,[1]DEPORTISTAS!$A:$B,2,FALSE))","v":""},null,null,null,null,null,null,null,null,null,{"$f":"IF(AE22=\"\",\"\",VLOOKUP(AE22,[1]DEPORTISTAS!$A:$B,2,FALSE))","v":""},null,null,null,null,null,null,null,null,null,null,null,{"$f":"IF(ISERROR(VLOOKUP(K21,#REF!,2,FALSE)),\"\",VLOOKUP(K21,#REF!,2,FALSE))","v":""}]
[null,{"$f":"IF(K23=\"\",\"\",VLOOKUP(K23,[1]DEPORTISTAS!$A:$B,2,FALSE))","v":""},null,null,null,null,null,null,null,null,null,{"$f":"IF(U23=\"\",\"\",VLOOKUP(U23,[1]DEPORTISTAS!$A:$B,2,FALSE))","v":""},null,null,null,null,null,null,null,null,null,{"$f":"IF(AE23=\"\",\"\",VLOOKUP(AE23,[1]DEPORTISTAS!$A:$B,2,FALSE))","v":""}]
[null,{"$f":"IF(K24=\"\",\"\",VLOOKUP(K24,[1]DEPORTISTAS!$A:$B,2,FALSE))","v":""},null,null,null,null,null,null,null,null,null,{"$f":"IF(U24=\"\",\"\",VLOOKUP(U24,[1]DEPORTISTAS!$A:$B,2,FALSE))","v":""},null,null,null,null,null,null,null,null,null,{"$f":"IF(AE24=\"\",\"\",VLOOKUP(AE24,[1]DEPORTISTAS!$A:$B,2,FALSE))","v":""}]
[null,{"$f":"IF(K25=\"\",\"\",VLOOKUP(K25,[1]DEPORTISTAS!$A:$B,2,FALSE))","v":""},null,null,null,null,null,null,null,null,null,{"$f":"IF(U25=\"\",\"\",VLOOKUP(U25,[1]DEPORTISTAS!$A:$B,2,FALSE))","v":""},null,null,null,null,null,null,null,null,null,{"$f":"IF(AE25=\"\",\"\",VLOOKUP(AE25,[1]DEPORTISTAS!$A:$B,2,FALSE))","v":""}]
[null,{"$f":"IF(K26=\"\",\"\",VLOOKUP(K26,[1]DEPORTISTAS!$A:$B,2,FALSE))","v":""},null,null,null,null,null,null,null,null,null,{"$f":"IF(U26=\"\",\"\",VLOOKUP(U26,[1]DEPORTISTAS!$A:$B,2,FALSE))","v":""},null,null,null,null,null,null,null,null,null,{"$f":"IF(AE26=\"\",\"\",VLOOKUP(AE26,[1]DEPORTISTAS!$A:$B,2,FALSE))","v":""}]
[null,{"$f":"IF(K27=\"\",\"\",VLOOKUP(K27,[1]DEPORTISTAS!$A:$B,2,FALSE))","v":""},null,null,null,null,null,null,null,null,null,{"$f":"IF(U27=\"\",\"\",VLOOKUP(U27,[1]DEPORTISTAS!$A:$B,2,FALSE))","v":""},null,null,null,null,null,null,null,null,null,{"$f":"IF(AE27=\"\",\"\",VLOOKUP(AE27,[1]DEPORTISTAS!$A:$B,2,FALSE))","v":""}]
[null,{"$f":"IF(K28=\"\",\"\",VLOOKUP(K28,[1]DEPORTISTAS!$A:$B,2,FALSE))","v":""},null,null,null,null,null,null,null,null,null,{"$f":"IF(U28=\"\",\"\",VLOOKUP(U28,[1]DEPORTISTAS!$A:$B,2,FALSE))","v":""},null,null,null,null,null,null,null,null,null,{"$f":"IF(AE28=\"\",\"\",VLOOKUP(AE28,[1]DEPORTISTAS!$A:$B,2,FALSE))","v":""}]
[null,{"$f":"IF(K29=\"\",\"\",VLOOKUP(K29,[1]DEPORTISTAS!$A:$B,2,FALSE))","v":""},null,null,null,null,null,null,null,null,null,{"$f":"IF(U29=\"\",\"\",VLOOKUP(U29,[1]DEPORTISTAS!$A:$B,2,FALSE))","v":""},null,null,null,null,null,null,null,null,null,{"$f":"IF(AE29=\"\",\"\",VLOOKUP(AE29,[1]DEPORTISTAS!$A:$B,2,FALSE))","v":""}]
[null,{"$f":"IF(K30=\"\",\"\",VLOOKUP(K30,[1]DEPORTISTAS!$A:$B,2,FALSE))","v":""},null,null,null,null,null,null,null,null,null,{"$f":"IF(U30=\"\",\"\",VLOOKUP(U30,[1]DEPORTISTAS!$A:$B,2,FALSE))","v":""},null,null,null,null,null,null,null,null,null,{"$f":"IF(AE30=\"\",\"\",VLOOKUP(AE30,[1]DEPORTISTAS!$A:$B,2,FALSE))","v":""}]
[null,{"$f":"IF(K31=\"\",\"\",VLOOKUP(K31,[1]DEPORTISTAS!$A:$B,2,FALSE))","v":""},null,null,null,null,null,null,null,null,null,{"$f":"IF(U31=\"\",\"\",VLOOKUP(U31,[1]DEPORTISTAS!$A:$B,2,FALSE))","v":""},null,null,null,null,null,null,null,null,null,{"$f":"IF(AE31=\"\",\"\",VLOOKUP(AE31,[1]DEPORTISTAS!$A:$B,2,FALSE))","v":""}]
[null,{"$f":"IF(K32=\"\",\"\",VLOOKUP(K32,[1]DEPORTISTAS!$A:$B,2,FALSE))","v":""},null,null,null,null,null,null,null,null,null,{"$f":"IF(U32=\"\",\"\",VLOOKUP(U32,[1]DEPORTISTAS!$A:$B,2,FALSE))","v":""},null,null,null,null,null,null,null,null,null,{"$f":"IF(AE32=\"\",\"\",VLOOKUP(AE32,[1]DEPORTISTAS!$A:$B,2,FALSE))","v":""}]
[null,{"$f":"IF(K33=\"\",\"\",VLOOKUP(K33,[1]DEPORTISTAS!$A:$B,2,FALSE))","v":""},null,null,null,null,null,null,null,null,null,{"$f":"IF(U33=\"\",\"\",VLOOKUP(U33,[1]DEPORTISTAS!$A:$B,2,FALSE))","v":""},null,null,null,null,null,null,null,null,null,{"$f":"IF(AE33=\"\",\"\",VLOOKUP(AE33,[1]DEPORTISTAS!$A:$B,2,FALSE))","v":""}]
[null,{"$f":"IF(K34=\"\",\"\",VLOOKUP(K34,[1]DEPORTISTAS!$A:$B,2,FALSE))","v":""},null,null,null,null,null,null,null,null,null,{"$f":"IF(U34=\"\",\"\",VLOOKUP(U34,[1]DEPORTISTAS!$A:$B,2,FALSE))","v":""},null,null,null,null,null,null,null,null,null,{"$f":"IF(AE34=\"\",\"\",VLOOKUP(AE34,[1]DEPORTISTAS!$A:$B,2,FALSE))","v":""}]
[]
["(1)","A OMPLIR PER LA FEDERACIÓ",null,null,null,null,null,null,null,null,null,null,null,"Segell",null,null,null,null,null,null,null,null,null,"El Secretari del Club"]

{"sheet":"M. H. (indiv.)","index":12,"n_rows":36,"n_cols":34,"rows_kept":36,"cut":false,"hidden":true,"merged":[[35,13,35,17],[32,1,32,9],[32,11,32,19],[32,21,32,29],[33,1,33,9],[33,11,33,19],[33,21,33,29],[30,1,30,9],[30,11,30,19],[30,21,30,29],[31,1,31,9],[31,11,31,19],[31,21,31,29],[28,1,28,9],[28,11,28,19],[28,21,28,29],[29,1,29,9],[29,11,29,19],[29,21,29,29],[26,1,26,9],[26,11,26,19],[26,21,26,29],[27,1,27,9],[27,11,27,19],[27,21,27,29],[24,1,24,9],[24,11,24,19],[24,21,24,29],[25,1,25,9],[25,11,25,19],[25,21,25,29],[22,1,22,9],[22,11,22,19],[22,21,22,29],[23,1,23,9],[23,11,23,19],[23,21,23,29],[20,1,20,9],[20,11,20,19],[20,21,20,29],[21,1,21,9],[21,11,21,19],[21,21,21,29],[17,0,17,1],[17,2,17,14],[17,16,17,19],[17,20,17,30],[19,1,19,9],[19,11,19,19],[19,21,19,29],[4,5,4,19],[4,27,4,28],[10,25,11,26],[10,27,11,30],[12,20,13,23],[12,25,13,26],[12,27,13,30],[6,0,16,2],[6,18,14,19],[6,25,7,26],[6,27,7,30],[8,20,9,22],[8,25,9,26],[8,27,9,30],[10,20,11,23],[14,20,15,23],[14,25,15,26],[14,27,15,30]]}
[]
[null,null,"Federació Catalana de Petanca"]
[null,null,"Rambla Guipúscoa, 23-25. 3er. Of. D i E - Tel. 93 268 00 48  - 08018 BARCELONA"]
[]
["                      Nom del Club",null,null,null,null,"   CLUB PETANCA PRAT  ",null,null,null,null,null,null,null,null,null,null,null,null,null,null,null,null,null,null,"Núm club:",null,null,9]
[]
["per participar en ",null,null,"Opens",null,null,null,null,null,null,null,null,null,null,null,null,null,null,"Lliga"]
[]
[null,null,null,"Campionat de Catalunya de Clubs Tripletes",null,null,null,null,null,null,null,null,null,null,null,null,null,null,null,null,"Lliga Masculina",null,null,null,null,"Divisió"]
[]
[null,null,null,"Campionat de Catalunya de Clubs Dobletes",null,null,null,null,null,null,null,null,null,null,null,null,null,null,null,null,"Lliga Femenina",null,null,null,null,"Divisió"]
[]
[null,null,null,"Campionat de Catalunya Individual",null,null,null,null,null,null,null,null,null,null,"X",null,null,null,null,null,"División Honor",null,null,null,null,"Divisió"]
[]
[null,null,null,"Campionat de Catalunya Individual  (tir)"]
[]
[]
["Categoria",null,"MASCULINA HOMOLOGADA",null,null,null,null,null,null,null,null,null,null,null,null,null,"Observacions",null,null,null,"        JUAN A. GARCIA CUADRADO  -   615240490"]
[]
["(1)","CAPITÀ",null,null,null,null,null,null,null,null,"Número Llicencia","JUGADOR",null,null,null,null,null,null,null,null,"Número Llicencia","JUGADOR",null,null,null,null,null,null,null,null,"Número Llicencia"]
[null,{"$f":"IF(K21=\"\",\"\",VLOOKUP(K21,[1]DEPORTISTAS!$A:$B,2,FALSE))","v":""},null,null,null,null,null,null,null,null,null,{"$f":"IF(U21=\"\",\"\",VLOOKUP(U21,[1]DEPORTISTAS!$A:$B,2,FALSE))","v":""},null,null,null,null,null,null,null,null,null,{"$f":"IF(AE21=\"\",\"\",VLOOKUP(AE21,[1]DEPORTISTAS!$A:$B,2,FALSE))","v":""}]
[null,{"$f":"IF(K22=\"\",\"\",VLOOKUP(K22,[1]DEPORTISTAS!$A:$B,2,FALSE))","v":""},null,null,null,null,null,null,null,null,null,{"$f":"IF(U22=\"\",\"\",VLOOKUP(U22,[1]DEPORTISTAS!$A:$B,2,FALSE))","v":""},null,null,null,null,null,null,null,null,null,{"$f":"IF(AE22=\"\",\"\",VLOOKUP(AE22,[1]DEPORTISTAS!$A:$B,2,FALSE))","v":""},null,null,null,null,null,null,null,null,null,null,null,{"$f":"IF(ISERROR(VLOOKUP(K21,#REF!,2,FALSE)),\"\",VLOOKUP(K21,#REF!,2,FALSE))","v":""}]
[null,{"$f":"IF(K23=\"\",\"\",VLOOKUP(K23,[1]DEPORTISTAS!$A:$B,2,FALSE))","v":""},null,null,null,null,null,null,null,null,null,{"$f":"IF(U23=\"\",\"\",VLOOKUP(U23,[1]DEPORTISTAS!$A:$B,2,FALSE))","v":""},null,null,null,null,null,null,null,null,null,{"$f":"IF(AE23=\"\",\"\",VLOOKUP(AE23,[1]DEPORTISTAS!$A:$B,2,FALSE))","v":""}]
[null,{"$f":"IF(K24=\"\",\"\",VLOOKUP(K24,[1]DEPORTISTAS!$A:$B,2,FALSE))","v":""},null,null,null,null,null,null,null,null,null,{"$f":"IF(U24=\"\",\"\",VLOOKUP(U24,[1]DEPORTISTAS!$A:$B,2,FALSE))","v":""},null,null,null,null,null,null,null,null,null,{"$f":"IF(AE24=\"\",\"\",VLOOKUP(AE24,[1]DEPORTISTAS!$A:$B,2,FALSE))","v":""}]
[null,{"$f":"IF(K25=\"\",\"\",VLOOKUP(K25,[1]DEPORTISTAS!$A:$B,2,FALSE))","v":""},null,null,null,null,null,null,null,null,null,{"$f":"IF(U25=\"\",\"\",VLOOKUP(U25,[1]DEPORTISTAS!$A:$B,2,FALSE))","v":""},null,null,null,null,null,null,null,null,null,{"$f":"IF(AE25=\"\",\"\",VLOOKUP(AE25,[1]DEPORTISTAS!$A:$B,2,FALSE))","v":""}]
[null,{"$f":"IF(K26=\"\",\"\",VLOOKUP(K26,[1]DEPORTISTAS!$A:$B,2,FALSE))","v":""},null,null,null,null,null,null,null,null,null,{"$f":"IF(U26=\"\",\"\",VLOOKUP(U26,[1]DEPORTISTAS!$A:$B,2,FALSE))","v":""},null,null,null,null,null,null,null,null,null,{"$f":"IF(AE26=\"\",\"\",VLOOKUP(AE26,[1]DEPORTISTAS!$A:$B,2,FALSE))","v":""}]
[null,{"$f":"IF(K27=\"\",\"\",VLOOKUP(K27,[1]DEPORTISTAS!$A:$B,2,FALSE))","v":""},null,null,null,null,null,null,null,null,null,{"$f":"IF(U27=\"\",\"\",VLOOKUP(U27,[1]DEPORTISTAS!$A:$B,2,FALSE))","v":""},null,null,null,null,null,null,null,null,null,{"$f":"IF(AE27=\"\",\"\",VLOOKUP(AE27,[1]DEPORTISTAS!$A:$B,2,FALSE))","v":""}]
[null,{"$f":"IF(K28=\"\",\"\",VLOOKUP(K28,[1]DEPORTISTAS!$A:$B,2,FALSE))","v":""},null,null,null,null,null,null,null,null,null,{"$f":"IF(U28=\"\",\"\",VLOOKUP(U28,[1]DEPORTISTAS!$A:$B,2,FALSE))","v":""},null,null,null,null,null,null,null,null,null,{"$f":"IF(AE28=\"\",\"\",VLOOKUP(AE28,[1]DEPORTISTAS!$A:$B,2,FALSE))","v":""}]
[null,{"$f":"IF(K29=\"\",\"\",VLOOKUP(K29,[1]DEPORTISTAS!$A:$B,2,FALSE))","v":""},null,null,null,null,null,null,null,null,null,{"$f":"IF(U29=\"\",\"\",VLOOKUP(U29,[1]DEPORTISTAS!$A:$B,2,FALSE))","v":""},null,null,null,null,null,null,null,null,null,{"$f":"IF(AE29=\"\",\"\",VLOOKUP(AE29,[1]DEPORTISTAS!$A:$B,2,FALSE))","v":""}]
[null,{"$f":"IF(K30=\"\",\"\",VLOOKUP(K30,[1]DEPORTISTAS!$A:$B,2,FALSE))","v":""},null,null,null,null,null,null,null,null,null,{"$f":"IF(U30=\"\",\"\",VLOOKUP(U30,[1]DEPORTISTAS!$A:$B,2,FALSE))","v":""},null,null,null,null,null,null,null,null,null,{"$f":"IF(AE30=\"\",\"\",VLOOKUP(AE30,[1]DEPORTISTAS!$A:$B,2,FALSE))","v":""}]
[null,{"$f":"IF(K31=\"\",\"\",VLOOKUP(K31,[1]DEPORTISTAS!$A:$B,2,FALSE))","v":""},null,null,null,null,null,null,null,null,null,{"$f":"IF(U31=\"\",\"\",VLOOKUP(U31,[1]DEPORTISTAS!$A:$B,2,FALSE))","v":""},null,null,null,null,null,null,null,null,null,{"$f":"IF(AE31=\"\",\"\",VLOOKUP(AE31,[1]DEPORTISTAS!$A:$B,2,FALSE))","v":""}]
[null,{"$f":"IF(K32=\"\",\"\",VLOOKUP(K32,[1]DEPORTISTAS!$A:$B,2,FALSE))","v":""},null,null,null,null,null,null,null,null,null,{"$f":"IF(U32=\"\",\"\",VLOOKUP(U32,[1]DEPORTISTAS!$A:$B,2,FALSE))","v":""},null,null,null,null,null,null,null,null,null,{"$f":"IF(AE32=\"\",\"\",VLOOKUP(AE32,[1]DEPORTISTAS!$A:$B,2,FALSE))","v":""}]
[null,{"$f":"IF(K33=\"\",\"\",VLOOKUP(K33,[1]DEPORTISTAS!$A:$B,2,FALSE))","v":""},null,null,null,null,null,null,null,null,null,{"$f":"IF(U33=\"\",\"\",VLOOKUP(U33,[1]DEPORTISTAS!$A:$B,2,FALSE))","v":""},null,null,null,null,null,null,null,null,null,{"$f":"IF(AE33=\"\",\"\",VLOOKUP(AE33,[1]DEPORTISTAS!$A:$B,2,FALSE))","v":""}]
[null,{"$f":"IF(K34=\"\",\"\",VLOOKUP(K34,[1]DEPORTISTAS!$A:$B,2,FALSE))","v":""},null,null,null,null,null,null,null,null,null,{"$f":"IF(U34=\"\",\"\",VLOOKUP(U34,[1]DEPORTISTAS!$A:$B,2,FALSE))","v":""},null,null,null,null,null,null,null,null,null,{"$f":"IF(AE34=\"\",\"\",VLOOKUP(AE34,[1]DEPORTISTAS!$A:$B,2,FALSE))","v":""}]
[]
["(1)","A OMPLIR PER LA FEDERACIÓ",null,null,null,null,null,null,null,null,null,null,null,"Segell",null,null,null,null,null,null,null,null,null,"El Secretari del Club"]

{"sheet":"INSCRIP.","index":13,"n_rows":39,"n_cols":43,"rows_kept":39,"cut":false,"hidden":false,"merged":[[17,26,18,31],[7,0,9,2],[7,18,13,19]]}
[]
[]
[]
[]
["Nom del Club              ",null,null,null,null,null,null,null,null,null,null,null,null,null,null,null,null,null,null,null,null,null,null,null,null,null,null,null,null,null,null,null,null,"Núm club:"]
[]
[]
["Per participar en:",null,null,"Opens",null,null,null,null,null,null,null,null,null,null,null,null,null,null,"Lliga",null,"Divisió Nacional",null,null,null,null,null,null,null,null,null,null,null,null,null,null,"Divisió"]
[]
[null,null,null,"Campionat de Catalunya de Clubs Tripletes",null,null,null,null,null,null,null,null,null,null,null,null,null,null,null,null,"Divisió Honor ",null,null,null,null,null,null,null,null,null,null,null,null,null,null,"Divisió"]
[]
[null,null,null,"Campionat de Catalunya de Clubs Dobletes",null,null,null,null,null,null,null,null,null,null,null,null,null,null,null,null,"Lliga Masculina",null,null,null,null,null,null,null,null,null,null,null,null,null,null,"Divisió"]
[]
[null,null,null,"Campionat de Catalunya Individual",null,null,null,null,null,null,null,null,null,null,null,null,null,null,null,null,"Lliga Femenina",null,null,null,null,null,null,null,null,null,null,null,null,null,null,"Divisió"]
[]
[]
[]
[null,null,null,null,null,null,null,null,null,null,null,null,null,null,null,null,null,null,null,null,null,null,null,null,null,null,"*Número d'equips       inscrits a la lliga",null,null,null,null,null,null,"Masculina"]
[null,"*Número total de pistes del club:",null,null,null,null,null,null,null,null,null,null,null,null,null,null,null,null,null,null,null,null,null,null,null,null,null,null,null,null,null,null,null,"Femenina"]
[]
["*Observacions"]
["*Observacions"]
[]
["(1)","NOM JUGADOR 1",null,null,null,null,null,null,null,null,"Número Llicencia","NOM JUGADOR 2",null,null,null,null,null,null,null,null,null,"NOM JUGADOR 3",null,null,null,null,null,null,null,null,"Número Llicencia","NOM JUGADOR 4",null,null,null,null,null,null,null,null,"Número Llicencia"]
[]
[null,null,null,null,null,null,null,null,null,null,null,null,null,null,null,null,null,null,null,null,null,null,null,null,null,null,null,null,null,null,null,null,null,null,null,null,null,null,null,null,null,null,{"$f":"IF(ISERROR(VLOOKUP(K25,#REF!,2,FALSE)),\"\",VLOOKUP(K25,#REF!,2,FALSE))","v":""}]
[]
[]
[]
[]
[]
[]
[]
[]
[]
[]
[]
["*De tenir més d'1 grup, omplir en tots els fulls igual els apartats amb  */Les tripletes o dobletes s'inscriuen en horitzontal. Individual a la columna \"Jugador 1\" en vertical"]
["(1)","A OMPLIR PER LA FEDERACIÓ",null,null,null,null,null,null,null,null,null,null,null,null,null,null,null,null,null,null,null,"Segell",null,null,null,null,null,null,null,null,null,null,null,"El Secretari del Club"]

{"sheet":"4ª D (fase pvia)","index":14,"n_rows":36,"n_cols":34,"rows_kept":36,"cut":false,"hidden":true,"merged":[[35,13,35,17],[32,1,32,9],[32,11,32,19],[32,21,32,29],[33,1,33,9],[33,11,33,19],[33,21,33,29],[30,1,30,9],[30,11,30,19],[30,21,30,29],[31,1,31,9],[31,11,31,19],[31,21,31,29],[28,1,28,9],[28,11,28,19],[28,21,28,29],[29,1,29,9],[29,11,29,19],[29,21,29,29],[26,1,26,9],[26,11,26,19],[26,21,26,29],[27,1,27,9],[27,11,27,19],[27,21,27,29],[24,1,24,9],[24,11,24,19],[24,21,24,29],[25,1,25,9],[25,11,25,19],[25,21,25,29],[22,1,22,9],[22,11,22,19],[22,21,22,29],[23,1,23,9],[23,11,23,19],[23,21,23,29],[20,1,20,9],[20,11,20,19],[20,21,20,29],[21,1,21,9],[21,11,21,19],[21,21,21,29],[17,0,17,1],[17,2,17,14],[17,16,17,19],[17,20,17,30],[19,1,19,9],[19,11,19,19],[19,21,19,29],[4,5,4,19],[4,27,4,28],[10,25,11,26],[10,27,11,30],[12,20,13,23],[12,25,13,26],[12,27,13,30],[6,0,16,2],[6,18,14,19],[6,25,7,26],[6,27,7,30],[8,20,9,22],[8,25,9,26],[8,27,9,30],[10,20,11,23],[14,20,15,23],[14,25,15,26],[14,27,15,30]]}
[]
[null,null,"Federació Catalana de Petanca"]
[null,null,"Rambla Guipúscoa, 23-25. 3er. Of. D i E - Tel. 93 268 00 48  - 08018 BARCELONA"]
[]
["                      Nom del Club",null,null,null,null,"   CLUB PETANCA PRAT  \" D \"",null,null,null,null,null,null,null,null,null,null,null,null,null,null,null,null,null,null,"Núm club:",null,null,9]
[]
["per participar en ",null,null,"Opens",null,null,null,null,null,null,null,null,null,null,null,null,null,null,"Lliga"]
[]
[null,null,null,"Campionat de Catalunya de Clubs Tripletes",null,null,null,null,null,null,null,null,null,null,"X",null,null,null,null,null,"Lliga Masculina",null,null,null,null,"Divisió"]
[]
[null,null,null,"Campionat de Catalunya de Clubs Dobletes",null,null,null,null,null,null,null,null,null,null,null,null,null,null,null,null,"Lliga Femenina",null,null,null,null,"Divisió"]
[]
[null,null,null,"Campionat de Catalunya Individual",null,null,null,null,null,null,null,null,null,null,null,null,null,null,null,null,"División Honor",null,null,null,null,"Divisió"]
[]
[null,null,null,"Campionat de Catalunya Individual  (tir)"]
[]
[]
["Categoria",null,"SEGUNDA MASCULINA",null,null,null,null,null,null,null,null,null,null,null,null,null,"Observacions",null,null,null,"        JUAN A. GARCIA CUADRADO  -   615240490"]
[]
["(1)","CAPITÀ",null,null,null,null,null,null,null,null,"Número Llicencia","JUGADOR",null,null,null,null,null,null,null,null,"Número Llicencia","JUGADOR",null,null,null,null,null,null,null,null,"Número Llicencia"]
[null,{"$f":"IF(K21=\"\",\"\",VLOOKUP(K21,[1]DEPORTISTAS!$A:$B,2,FALSE))","v":""},null,null,null,null,null,null,null,null,null,{"$f":"IF(U21=\"\",\"\",VLOOKUP(U21,[1]DEPORTISTAS!$A:$B,2,FALSE))","v":""},null,null,null,null,null,null,null,null,null,{"$f":"IF(AE21=\"\",\"\",VLOOKUP(AE21,[1]DEPORTISTAS!$A:$B,2,FALSE))","v":""}]
[null,{"$f":"IF(K22=\"\",\"\",VLOOKUP(K22,[1]DEPORTISTAS!$A:$B,2,FALSE))","v":""},null,null,null,null,null,null,null,null,null,{"$f":"IF(U22=\"\",\"\",VLOOKUP(U22,[1]DEPORTISTAS!$A:$B,2,FALSE))","v":""},null,null,null,null,null,null,null,null,null,{"$f":"IF(AE22=\"\",\"\",VLOOKUP(AE22,[1]DEPORTISTAS!$A:$B,2,FALSE))","v":""},null,null,null,null,null,null,null,null,null,null,null,{"$f":"IF(ISERROR(VLOOKUP(K21,#REF!,2,FALSE)),\"\",VLOOKUP(K21,#REF!,2,FALSE))","v":""}]
[null,{"$f":"IF(K23=\"\",\"\",VLOOKUP(K23,[1]DEPORTISTAS!$A:$B,2,FALSE))","v":""},null,null,null,null,null,null,null,null,null,{"$f":"IF(U23=\"\",\"\",VLOOKUP(U23,[1]DEPORTISTAS!$A:$B,2,FALSE))","v":""},null,null,null,null,null,null,null,null,null,{"$f":"IF(AE23=\"\",\"\",VLOOKUP(AE23,[1]DEPORTISTAS!$A:$B,2,FALSE))","v":""}]
[null,{"$f":"IF(K24=\"\",\"\",VLOOKUP(K24,[1]DEPORTISTAS!$A:$B,2,FALSE))","v":""},null,null,null,null,null,null,null,null,null,{"$f":"IF(U24=\"\",\"\",VLOOKUP(U24,[1]DEPORTISTAS!$A:$B,2,FALSE))","v":""},null,null,null,null,null,null,null,null,null,{"$f":"IF(AE24=\"\",\"\",VLOOKUP(AE24,[1]DEPORTISTAS!$A:$B,2,FALSE))","v":""}]
[null,{"$f":"IF(K25=\"\",\"\",VLOOKUP(K25,[1]DEPORTISTAS!$A:$B,2,FALSE))","v":""},null,null,null,null,null,null,null,null,null,{"$f":"IF(U25=\"\",\"\",VLOOKUP(U25,[1]DEPORTISTAS!$A:$B,2,FALSE))","v":""},null,null,null,null,null,null,null,null,null,{"$f":"IF(AE25=\"\",\"\",VLOOKUP(AE25,[1]DEPORTISTAS!$A:$B,2,FALSE))","v":""}]
[null,{"$f":"IF(K26=\"\",\"\",VLOOKUP(K26,[1]DEPORTISTAS!$A:$B,2,FALSE))","v":""},null,null,null,null,null,null,null,null,null,{"$f":"IF(U26=\"\",\"\",VLOOKUP(U26,[1]DEPORTISTAS!$A:$B,2,FALSE))","v":""},null,null,null,null,null,null,null,null,null,{"$f":"IF(AE26=\"\",\"\",VLOOKUP(AE26,[1]DEPORTISTAS!$A:$B,2,FALSE))","v":""}]
[null,{"$f":"IF(K27=\"\",\"\",VLOOKUP(K27,[1]DEPORTISTAS!$A:$B,2,FALSE))","v":""},null,null,null,null,null,null,null,null,null,{"$f":"IF(U27=\"\",\"\",VLOOKUP(U27,[1]DEPORTISTAS!$A:$B,2,FALSE))","v":""},null,null,null,null,null,null,null,null,null,{"$f":"IF(AE27=\"\",\"\",VLOOKUP(AE27,[1]DEPORTISTAS!$A:$B,2,FALSE))","v":""}]
[null,{"$f":"IF(K28=\"\",\"\",VLOOKUP(K28,[1]DEPORTISTAS!$A:$B,2,FALSE))","v":""},null,null,null,null,null,null,null,null,null,{"$f":"IF(U28=\"\",\"\",VLOOKUP(U28,[1]DEPORTISTAS!$A:$B,2,FALSE))","v":""},null,null,null,null,null,null,null,null,null,{"$f":"IF(AE28=\"\",\"\",VLOOKUP(AE28,[1]DEPORTISTAS!$A:$B,2,FALSE))","v":""}]
[null,{"$f":"IF(K29=\"\",\"\",VLOOKUP(K29,[1]DEPORTISTAS!$A:$B,2,FALSE))","v":""},null,null,null,null,null,null,null,null,null,{"$f":"IF(U29=\"\",\"\",VLOOKUP(U29,[1]DEPORTISTAS!$A:$B,2,FALSE))","v":""},null,null,null,null,null,null,null,null,null,{"$f":"IF(AE29=\"\",\"\",VLOOKUP(AE29,[1]DEPORTISTAS!$A:$B,2,FALSE))","v":""}]
[null,{"$f":"IF(K30=\"\",\"\",VLOOKUP(K30,[1]DEPORTISTAS!$A:$B,2,FALSE))","v":""},null,null,null,null,null,null,null,null,null,{"$f":"IF(U30=\"\",\"\",VLOOKUP(U30,[1]DEPORTISTAS!$A:$B,2,FALSE))","v":""},null,null,null,null,null,null,null,null,null,{"$f":"IF(AE30=\"\",\"\",VLOOKUP(AE30,[1]DEPORTISTAS!$A:$B,2,FALSE))","v":""}]
[null,{"$f":"IF(K31=\"\",\"\",VLOOKUP(K31,[1]DEPORTISTAS!$A:$B,2,FALSE))","v":""},null,null,null,null,null,null,null,null,null,{"$f":"IF(U31=\"\",\"\",VLOOKUP(U31,[1]DEPORTISTAS!$A:$B,2,FALSE))","v":""},null,null,null,null,null,null,null,null,null,{"$f":"IF(AE31=\"\",\"\",VLOOKUP(AE31,[1]DEPORTISTAS!$A:$B,2,FALSE))","v":""}]
[null,{"$f":"IF(K32=\"\",\"\",VLOOKUP(K32,[1]DEPORTISTAS!$A:$B,2,FALSE))","v":""},null,null,null,null,null,null,null,null,null,{"$f":"IF(U32=\"\",\"\",VLOOKUP(U32,[1]DEPORTISTAS!$A:$B,2,FALSE))","v":""},null,null,null,null,null,null,null,null,null,{"$f":"IF(AE32=\"\",\"\",VLOOKUP(AE32,[1]DEPORTISTAS!$A:$B,2,FALSE))","v":""}]
[null,{"$f":"IF(K33=\"\",\"\",VLOOKUP(K33,[1]DEPORTISTAS!$A:$B,2,FALSE))","v":""},null,null,null,null,null,null,null,null,null,{"$f":"IF(U33=\"\",\"\",VLOOKUP(U33,[1]DEPORTISTAS!$A:$B,2,FALSE))","v":""},null,null,null,null,null,null,null,null,null,{"$f":"IF(AE33=\"\",\"\",VLOOKUP(AE33,[1]DEPORTISTAS!$A:$B,2,FALSE))","v":""}]
[null,{"$f":"IF(K34=\"\",\"\",VLOOKUP(K34,[1]DEPORTISTAS!$A:$B,2,FALSE))","v":""},null,null,null,null,null,null,null,null,null,{"$f":"IF(U34=\"\",\"\",VLOOKUP(U34,[1]DEPORTISTAS!$A:$B,2,FALSE))","v":""},null,null,null,null,null,null,null,null,null,{"$f":"IF(AE34=\"\",\"\",VLOOKUP(AE34,[1]DEPORTISTAS!$A:$B,2,FALSE))","v":""}]
[]
["(1)","A OMPLIR PER LA FEDERACIÓ",null,null,null,null,null,null,null,null,null,null,null,"Segell",null,null,null,null,null,null,null,null,null,"El Secretari del Club"]

{"sheet":"4ª D (dtas)","index":15,"n_rows":36,"n_cols":34,"rows_kept":36,"cut":false,"hidden":true,"merged":[[35,13,35,17],[32,1,32,9],[32,11,32,19],[32,21,32,29],[33,1,33,9],[33,11,33,19],[33,21,33,29],[30,1,30,9],[30,11,30,19],[30,21,30,29],[31,1,31,9],[31,11,31,19],[31,21,31,29],[28,1,28,9],[28,11,28,19],[28,21,28,29],[29,1,29,9],[29,11,29,19],[29,21,29,29],[26,1,26,9],[26,11,26,19],[26,21,26,29],[27,1,27,9],[27,11,27,19],[27,21,27,29],[24,1,24,9],[24,11,24,19],[24,21,24,29],[25,1,25,9],[25,11,25,19],[25,21,25,29],[22,1,22,9],[22,11,22,19],[22,21,22,29],[23,1,23,9],[23,11,23,19],[23,21,23,29],[20,1,20,9],[20,11,20,19],[20,21,20,29],[21,1,21,9],[21,11,21,19],[21,21,21,29],[17,0,17,1],[17,2,17,14],[17,16,17,19],[17,20,17,30],[19,1,19,9],[19,11,19,19],[19,21,19,29],[4,5,4,19],[4,27,4,28],[10,25,11,26],[10,27,11,30],[12,20,13,23],[12,25,13,26],[12,27,13,30],[6,0,16,2],[6,18,14,19],[6,25,7,26],[6,27,7,30],[8,20,9,22],[8,25,9,26],[8,27,9,30],[10,20,11,23],[14,20,15,23],[14,25,15,26],[14,27,15,30]]}
[]
[null,null,"Federació Catalana de Petanca"]
[null,null,"Rambla Guipúscoa, 23-25. 3er. Of. D i E - Tel. 93 268 00 48  - 08018 BARCELONA"]
[]
["                      Nom del Club",null,null,null,null,"   CLUB PETANCA PRAT  \" D \"",null,null,null,null,null,null,null,null,null,null,null,null,null,null,null,null,null,null,"Núm club:",null,null,9]
[]
["per participar en ",null,null,"Opens",null,null,null,null,null,null,null,null,null,null,null,null,null,null,"Lliga"]
[]
[null,null,null,"Campionat de Catalunya de Clubs Tripletes",null,null,null,null,null,null,null,null,null,null,null,null,null,null,null,null,"Lliga Masculina",null,null,null,null,"Divisió"]
[]
[null,null,null,"Campionat de Catalunya de Clubs Dobletes",null,null,null,null,null,null,null,null,null,null,"X",null,null,null,null,null,"Lliga Femenina",null,null,null,null,"Divisió"]
[]
[null,null,null,"Campionat de Catalunya Individual",null,null,null,null,null,null,null,null,null,null,null,null,null,null,null,null,"División Honor",null,null,null,null,"Divisió"]
[]
[null,null,null,"Campionat de Catalunya Individual  (tir)"]
[]
[]
["Categoria",null,"SEGUNDA MASCULINA",null,null,null,null,null,null,null,null,null,null,null,null,null,"Observacions",null,null,null,"        JUAN A. GARCIA CUADRADO  -   615240490"]
[]
["(1)","CAPITÀ",null,null,null,null,null,null,null,null,"Número Llicencia","JUGADOR",null,null,null,null,null,null,null,null,"Número Llicencia","JUGADOR",null,null,null,null,null,null,null,null,"Número Llicencia"]
[null,{"$f":"IF(K21=\"\",\"\",VLOOKUP(K21,[1]DEPORTISTAS!$A:$B,2,FALSE))","v":""},null,null,null,null,null,null,null,null,null,{"$f":"IF(U21=\"\",\"\",VLOOKUP(U21,[1]DEPORTISTAS!$A:$B,2,FALSE))","v":""},null,null,null,null,null,null,null,null,null,{"$f":"IF(AE21=\"\",\"\",VLOOKUP(AE21,[1]DEPORTISTAS!$A:$B,2,FALSE))","v":""}]
[null,{"$f":"IF(K22=\"\",\"\",VLOOKUP(K22,[1]DEPORTISTAS!$A:$B,2,FALSE))","v":""},null,null,null,null,null,null,null,null,null,{"$f":"IF(U22=\"\",\"\",VLOOKUP(U22,[1]DEPORTISTAS!$A:$B,2,FALSE))","v":""},null,null,null,null,null,null,null,null,null,{"$f":"IF(AE22=\"\",\"\",VLOOKUP(AE22,[1]DEPORTISTAS!$A:$B,2,FALSE))","v":""},null,null,null,null,null,null,null,null,null,null,null,{"$f":"IF(ISERROR(VLOOKUP(K21,#REF!,2,FALSE)),\"\",VLOOKUP(K21,#REF!,2,FALSE))","v":""}]
[null,{"$f":"IF(K23=\"\",\"\",VLOOKUP(K23,[1]DEPORTISTAS!$A:$B,2,FALSE))","v":""},null,null,null,null,null,null,null,null,null,{"$f":"IF(U23=\"\",\"\",VLOOKUP(U23,[1]DEPORTISTAS!$A:$B,2,FALSE))","v":""},null,null,null,null,null,null,null,null,null,{"$f":"IF(AE23=\"\",\"\",VLOOKUP(AE23,[1]DEPORTISTAS!$A:$B,2,FALSE))","v":""}]
[null,{"$f":"IF(K24=\"\",\"\",VLOOKUP(K24,[1]DEPORTISTAS!$A:$B,2,FALSE))","v":""},null,null,null,null,null,null,null,null,null,{"$f":"IF(U24=\"\",\"\",VLOOKUP(U24,[1]DEPORTISTAS!$A:$B,2,FALSE))","v":""},null,null,null,null,null,null,null,null,null,{"$f":"IF(AE24=\"\",\"\",VLOOKUP(AE24,[1]DEPORTISTAS!$A:$B,2,FALSE))","v":""}]
[null,{"$f":"IF(K25=\"\",\"\",VLOOKUP(K25,[1]DEPORTISTAS!$A:$B,2,FALSE))","v":""},null,null,null,null,null,null,null,null,null,{"$f":"IF(U25=\"\",\"\",VLOOKUP(U25,[1]DEPORTISTAS!$A:$B,2,FALSE))","v":""},null,null,null,null,null,null,null,null,null,{"$f":"IF(AE25=\"\",\"\",VLOOKUP(AE25,[1]DEPORTISTAS!$A:$B,2,FALSE))","v":""}]
[null,{"$f":"IF(K26=\"\",\"\",VLOOKUP(K26,[1]DEPORTISTAS!$A:$B,2,FALSE))","v":""},null,null,null,null,null,null,null,null,null,{"$f":"IF(U26=\"\",\"\",VLOOKUP(U26,[1]DEPORTISTAS!$A:$B,2,FALSE))","v":""},null,null,null,null,null,null,null,null,null,{"$f":"IF(AE26=\"\",\"\",VLOOKUP(AE26,[1]DEPORTISTAS!$A:$B,2,FALSE))","v":""}]
[null,{"$f":"IF(K27=\"\",\"\",VLOOKUP(K27,[1]DEPORTISTAS!$A:$B,2,FALSE))","v":""},null,null,null,null,null,null,null,null,null,{"$f":"IF(U27=\"\",\"\",VLOOKUP(U27,[1]DEPORTISTAS!$A:$B,2,FALSE))","v":""},null,null,null,null,null,null,null,null,null,{"$f":"IF(AE27=\"\",\"\",VLOOKUP(AE27,[1]DEPORTISTAS!$A:$B,2,FALSE))","v":""}]
[null,{"$f":"IF(K28=\"\",\"\",VLOOKUP(K28,[1]DEPORTISTAS!$A:$B,2,FALSE))","v":""},null,null,null,null,null,null,null,null,null,{"$f":"IF(U28=\"\",\"\",VLOOKUP(U28,[1]DEPORTISTAS!$A:$B,2,FALSE))","v":""},null,null,null,null,null,null,null,null,null,{"$f":"IF(AE28=\"\",\"\",VLOOKUP(AE28,[1]DEPORTISTAS!$A:$B,2,FALSE))","v":""}]
[null,{"$f":"IF(K29=\"\",\"\",VLOOKUP(K29,[1]DEPORTISTAS!$A:$B,2,FALSE))","v":""},null,null,null,null,null,null,null,null,null,{"$f":"IF(U29=\"\",\"\",VLOOKUP(U29,[1]DEPORTISTAS!$A:$B,2,FALSE))","v":""},null,null,null,null,null,null,null,null,null,{"$f":"IF(AE29=\"\",\"\",VLOOKUP(AE29,[1]DEPORTISTAS!$A:$B,2,FALSE))","v":""}]
[null,{"$f":"IF(K30=\"\",\"\",VLOOKUP(K30,[1]DEPORTISTAS!$A:$B,2,FALSE))","v":""},null,null,null,null,null,null,null,null,null,{"$f":"IF(U30=\"\",\"\",VLOOKUP(U30,[1]DEPORTISTAS!$A:$B,2,FALSE))","v":""},null,null,null,null,null,null,null,null,null,{"$f":"IF(AE30=\"\",\"\",VLOOKUP(AE30,[1]DEPORTISTAS!$A:$B,2,FALSE))","v":""}]
[null,{"$f":"IF(K31=\"\",\"\",VLOOKUP(K31,[1]DEPORTISTAS!$A:$B,2,FALSE))","v":""},null,null,null,null,null,null,null,null,null,{"$f":"IF(U31=\"\",\"\",VLOOKUP(U31,[1]DEPORTISTAS!$A:$B,2,FALSE))","v":""},null,null,null,null,null,null,null,null,null,{"$f":"IF(AE31=\"\",\"\",VLOOKUP(AE31,[1]DEPORTISTAS!$A:$B,2,FALSE))","v":""}]
[null,{"$f":"IF(K32=\"\",\"\",VLOOKUP(K32,[1]DEPORTISTAS!$A:$B,2,FALSE))","v":""},null,null,null,null,null,null,null,null,null,{"$f":"IF(U32=\"\",\"\",VLOOKUP(U32,[1]DEPORTISTAS!$A:$B,2,FALSE))","v":""},null,null,null,null,null,null,null,null,null,{"$f":"IF(AE32=\"\",\"\",VLOOKUP(AE32,[1]DEPORTISTAS!$A:$B,2,FALSE))","v":""}]
[null,{"$f":"IF(K33=\"\",\"\",VLOOKUP(K33,[1]DEPORTISTAS!$A:$B,2,FALSE))","v":""},null,null,null,null,null,null,null,null,null,{"$f":"IF(U33=\"\",\"\",VLOOKUP(U33,[1]DEPORTISTAS!$A:$B,2,FALSE))","v":""},null,null,null,null,null,null,null,null,null,{"$f":"IF(AE33=\"\",\"\",VLOOKUP(AE33,[1]DEPORTISTAS!$A:$B,2,FALSE))","v":""}]
[null,{"$f":"IF(K34=\"\",\"\",VLOOKUP(K34,[1]DEPORTISTAS!$A:$B,2,FALSE))","v":""},null,null,null,null,null,null,null,null,null,{"$f":"IF(U34=\"\",\"\",VLOOKUP(U34,[1]DEPORTISTAS!$A:$B,2,FALSE))","v":""},null,null,null,null,null,null,null,null,null,{"$f":"IF(AE34=\"\",\"\",VLOOKUP(AE34,[1]DEPORTISTAS!$A:$B,2,FALSE))","v":""}]
[]
["(1)","A OMPLIR PER LA FEDERACIÓ",null,null,null,null,null,null,null,null,null,null,null,"Segell",null,null,null,null,null,null,null,null,null,"El Secretari del Club"]

{"sheet":"4ª D (indiv.)","index":16,"n_rows":36,"n_cols":34,"rows_kept":36,"cut":false,"hidden":true,"merged":[[35,13,35,17],[32,1,32,9],[32,11,32,19],[32,21,32,29],[33,1,33,9],[33,11,33,19],[33,21,33,29],[30,1,30,9],[30,11,30,19],[30,21,30,29],[31,1,31,9],[31,11,31,19],[31,21,31,29],[28,1,28,9],[28,11,28,19],[28,21,28,29],[29,1,29,9],[29,11,29,19],[29,21,29,29],[26,1,26,9],[26,11,26,19],[26,21,26,29],[27,1,27,9],[27,11,27,19],[27,21,27,29],[24,1,24,9],[24,11,24,19],[24,21,24,29],[25,1,25,9],[25,11,25,19],[25,21,25,29],[22,1,22,9],[22,11,22,19],[22,21,22,29],[23,1,23,9],[23,11,23,19],[23,21,23,29],[20,1,20,9],[20,11,20,19],[20,21,20,29],[21,1,21,9],[21,11,21,19],[21,21,21,29],[17,0,17,1],[17,2,17,14],[17,16,17,19],[17,20,17,30],[19,1,19,9],[19,11,19,19],[19,21,19,29],[4,5,4,19],[4,27,4,28],[10,25,11,26],[10,27,11,30],[12,20,13,23],[12,25,13,26],[12,27,13,30],[6,0,16,2],[6,18,14,19],[6,25,7,26],[6,27,7,30],[8,20,9,22],[8,25,9,26],[8,27,9,30],[10,20,11,23],[14,20,15,23],[14,25,15,26],[14,27,15,30]]}
[]
[null,null,"Federació Catalana de Petanca"]
[null,null,"Rambla Guipúscoa, 23-25. 3er. Of. D i E - Tel. 93 268 00 48  - 08018 BARCELONA"]
[]
["                      Nom del Club",null,null,null,null,"   CLUB PETANCA PRAT  \" D \"",null,null,null,null,null,null,null,null,null,null,null,null,null,null,null,null,null,null,"Núm club:",null,null,9]
[]
["per participar en ",null,null,"Opens",null,null,null,null,null,null,null,null,null,null,null,null,null,null,"Lliga"]
[]
[null,null,null,"Campionat de Catalunya de Clubs Tripletes",null,null,null,null,null,null,null,null,null,null,null,null,null,null,null,null,"Lliga Masculina",null,null,null,null,"Divisió"]
[]
[null,null,null,"Campionat de Catalunya de Clubs Dobletes",null,null,null,null,null,null,null,null,null,null,null,null,null,null,null,null,"Lliga Femenina",null,null,null,null,"Divisió"]
[]
[null,null,null,"Campionat de Catalunya Individual",null,null,null,null,null,null,null,null,null,null,"X",null,null,null,null,null,"División Honor",null,null,null,null,"Divisió"]
[]
[null,null,null,"Campionat de Catalunya Individual  (tir)"]
[]
[]
["Categoria",null,"MASCULINA HOMOLOGADA",null,null,null,null,null,null,null,null,null,null,null,null,null,"Observacions",null,null,null,"        JUAN A. GARCIA CUADRADO  -   615240490"]
[]
["(1)","CAPITÀ",null,null,null,null,null,null,null,null,"Número Llicencia","JUGADOR",null,null,null,null,null,null,null,null,"Número Llicencia","JUGADOR",null,null,null,null,null,null,null,null,"Número Llicencia"]
[null,{"$f":"IF(K21=\"\",\"\",VLOOKUP(K21,[1]DEPORTISTAS!$A:$B,2,FALSE))","v":""},null,null,null,null,null,null,null,null,null,{"$f":"IF(U21=\"\",\"\",VLOOKUP(U21,[1]DEPORTISTAS!$A:$B,2,FALSE))","v":""},null,null,null,null,null,null,null,null,null,{"$f":"IF(AE21=\"\",\"\",VLOOKUP(AE21,[1]DEPORTISTAS!$A:$B,2,FALSE))","v":""}]
[null,{"$f":"IF(K22=\"\",\"\",VLOOKUP(K22,[1]DEPORTISTAS!$A:$B,2,FALSE))","v":""},null,null,null,null,null,null,null,null,null,{"$f":"IF(U22=\"\",\"\",VLOOKUP(U22,[1]DEPORTISTAS!$A:$B,2,FALSE))","v":""},null,null,null,null,null,null,null,null,null,{"$f":"IF(AE22=\"\",\"\",VLOOKUP(AE22,[1]DEPORTISTAS!$A:$B,2,FALSE))","v":""},null,null,null,null,null,null,null,null,null,null,null,{"$f":"IF(ISERROR(VLOOKUP(K21,#REF!,2,FALSE)),\"\",VLOOKUP(K21,#REF!,2,FALSE))","v":""}]
[null,{"$f":"IF(K23=\"\",\"\",VLOOKUP(K23,[1]DEPORTISTAS!$A:$B,2,FALSE))","v":""},null,null,null,null,null,null,null,null,null,{"$f":"IF(U23=\"\",\"\",VLOOKUP(U23,[1]DEPORTISTAS!$A:$B,2,FALSE))","v":""},null,null,null,null,null,null,null,null,null,{"$f":"IF(AE23=\"\",\"\",VLOOKUP(AE23,[1]DEPORTISTAS!$A:$B,2,FALSE))","v":""}]
[null,{"$f":"IF(K24=\"\",\"\",VLOOKUP(K24,[1]DEPORTISTAS!$A:$B,2,FALSE))","v":""},null,null,null,null,null,null,null,null,null,{"$f":"IF(U24=\"\",\"\",VLOOKUP(U24,[1]DEPORTISTAS!$A:$B,2,FALSE))","v":""},null,null,null,null,null,null,null,null,null,{"$f":"IF(AE24=\"\",\"\",VLOOKUP(AE24,[1]DEPORTISTAS!$A:$B,2,FALSE))","v":""}]
[null,{"$f":"IF(K25=\"\",\"\",VLOOKUP(K25,[1]DEPORTISTAS!$A:$B,2,FALSE))","v":""},null,null,null,null,null,null,null,null,null,{"$f":"IF(U25=\"\",\"\",VLOOKUP(U25,[1]DEPORTISTAS!$A:$B,2,FALSE))","v":""},null,null,null,null,null,null,null,null,null,{"$f":"IF(AE25=\"\",\"\",VLOOKUP(AE25,[1]DEPORTISTAS!$A:$B,2,FALSE))","v":""}]
[null,{"$f":"IF(K26=\"\",\"\",VLOOKUP(K26,[1]DEPORTISTAS!$A:$B,2,FALSE))","v":""},null,null,null,null,null,null,null,null,null,{"$f":"IF(U26=\"\",\"\",VLOOKUP(U26,[1]DEPORTISTAS!$A:$B,2,FALSE))","v":""},null,null,null,null,null,null,null,null,null,{"$f":"IF(AE26=\"\",\"\",VLOOKUP(AE26,[1]DEPORTISTAS!$A:$B,2,FALSE))","v":""}]
[null,{"$f":"IF(K27=\"\",\"\",VLOOKUP(K27,[1]DEPORTISTAS!$A:$B,2,FALSE))","v":""},null,null,null,null,null,null,null,null,null,{"$f":"IF(U27=\"\",\"\",VLOOKUP(U27,[1]DEPORTISTAS!$A:$B,2,FALSE))","v":""},null,null,null,null,null,null,null,null,null,{"$f":"IF(AE27=\"\",\"\",VLOOKUP(AE27,[1]DEPORTISTAS!$A:$B,2,FALSE))","v":""}]
[null,{"$f":"IF(K28=\"\",\"\",VLOOKUP(K28,[1]DEPORTISTAS!$A:$B,2,FALSE))","v":""},null,null,null,null,null,null,null,null,null,{"$f":"IF(U28=\"\",\"\",VLOOKUP(U28,[1]DEPORTISTAS!$A:$B,2,FALSE))","v":""},null,null,null,null,null,null,null,null,null,{"$f":"IF(AE28=\"\",\"\",VLOOKUP(AE28,[1]DEPORTISTAS!$A:$B,2,FALSE))","v":""}]
[null,{"$f":"IF(K29=\"\",\"\",VLOOKUP(K29,[1]DEPORTISTAS!$A:$B,2,FALSE))","v":""},null,null,null,null,null,null,null,null,null,{"$f":"IF(U29=\"\",\"\",VLOOKUP(U29,[1]DEPORTISTAS!$A:$B,2,FALSE))","v":""},null,null,null,null,null,null,null,null,null,{"$f":"IF(AE29=\"\",\"\",VLOOKUP(AE29,[1]DEPORTISTAS!$A:$B,2,FALSE))","v":""}]
[null,{"$f":"IF(K30=\"\",\"\",VLOOKUP(K30,[1]DEPORTISTAS!$A:$B,2,FALSE))","v":""},null,null,null,null,null,null,null,null,null,{"$f":"IF(U30=\"\",\"\",VLOOKUP(U30,[1]DEPORTISTAS!$A:$B,2,FALSE))","v":""},null,null,null,null,null,null,null,null,null,{"$f":"IF(AE30=\"\",\"\",VLOOKUP(AE30,[1]DEPORTISTAS!$A:$B,2,FALSE))","v":""}]
[null,{"$f":"IF(K31=\"\",\"\",VLOOKUP(K31,[1]DEPORTISTAS!$A:$B,2,FALSE))","v":""},null,null,null,null,null,null,null,null,null,{"$f":"IF(U31=\"\",\"\",VLOOKUP(U31,[1]DEPORTISTAS!$A:$B,2,FALSE))","v":""},null,null,null,null,null,null,null,null,null,{"$f":"IF(AE31=\"\",\"\",VLOOKUP(AE31,[1]DEPORTISTAS!$A:$B,2,FALSE))","v":""}]
[null,{"$f":"IF(K32=\"\",\"\",VLOOKUP(K32,[1]DEPORTISTAS!$A:$B,2,FALSE))","v":""},null,null,null,null,null,null,null,null,null,{"$f":"IF(U32=\"\",\"\",VLOOKUP(U32,[1]DEPORTISTAS!$A:$B,2,FALSE))","v":""},null,null,null,null,null,null,null,null,null,{"$f":"IF(AE32=\"\",\"\",VLOOKUP(AE32,[1]DEPORTISTAS!$A:$B,2,FALSE))","v":""}]
[null,{"$f":"IF(K33=\"\",\"\",VLOOKUP(K33,[1]DEPORTISTAS!$A:$B,2,FALSE))","v":""},null,null,null,null,null,null,null,null,null,{"$f":"IF(U33=\"\",\"\",VLOOKUP(U33,[1]DEPORTISTAS!$A:$B,2,FALSE))","v":""},null,null,null,null,null,null,null,null,null,{"$f":"IF(AE33=\"\",\"\",VLOOKUP(AE33,[1]DEPORTISTAS!$A:$B,2,FALSE))","v":""}]
[null,{"$f":"IF(K34=\"\",\"\",VLOOKUP(K34,[1]DEPORTISTAS!$A:$B,2,FALSE))","v":""},null,null,null,null,null,null,null,null,null,{"$f":"IF(U34=\"\",\"\",VLOOKUP(U34,[1]DEPORTISTAS!$A:$B,2,FALSE))","v":""},null,null,null,null,null,null,null,null,null,{"$f":"IF(AE34=\"\",\"\",VLOOKUP(AE34,[1]DEPORTISTAS!$A:$B,2,FALSE))","v":""}]
[]
["(1)","A OMPLIR PER LA FEDERACIÓ",null,null,null,null,null,null,null,null,null,null,null,"Segell",null,null,null,null,null,null,null,null,null,"El Secretari del Club"]